Workbook

Sheet README
A1: This file contains national and state level emissions modeling sector total emissions by inventory pollutant and for air quality model species output from SMOKE
A2: Overall totals are provided for both the continental US ("CONUS") and the eastern states.
A3: Emissions are computed for each modeling sector and summarized.
A5: Modeling sector descriptions:
A6: afdust/afdust_adj - area fugitive dust emissions; afdust_adj are the emissions after metorological and land use adjustments
A7: biogenics (beis) - emissions from natural sources
A8: cmv_c1c2 - C1 and C2 commercial marine emissions for US states and offshore areas (excluding Canada/Mexico offshore areas)
A9: cmv_c3 - C3 commercial marine emissions for US states and offshore areas (excluding Canada/Mexico offshore areas)
A10: fertilizer - nonpoint agricultural fertilizer emissions
A11: livestock - nonpoint agricultural livestock emissions
A12: nonpt - nonpoint (county-level) not included in other sectors
A13: nonroad - mobile source emissions from off-road equipment
A14: onroad (plus RPD/RPV/RPP/RPH and onroad_ca_adj) - mobile source emissions on roads; RPD, RPV, RPP, and RPH are specific subcategories based on the type of activity data used
A15: State totals on the "onroad all" tab include the onroad_ca_adj sector, which covers onroad sector emissions in California with emissions adjusted to match state-provided inventories.
A16: othafdust/othafdust_adj - Canada area fugitive dust emissions; othafdust_adj are the emissions after meteorological and land use adjustments
A17: othar - Non-US area sources
A18: onroad_can - Canada onroad sources
A19: onroad_mex - Mexico onroad sources
A20: othpt - Non-US point sources
A21: othptdust - Non-US point source dust sources
A22: ptagfire - agricultural burning emissions as point sources
A23: ptegu - Emissions from EGUs not specifically designated as peaking
A24: ptfire-wild - Point source wildland fire emissions in the US
A25: ptfire-rx - Point source prescribed fire emissions in the US
A26: ptfire_othna - Point source wild and prescribed fire emissions in Canada, Mexico, and Carribbean
A27: ptnonipm - Point source emissions not included in ptegu_pk, ptegu, or pt_oilgas
A28: pt_oilgas - oil and gas emissions from point sources
A29: np_oilgas - oil and gas emissions from nonpoint sources
A30: rail - linehaul railroad emissions
A31: rwc - residential wood combustion emissions
A32: vcp - nonpoint solvent emissions
A34: CMAQ Emission Species
A35: ACET | B35: Acetone
A36: ACROLEIN | B36: Acrolein
A37: ALD2 | B37: Acetaldehyde
A38: ALD2_PRIMARY | B38: Primary Acetaldehyde
A39: ALDX | B39: Higher aldehyde species
A40: BENZENE | B40: Benzene
A41: BUTADIENE13 | B41: 1,3-butadiene
A42: CH4 | B42: Methane
A43: CL2 | B43: Chlorine
A44: CO | B44: Carbon Monoxide
A45: ETH | B45: Ethene
A46: ETHA | B46: Ethane
A47: ETOH | B47: Ethanol
A48: FORM | B48: Formaldehyde
A49: FORM_PRIMARY | B49: Primary Formaldehyde
A50: HCL | B50: Hydrochloric acid
A51: HONO | B51: Nitrous acid
A52: IOLE | B52: Internal olefin species
A53: ISOP | B53: Isoprene
A54: KET | B54: Ketone
A55: MEOH | B55: Methanol
A56: NAPH | B56: Naphthalene
A57: NH3 | B57: Ammonia
A58: NH3_FERT | B58: Ammonia from Fertilizer
A59: NO | B59: Nitric oxide
A60: NO2 | B60: Nitrogen dioxide
A61: NR | B61: Nonreactive
A62: NVOL | B62: Nonvolatile
A63: OLE | B63: Terminal olefin carbon bond
A64: PAL | B64: Aluminum
A65: PAR | B65: Paraffin carbon bond
A66: PCA | B66: Calcium
A67: PCL | B67: Chloride
A68: PEC | B68: Elemental Carbon
A69: PFE | B69: Iron
A70: PH2O | B70: Water
A71: PK | B71: Potassium
A72: PMC | B72: Coarse Particulates
A73: PMFINE | B73: Fine Particulates
A74: PMG | B74: Magnesium
A75: PMN | B75: Manganese
A76: PMOTHR | B76: Primary un-speciated fine PM
A77: PNA | B77: Sodium
A78: PNCOM | B78: Primary non-carbon organic mass
A79: PNH4 | B79: Ammonium
A80: PNO3 | B80: Nitrate
A81: POC | B81: Primary organic carbon
A82: PRPA | B82: Propane
A83: PSI | B83: Silicon
A84: PSO4 | B84: Sulfate
A85: PTI | B85: Titanium
A86: SESQ | B86: Sequiterpenes
A87: SO2 | B87: Sulfur Dioxide
A88: SOAALK | B88: SOA tracer
A89: SULF | B89: Sulfuric acid gas
A90: TERP | B90: Lumped terpene species
A91: TOL | B91: Toluene
A92: UNK | B92: Unknown VOC
A93: UNR | B93: Unreactive VOC
A94: VOC_INV | B94: Inventory total unspeciated Volitile Organic Compounds
A95: XYLMN | B95: Xylenes (mixed isomers) minus naphthalene

Sheet State Totals
B1: 2018gc Anthropogenic state totals. CAPs and non-VOC HAPs are inventory-level except onroad (SMOKE-MOVES), afdust (post-adjusted), and ptegu NOX/SO2 (CEM). VOC HAPs are post-SMOKE and include contributions from speciation. | AA1: State totals including biogenics. | AX1: State totals, no biogenics, no ptfires.
A3: State | B3: CO | C3: NH3 | D3: NOX | E3: PM10 | F3: PM2_5 | G3: SO2 | H3: VOC | I3: Acetaldehyde | J3: Benzene | K3: Formaldehyde | L3: Methanol | M3: Naphthalene | N3: Acrolein | O3: 1,3-Butadiene | P3: Diesel PM10 | Q3: Diesel PM2.5 | R3: Chromium Hex | S3: Arsenic | T3: Cadmium | U3: Nickel | V3: Manganese | W3: ETOX | X3: Eastern state? | AA3: State | AB3: CO | AC3: NH3 | AD3: NOX | AE3: PM10 | AF3: PM2_5 | AG3: SO2 | AH3: VOC | AI3: Acetaldehyde | AJ3: Benzene | AK3: Formaldehyde | AL3: Methanol | AM3: Naphthalene | AN3: Acrolein | AO3: 1,3-Butadiene | AP3: Diesel PM10 | AQ3: Diesel PM2.5 | AR3: Chromium Hex | AS3: Arsenic | AT3: Cadmium | AU3: Nickel | AV3: Manganese | AX3: State | AY3: CO | AZ3: NH3 | BA3: NOX | BB3: PM10 | BC3: PM2_5 | BD3: SO2 | BE3: VOC | BF3: Acetaldehyde | BG3: Benzene | BH3: Formaldehyde | BI3: Methanol | BJ3: Naphthalene | BK3: Acrolein | BL3: 1,3-Butadiene | BM3: Diesel PM10 | BN3: Diesel PM2.5 | BO3: Chromium Hex | BP3: Arsenic | BQ3: Cadmium | BR3: Nickel | BS3: Manganese
A4: Alabama | B4: =rail!B3+nonpt!B3+ptagfire!B3+nonroad!B3+'onroad all'!AG3+cmv_c1c2!B3+'ptfire-rx'!B3+ptegu!B3+ptnonipm!B3+pt_oilgas!B3+np_oilgas!B3+rwc!B3+cmv_c3!B3+airports!B3+'ptfire-wild'!B3 -> 1,573,855 | C4: =rail!C3+nonpt!C3+ptagfire!C3++nonroad!C3+'onroad all'!BZ3+cmv_c1c2!BE3+'ptfire-rx'!C3+ptegu!C3+ptnonipm!C3+pt_oilgas!C3+np_oilgas!C3+rwc!C3+cmv_c3!BE3+livestock!B3+airports!C3+'ptfire-wild'!C3+fertilizer!B3 -> 70,442 | D4: =rail!D3+nonpt!D3+ptagfire!D3++nonroad!D3+cmv_c1c2!D3+'ptfire-rx'!D3+ptegu!DW3+ptnonipm!D3+pt_oilgas!D3+np_oilgas!D3+rwc!D3+cmv_c3!D3+'onroad all'!CI3+airports!D3+'ptfire-wild'!D3 -> 214,293 | E4: =rail!E3+nonpt!E3+ptagfire!E3++nonroad!E3+cmv_c1c2!E3+'ptfire-rx'!E3+ptegu!E3+ptnonipm!E3+pt_oilgas!E3+np_oilgas!E3+rwc!E3+cmv_c3!E3+afdust!BA3+'onroad all'!DE3+'onroad all'!DD3+airports!E3+'ptfire-wild'!E3 -> 188,477 | F4: =rail!F3+nonpt!F3+ptagfire!F3++nonroad!F3+cmv_c1c2!F3+'ptfire-rx'!F3+ptegu!F3+ptnonipm!F3+pt_oilgas!F3+np_oilgas!F3+rwc!F3+cmv_c3!F3+afdust!BB3+'onroad all'!DD3+airports!F3+'ptfire-wild'!F3 -> 103,857 | G4: =rail!G3+nonpt!G3+ptagfire!G3++nonroad!G3+'onroad all'!DU3+cmv_c1c2!G3+'ptfire-rx'!G3+ptegu!FH3+ptnonipm!G3+pt_oilgas!G3+np_oilgas!G3+rwc!G3+cmv_c3!G3+airports!G3+'ptfire-wild'!G3 -> 66,899 | H4: =rail!H3+nonpt!H3+ptagfire!H3++nonroad!H3+'onroad all'!EI3+cmv_c1c2!H3+'ptfire-rx'!H3+ptegu!H3+ptnonipm!H3+pt_oilgas!H3+np_oilgas!H3+rwc!H3+cmv_c3!H3+livestock!C3+airports!H3+'ptfire-wild'!H3+vcp!H3 -> 315,931 | I4: =rail!AO3+nonpt!BN3+ptagfire!AI3+nonroad!AK3+'onroad all'!H3+cmv_c1c2!N3+'ptfire-rx'!AN3+ptegu!BM3+ptnonipm!BX3+pt_oilgas!BL3+np_oilgas!AT3+rwc!AJ3+cmv_c3!O3+livestock!U3+airports!AJ3+'ptfire-wild'!AK3+vcp!AA3 -> 5,757 | J4: =rail!AU3+nonpt!BT3+ptagfire!AM3+nonroad!AP3+'onroad all'!P3+cmv_c1c2!T3+'ptfire-rx'!AR3+ptegu!BS3+ptnonipm!CD3+pt_oilgas!BR3+np_oilgas!AZ3+rwc!AN3+cmv_c3!T3+livestock!X3+airports!AM3+'ptfire-wild'!AO3+vcp!AE3 -> 3,903 | K4: =rail!BR3+nonpt!CY3+ptagfire!AX3+nonroad!BH3+'onroad all'!BC3+cmv_c1c2!AO3+'ptfire-rx'!BD3+ptegu!CX3+ptnonipm!DP3+pt_oilgas!CV3+np_oilgas!BV3+rwc!BC3+cmv_c3!AP3+livestock!AH3+airports!BE3+'ptfire-wild'!AZ3+vcp!AQ3 -> 13,223 | L4: =rail!CF3+nonpt!DO3+ptagfire!BG3+nonroad!BT3+'onroad all'!BU3+cmv_c1c2!BC3+'ptfire-rx'!BM3+ptegu!DM3+ptnonipm!EH3+pt_oilgas!DK3+np_oilgas!CJ3+rwc!BP3+cmv_c3!BC3+livestock!AN3+airports!BN3+'ptfire-wild'!BI3+vcp!AX3 -> 13,930 | M4: =rail!CG3+nonpt!DQ3+nonroad!BU3+'onroad all'!BY3+cmv_c1c2!BD3+'ptfire-rx'!BO3+ptegu!DO3+ptnonipm!EJ3+pt_oilgas!DM3+np_oilgas!CK3+rwc!BQ3+cmv_c3!BD3+airports!BO3+'ptfire-wild'!BK3+vcp!AY3+ptagfire!BI3 -> 1,517 | N4: =rail!AN3+nonpt!BK3+nonroad!AJ3+'onroad all'!G3+cmv_c1c2!M3+'ptfire-rx'!AK3+ptegu!BK3+ptnonipm!BU3+pt_oilgas!BJ3+np_oilgas!AS3+rwc!AI3+airports!AH3+cmv_c3!M3+'ptfire-wild'!AI3+ptagfire!AG3 -> 2,408 | O4: =rail!AY3+nonpt!BY3+ptagfire!AO3+nonroad!AR3+'onroad all'!Z3+cmv_c1c2!V3+'ptfire-rx'!AT3+ptegu!BX3+ptnonipm!CI3+pt_oilgas!BW3+np_oilgas!BB3+rwc!AP3+airports!AO3+cmv_c3!V3+'ptfire-wild'!AQ3 -> 1,872 | P4: =rail!AD3+nonroad!AD3+'onroad all'!AK3+'onroad all'!AL3+'onroad all'!AM3+'onroad all'!AN3+'onroad all'!AO3+'onroad all'!AP3+ptnonipm!BI3+SUM(airports!AR3:AW3)+SUM(cmv_c1c2!AC3:AH3)+SUM(cmv_c3!AC3:AH3) -> 2,636 | Q4: =rail!AE3+nonroad!AE3+'onroad all'!AL3+'onroad all'!AM3+'onroad all'!AN3+'onroad all'!AO3+'onroad all'!AP3+ptnonipm!BJ3+SUM(airports!AS3:AW3)+SUM(cmv_c1c2!AD3:AH3)+SUM(cmv_c3!AD3:AH3) -> 2,488 | R4: =rail!P3+nonpt!T3+nonroad!R3+'onroad all'!AC3+ptegu!T3+ptnonipm!T3+pt_oilgas!S3+np_oilgas!R3+rwc!N3+SUM(cmv_c1c2!Z3:AA3)+SUM(cmv_c3!Z3:AA3) -> 0.80 | S4: =rail!K3+nonpt!L3+nonroad!U3+'onroad all'!M3+ptegu!L3+ptnonipm!L3+pt_oilgas!K3+np_oilgas!K3+SUM(cmv_c1c2!R3:S3)+SUM(cmv_c3!R3:S3) -> 1.18 | T4: =rail!O3+nonpt!P3+ptegu!P3+ptnonipm!P3+pt_oilgas!O3+np_oilgas!N3+rwc!M3+SUM(cmv_c1c2!W3:X3)+SUM(cmv_c3!W3:X3) -> 0.69 | U4: =rail!V3+nonpt!AI3+nonroad!T3+'onroad all'!CB3+ptegu!AH3+ptnonipm!AL3+pt_oilgas!AG3+np_oilgas!AB3+rwc!T3+SUM(cmv_c1c2!BG3:BH3)+SUM(cmv_c3!BG3:BH3) -> 5.26 | V4: =rail!T3+nonpt!AE3+nonroad!S3+'onroad all'!BS3+'onroad all'!BT3+ptegu!AD3+ptnonipm!AH3+pt_oilgas!AC3+np_oilgas!X3+rwc!R3+SUM(cmv_c1c2!BA3:BB3)+SUM(cmv_c3!BA3:BB3) -> 40.09 | W4: =nonpt!CW3+ptegu!CV3+ptnonipm!DN3 -> 0.05 | X4: X | AA4: Alabama | AB4: =B4+beis!H3 -> 1,705,095 | AC4: =C4 -> 70,442 | AD4: =D4+beis!T3 -> 236,296 | AE4: =E4 -> 188,477 | AF4: =F4 -> 103,857 | AG4: =G4 -> 66,899 | AH4: =H4+beis!Z3 -> 1,682,265 | AI4: =I4+beis!E3 -> 19,495 | AJ4: =J4 -> 3,903 | AK4: =K4+beis!N3 -> 31,957 | AL4: =L4+beis!R3 -> 86,201 | AM4: =M4 -> 1,517 | AN4: 2,408 | AO4: 1,872 | AP4: 2,636 | AQ4: 2,488 | AR4: 0.80 | AS4: 1.18 | AT4: 0.69 | AU4: 5.26 | AV4: 40.09 | AX4: Alabama | AY4: =B4-'ptfire-rx'!B3 -> 909,794 | AZ4: =C4-'ptfire-rx'!C3 -> 59,493 | BA4: =D4-'ptfire-rx'!D3 -> 201,458 | BB4: =E4-'ptfire-rx'!E3 -> 117,049 | BC4: =F4-'ptfire-rx'!F3 -> 43,145 | BD4: =G4-'ptfire-rx'!G3 -> 60,759 | BE4: =H4-'ptfire-rx'!H3 -> 157,535 | BF4: =I4-'ptfire-rx'!AN3 -> 1,520 | BG4: =J4-'ptfire-rx'!AR3 -> 2,129 | BH4: =K4-'ptfire-rx'!BD3 -> 2,683 | BI4: =L4-'ptfire-rx'!BM3 -> 7,692 | BJ4: =M4-'ptfire-rx'!BO3 -> 292 | BK4: =N4-'ptfire-rx'!AK3 -> 303 | BL4: =O4-'ptfire-rx'!AT3 -> 280 | BM4: =P4 -> 2,636 | BN4: 2,488 | BO4: 0.80 | BP4: 1.18 | BQ4: 0.69 | BR4: 5.26 | BS4: 40.09
A5: Arizona | B5: =rail!B4+nonpt!B4+ptagfire!B4+nonroad!B4+'onroad all'!AG4+cmv_c1c2!B4+'ptfire-rx'!B4+ptegu!B4+ptnonipm!B4+pt_oilgas!B4+np_oilgas!B4+rwc!B4+cmv_c3!B4+airports!B4+'ptfire-wild'!B4 -> 1,000,803 | C5: =rail!C4+nonpt!C4+ptagfire!C4++nonroad!C4+'onroad all'!BZ4+cmv_c1c2!BE4+'ptfire-rx'!C4+ptegu!C4+ptnonipm!C4+pt_oilgas!C4+np_oilgas!C4+rwc!C4+cmv_c3!BE4+livestock!B4+airports!C4+'ptfire-wild'!C4+fertilizer!B4 -> 73,249 | D5: =rail!D4+nonpt!D4+ptagfire!D4++nonroad!D4+cmv_c1c2!D4+'ptfire-rx'!D4+ptegu!DW4+ptnonipm!D4+pt_oilgas!D4+np_oilgas!D4+rwc!D4+cmv_c3!D4+'onroad all'!CI4+airports!D4+'ptfire-wild'!D4 -> 147,279 | E5: =rail!E4+nonpt!E4+ptagfire!E4++nonroad!E4+cmv_c1c2!E4+'ptfire-rx'!E4+ptegu!E4+ptnonipm!E4+pt_oilgas!E4+np_oilgas!E4+rwc!E4+cmv_c3!E4+afdust!BA4+'onroad all'!DE4+'onroad all'!DD4+airports!E4+'ptfire-wild'!E4 -> 174,595 | F5: =rail!F4+nonpt!F4+ptagfire!F4++nonroad!F4+cmv_c1c2!F4+'ptfire-rx'!F4+ptegu!F4+ptnonipm!F4+pt_oilgas!F4+np_oilgas!F4+rwc!F4+cmv_c3!F4+afdust!BB4+'onroad all'!DD4+airports!F4+'ptfire-wild'!F4 -> 59,610 | G5: =rail!G4+nonpt!G4+ptagfire!G4++nonroad!G4+'onroad all'!DU4+cmv_c1c2!G4+'ptfire-rx'!G4+ptegu!FH4+ptnonipm!G4+pt_oilgas!G4+np_oilgas!G4+rwc!G4+cmv_c3!G4+airports!G4+'ptfire-wild'!G4 -> 26,707 | H5: =rail!H4+nonpt!H4+ptagfire!H4++nonroad!H4+'onroad all'!EI4+cmv_c1c2!H4+'ptfire-rx'!H4+ptegu!H4+ptnonipm!H4+pt_oilgas!H4+np_oilgas!H4+rwc!H4+cmv_c3!H4+livestock!C4+airports!H4+'ptfire-wild'!H4+vcp!H4 -> 203,648 | I5: =rail!AO4+nonpt!BN4+ptagfire!AI4+nonroad!AK4+'onroad all'!H4+cmv_c1c2!N4+'ptfire-rx'!AN4+ptegu!BM4+ptnonipm!BX4+pt_oilgas!BL4+np_oilgas!AT4+rwc!AJ4+cmv_c3!O4+livestock!U4+airports!AJ4+'ptfire-wild'!AK4+vcp!AA4 -> 2,961 | J5: =rail!AU4+nonpt!BT4+ptagfire!AM4+nonroad!AP4+'onroad all'!P4+cmv_c1c2!T4+'ptfire-rx'!AR4+ptegu!BS4+ptnonipm!CD4+pt_oilgas!BR4+np_oilgas!AZ4+rwc!AN4+cmv_c3!T4+livestock!X4+airports!AM4+'ptfire-wild'!AO4+vcp!AE4 -> 1,868 | K5: =rail!BR4+nonpt!CY4+ptagfire!AX4+nonroad!BH4+'onroad all'!BC4+cmv_c1c2!AO4+'ptfire-rx'!BD4+ptegu!CX4+ptnonipm!DP4+pt_oilgas!CV4+np_oilgas!BV4+rwc!BC4+cmv_c3!AP4+livestock!AH4+airports!BE4+'ptfire-wild'!AZ4+vcp!AQ4 -> 4,646 | L5: =rail!CF4+nonpt!DO4+ptagfire!BG4+nonroad!BT4+'onroad all'!BU4+cmv_c1c2!BC4+'ptfire-rx'!BM4+ptegu!DM4+ptnonipm!EH4+pt_oilgas!DK4+np_oilgas!CJ4+rwc!BP4+cmv_c3!BC4+livestock!AN4+airports!BN4+'ptfire-wild'!BI4+vcp!AX4 -> 5,034 | M5: =rail!CG4+nonpt!DQ4+nonroad!BU4+'onroad all'!BY4+cmv_c1c2!BD4+'ptfire-rx'!BO4+ptegu!DO4+ptnonipm!EJ4+pt_oilgas!DM4+np_oilgas!CK4+rwc!BQ4+cmv_c3!BD4+airports!BO4+'ptfire-wild'!BK4+vcp!AY4+ptagfire!BI4 -> 854 | N5: =rail!AN4+nonpt!BK4+nonroad!AJ4+'onroad all'!G4+cmv_c1c2!M4+'ptfire-rx'!AK4+ptegu!BK4+ptnonipm!BU4+pt_oilgas!BJ4+np_oilgas!AS4+rwc!AI4+airports!AH4+cmv_c3!M4+'ptfire-wild'!AI4+ptagfire!AG4 -> 768 | O5: =rail!AY4+nonpt!BY4+ptagfire!AO4+nonroad!AR4+'onroad all'!Z4+cmv_c1c2!V4+'ptfire-rx'!AT4+ptegu!BX4+ptnonipm!CI4+pt_oilgas!BW4+np_oilgas!BB4+rwc!AP4+airports!AO4+cmv_c3!V4+'ptfire-wild'!AQ4 -> 521 | P5: =rail!AD4+nonroad!AD4+'onroad all'!AK4+'onroad all'!AL4+'onroad all'!AM4+'onroad all'!AN4+'onroad all'!AO4+'onroad all'!AP4+ptnonipm!BI4+SUM(airports!AR4:AW4)+SUM(cmv_c1c2!AC4:AH4)+SUM(cmv_c3!AC4:AH4) -> 2,831 | Q5: =rail!AE4+nonroad!AE4+'onroad all'!AL4+'onroad all'!AM4+'onroad all'!AN4+'onroad all'!AO4+'onroad all'!AP4+ptnonipm!BJ4+SUM(airports!AS4:AW4)+SUM(cmv_c1c2!AD4:AH4)+SUM(cmv_c3!AD4:AH4) -> 2,694 | R5: =rail!P4+nonpt!T4+nonroad!R4+'onroad all'!AC4+ptegu!T4+ptnonipm!T4+pt_oilgas!S4+np_oilgas!R4+rwc!N4+SUM(cmv_c1c2!Z4:AA4)+SUM(cmv_c3!Z4:AA4) -> 0.30 | S5: =rail!K4+nonpt!L4+nonroad!U4+'onroad all'!M4+ptegu!L4+ptnonipm!L4+pt_oilgas!K4+np_oilgas!K4+SUM(cmv_c1c2!R4:S4)+SUM(cmv_c3!R4:S4) -> 4.08 | T5: =rail!O4+nonpt!P4+ptegu!P4+ptnonipm!P4+pt_oilgas!O4+np_oilgas!N4+rwc!M4+SUM(cmv_c1c2!W4:X4)+SUM(cmv_c3!W4:X4) -> 0.67 | U5: =rail!V4+nonpt!AI4+nonroad!T4+'onroad all'!CB4+ptegu!AH4+ptnonipm!AL4+pt_oilgas!AG4+np_oilgas!AB4+rwc!T4+SUM(cmv_c1c2!BG4:BH4)+SUM(cmv_c3!BG4:BH4) -> 3.41 | V5: =rail!T4+nonpt!AE4+nonroad!S4+'onroad all'!BS4+'onroad all'!BT4+ptegu!AD4+ptnonipm!AH4+pt_oilgas!AC4+np_oilgas!X4+rwc!R4+SUM(cmv_c1c2!BA4:BB4)+SUM(cmv_c3!BA4:BB4) -> 11.14 | W5: =nonpt!CW4+ptegu!CV4+ptnonipm!DN4 -> 0.25 | AA5: Arizona | AB5: =B5+beis!H4 -> 1,154,650 | AC5: =C5 -> 73,249 | AD5: =D5+beis!T4 -> 159,608 | AE5: =E5 -> 174,595 | AF5: =F5 -> 59,610 | AG5: =G5 -> 26,707 | AH5: =H5+beis!Z4 -> 936,729 | AI5: =I5+beis!E4 -> 19,079 | AJ5: =J5 -> 1,868 | AK5: =K5+beis!N4 -> 26,624 | AL5: =L5+beis!R4 -> 100,336 | AM5: =M5 -> 854 | AN5: =N5 -> 768 | AO5: =O5 -> 521 | AP5: =P5 -> 2,831 | AQ5: =Q5 -> 2,694 | AR5: =R5 -> 0.30 | AS5: =S5 -> 4.08 | AT5: =T5 -> 0.67 | AU5: =U5 -> 3.41 | AV5: =V5 -> 11.14 | AX5: Arizona | AY5: =B5-'ptfire-rx'!B4 -> 855,889 | AZ5: =C5-'ptfire-rx'!C4 -> 70,878 | BA5: =D5-'ptfire-rx'!D4 -> 145,506 | BB5: =E5-'ptfire-rx'!E4 -> 159,969 | BC5: =F5-'ptfire-rx'!F4 -> 47,192 | BD5: =G5-'ptfire-rx'!G4 -> 25,681 | BE5: =H5-'ptfire-rx'!H4 -> 169,429 | BF5: =I5-'ptfire-rx'!AN4 -> 2,058 | BG5: =J5-'ptfire-rx'!AR4 -> 1,632 | BH5: =K5-'ptfire-rx'!BD4 -> 3,321 | BI5: =L5-'ptfire-rx'!BM4 -> 3,823 | BJ5: =M5-'ptfire-rx'!BO4 -> 603 | BK5: =N5-'ptfire-rx'!AK4 -> 488 | BL5: =O5-'ptfire-rx'!AT4 -> 379 | BM5: =P5 -> 2,831 | BN5: =Q5 -> 2,694 | BO5: =R5 -> 0.30 | BP5: =S5 -> 4.08 | BQ5: =T5 -> 0.67 | BR5: =U5 -> 3.41 | BS5: =V5 -> 11.14
A6: Arkansas | B6: =rail!B5+nonpt!B5+ptagfire!B5+nonroad!B5+'onroad all'!AG5+cmv_c1c2!B5+'ptfire-rx'!B5+ptegu!B5+ptnonipm!B5+pt_oilgas!B5+np_oilgas!B5+rwc!B5+cmv_c3!B5+airports!B5+'ptfire-wild'!B5 -> 1,168,019 | C6: =rail!C5+nonpt!C5+ptagfire!C5++nonroad!C5+'onroad all'!BZ5+cmv_c1c2!BE5+'ptfire-rx'!C5+ptegu!C5+ptnonipm!C5+pt_oilgas!C5+np_oilgas!C5+rwc!C5+cmv_c3!BE5+livestock!B5+airports!C5+'ptfire-wild'!C5+fertilizer!B5 -> 92,114 | D6: =rail!D5+nonpt!D5+ptagfire!D5++nonroad!D5+cmv_c1c2!D5+'ptfire-rx'!D5+ptegu!DW5+ptnonipm!D5+pt_oilgas!D5+np_oilgas!D5+rwc!D5+cmv_c3!D5+'onroad all'!CI5+airports!D5+'ptfire-wild'!D5 -> 153,061 | E6: =rail!E5+nonpt!E5+ptagfire!E5++nonroad!E5+cmv_c1c2!E5+'ptfire-rx'!E5+ptegu!E5+ptnonipm!E5+pt_oilgas!E5+np_oilgas!E5+rwc!E5+cmv_c3!E5+afdust!BA5+'onroad all'!DE5+'onroad all'!DD5+airports!E5+'ptfire-wild'!E5 -> 212,147 | F6: =rail!F5+nonpt!F5+ptagfire!F5++nonroad!F5+cmv_c1c2!F5+'ptfire-rx'!F5+ptegu!F5+ptnonipm!F5+pt_oilgas!F5+np_oilgas!F5+rwc!F5+cmv_c3!F5+afdust!BB5+'onroad all'!DD5+airports!F5+'ptfire-wild'!F5 -> 107,266 | G6: =rail!G5+nonpt!G5+ptagfire!G5++nonroad!G5+'onroad all'!DU5+cmv_c1c2!G5+'ptfire-rx'!G5+ptegu!FH5+ptnonipm!G5+pt_oilgas!G5+np_oilgas!G5+rwc!G5+cmv_c3!G5+airports!G5+'ptfire-wild'!G5 -> 66,923 | H6: =rail!H5+nonpt!H5+ptagfire!H5++nonroad!H5+'onroad all'!EI5+cmv_c1c2!H5+'ptfire-rx'!H5+ptegu!H5+ptnonipm!H5+pt_oilgas!H5+np_oilgas!H5+rwc!H5+cmv_c3!H5+livestock!C5+airports!H5+'ptfire-wild'!H5+vcp!H5 -> 272,512 | I6: =rail!AO5+nonpt!BN5+ptagfire!AI5+nonroad!AK5+'onroad all'!H5+cmv_c1c2!N5+'ptfire-rx'!AN5+ptegu!BM5+ptnonipm!BX5+pt_oilgas!BL5+np_oilgas!AT5+rwc!AJ5+cmv_c3!O5+livestock!U5+airports!AJ5+'ptfire-wild'!AK5+vcp!AA5 -> 5,274 | J6: =rail!AU5+nonpt!BT5+ptagfire!AM5+nonroad!AP5+'onroad all'!P5+cmv_c1c2!T5+'ptfire-rx'!AR5+ptegu!BS5+ptnonipm!CD5+pt_oilgas!BR5+np_oilgas!AZ5+rwc!AN5+cmv_c3!T5+livestock!X5+airports!AM5+'ptfire-wild'!AO5+vcp!AE5 -> 3,133 | K6: =rail!BR5+nonpt!CY5+ptagfire!AX5+nonroad!BH5+'onroad all'!BC5+cmv_c1c2!AO5+'ptfire-rx'!BD5+ptegu!CX5+ptnonipm!DP5+pt_oilgas!CV5+np_oilgas!BV5+rwc!BC5+cmv_c3!AP5+livestock!AH5+airports!BE5+'ptfire-wild'!AZ5+vcp!AQ5 -> 11,763 | L6: =rail!CF5+nonpt!DO5+ptagfire!BG5+nonroad!BT5+'onroad all'!BU5+cmv_c1c2!BC5+'ptfire-rx'!BM5+ptegu!DM5+ptnonipm!EH5+pt_oilgas!DK5+np_oilgas!CJ5+rwc!BP5+cmv_c3!BC5+livestock!AN5+airports!BN5+'ptfire-wild'!BI5+vcp!AX5 -> 9,734 | M6: =rail!CG5+nonpt!DQ5+nonroad!BU5+'onroad all'!BY5+cmv_c1c2!BD5+'ptfire-rx'!BO5+ptegu!DO5+ptnonipm!EJ5+pt_oilgas!DM5+np_oilgas!CK5+rwc!BQ5+cmv_c3!BD5+airports!BO5+'ptfire-wild'!BK5+vcp!AY5+ptagfire!BI5 -> 1,314 | N6: =rail!AN5+nonpt!BK5+nonroad!AJ5+'onroad all'!G5+cmv_c1c2!M5+'ptfire-rx'!AK5+ptegu!BK5+ptnonipm!BU5+pt_oilgas!BJ5+np_oilgas!AS5+rwc!AI5+airports!AH5+cmv_c3!M5+'ptfire-wild'!AI5+ptagfire!AG5 -> 2,130 | O6: =rail!AY5+nonpt!BY5+ptagfire!AO5+nonroad!AR5+'onroad all'!Z5+cmv_c1c2!V5+'ptfire-rx'!AT5+ptegu!BX5+ptnonipm!CI5+pt_oilgas!BW5+np_oilgas!BB5+rwc!AP5+airports!AO5+cmv_c3!V5+'ptfire-wild'!AQ5 -> 1,526 | P6: =rail!AD5+nonroad!AD5+'onroad all'!AK5+'onroad all'!AL5+'onroad all'!AM5+'onroad all'!AN5+'onroad all'!AO5+'onroad all'!AP5+ptnonipm!BI5+SUM(airports!AR5:AW5)+SUM(cmv_c1c2!AC5:AH5)+SUM(cmv_c3!AC5:AH5) -> 2,465 | Q6: =rail!AE5+nonroad!AE5+'onroad all'!AL5+'onroad all'!AM5+'onroad all'!AN5+'onroad all'!AO5+'onroad all'!AP5+ptnonipm!BJ5+SUM(airports!AS5:AW5)+SUM(cmv_c1c2!AD5:AH5)+SUM(cmv_c3!AD5:AH5) -> 2,344 | R6: =rail!P5+nonpt!T5+nonroad!R5+'onroad all'!AC5+ptegu!T5+ptnonipm!T5+pt_oilgas!S5+np_oilgas!R5+rwc!N5+SUM(cmv_c1c2!Z5:AA5)+SUM(cmv_c3!Z5:AA5) -> 0.66 | S6: =rail!K5+nonpt!L5+nonroad!U5+'onroad all'!M5+ptegu!L5+ptnonipm!L5+pt_oilgas!K5+np_oilgas!K5+SUM(cmv_c1c2!R5:S5)+SUM(cmv_c3!R5:S5) -> 0.82 | T6: =rail!O5+nonpt!P5+ptegu!P5+ptnonipm!P5+pt_oilgas!O5+np_oilgas!N5+rwc!M5+SUM(cmv_c1c2!W5:X5)+SUM(cmv_c3!W5:X5) -> 0.31 | U6: =rail!V5+nonpt!AI5+nonroad!T5+'onroad all'!CB5+ptegu!AH5+ptnonipm!AL5+pt_oilgas!AG5+np_oilgas!AB5+rwc!T5+SUM(cmv_c1c2!BG5:BH5)+SUM(cmv_c3!BG5:BH5) -> 3.05 | V6: =rail!T5+nonpt!AE5+nonroad!S5+'onroad all'!BS5+'onroad all'!BT5+ptegu!AD5+ptnonipm!AH5+pt_oilgas!AC5+np_oilgas!X5+rwc!R5+SUM(cmv_c1c2!BA5:BB5)+SUM(cmv_c3!BA5:BB5) -> 17.02 | W6: =nonpt!CW5+ptegu!CV5+ptnonipm!DN5 -> 2.47 | X6: X | AA6: Arkansas | AB6: =B6+beis!H5 -> 1,280,257 | AC6: 92,114 | AD6: =D6+beis!T5 -> 177,050 | AE6: 212,147 | AF6: 107,266 | AG6: 66,923 | AH6: =H6+beis!Z5 -> 1,461,685 | AI6: =I6+beis!E5 -> 17,020 | AJ6: 3,133 | AK6: =K6+beis!N5 -> 27,780 | AL6: =L6+beis!R5 -> 73,269 | AM6: 1,314 | AN6: 2,130 | AO6: 1,526 | AP6: 2,465 | AQ6: 2,344 | AR6: 0.66 | AS6: 0.82 | AT6: 0.31 | AU6: 3.05 | AV6: 17.02 | AX6: Arkansas | AY6: =B6-'ptfire-rx'!B5 -> 565,976 | AZ6: =C6-'ptfire-rx'!C5 -> 82,235 | BA6: =D6-'ptfire-rx'!D5 -> 142,957 | BB6: =E6-'ptfire-rx'!E5 -> 148,379 | BC6: =F6-'ptfire-rx'!F5 -> 52,929 | BD6: =G6-'ptfire-rx'!G5 -> 61,828 | BE6: =H6-'ptfire-rx'!H5 -> 128,834 | BF6: =I6-'ptfire-rx'!AN5 -> 1,577 | BG6: =J6-'ptfire-rx'!AR5 -> 1,663 | BH6: =K6-'ptfire-rx'!BD5 -> 3,016 | BI6: =L6-'ptfire-rx'!BM5 -> 4,510 | BJ6: =M6-'ptfire-rx'!BO5 -> 318 | BK6: =N6-'ptfire-rx'!AK5 -> 316 | BL6: =O6-'ptfire-rx'!AT5 -> 225 | BM6: 2,465 | BN6: 2,344 | BO6: 0.66 | BP6: 0.82 | BQ6: 0.31 | BR6: 3.05 | BS6: 17.02
A7: California | B7: =rail!B6+nonpt!B6+ptagfire!B6+nonroad!B6+'onroad all'!AG6+cmv_c1c2!B6+'ptfire-rx'!B6+ptegu!B6+ptnonipm!B6+pt_oilgas!B6+np_oilgas!B6+rwc!B6+cmv_c3!B6+airports!B6+'ptfire-wild'!B6 -> 5,313,011 | C7: =rail!C6+nonpt!C6+ptagfire!C6++nonroad!C6+'onroad all'!BZ6+cmv_c1c2!BE6+'ptfire-rx'!C6+ptegu!C6+ptnonipm!C6+pt_oilgas!C6+np_oilgas!C6+rwc!C6+cmv_c3!BE6+livestock!B6+airports!C6+'ptfire-wild'!C6+fertilizer!B6 -> 512,695 | D7: =rail!D6+nonpt!D6+ptagfire!D6++nonroad!D6+cmv_c1c2!D6+'ptfire-rx'!D6+ptegu!DW6+ptnonipm!D6+pt_oilgas!D6+np_oilgas!D6+rwc!D6+cmv_c3!D6+'onroad all'!CI6+airports!D6+'ptfire-wild'!D6 -> 489,346 | E7: =rail!E6+nonpt!E6+ptagfire!E6++nonroad!E6+cmv_c1c2!E6+'ptfire-rx'!E6+ptegu!E6+ptnonipm!E6+pt_oilgas!E6+np_oilgas!E6+rwc!E6+cmv_c3!E6+afdust!BA6+'onroad all'!DE6+'onroad all'!DD6+airports!E6+'ptfire-wild'!E6 -> 668,314 | F7: =rail!F6+nonpt!F6+ptagfire!F6++nonroad!F6+cmv_c1c2!F6+'ptfire-rx'!F6+ptegu!F6+ptnonipm!F6+pt_oilgas!F6+np_oilgas!F6+rwc!F6+cmv_c3!F6+afdust!BB6+'onroad all'!DD6+airports!F6+'ptfire-wild'!F6 -> 414,860 | G7: =rail!G6+nonpt!G6+ptagfire!G6++nonroad!G6+'onroad all'!DU6+cmv_c1c2!G6+'ptfire-rx'!G6+ptegu!FH6+ptnonipm!G6+pt_oilgas!G6+np_oilgas!G6+rwc!G6+cmv_c3!G6+airports!G6+'ptfire-wild'!G6 -> 49,518 | H7: =rail!H6+nonpt!H6+ptagfire!H6++nonroad!H6+'onroad all'!EI6+cmv_c1c2!H6+'ptfire-rx'!H6+ptegu!H6+ptnonipm!H6+pt_oilgas!H6+np_oilgas!H6+rwc!H6+cmv_c3!H6+livestock!C6+airports!H6+'ptfire-wild'!H6+vcp!H6 -> 1,533,249 | I7: =rail!AO6+nonpt!BN6+ptagfire!AI6+nonroad!AK6+'onroad all'!H6+cmv_c1c2!N6+'ptfire-rx'!AN6+ptegu!BM6+ptnonipm!BX6+pt_oilgas!BL6+np_oilgas!AT6+rwc!AJ6+cmv_c3!O6+livestock!U6+airports!AJ6+'ptfire-wild'!AK6+vcp!AA6 -> 29,398 | J7: =rail!AU6+nonpt!BT6+ptagfire!AM6+nonroad!AP6+'onroad all'!P6+cmv_c1c2!T6+'ptfire-rx'!AR6+ptegu!BS6+ptnonipm!CD6+pt_oilgas!BR6+np_oilgas!AZ6+rwc!AN6+cmv_c3!T6+livestock!X6+airports!AM6+'ptfire-wild'!AO6+vcp!AE6 -> 12,438 | K7: =rail!BR6+nonpt!CY6+ptagfire!AX6+nonroad!BH6+'onroad all'!BC6+cmv_c1c2!AO6+'ptfire-rx'!BD6+ptegu!CX6+ptnonipm!DP6+pt_oilgas!CV6+np_oilgas!BV6+rwc!BC6+cmv_c3!AP6+livestock!AH6+airports!BE6+'ptfire-wild'!AZ6+vcp!AQ6 -> 42,739 | L7: =rail!CF6+nonpt!DO6+ptagfire!BG6+nonroad!BT6+'onroad all'!BU6+cmv_c1c2!BC6+'ptfire-rx'!BM6+ptegu!DM6+ptnonipm!EH6+pt_oilgas!DK6+np_oilgas!CJ6+rwc!BP6+cmv_c3!BC6+livestock!AN6+airports!BN6+'ptfire-wild'!BI6+vcp!AX6 -> 46,873 | M7: =rail!CG6+nonpt!DQ6+nonroad!BU6+'onroad all'!BY6+cmv_c1c2!BD6+'ptfire-rx'!BO6+ptegu!DO6+ptnonipm!EJ6+pt_oilgas!DM6+np_oilgas!CK6+rwc!BQ6+cmv_c3!BD6+airports!BO6+'ptfire-wild'!BK6+vcp!AY6+ptagfire!BI6 -> 7,604 | N7: =rail!AN6+nonpt!BK6+nonroad!AJ6+'onroad all'!G6+cmv_c1c2!M6+'ptfire-rx'!AK6+ptegu!BK6+ptnonipm!BU6+pt_oilgas!BJ6+np_oilgas!AS6+rwc!AI6+airports!AH6+cmv_c3!M6+'ptfire-wild'!AI6+ptagfire!AG6 -> 7,886 | O7: =rail!AY6+nonpt!BY6+ptagfire!AO6+nonroad!AR6+'onroad all'!Z6+cmv_c1c2!V6+'ptfire-rx'!AT6+ptegu!BX6+ptnonipm!CI6+pt_oilgas!BW6+np_oilgas!BB6+rwc!AP6+airports!AO6+cmv_c3!V6+'ptfire-wild'!AQ6 -> 4,637 | P7: =rail!AD6+nonroad!AD6+'onroad all'!AK6+'onroad all'!AL6+'onroad all'!AM6+'onroad all'!AN6+'onroad all'!AO6+'onroad all'!AP6+ptnonipm!BI6+SUM(airports!AR6:AW6)+SUM(cmv_c1c2!AC6:AH6)+SUM(cmv_c3!AC6:AH6) -> 7,051 | Q7: =rail!AE6+nonroad!AE6+'onroad all'!AL6+'onroad all'!AM6+'onroad all'!AN6+'onroad all'!AO6+'onroad all'!AP6+ptnonipm!BJ6+SUM(airports!AS6:AW6)+SUM(cmv_c1c2!AD6:AH6)+SUM(cmv_c3!AD6:AH6) -> 6,572 | R7: =rail!P6+nonpt!T6+nonroad!R6+'onroad all'!AC6+ptegu!T6+ptnonipm!T6+pt_oilgas!S6+np_oilgas!R6+rwc!N6+SUM(cmv_c1c2!Z6:AA6)+SUM(cmv_c3!Z6:AA6) -> 0.72 | S7: =rail!K6+nonpt!L6+nonroad!U6+'onroad all'!M6+ptegu!L6+ptnonipm!L6+pt_oilgas!K6+np_oilgas!K6+SUM(cmv_c1c2!R6:S6)+SUM(cmv_c3!R6:S6) -> 3.23 | T7: =rail!O6+nonpt!P6+ptegu!P6+ptnonipm!P6+pt_oilgas!O6+np_oilgas!N6+rwc!M6+SUM(cmv_c1c2!W6:X6)+SUM(cmv_c3!W6:X6) -> 0.70 | U7: =rail!V6+nonpt!AI6+nonroad!T6+'onroad all'!CB6+ptegu!AH6+ptnonipm!AL6+pt_oilgas!AG6+np_oilgas!AB6+rwc!T6+SUM(cmv_c1c2!BG6:BH6)+SUM(cmv_c3!BG6:BH6) -> 7.48 | V7: =rail!T6+nonpt!AE6+nonroad!S6+'onroad all'!BS6+'onroad all'!BT6+ptegu!AD6+ptnonipm!AH6+pt_oilgas!AC6+np_oilgas!X6+rwc!R6+SUM(cmv_c1c2!BA6:BB6)+SUM(cmv_c3!BA6:BB6) -> 23.86 | W7: =nonpt!CW6+ptegu!CV6+ptnonipm!DN6 -> 0.44 | AA7: California | AB7: =B7+beis!H6 -> 5,569,210 | AC7: 512,695 | AD7: =D7+beis!T6 -> 529,785 | AE7: 668,314 | AF7: 414,860 | AG7: 49,518 | AH7: =H7+beis!Z6 -> 3,146,958 | AI7: =I7+beis!E6 -> 56,234 | AJ7: 12,438 | AK7: =K7+beis!N6 -> 79,335 | AL7: =L7+beis!R6 -> 183,525 | AM7: 7,604 | AN7: 7,886 | AO7: 4,637 | AP7: 7,051 | AQ7: 6,572 | AR7: 0.72 | AS7: 3.23 | AT7: 0.70 | AU7: 7.48 | AV7: 23.86 | AX7: California | AY7: =B7-'ptfire-rx'!B6 -> 5,095,620 | AZ7: =C7-'ptfire-rx'!C6 -> 509,167 | BA7: =D7-'ptfire-rx'!D6 -> 486,111 | BB7: =E7-'ptfire-rx'!E6 -> 644,993 | BC7: =F7-'ptfire-rx'!F6 -> 394,754 | BD7: =G7-'ptfire-rx'!G6 -> 47,810 | BE7: =H7-'ptfire-rx'!H6 -> 1,480,601 | BF7: =I7-'ptfire-rx'!AN6 -> 27,576 | BG7: =J7-'ptfire-rx'!AR6 -> 12,031 | BH7: =K7-'ptfire-rx'!BD6 -> 40,427 | BI7: =L7-'ptfire-rx'!BM6 -> 44,806 | BJ7: =M7-'ptfire-rx'!BO6 -> 7,239 | BK7: =N7-'ptfire-rx'!AK6 -> 7,268 | BL7: =O7-'ptfire-rx'!AT6 -> 4,413 | BM7: 7,051 | BN7: 6,572 | BO7: 0.72 | BP7: 3.23 | BQ7: 0.70 | BR7: 7.48 | BS7: 23.86
A8: Colorado | B8: =rail!B7+nonpt!B7+ptagfire!B7+nonroad!B7+'onroad all'!AG7+cmv_c1c2!B7+'ptfire-rx'!B7+ptegu!B7+ptnonipm!B7+pt_oilgas!B7+np_oilgas!B7+rwc!B7+cmv_c3!B7+airports!B7+'ptfire-wild'!B7 -> 1,665,622 | C8: =rail!C7+nonpt!C7+ptagfire!C7++nonroad!C7+'onroad all'!BZ7+cmv_c1c2!BE7+'ptfire-rx'!C7+ptegu!C7+ptnonipm!C7+pt_oilgas!C7+np_oilgas!C7+rwc!C7+cmv_c3!BE7+livestock!B7+airports!C7+'ptfire-wild'!C7+fertilizer!B7 -> 130,216 | D8: =rail!D7+nonpt!D7+ptagfire!D7++nonroad!D7+cmv_c1c2!D7+'ptfire-rx'!D7+ptegu!DW7+ptnonipm!D7+pt_oilgas!D7+np_oilgas!D7+rwc!D7+cmv_c3!D7+'onroad all'!CI7+airports!D7+'ptfire-wild'!D7 -> 174,563 | E8: =rail!E7+nonpt!E7+ptagfire!E7++nonroad!E7+cmv_c1c2!E7+'ptfire-rx'!E7+ptegu!E7+ptnonipm!E7+pt_oilgas!E7+np_oilgas!E7+rwc!E7+cmv_c3!E7+afdust!BA7+'onroad all'!DE7+'onroad all'!DD7+airports!E7+'ptfire-wild'!E7 -> 272,358 | F8: =rail!F7+nonpt!F7+ptagfire!F7++nonroad!F7+cmv_c1c2!F7+'ptfire-rx'!F7+ptegu!F7+ptnonipm!F7+pt_oilgas!F7+np_oilgas!F7+rwc!F7+cmv_c3!F7+afdust!BB7+'onroad all'!DD7+airports!F7+'ptfire-wild'!F7 -> 125,855 | G8: =rail!G7+nonpt!G7+ptagfire!G7++nonroad!G7+'onroad all'!DU7+cmv_c1c2!G7+'ptfire-rx'!G7+ptegu!FH7+ptnonipm!G7+pt_oilgas!G7+np_oilgas!G7+rwc!G7+cmv_c3!G7+airports!G7+'ptfire-wild'!G7 -> 22,575 | H8: =rail!H7+nonpt!H7+ptagfire!H7++nonroad!H7+'onroad all'!EI7+cmv_c1c2!H7+'ptfire-rx'!H7+ptegu!H7+ptnonipm!H7+pt_oilgas!H7+np_oilgas!H7+rwc!H7+cmv_c3!H7+livestock!C7+airports!H7+'ptfire-wild'!H7+vcp!H7 -> 485,152 | I8: =rail!AO7+nonpt!BN7+ptagfire!AI7+nonroad!AK7+'onroad all'!H7+cmv_c1c2!N7+'ptfire-rx'!AN7+ptegu!BM7+ptnonipm!BX7+pt_oilgas!BL7+np_oilgas!AT7+rwc!AJ7+cmv_c3!O7+livestock!U7+airports!AJ7+'ptfire-wild'!AK7+vcp!AA7 -> 11,851 | J8: =rail!AU7+nonpt!BT7+ptagfire!AM7+nonroad!AP7+'onroad all'!P7+cmv_c1c2!T7+'ptfire-rx'!AR7+ptegu!BS7+ptnonipm!CD7+pt_oilgas!BR7+np_oilgas!AZ7+rwc!AN7+cmv_c3!T7+livestock!X7+airports!AM7+'ptfire-wild'!AO7+vcp!AE7 -> 5,152 | K8: =rail!BR7+nonpt!CY7+ptagfire!AX7+nonroad!BH7+'onroad all'!BC7+cmv_c1c2!AO7+'ptfire-rx'!BD7+ptegu!CX7+ptnonipm!DP7+pt_oilgas!CV7+np_oilgas!BV7+rwc!BC7+cmv_c3!AP7+livestock!AH7+airports!BE7+'ptfire-wild'!AZ7+vcp!AQ7 -> 24,428 | L8: =rail!CF7+nonpt!DO7+ptagfire!BG7+nonroad!BT7+'onroad all'!BU7+cmv_c1c2!BC7+'ptfire-rx'!BM7+ptegu!DM7+ptnonipm!EH7+pt_oilgas!DK7+np_oilgas!CJ7+rwc!BP7+cmv_c3!BC7+livestock!AN7+airports!BN7+'ptfire-wild'!BI7+vcp!AX7 -> 22,261 | M8: =rail!CG7+nonpt!DQ7+nonroad!BU7+'onroad all'!BY7+cmv_c1c2!BD7+'ptfire-rx'!BO7+ptegu!DO7+ptnonipm!EJ7+pt_oilgas!DM7+np_oilgas!CK7+rwc!BQ7+cmv_c3!BD7+airports!BO7+'ptfire-wild'!BK7+vcp!AY7+ptagfire!BI7 -> 2,537 | N8: =rail!AN7+nonpt!BK7+nonroad!AJ7+'onroad all'!G7+cmv_c1c2!M7+'ptfire-rx'!AK7+ptegu!BK7+ptnonipm!BU7+pt_oilgas!BJ7+np_oilgas!AS7+rwc!AI7+airports!AH7+cmv_c3!M7+'ptfire-wild'!AI7+ptagfire!AG7 -> 3,260 | O8: =rail!AY7+nonpt!BY7+ptagfire!AO7+nonroad!AR7+'onroad all'!Z7+cmv_c1c2!V7+'ptfire-rx'!AT7+ptegu!BX7+ptnonipm!CI7+pt_oilgas!BW7+np_oilgas!BB7+rwc!AP7+airports!AO7+cmv_c3!V7+'ptfire-wild'!AQ7 -> 1,670 | P8: =rail!AD7+nonroad!AD7+'onroad all'!AK7+'onroad all'!AL7+'onroad all'!AM7+'onroad all'!AN7+'onroad all'!AO7+'onroad all'!AP7+ptnonipm!BI7+SUM(airports!AR7:AW7)+SUM(cmv_c1c2!AC7:AH7)+SUM(cmv_c3!AC7:AH7) -> 1,890 | Q8: =rail!AE7+nonroad!AE7+'onroad all'!AL7+'onroad all'!AM7+'onroad all'!AN7+'onroad all'!AO7+'onroad all'!AP7+ptnonipm!BJ7+SUM(airports!AS7:AW7)+SUM(cmv_c1c2!AD7:AH7)+SUM(cmv_c3!AD7:AH7) -> 1,789 | R8: =rail!P7+nonpt!T7+nonroad!R7+'onroad all'!AC7+ptegu!T7+ptnonipm!T7+pt_oilgas!S7+np_oilgas!R7+rwc!N7+SUM(cmv_c1c2!Z7:AA7)+SUM(cmv_c3!Z7:AA7) -> 1.37 | S8: =rail!K7+nonpt!L7+nonroad!U7+'onroad all'!M7+ptegu!L7+ptnonipm!L7+pt_oilgas!K7+np_oilgas!K7+SUM(cmv_c1c2!R7:S7)+SUM(cmv_c3!R7:S7) -> 0.86 | T8: =rail!O7+nonpt!P7+ptegu!P7+ptnonipm!P7+pt_oilgas!O7+np_oilgas!N7+rwc!M7+SUM(cmv_c1c2!W7:X7)+SUM(cmv_c3!W7:X7) -> 0.09 | U8: =rail!V7+nonpt!AI7+nonroad!T7+'onroad all'!CB7+ptegu!AH7+ptnonipm!AL7+pt_oilgas!AG7+np_oilgas!AB7+rwc!T7+SUM(cmv_c1c2!BG7:BH7)+SUM(cmv_c3!BG7:BH7) -> 8.60 | V8: =rail!T7+nonpt!AE7+nonroad!S7+'onroad all'!BS7+'onroad all'!BT7+ptegu!AD7+ptnonipm!AH7+pt_oilgas!AC7+np_oilgas!X7+rwc!R7+SUM(cmv_c1c2!BA7:BB7)+SUM(cmv_c3!BA7:BB7) -> 12.28 | W8: =nonpt!CW7+ptegu!CV7+ptnonipm!DN7 -> 1.40 | AA8: Colorado | AB8: =B8+beis!H7 -> 1,743,081 | AC8: 130,216 | AD8: =D8+beis!T7 -> 193,814 | AE8: 272,358 | AF8: 125,855 | AG8: 22,575 | AH8: =H8+beis!Z7 -> 859,143 | AI8: =I8+beis!E7 -> 19,965 | AJ8: 5,152 | AK8: =K8+beis!N7 -> 35,494 | AL8: =L8+beis!R7 -> 67,784 | AM8: 2,537 | AN8: 3,260 | AO8: 1,670 | AP8: 1,890 | AQ8: 1,789 | AR8: 1.37 | AS8: 0.86 | AT8: 0.09 | AU8: 8.60 | AV8: 12.28 | AX8: Colorado | AY8: =B8-'ptfire-rx'!B7 -> 1,516,456 | AZ8: =C8-'ptfire-rx'!C7 -> 127,798 | BA8: =D8-'ptfire-rx'!D7 -> 172,452 | BB8: =E8-'ptfire-rx'!E7 -> 256,441 | BC8: =F8-'ptfire-rx'!F7 -> 112,126 | BD8: =G8-'ptfire-rx'!G7 -> 21,437 | BE8: =H8-'ptfire-rx'!H7 -> 449,039 | BF8: =I8-'ptfire-rx'!AN7 -> 10,353 | BG8: =J8-'ptfire-rx'!AR7 -> 4,808 | BH8: =K8-'ptfire-rx'!BD7 -> 21,939 | BI8: =L8-'ptfire-rx'!BM7 -> 19,568 | BJ8: =M8-'ptfire-rx'!BO7 -> 2,216 | BK8: =N8-'ptfire-rx'!AK7 -> 2,759 | BL8: =O8-'ptfire-rx'!AT7 -> 1,478 | BM8: 1,890 | BN8: 1,789 | BO8: 1.37 | BP8: 0.86 | BQ8: 0.09 | BR8: 8.60 | BS8: 12.28
A9: Connecticut | B9: =rail!B8+nonpt!B8+ptagfire!B8+nonroad!B8+'onroad all'!AG8+cmv_c1c2!B8+'ptfire-rx'!B8+ptegu!B8+ptnonipm!B8+pt_oilgas!B8+np_oilgas!B8+rwc!B8+cmv_c3!B8+airports!B8+'ptfire-wild'!B8 -> 286,729 | C9: =rail!C8+nonpt!C8+ptagfire!C8++nonroad!C8+'onroad all'!BZ8+cmv_c1c2!BE8+'ptfire-rx'!C8+ptegu!C8+ptnonipm!C8+pt_oilgas!C8+np_oilgas!C8+rwc!C8+cmv_c3!BE8+livestock!B8+airports!C8+'ptfire-wild'!C8+fertilizer!B8 -> 5,421 | D9: =rail!D8+nonpt!D8+ptagfire!D8++nonroad!D8+cmv_c1c2!D8+'ptfire-rx'!D8+ptegu!DW8+ptnonipm!D8+pt_oilgas!D8+np_oilgas!D8+rwc!D8+cmv_c3!D8+'onroad all'!CI8+airports!D8+'ptfire-wild'!D8 -> 39,491 | E9: =rail!E8+nonpt!E8+ptagfire!E8++nonroad!E8+cmv_c1c2!E8+'ptfire-rx'!E8+ptegu!E8+ptnonipm!E8+pt_oilgas!E8+np_oilgas!E8+rwc!E8+cmv_c3!E8+afdust!BA8+'onroad all'!DE8+'onroad all'!DD8+airports!E8+'ptfire-wild'!E8 -> 13,922 | F9: =rail!F8+nonpt!F8+ptagfire!F8++nonroad!F8+cmv_c1c2!F8+'ptfire-rx'!F8+ptegu!F8+ptnonipm!F8+pt_oilgas!F8+np_oilgas!F8+rwc!F8+cmv_c3!F8+afdust!BB8+'onroad all'!DD8+airports!F8+'ptfire-wild'!F8 -> 9,233 | G9: =rail!G8+nonpt!G8+ptagfire!G8++nonroad!G8+'onroad all'!DU8+cmv_c1c2!G8+'ptfire-rx'!G8+ptegu!FH8+ptnonipm!G8+pt_oilgas!G8+np_oilgas!G8+rwc!G8+cmv_c3!G8+airports!G8+'ptfire-wild'!G8 -> 2,841 | H9: =rail!H8+nonpt!H8+ptagfire!H8++nonroad!H8+'onroad all'!EI8+cmv_c1c2!H8+'ptfire-rx'!H8+ptegu!H8+ptnonipm!H8+pt_oilgas!H8+np_oilgas!H8+rwc!H8+cmv_c3!H8+livestock!C8+airports!H8+'ptfire-wild'!H8+vcp!H8 -> 54,552 | I9: =rail!AO8+nonpt!BN8+ptagfire!AI8+nonroad!AK8+'onroad all'!H8+cmv_c1c2!N8+'ptfire-rx'!AN8+ptegu!BM8+ptnonipm!BX8+pt_oilgas!BL8+np_oilgas!AT8+rwc!AJ8+cmv_c3!O8+livestock!U8+airports!AJ8+'ptfire-wild'!AK8+vcp!AA8 -> 325 | J9: =rail!AU8+nonpt!BT8+ptagfire!AM8+nonroad!AP8+'onroad all'!P8+cmv_c1c2!T8+'ptfire-rx'!AR8+ptegu!BS8+ptnonipm!CD8+pt_oilgas!BR8+np_oilgas!AZ8+rwc!AN8+cmv_c3!T8+livestock!X8+airports!AM8+'ptfire-wild'!AO8+vcp!AE8 -> 747 | K9: =rail!BR8+nonpt!CY8+ptagfire!AX8+nonroad!BH8+'onroad all'!BC8+cmv_c1c2!AO8+'ptfire-rx'!BD8+ptegu!CX8+ptnonipm!DP8+pt_oilgas!CV8+np_oilgas!BV8+rwc!BC8+cmv_c3!AP8+livestock!AH8+airports!BE8+'ptfire-wild'!AZ8+vcp!AQ8 -> 598 | L9: =rail!CF8+nonpt!DO8+ptagfire!BG8+nonroad!BT8+'onroad all'!BU8+cmv_c1c2!BC8+'ptfire-rx'!BM8+ptegu!DM8+ptnonipm!EH8+pt_oilgas!DK8+np_oilgas!CJ8+rwc!BP8+cmv_c3!BC8+livestock!AN8+airports!BN8+'ptfire-wild'!BI8+vcp!AX8 -> 721 | M9: =rail!CG8+nonpt!DQ8+nonroad!BU8+'onroad all'!BY8+cmv_c1c2!BD8+'ptfire-rx'!BO8+ptegu!DO8+ptnonipm!EJ8+pt_oilgas!DM8+np_oilgas!CK8+rwc!BQ8+cmv_c3!BD8+airports!BO8+'ptfire-wild'!BK8+vcp!AY8+ptagfire!BI8 -> 71 | N9: =rail!AN8+nonpt!BK8+nonroad!AJ8+'onroad all'!G8+cmv_c1c2!M8+'ptfire-rx'!AK8+ptegu!BK8+ptnonipm!BU8+pt_oilgas!BJ8+np_oilgas!AS8+rwc!AI8+airports!AH8+cmv_c3!M8+'ptfire-wild'!AI8+ptagfire!AG8 -> 39 | O9: =rail!AY8+nonpt!BY8+ptagfire!AO8+nonroad!AR8+'onroad all'!Z8+cmv_c1c2!V8+'ptfire-rx'!AT8+ptegu!BX8+ptnonipm!CI8+pt_oilgas!BW8+np_oilgas!BB8+rwc!AP8+airports!AO8+cmv_c3!V8+'ptfire-wild'!AQ8 -> 108 | P9: =rail!AD8+nonroad!AD8+'onroad all'!AK8+'onroad all'!AL8+'onroad all'!AM8+'onroad all'!AN8+'onroad all'!AO8+'onroad all'!AP8+ptnonipm!BI8+SUM(airports!AR8:AW8)+SUM(cmv_c1c2!AC8:AH8)+SUM(cmv_c3!AC8:AH8) -> 560 | Q9: =rail!AE8+nonroad!AE8+'onroad all'!AL8+'onroad all'!AM8+'onroad all'!AN8+'onroad all'!AO8+'onroad all'!AP8+ptnonipm!BJ8+SUM(airports!AS8:AW8)+SUM(cmv_c1c2!AD8:AH8)+SUM(cmv_c3!AD8:AH8) -> 536 | R9: =rail!P8+nonpt!T8+nonroad!R8+'onroad all'!AC8+ptegu!T8+ptnonipm!T8+pt_oilgas!S8+np_oilgas!R8+rwc!N8+SUM(cmv_c1c2!Z8:AA8)+SUM(cmv_c3!Z8:AA8) -> 0.06 | S9: =rail!K8+nonpt!L8+nonroad!U8+'onroad all'!M8+ptegu!L8+ptnonipm!L8+pt_oilgas!K8+np_oilgas!K8+SUM(cmv_c1c2!R8:S8)+SUM(cmv_c3!R8:S8) -> 0.25 | T9: =rail!O8+nonpt!P8+ptegu!P8+ptnonipm!P8+pt_oilgas!O8+np_oilgas!N8+rwc!M8+SUM(cmv_c1c2!W8:X8)+SUM(cmv_c3!W8:X8) -> 0.13 | U9: =rail!V8+nonpt!AI8+nonroad!T8+'onroad all'!CB8+ptegu!AH8+ptnonipm!AL8+pt_oilgas!AG8+np_oilgas!AB8+rwc!T8+SUM(cmv_c1c2!BG8:BH8)+SUM(cmv_c3!BG8:BH8) -> 3.10 | V9: =rail!T8+nonpt!AE8+nonroad!S8+'onroad all'!BS8+'onroad all'!BT8+ptegu!AD8+ptnonipm!AH8+pt_oilgas!AC8+np_oilgas!X8+rwc!R8+SUM(cmv_c1c2!BA8:BB8)+SUM(cmv_c3!BA8:BB8) -> 1.13 | W9: =nonpt!CW8+ptegu!CV8+ptnonipm!DN8 -> 0.08 | X9: X | AA9: Connecticut | AB9: =B9+beis!H8 -> 293,474 | AC9: 5,421 | AD9: =D9+beis!T8 -> 40,085 | AE9: 13,922 | AF9: 9,233 | AG9: 2,841 | AH9: =H9+beis!Z8 -> 125,361 | AI9: =I9+beis!E8 -> 1,030 | AJ9: 747 | AK9: =K9+beis!N8 -> 1,560 | AL9: =L9+beis!R8 -> 3,618 | AM9: 71 | AN9: 39 | AO9: 108 | AP9: 560 | AQ9: 536 | AR9: 0.06 | AS9: 0.25 | AT9: 0.13 | AU9: 3.10 | AV9: 1.13 | AX9: Connecticut | AY9: =B9-'ptfire-rx'!B8 -> 284,832 | AZ9: =C9-'ptfire-rx'!C8 -> 5,390 | BA9: =D9-'ptfire-rx'!D8 -> 39,463 | BB9: =E9-'ptfire-rx'!E8 -> 13,727 | BC9: =F9-'ptfire-rx'!F8 -> 9,068 | BD9: =G9-'ptfire-rx'!G8 -> 2,827 | BE9: =H9-'ptfire-rx'!H8 -> 54,104 | BF9: =I9-'ptfire-rx'!AN8 -> 316 | BG9: =J9-'ptfire-rx'!AR8 -> 743 | BH9: =K9-'ptfire-rx'!BD8 -> 573 | BI9: =L9-'ptfire-rx'!BM8 -> 706 | BJ9: =M9-'ptfire-rx'!BO8 -> 68 | BK9: =N9-'ptfire-rx'!AK8 -> 34 | BL9: =O9-'ptfire-rx'!AT8 -> 104 | BM9: 560 | BN9: 536 | BO9: 0.06 | BP9: 0.25 | BQ9: 0.13 | BR9: 3.10 | BS9: 1.13
A10: Delaware | B10: =rail!B9+nonpt!B9+ptagfire!B9+nonroad!B9+'onroad all'!AG9+cmv_c1c2!B9+'ptfire-rx'!B9+ptegu!B9+ptnonipm!B9+pt_oilgas!B9+np_oilgas!B9+rwc!B9+cmv_c3!B9+airports!B9+'ptfire-wild'!B9 -> 114,141 | C10: =rail!C9+nonpt!C9+ptagfire!C9++nonroad!C9+'onroad all'!BZ9+cmv_c1c2!BE9+'ptfire-rx'!C9+ptegu!C9+ptnonipm!C9+pt_oilgas!C9+np_oilgas!C9+rwc!C9+cmv_c3!BE9+livestock!B9+airports!C9+'ptfire-wild'!C9+fertilizer!B9 -> 7,351 | D10: =rail!D9+nonpt!D9+ptagfire!D9++nonroad!D9+cmv_c1c2!D9+'ptfire-rx'!D9+ptegu!DW9+ptnonipm!D9+pt_oilgas!D9+np_oilgas!D9+rwc!D9+cmv_c3!D9+'onroad all'!CI9+airports!D9+'ptfire-wild'!D9 -> 20,664 | E10: =rail!E9+nonpt!E9+ptagfire!E9++nonroad!E9+cmv_c1c2!E9+'ptfire-rx'!E9+ptegu!E9+ptnonipm!E9+pt_oilgas!E9+np_oilgas!E9+rwc!E9+cmv_c3!E9+afdust!BA9+'onroad all'!DE9+'onroad all'!DD9+airports!E9+'ptfire-wild'!E9 -> 8,201 | F10: =rail!F9+nonpt!F9+ptagfire!F9++nonroad!F9+cmv_c1c2!F9+'ptfire-rx'!F9+ptegu!F9+ptnonipm!F9+pt_oilgas!F9+np_oilgas!F9+rwc!F9+cmv_c3!F9+afdust!BB9+'onroad all'!DD9+airports!F9+'ptfire-wild'!F9 -> 3,902 | G10: =rail!G9+nonpt!G9+ptagfire!G9++nonroad!G9+'onroad all'!DU9+cmv_c1c2!G9+'ptfire-rx'!G9+ptegu!FH9+ptnonipm!G9+pt_oilgas!G9+np_oilgas!G9+rwc!G9+cmv_c3!G9+airports!G9+'ptfire-wild'!G9 -> 1,536 | H10: =rail!H9+nonpt!H9+ptagfire!H9++nonroad!H9+'onroad all'!EI9+cmv_c1c2!H9+'ptfire-rx'!H9+ptegu!H9+ptnonipm!H9+pt_oilgas!H9+np_oilgas!H9+rwc!H9+cmv_c3!H9+livestock!C9+airports!H9+'ptfire-wild'!H9+vcp!H9 -> 21,364 | I10: =rail!AO9+nonpt!BN9+ptagfire!AI9+nonroad!AK9+'onroad all'!H9+cmv_c1c2!N9+'ptfire-rx'!AN9+ptegu!BM9+ptnonipm!BX9+pt_oilgas!BL9+np_oilgas!AT9+rwc!AJ9+cmv_c3!O9+livestock!U9+airports!AJ9+'ptfire-wild'!AK9+vcp!AA9 -> 139 | J10: =rail!AU9+nonpt!BT9+ptagfire!AM9+nonroad!AP9+'onroad all'!P9+cmv_c1c2!T9+'ptfire-rx'!AR9+ptegu!BS9+ptnonipm!CD9+pt_oilgas!BR9+np_oilgas!AZ9+rwc!AN9+cmv_c3!T9+livestock!X9+airports!AM9+'ptfire-wild'!AO9+vcp!AE9 -> 290 | K10: =rail!BR9+nonpt!CY9+ptagfire!AX9+nonroad!BH9+'onroad all'!BC9+cmv_c1c2!AO9+'ptfire-rx'!BD9+ptegu!CX9+ptnonipm!DP9+pt_oilgas!CV9+np_oilgas!BV9+rwc!BC9+cmv_c3!AP9+livestock!AH9+airports!BE9+'ptfire-wild'!AZ9+vcp!AQ9 -> 283 | L10: =rail!CF9+nonpt!DO9+ptagfire!BG9+nonroad!BT9+'onroad all'!BU9+cmv_c1c2!BC9+'ptfire-rx'!BM9+ptegu!DM9+ptnonipm!EH9+pt_oilgas!DK9+np_oilgas!CJ9+rwc!BP9+cmv_c3!BC9+livestock!AN9+airports!BN9+'ptfire-wild'!BI9+vcp!AX9 -> 315 | M10: =rail!CG9+nonpt!DQ9+nonroad!BU9+'onroad all'!BY9+cmv_c1c2!BD9+'ptfire-rx'!BO9+ptegu!DO9+ptnonipm!EJ9+pt_oilgas!DM9+np_oilgas!CK9+rwc!BQ9+cmv_c3!BD9+airports!BO9+'ptfire-wild'!BK9+vcp!AY9+ptagfire!BI9 -> 34 | N10: =rail!AN9+nonpt!BK9+nonroad!AJ9+'onroad all'!G9+cmv_c1c2!M9+'ptfire-rx'!AK9+ptegu!BK9+ptnonipm!BU9+pt_oilgas!BJ9+np_oilgas!AS9+rwc!AI9+airports!AH9+cmv_c3!M9+'ptfire-wild'!AI9+ptagfire!AG9 -> 27 | O10: =rail!AY9+nonpt!BY9+ptagfire!AO9+nonroad!AR9+'onroad all'!Z9+cmv_c1c2!V9+'ptfire-rx'!AT9+ptegu!BX9+ptnonipm!CI9+pt_oilgas!BW9+np_oilgas!BB9+rwc!AP9+airports!AO9+cmv_c3!V9+'ptfire-wild'!AQ9 -> 55 | P10: =rail!AD9+nonroad!AD9+'onroad all'!AK9+'onroad all'!AL9+'onroad all'!AM9+'onroad all'!AN9+'onroad all'!AO9+'onroad all'!AP9+ptnonipm!BI9+SUM(airports!AR9:AW9)+SUM(cmv_c1c2!AC9:AH9)+SUM(cmv_c3!AC9:AH9) -> 325 | Q10: =rail!AE9+nonroad!AE9+'onroad all'!AL9+'onroad all'!AM9+'onroad all'!AN9+'onroad all'!AO9+'onroad all'!AP9+ptnonipm!BJ9+SUM(airports!AS9:AW9)+SUM(cmv_c1c2!AD9:AH9)+SUM(cmv_c3!AD9:AH9) -> 306 | R10: =rail!P9+nonpt!T9+nonroad!R9+'onroad all'!AC9+ptegu!T9+ptnonipm!T9+pt_oilgas!S9+np_oilgas!R9+rwc!N9+SUM(cmv_c1c2!Z9:AA9)+SUM(cmv_c3!Z9:AA9) -> 0.01 | S10: =rail!K9+nonpt!L9+nonroad!U9+'onroad all'!M9+ptegu!L9+ptnonipm!L9+pt_oilgas!K9+np_oilgas!K9+SUM(cmv_c1c2!R9:S9)+SUM(cmv_c3!R9:S9) -> 0.23 | T10: =rail!O9+nonpt!P9+ptegu!P9+ptnonipm!P9+pt_oilgas!O9+np_oilgas!N9+rwc!M9+SUM(cmv_c1c2!W9:X9)+SUM(cmv_c3!W9:X9) -> 0.29 | U10: =rail!V9+nonpt!AI9+nonroad!T9+'onroad all'!CB9+ptegu!AH9+ptnonipm!AL9+pt_oilgas!AG9+np_oilgas!AB9+rwc!T9+SUM(cmv_c1c2!BG9:BH9)+SUM(cmv_c3!BG9:BH9) -> 2.48 | V10: =rail!T9+nonpt!AE9+nonroad!S9+'onroad all'!BS9+'onroad all'!BT9+ptegu!AD9+ptnonipm!AH9+pt_oilgas!AC9+np_oilgas!X9+rwc!R9+SUM(cmv_c1c2!BA9:BB9)+SUM(cmv_c3!BA9:BB9) -> 2.27 | W10: =nonpt!CW9+ptegu!CV9+ptnonipm!DN9 -> 2.45 | X10: X | AA10: Delaware | AB10: =B10+beis!H9 -> 116,396 | AC10: 7,351 | AD10: =D10+beis!T9 -> 21,767 | AE10: 8,201 | AF10: 3,902 | AG10: 1,536 | AH10: =H10+beis!Z9 -> 35,087 | AI10: =I10+beis!E9 -> 375 | AJ10: 290 | AK10: =K10+beis!N9 -> 605 | AL10: =L10+beis!R9 -> 1,465 | AM10: 34 | AN10: 27 | AO10: 55 | AP10: 325 | AQ10: 306 | AR10: 0.01 | AS10: 0.23 | AT10: 0.29 | AU10: 2.48 | AV10: 2.27 | AX10: Delaware | AY10: =B10-'ptfire-rx'!B9 -> 108,321 | AZ10: =C10-'ptfire-rx'!C9 -> 7,256 | BA10: =D10-'ptfire-rx'!D9 -> 20,607 | BB10: =E10-'ptfire-rx'!E9 -> 7,628 | BC10: =F10-'ptfire-rx'!F9 -> 3,416 | BD10: =G10-'ptfire-rx'!G9 -> 1,499 | BE10: =H10-'ptfire-rx'!H9 -> 19,997 | BF10: =I10-'ptfire-rx'!AN9 -> 115 | BG10: =J10-'ptfire-rx'!AR9 -> 279 | BH10: =K10-'ptfire-rx'!BD9 -> 220 | BI10: =L10-'ptfire-rx'!BM9 -> 278 | BJ10: =M10-'ptfire-rx'!BO9 -> 27 | BK10: =N10-'ptfire-rx'!AK9 -> 15 | BL10: =O10-'ptfire-rx'!AT9 -> 46 | BM10: 325 | BN10: 306 | BO10: 0.01 | BP10: 0.23 | BQ10: 0.29 | BR10: 2.48 | BS10: 2.27
A11: District of Columbia | B11: =rail!B10+nonpt!B10+ptagfire!B10+nonroad!B10+'onroad all'!AG10+cmv_c1c2!B10+'ptfire-rx'!B10+ptegu!B10+ptnonipm!B10+pt_oilgas!B10+np_oilgas!B10+rwc!B10+cmv_c3!B10+airports!B10+'ptfire-wild'!B10 -> 29,000 | C11: =rail!C10+nonpt!C10+ptagfire!C10++nonroad!C10+'onroad all'!BZ10+cmv_c1c2!BE10+'ptfire-rx'!C10+ptegu!C10+ptnonipm!C10+pt_oilgas!C10+np_oilgas!C10+rwc!C10+cmv_c3!BE10+livestock!B10+airports!C10+'ptfire-wild'!C10+fertilizer!B10 -> 260 | D11: =rail!D10+nonpt!D10+ptagfire!D10++nonroad!D10+cmv_c1c2!D10+'ptfire-rx'!D10+ptegu!DW10+ptnonipm!D10+pt_oilgas!D10+np_oilgas!D10+rwc!D10+cmv_c3!D10+'onroad all'!CI10+airports!D10+'ptfire-wild'!D10 -> 4,507 | E11: =rail!E10+nonpt!E10+ptagfire!E10++nonroad!E10+cmv_c1c2!E10+'ptfire-rx'!E10+ptegu!E10+ptnonipm!E10+pt_oilgas!E10+np_oilgas!E10+rwc!E10+cmv_c3!E10+afdust!BA10+'onroad all'!DE10+'onroad all'!DD10+airports!E10+'ptfire-wild'!E10 -> 1,876 | F11: =rail!F10+nonpt!F10+ptagfire!F10++nonroad!F10+cmv_c1c2!F10+'ptfire-rx'!F10+ptegu!F10+ptnonipm!F10+pt_oilgas!F10+np_oilgas!F10+rwc!F10+cmv_c3!F10+afdust!BB10+'onroad all'!DD10+airports!F10+'ptfire-wild'!F10 -> 777 | G11: =rail!G10+nonpt!G10+ptagfire!G10++nonroad!G10+'onroad all'!DU10+cmv_c1c2!G10+'ptfire-rx'!G10+ptegu!FH10+ptnonipm!G10+pt_oilgas!G10+np_oilgas!G10+rwc!G10+cmv_c3!G10+airports!G10+'ptfire-wild'!G10 -> 94 | H11: =rail!H10+nonpt!H10+ptagfire!H10++nonroad!H10+'onroad all'!EI10+cmv_c1c2!H10+'ptfire-rx'!H10+ptegu!H10+ptnonipm!H10+pt_oilgas!H10+np_oilgas!H10+rwc!H10+cmv_c3!H10+livestock!C10+airports!H10+'ptfire-wild'!H10+vcp!H10 -> 6,448 | I11: =rail!AO10+nonpt!BN10+ptagfire!AI10+nonroad!AK10+'onroad all'!H10+cmv_c1c2!N10+'ptfire-rx'!AN10+ptegu!BM10+ptnonipm!BX10+pt_oilgas!BL10+np_oilgas!AT10+rwc!AJ10+cmv_c3!O10+livestock!U10+airports!AJ10+'ptfire-wild'!AK10+vcp!AA10 -> 24 | J11: =rail!AU10+nonpt!BT10+ptagfire!AM10+nonroad!AP10+'onroad all'!P10+cmv_c1c2!T10+'ptfire-rx'!AR10+ptegu!BS10+ptnonipm!CD10+pt_oilgas!BR10+np_oilgas!AZ10+rwc!AN10+cmv_c3!T10+livestock!X10+airports!AM10+'ptfire-wild'!AO10+vcp!AE10 -> 51 | K11: =rail!BR10+nonpt!CY10+ptagfire!AX10+nonroad!BH10+'onroad all'!BC10+cmv_c1c2!AO10+'ptfire-rx'!BD10+ptegu!CX10+ptnonipm!DP10+pt_oilgas!CV10+np_oilgas!BV10+rwc!BC10+cmv_c3!AP10+livestock!AH10+airports!BE10+'ptfire-wild'!AZ10+vcp!AQ10 -> 44 | L11: =rail!CF10+nonpt!DO10+ptagfire!BG10+nonroad!BT10+'onroad all'!BU10+cmv_c1c2!BC10+'ptfire-rx'!BM10+ptegu!DM10+ptnonipm!EH10+pt_oilgas!DK10+np_oilgas!CJ10+rwc!BP10+cmv_c3!BC10+livestock!AN10+airports!BN10+'ptfire-wild'!BI10+vcp!AX10 -> 122 | M11: =rail!CG10+nonpt!DQ10+nonroad!BU10+'onroad all'!BY10+cmv_c1c2!BD10+'ptfire-rx'!BO10+ptegu!DO10+ptnonipm!EJ10+pt_oilgas!DM10+np_oilgas!CK10+rwc!BQ10+cmv_c3!BD10+airports!BO10+'ptfire-wild'!BK10+vcp!AY10+ptagfire!BI10 -> 4 | N11: =rail!AN10+nonpt!BK10+nonroad!AJ10+'onroad all'!G10+cmv_c1c2!M10+'ptfire-rx'!AK10+ptegu!BK10+ptnonipm!BU10+pt_oilgas!BJ10+np_oilgas!AS10+rwc!AI10+airports!AH10+cmv_c3!M10+'ptfire-wild'!AI10+ptagfire!AG10 -> 3 | O11: =rail!AY10+nonpt!BY10+ptagfire!AO10+nonroad!AR10+'onroad all'!Z10+cmv_c1c2!V10+'ptfire-rx'!AT10+ptegu!BX10+ptnonipm!CI10+pt_oilgas!BW10+np_oilgas!BB10+rwc!AP10+airports!AO10+cmv_c3!V10+'ptfire-wild'!AQ10 -> 6 | P11: =rail!AD10+nonroad!AD10+'onroad all'!AK10+'onroad all'!AL10+'onroad all'!AM10+'onroad all'!AN10+'onroad all'!AO10+'onroad all'!AP10+ptnonipm!BI10+SUM(airports!AR10:AW10)+SUM(cmv_c1c2!AC10:AH10)+SUM(cmv_c3!AC10:AH10) -> 88 | Q11: =rail!AE10+nonroad!AE10+'onroad all'!AL10+'onroad all'!AM10+'onroad all'!AN10+'onroad all'!AO10+'onroad all'!AP10+ptnonipm!BJ10+SUM(airports!AS10:AW10)+SUM(cmv_c1c2!AD10:AH10)+SUM(cmv_c3!AD10:AH10) -> 84 | R11: =rail!P10+nonpt!T10+nonroad!R10+'onroad all'!AC10+ptegu!T10+ptnonipm!T10+pt_oilgas!S10+np_oilgas!R10+rwc!N10+SUM(cmv_c1c2!Z10:AA10)+SUM(cmv_c3!Z10:AA10) -> 0.00 | S11: =rail!K10+nonpt!L10+nonroad!U10+'onroad all'!M10+ptegu!L10+ptnonipm!L10+pt_oilgas!K10+np_oilgas!K10+SUM(cmv_c1c2!R10:S10)+SUM(cmv_c3!R10:S10) -> 0.02 | T11: =rail!O10+nonpt!P10+ptegu!P10+ptnonipm!P10+pt_oilgas!O10+np_oilgas!N10+rwc!M10+SUM(cmv_c1c2!W10:X10)+SUM(cmv_c3!W10:X10) -> 0.01 | U11: =rail!V10+nonpt!AI10+nonroad!T10+'onroad all'!CB10+ptegu!AH10+ptnonipm!AL10+pt_oilgas!AG10+np_oilgas!AB10+rwc!T10+SUM(cmv_c1c2!BG10:BH10)+SUM(cmv_c3!BG10:BH10) -> 0.10 | V11: =rail!T10+nonpt!AE10+nonroad!S10+'onroad all'!BS10+'onroad all'!BT10+ptegu!AD10+ptnonipm!AH10+pt_oilgas!AC10+np_oilgas!X10+rwc!R10+SUM(cmv_c1c2!BA10:BB10)+SUM(cmv_c3!BA10:BB10) -> 0.11 | W11: =nonpt!CW10+ptegu!CV10+ptnonipm!DN10 -> 0.00 | AA11: District of Columbia | AB11: =B11+beis!H10 -> 29,149 | AC11: 260 | AD11: =D11+beis!T10 -> 4,531 | AE11: 1,876 | AF11: 777 | AG11: 94 | AH11: =H11+beis!Z10 -> 7,650 | AI11: =I11+beis!E10 -> 40 | AJ11: 51 | AK11: =K11+beis!N10 -> 65 | AL11: =L11+beis!R10 -> 191 | AM11: 4 | AN11: 3 | AO11: 6 | AP11: 88 | AQ11: 84 | AR11: 0.00 | AS11: 0.02 | AT11: 0.01 | AU11: 0.10 | AV11: 0.11 | AX11: District of Columbia | AY11: =B11-'ptfire-rx'!B10 -> 29,000 | AZ11: =C11-'ptfire-rx'!C10 -> 260 | BA11: =D11-'ptfire-rx'!D10 -> 4,507 | BB11: =E11-'ptfire-rx'!E10 -> 1,876 | BC11: =F11-'ptfire-rx'!F10 -> 777 | BD11: =G11-'ptfire-rx'!G10 -> 94 | BE11: =H11-'ptfire-rx'!H10 -> 6,448 | BF11: =I11-'ptfire-rx'!AN10 -> 24 | BG11: =J11-'ptfire-rx'!AR10 -> 51 | BH11: =K11-'ptfire-rx'!BD10 -> 44 | BI11: =L11-'ptfire-rx'!BM10 -> 122 | BJ11: =M11-'ptfire-rx'!BO10 -> 4 | BK11: =N11-'ptfire-rx'!AK10 -> 3 | BL11: =O11-'ptfire-rx'!AT10 -> 6 | BM11: 88 | BN11: 84 | BO11: 0.00 | BP11: 0.02 | BQ11: 0.01 | BR11: 0.10 | BS11: 0.11
A12: Florida | B12: =rail!B11+nonpt!B11+ptagfire!B11+nonroad!B11+'onroad all'!AG11+cmv_c1c2!B11+'ptfire-rx'!B11+ptegu!B11+ptnonipm!B11+pt_oilgas!B11+np_oilgas!B11+rwc!B11+cmv_c3!B11+airports!B11+'ptfire-wild'!B11 -> 3,525,824 | C12: =rail!C11+nonpt!C11+ptagfire!C11++nonroad!C11+'onroad all'!BZ11+cmv_c1c2!BE11+'ptfire-rx'!C11+ptegu!C11+ptnonipm!C11+pt_oilgas!C11+np_oilgas!C11+rwc!C11+cmv_c3!BE11+livestock!B11+airports!C11+'ptfire-wild'!C11+fertilizer!B11 -> 117,095 | D12: =rail!D11+nonpt!D11+ptagfire!D11++nonroad!D11+cmv_c1c2!D11+'ptfire-rx'!D11+ptegu!DW11+ptnonipm!D11+pt_oilgas!D11+np_oilgas!D11+rwc!D11+cmv_c3!D11+'onroad all'!CI11+airports!D11+'ptfire-wild'!D11 -> 378,355 | E12: =rail!E11+nonpt!E11+ptagfire!E11++nonroad!E11+cmv_c1c2!E11+'ptfire-rx'!E11+ptegu!E11+ptnonipm!E11+pt_oilgas!E11+np_oilgas!E11+rwc!E11+cmv_c3!E11+afdust!BA11+'onroad all'!DE11+'onroad all'!DD11+airports!E11+'ptfire-wild'!E11 -> 364,667 | F12: =rail!F11+nonpt!F11+ptagfire!F11++nonroad!F11+cmv_c1c2!F11+'ptfire-rx'!F11+ptegu!F11+ptnonipm!F11+pt_oilgas!F11+np_oilgas!F11+rwc!F11+cmv_c3!F11+afdust!BB11+'onroad all'!DD11+airports!F11+'ptfire-wild'!F11 -> 184,817 | G12: =rail!G11+nonpt!G11+ptagfire!G11++nonroad!G11+'onroad all'!DU11+cmv_c1c2!G11+'ptfire-rx'!G11+ptegu!FH11+ptnonipm!G11+pt_oilgas!G11+np_oilgas!G11+rwc!G11+cmv_c3!G11+airports!G11+'ptfire-wild'!G11 -> 75,669 | H12: =rail!H11+nonpt!H11+ptagfire!H11++nonroad!H11+'onroad all'!EI11+cmv_c1c2!H11+'ptfire-rx'!H11+ptegu!H11+ptnonipm!H11+pt_oilgas!H11+np_oilgas!H11+rwc!H11+cmv_c3!H11+livestock!C11+airports!H11+'ptfire-wild'!H11+vcp!H11 -> 676,883 | I12: =rail!AO11+nonpt!BN11+ptagfire!AI11+nonroad!AK11+'onroad all'!H11+cmv_c1c2!N11+'ptfire-rx'!AN11+ptegu!BM11+ptnonipm!BX11+pt_oilgas!BL11+np_oilgas!AT11+rwc!AJ11+cmv_c3!O11+livestock!U11+airports!AJ11+'ptfire-wild'!AK11+vcp!AA11 -> 10,697 | J12: =rail!AU11+nonpt!BT11+ptagfire!AM11+nonroad!AP11+'onroad all'!P11+cmv_c1c2!T11+'ptfire-rx'!AR11+ptegu!BS11+ptnonipm!CD11+pt_oilgas!BR11+np_oilgas!AZ11+rwc!AN11+cmv_c3!T11+livestock!X11+airports!AM11+'ptfire-wild'!AO11+vcp!AE11 -> 8,714 | K12: =rail!BR11+nonpt!CY11+ptagfire!AX11+nonroad!BH11+'onroad all'!BC11+cmv_c1c2!AO11+'ptfire-rx'!BD11+ptegu!CX11+ptnonipm!DP11+pt_oilgas!CV11+np_oilgas!BV11+rwc!BC11+cmv_c3!AP11+livestock!AH11+airports!BE11+'ptfire-wild'!AZ11+vcp!AQ11 -> 22,938 | L12: =rail!CF11+nonpt!DO11+ptagfire!BG11+nonroad!BT11+'onroad all'!BU11+cmv_c1c2!BC11+'ptfire-rx'!BM11+ptegu!DM11+ptnonipm!EH11+pt_oilgas!DK11+np_oilgas!CJ11+rwc!BP11+cmv_c3!BC11+livestock!AN11+airports!BN11+'ptfire-wild'!BI11+vcp!AX11 -> 18,704 | M12: =rail!CG11+nonpt!DQ11+nonroad!BU11+'onroad all'!BY11+cmv_c1c2!BD11+'ptfire-rx'!BO11+ptegu!DO11+ptnonipm!EJ11+pt_oilgas!DM11+np_oilgas!CK11+rwc!BQ11+cmv_c3!BD11+airports!BO11+'ptfire-wild'!BK11+vcp!AY11+ptagfire!BI11 -> 2,831 | N12: =rail!AN11+nonpt!BK11+nonroad!AJ11+'onroad all'!G11+cmv_c1c2!M11+'ptfire-rx'!AK11+ptegu!BK11+ptnonipm!BU11+pt_oilgas!BJ11+np_oilgas!AS11+rwc!AI11+airports!AH11+cmv_c3!M11+'ptfire-wild'!AI11+ptagfire!AG11 -> 4,152 | O12: =rail!AY11+nonpt!BY11+ptagfire!AO11+nonroad!AR11+'onroad all'!Z11+cmv_c1c2!V11+'ptfire-rx'!AT11+ptegu!BX11+ptnonipm!CI11+pt_oilgas!BW11+np_oilgas!BB11+rwc!AP11+airports!AO11+cmv_c3!V11+'ptfire-wild'!AQ11 -> 2,989 | P12: =rail!AD11+nonroad!AD11+'onroad all'!AK11+'onroad all'!AL11+'onroad all'!AM11+'onroad all'!AN11+'onroad all'!AO11+'onroad all'!AP11+ptnonipm!BI11+SUM(airports!AR11:AW11)+SUM(cmv_c1c2!AC11:AH11)+SUM(cmv_c3!AC11:AH11) -> 7,361 | Q12: =rail!AE11+nonroad!AE11+'onroad all'!AL11+'onroad all'!AM11+'onroad all'!AN11+'onroad all'!AO11+'onroad all'!AP11+ptnonipm!BJ11+SUM(airports!AS11:AW11)+SUM(cmv_c1c2!AD11:AH11)+SUM(cmv_c3!AD11:AH11) -> 6,946 | R12: =rail!P11+nonpt!T11+nonroad!R11+'onroad all'!AC11+ptegu!T11+ptnonipm!T11+pt_oilgas!S11+np_oilgas!R11+rwc!N11+SUM(cmv_c1c2!Z11:AA11)+SUM(cmv_c3!Z11:AA11) -> 8.93 | S12: =rail!K11+nonpt!L11+nonroad!U11+'onroad all'!M11+ptegu!L11+ptnonipm!L11+pt_oilgas!K11+np_oilgas!K11+SUM(cmv_c1c2!R11:S11)+SUM(cmv_c3!R11:S11) -> 2.16 | T12: =rail!O11+nonpt!P11+ptegu!P11+ptnonipm!P11+pt_oilgas!O11+np_oilgas!N11+rwc!M11+SUM(cmv_c1c2!W11:X11)+SUM(cmv_c3!W11:X11) -> 0.49 | U12: =rail!V11+nonpt!AI11+nonroad!T11+'onroad all'!CB11+ptegu!AH11+ptnonipm!AL11+pt_oilgas!AG11+np_oilgas!AB11+rwc!T11+SUM(cmv_c1c2!BG11:BH11)+SUM(cmv_c3!BG11:BH11) -> 26.24 | V12: =rail!T11+nonpt!AE11+nonroad!S11+'onroad all'!BS11+'onroad all'!BT11+ptegu!AD11+ptnonipm!AH11+pt_oilgas!AC11+np_oilgas!X11+rwc!R11+SUM(cmv_c1c2!BA11:BB11)+SUM(cmv_c3!BA11:BB11) -> 12.76 | W12: =nonpt!CW11+ptegu!CV11+ptnonipm!DN11 -> 1.03 | X12: X | AA12: Florida | AB12: =B12+beis!H11 -> 3,671,900 | AC12: 117,095 | AD12: =D12+beis!T11 -> 410,376 | AE12: 364,667 | AF12: 184,817 | AG12: 75,669 | AH12: =H12+beis!Z11 -> 1,898,111 | AI12: =I12+beis!E11 -> 25,994 | AJ12: 8,714 | AK12: =K12+beis!N11 -> 43,799 | AL12: =L12+beis!R11 -> 98,801 | AM12: 2,831 | AN12: 4,152 | AO12: 2,989 | AP12: 7,361 | AQ12: 6,946 | AR12: 8.93 | AS12: 2.16 | AT12: 0.49 | AU12: 26.24 | AV12: 12.76 | AX12: Florida | AY12: =B12-'ptfire-rx'!B11 -> 2,632,340 | AZ12: =C12-'ptfire-rx'!C11 -> 102,339 | BA12: =D12-'ptfire-rx'!D11 -> 361,453 | BB12: =E12-'ptfire-rx'!E11 -> 269,567 | BC12: =F12-'ptfire-rx'!F11 -> 104,223 | BD12: =G12-'ptfire-rx'!G11 -> 67,514 | BE12: =H12-'ptfire-rx'!H11 -> 464,767 | BF12: =I12-'ptfire-rx'!AN11 -> 5,357 | BG12: =J12-'ptfire-rx'!AR11 -> 6,357 | BH12: =K12-'ptfire-rx'!BD11 -> 8,933 | BI12: =L12-'ptfire-rx'!BM11 -> 10,489 | BJ12: =M12-'ptfire-rx'!BO11 -> 1,173 | BK12: =N12-'ptfire-rx'!AK11 -> 1,461 | BL12: =O12-'ptfire-rx'!AT11 -> 839 | BM12: 7,361 | BN12: 6,946 | BO12: 8.93 | BP12: 2.16 | BQ12: 0.49 | BR12: 26.24 | BS12: 12.76
A13: Georgia | B13: =rail!B12+nonpt!B12+ptagfire!B12+nonroad!B12+'onroad all'!AG12+cmv_c1c2!B12+'ptfire-rx'!B12+ptegu!B12+ptnonipm!B12+pt_oilgas!B12+np_oilgas!B12+rwc!B12+cmv_c3!B12+airports!B12+'ptfire-wild'!B12 -> 2,246,382 | C13: =rail!C12+nonpt!C12+ptagfire!C12++nonroad!C12+'onroad all'!BZ12+cmv_c1c2!BE12+'ptfire-rx'!C12+ptegu!C12+ptnonipm!C12+pt_oilgas!C12+np_oilgas!C12+rwc!C12+cmv_c3!BE12+livestock!B12+airports!C12+'ptfire-wild'!C12+fertilizer!B12 -> 98,763 | D13: =rail!D12+nonpt!D12+ptagfire!D12++nonroad!D12+cmv_c1c2!D12+'ptfire-rx'!D12+ptegu!DW12+ptnonipm!D12+pt_oilgas!D12+np_oilgas!D12+rwc!D12+cmv_c3!D12+'onroad all'!CI12+airports!D12+'ptfire-wild'!D12 -> 270,826 | E13: =rail!E12+nonpt!E12+ptagfire!E12++nonroad!E12+cmv_c1c2!E12+'ptfire-rx'!E12+ptegu!E12+ptnonipm!E12+pt_oilgas!E12+np_oilgas!E12+rwc!E12+cmv_c3!E12+afdust!BA12+'onroad all'!DE12+'onroad all'!DD12+airports!E12+'ptfire-wild'!E12 -> 221,314 | F13: =rail!F12+nonpt!F12+ptagfire!F12++nonroad!F12+cmv_c1c2!F12+'ptfire-rx'!F12+ptegu!F12+ptnonipm!F12+pt_oilgas!F12+np_oilgas!F12+rwc!F12+cmv_c3!F12+afdust!BB12+'onroad all'!DD12+airports!F12+'ptfire-wild'!F12 -> 134,469 | G13: =rail!G12+nonpt!G12+ptagfire!G12++nonroad!G12+'onroad all'!DU12+cmv_c1c2!G12+'ptfire-rx'!G12+ptegu!FH12+ptnonipm!G12+pt_oilgas!G12+np_oilgas!G12+rwc!G12+cmv_c3!G12+airports!G12+'ptfire-wild'!G12 -> 44,236 | H13: =rail!H12+nonpt!H12+ptagfire!H12++nonroad!H12+'onroad all'!EI12+cmv_c1c2!H12+'ptfire-rx'!H12+ptegu!H12+ptnonipm!H12+pt_oilgas!H12+np_oilgas!H12+rwc!H12+cmv_c3!H12+livestock!C12+airports!H12+'ptfire-wild'!H12+vcp!H12 -> 429,801 | I13: =rail!AO12+nonpt!BN12+ptagfire!AI12+nonroad!AK12+'onroad all'!H12+cmv_c1c2!N12+'ptfire-rx'!AN12+ptegu!BM12+ptnonipm!BX12+pt_oilgas!BL12+np_oilgas!AT12+rwc!AJ12+cmv_c3!O12+livestock!U12+airports!AJ12+'ptfire-wild'!AK12+vcp!AA12 -> 6,484 | J13: =rail!AU12+nonpt!BT12+ptagfire!AM12+nonroad!AP12+'onroad all'!P12+cmv_c1c2!T12+'ptfire-rx'!AR12+ptegu!BS12+ptnonipm!CD12+pt_oilgas!BR12+np_oilgas!AZ12+rwc!AN12+cmv_c3!T12+livestock!X12+airports!AM12+'ptfire-wild'!AO12+vcp!AE12 -> 5,089 | K13: =rail!BR12+nonpt!CY12+ptagfire!AX12+nonroad!BH12+'onroad all'!BC12+cmv_c1c2!AO12+'ptfire-rx'!BD12+ptegu!CX12+ptnonipm!DP12+pt_oilgas!CV12+np_oilgas!BV12+rwc!BC12+cmv_c3!AP12+livestock!AH12+airports!BE12+'ptfire-wild'!AZ12+vcp!AQ12 -> 14,836 | L13: =rail!CF12+nonpt!DO12+ptagfire!BG12+nonroad!BT12+'onroad all'!BU12+cmv_c1c2!BC12+'ptfire-rx'!BM12+ptegu!DM12+ptnonipm!EH12+pt_oilgas!DK12+np_oilgas!CJ12+rwc!BP12+cmv_c3!BC12+livestock!AN12+airports!BN12+'ptfire-wild'!BI12+vcp!AX12 -> 14,978 | M13: =rail!CG12+nonpt!DQ12+nonroad!BU12+'onroad all'!BY12+cmv_c1c2!BD12+'ptfire-rx'!BO12+ptegu!DO12+ptnonipm!EJ12+pt_oilgas!DM12+np_oilgas!CK12+rwc!BQ12+cmv_c3!BD12+airports!BO12+'ptfire-wild'!BK12+vcp!AY12+ptagfire!BI12 -> 1,681 | N13: =rail!AN12+nonpt!BK12+nonroad!AJ12+'onroad all'!G12+cmv_c1c2!M12+'ptfire-rx'!AK12+ptegu!BK12+ptnonipm!BU12+pt_oilgas!BJ12+np_oilgas!AS12+rwc!AI12+airports!AH12+cmv_c3!M12+'ptfire-wild'!AI12+ptagfire!AG12 -> 2,695 | O13: =rail!AY12+nonpt!BY12+ptagfire!AO12+nonroad!AR12+'onroad all'!Z12+cmv_c1c2!V12+'ptfire-rx'!AT12+ptegu!BX12+ptnonipm!CI12+pt_oilgas!BW12+np_oilgas!BB12+rwc!AP12+airports!AO12+cmv_c3!V12+'ptfire-wild'!AQ12 -> 2,249 | P13: =rail!AD12+nonroad!AD12+'onroad all'!AK12+'onroad all'!AL12+'onroad all'!AM12+'onroad all'!AN12+'onroad all'!AO12+'onroad all'!AP12+ptnonipm!BI12+SUM(airports!AR12:AW12)+SUM(cmv_c1c2!AC12:AH12)+SUM(cmv_c3!AC12:AH12) -> 4,091 | Q13: =rail!AE12+nonroad!AE12+'onroad all'!AL12+'onroad all'!AM12+'onroad all'!AN12+'onroad all'!AO12+'onroad all'!AP12+ptnonipm!BJ12+SUM(airports!AS12:AW12)+SUM(cmv_c1c2!AD12:AH12)+SUM(cmv_c3!AD12:AH12) -> 3,849 | R13: =rail!P12+nonpt!T12+nonroad!R12+'onroad all'!AC12+ptegu!T12+ptnonipm!T12+pt_oilgas!S12+np_oilgas!R12+rwc!N12+SUM(cmv_c1c2!Z12:AA12)+SUM(cmv_c3!Z12:AA12) -> 0.76 | S13: =rail!K12+nonpt!L12+nonroad!U12+'onroad all'!M12+ptegu!L12+ptnonipm!L12+pt_oilgas!K12+np_oilgas!K12+SUM(cmv_c1c2!R12:S12)+SUM(cmv_c3!R12:S12) -> 0.99 | T13: =rail!O12+nonpt!P12+ptegu!P12+ptnonipm!P12+pt_oilgas!O12+np_oilgas!N12+rwc!M12+SUM(cmv_c1c2!W12:X12)+SUM(cmv_c3!W12:X12) -> 0.16 | U13: =rail!V12+nonpt!AI12+nonroad!T12+'onroad all'!CB12+ptegu!AH12+ptnonipm!AL12+pt_oilgas!AG12+np_oilgas!AB12+rwc!T12+SUM(cmv_c1c2!BG12:BH12)+SUM(cmv_c3!BG12:BH12) -> 5.29 | V13: =rail!T12+nonpt!AE12+nonroad!S12+'onroad all'!BS12+'onroad all'!BT12+ptegu!AD12+ptnonipm!AH12+pt_oilgas!AC12+np_oilgas!X12+rwc!R12+SUM(cmv_c1c2!BA12:BB12)+SUM(cmv_c3!BA12:BB12) -> 18.78 | W13: =nonpt!CW12+ptegu!CV12+ptnonipm!DN12 -> 3.12 | X13: X | AA13: Georgia | AB13: =B13+beis!H12 -> 2,390,207 | AC13: 98,763 | AD13: =D13+beis!T12 -> 299,886 | AE13: 221,314 | AF13: 134,469 | AG13: 44,236 | AH13: =H13+beis!Z12 -> 1,792,962 | AI13: =I13+beis!E12 -> 21,543 | AJ13: 5,089 | AK13: =K13+beis!N12 -> 35,370 | AL13: =L13+beis!R12 -> 92,645 | AM13: 1,681 | AN13: 2,695 | AO13: 2,249 | AP13: 4,091 | AQ13: 3,849 | AR13: 0.76 | AS13: 0.99 | AT13: 0.16 | AU13: 5.29 | AV13: 18.78 | AX13: Georgia | AY13: =B13-'ptfire-rx'!B12 -> 1,561,109 | AZ13: =C13-'ptfire-rx'!C12 -> 87,442 | BA13: =D13-'ptfire-rx'!D12 -> 257,634 | BB13: =E13-'ptfire-rx'!E12 -> 148,172 | BC13: =F13-'ptfire-rx'!F12 -> 72,483 | BD13: =G13-'ptfire-rx'!G12 -> 37,911 | BE13: =H13-'ptfire-rx'!H12 -> 267,052 | BF13: =I13-'ptfire-rx'!AN12 -> 2,343 | BG13: =J13-'ptfire-rx'!AR12 -> 3,260 | BH13: =K13-'ptfire-rx'!BD12 -> 3,975 | BI13: =L13-'ptfire-rx'!BM12 -> 8,608 | BJ13: =M13-'ptfire-rx'!BO12 -> 395 | BK13: =N13-'ptfire-rx'!AK12 -> 432 | BL13: =O13-'ptfire-rx'!AT12 -> 441 | BM13: 4,091 | BN13: 3,849 | BO13: 0.76 | BP13: 0.99 | BQ13: 0.16 | BR13: 5.29 | BS13: 18.78
A14: Idaho | B14: =rail!B13+nonpt!B13+ptagfire!B13+nonroad!B13+'onroad all'!AG13+cmv_c1c2!B13+'ptfire-rx'!B13+ptegu!B13+ptnonipm!B13+pt_oilgas!B13+np_oilgas!B13+rwc!B13+cmv_c3!B13+airports!B13+'ptfire-wild'!B13 -> 977,181 | C14: =rail!C13+nonpt!C13+ptagfire!C13++nonroad!C13+'onroad all'!BZ13+cmv_c1c2!BE13+'ptfire-rx'!C13+ptegu!C13+ptnonipm!C13+pt_oilgas!C13+np_oilgas!C13+rwc!C13+cmv_c3!BE13+livestock!B13+airports!C13+'ptfire-wild'!C13+fertilizer!B13 -> 103,913 | D14: =rail!D13+nonpt!D13+ptagfire!D13++nonroad!D13+cmv_c1c2!D13+'ptfire-rx'!D13+ptegu!DW13+ptnonipm!D13+pt_oilgas!D13+np_oilgas!D13+rwc!D13+cmv_c3!D13+'onroad all'!CI13+airports!D13+'ptfire-wild'!D13 -> 66,623 | E14: =rail!E13+nonpt!E13+ptagfire!E13++nonroad!E13+cmv_c1c2!E13+'ptfire-rx'!E13+ptegu!E13+ptnonipm!E13+pt_oilgas!E13+np_oilgas!E13+rwc!E13+cmv_c3!E13+afdust!BA13+'onroad all'!DE13+'onroad all'!DD13+airports!E13+'ptfire-wild'!E13 -> 358,294 | F14: =rail!F13+nonpt!F13+ptagfire!F13++nonroad!F13+cmv_c1c2!F13+'ptfire-rx'!F13+ptegu!F13+ptnonipm!F13+pt_oilgas!F13+np_oilgas!F13+rwc!F13+cmv_c3!F13+afdust!BB13+'onroad all'!DD13+airports!F13+'ptfire-wild'!F13 -> 104,163 | G14: =rail!G13+nonpt!G13+ptagfire!G13++nonroad!G13+'onroad all'!DU13+cmv_c1c2!G13+'ptfire-rx'!G13+ptegu!FH13+ptnonipm!G13+pt_oilgas!G13+np_oilgas!G13+rwc!G13+cmv_c3!G13+airports!G13+'ptfire-wild'!G13 -> 8,165 | H14: =rail!H13+nonpt!H13+ptagfire!H13++nonroad!H13+'onroad all'!EI13+cmv_c1c2!H13+'ptfire-rx'!H13+ptegu!H13+ptnonipm!H13+pt_oilgas!H13+np_oilgas!H13+rwc!H13+cmv_c3!H13+livestock!C13+airports!H13+'ptfire-wild'!H13+vcp!H13 -> 236,352 | I14: =rail!AO13+nonpt!BN13+ptagfire!AI13+nonroad!AK13+'onroad all'!H13+cmv_c1c2!N13+'ptfire-rx'!AN13+ptegu!BM13+ptnonipm!BX13+pt_oilgas!BL13+np_oilgas!AT13+rwc!AJ13+cmv_c3!O13+livestock!U13+airports!AJ13+'ptfire-wild'!AK13+vcp!AA13 -> 6,482 | J14: =rail!AU13+nonpt!BT13+ptagfire!AM13+nonroad!AP13+'onroad all'!P13+cmv_c1c2!T13+'ptfire-rx'!AR13+ptegu!BS13+ptnonipm!CD13+pt_oilgas!BR13+np_oilgas!AZ13+rwc!AN13+cmv_c3!T13+livestock!X13+airports!AM13+'ptfire-wild'!AO13+vcp!AE13 -> 2,394 | K14: =rail!BR13+nonpt!CY13+ptagfire!AX13+nonroad!BH13+'onroad all'!BC13+cmv_c1c2!AO13+'ptfire-rx'!BD13+ptegu!CX13+ptnonipm!DP13+pt_oilgas!CV13+np_oilgas!BV13+rwc!BC13+cmv_c3!AP13+livestock!AH13+airports!BE13+'ptfire-wild'!AZ13+vcp!AQ13 -> 12,405 | L14: =rail!CF13+nonpt!DO13+ptagfire!BG13+nonroad!BT13+'onroad all'!BU13+cmv_c1c2!BC13+'ptfire-rx'!BM13+ptegu!DM13+ptnonipm!EH13+pt_oilgas!DK13+np_oilgas!CJ13+rwc!BP13+cmv_c3!BC13+livestock!AN13+airports!BN13+'ptfire-wild'!BI13+vcp!AX13 -> 14,063 | M14: =rail!CG13+nonpt!DQ13+nonroad!BU13+'onroad all'!BY13+cmv_c1c2!BD13+'ptfire-rx'!BO13+ptegu!DO13+ptnonipm!EJ13+pt_oilgas!DM13+np_oilgas!CK13+rwc!BQ13+cmv_c3!BD13+airports!BO13+'ptfire-wild'!BK13+vcp!AY13+ptagfire!BI13 -> 1,840 | N14: =rail!AN13+nonpt!BK13+nonroad!AJ13+'onroad all'!G13+cmv_c1c2!M13+'ptfire-rx'!AK13+ptegu!BK13+ptnonipm!BU13+pt_oilgas!BJ13+np_oilgas!AS13+rwc!AI13+airports!AH13+cmv_c3!M13+'ptfire-wild'!AI13+ptagfire!AG13 -> 1,902 | O14: =rail!AY13+nonpt!BY13+ptagfire!AO13+nonroad!AR13+'onroad all'!Z13+cmv_c1c2!V13+'ptfire-rx'!AT13+ptegu!BX13+ptnonipm!CI13+pt_oilgas!BW13+np_oilgas!BB13+rwc!AP13+airports!AO13+cmv_c3!V13+'ptfire-wild'!AQ13 -> 1,048 | P14: =rail!AD13+nonroad!AD13+'onroad all'!AK13+'onroad all'!AL13+'onroad all'!AM13+'onroad all'!AN13+'onroad all'!AO13+'onroad all'!AP13+ptnonipm!BI13+SUM(airports!AR13:AW13)+SUM(cmv_c1c2!AC13:AH13)+SUM(cmv_c3!AC13:AH13) -> 1,265 | Q14: =rail!AE13+nonroad!AE13+'onroad all'!AL13+'onroad all'!AM13+'onroad all'!AN13+'onroad all'!AO13+'onroad all'!AP13+ptnonipm!BJ13+SUM(airports!AS13:AW13)+SUM(cmv_c1c2!AD13:AH13)+SUM(cmv_c3!AD13:AH13) -> 1,175 | R14: =rail!P13+nonpt!T13+nonroad!R13+'onroad all'!AC13+ptegu!T13+ptnonipm!T13+pt_oilgas!S13+np_oilgas!R13+rwc!N13+SUM(cmv_c1c2!Z13:AA13)+SUM(cmv_c3!Z13:AA13) -> 0.58 | S14: =rail!K13+nonpt!L13+nonroad!U13+'onroad all'!M13+ptegu!L13+ptnonipm!L13+pt_oilgas!K13+np_oilgas!K13+SUM(cmv_c1c2!R13:S13)+SUM(cmv_c3!R13:S13) -> 0.67 | T14: =rail!O13+nonpt!P13+ptegu!P13+ptnonipm!P13+pt_oilgas!O13+np_oilgas!N13+rwc!M13+SUM(cmv_c1c2!W13:X13)+SUM(cmv_c3!W13:X13) -> 2.45 | U14: =rail!V13+nonpt!AI13+nonroad!T13+'onroad all'!CB13+ptegu!AH13+ptnonipm!AL13+pt_oilgas!AG13+np_oilgas!AB13+rwc!T13+SUM(cmv_c1c2!BG13:BH13)+SUM(cmv_c3!BG13:BH13) -> 1.81 | V14: =rail!T13+nonpt!AE13+nonroad!S13+'onroad all'!BS13+'onroad all'!BT13+ptegu!AD13+ptnonipm!AH13+pt_oilgas!AC13+np_oilgas!X13+rwc!R13+SUM(cmv_c1c2!BA13:BB13)+SUM(cmv_c3!BA13:BB13) -> 10.45 | W14: =nonpt!CW13+ptegu!CV13+ptnonipm!DN13 -> 0.01 | AA14: Idaho | AB14: =B14+beis!H13 -> 1,066,018 | AC14: 103,913 | AD14: =D14+beis!T13 -> 81,592 | AE14: 358,294 | AF14: 104,163 | AG14: 8,165 | AH14: =H14+beis!Z13 -> 767,695 | AI14: =I14+beis!E13 -> 15,788 | AJ14: 2,394 | AK14: =K14+beis!N13 -> 25,096 | AL14: =L14+beis!R13 -> 56,254 | AM14: 1,840 | AN14: 1,902 | AO14: 1,048 | AP14: 1,265 | AQ14: 1,175 | AR14: 0.58 | AS14: 0.67 | AT14: 2.45 | AU14: 1.81 | AV14: 10.45 | AX14: Idaho | AY14: =B14-'ptfire-rx'!B13 -> 702,365 | AZ14: =C14-'ptfire-rx'!C13 -> 99,431 | BA14: =D14-'ptfire-rx'!D13 -> 63,621 | BB14: =E14-'ptfire-rx'!E13 -> 330,692 | BC14: =F14-'ptfire-rx'!F13 -> 80,660 | BD14: =G14-'ptfire-rx'!G13 -> 6,332 | BE14: =H14-'ptfire-rx'!H13 -> 171,306 | BF14: =I14-'ptfire-rx'!AN13 -> 4,288 | BG14: =J14-'ptfire-rx'!AR13 -> 1,832 | BH14: =K14-'ptfire-rx'!BD13 -> 8,257 | BI14: =L14-'ptfire-rx'!BM13 -> 9,445 | BJ14: =M14-'ptfire-rx'!BO13 -> 1,256 | BK14: =N14-'ptfire-rx'!AK13 -> 1,212 | BL14: =O14-'ptfire-rx'!AT13 -> 716 | BM14: 1,265 | BN14: 1,175 | BO14: 0.58 | BP14: 0.67 | BQ14: 2.45 | BR14: 1.81 | BS14: 10.45
A15: Illinois | B15: =rail!B14+nonpt!B14+ptagfire!B14+nonroad!B14+'onroad all'!AG14+cmv_c1c2!B14+'ptfire-rx'!B14+ptegu!B14+ptnonipm!B14+pt_oilgas!B14+np_oilgas!B14+rwc!B14+cmv_c3!B14+airports!B14+'ptfire-wild'!B14 -> 1,378,797 | C15: =rail!C14+nonpt!C14+ptagfire!C14++nonroad!C14+'onroad all'!BZ14+cmv_c1c2!BE14+'ptfire-rx'!C14+ptegu!C14+ptnonipm!C14+pt_oilgas!C14+np_oilgas!C14+rwc!C14+cmv_c3!BE14+livestock!B14+airports!C14+'ptfire-wild'!C14+fertilizer!B14 -> 79,806 | D15: =rail!D14+nonpt!D14+ptagfire!D14++nonroad!D14+cmv_c1c2!D14+'ptfire-rx'!D14+ptegu!DW14+ptnonipm!D14+pt_oilgas!D14+np_oilgas!D14+rwc!D14+cmv_c3!D14+'onroad all'!CI14+airports!D14+'ptfire-wild'!D14 -> 304,875 | E15: =rail!E14+nonpt!E14+ptagfire!E14++nonroad!E14+cmv_c1c2!E14+'ptfire-rx'!E14+ptegu!E14+ptnonipm!E14+pt_oilgas!E14+np_oilgas!E14+rwc!E14+cmv_c3!E14+afdust!BA14+'onroad all'!DE14+'onroad all'!DD14+airports!E14+'ptfire-wild'!E14 -> 439,915 | F15: =rail!F14+nonpt!F14+ptagfire!F14++nonroad!F14+cmv_c1c2!F14+'ptfire-rx'!F14+ptegu!F14+ptnonipm!F14+pt_oilgas!F14+np_oilgas!F14+rwc!F14+cmv_c3!F14+afdust!BB14+'onroad all'!DD14+airports!F14+'ptfire-wild'!F14 -> 108,599 | G15: =rail!G14+nonpt!G14+ptagfire!G14++nonroad!G14+'onroad all'!DU14+cmv_c1c2!G14+'ptfire-rx'!G14+ptegu!FH14+ptnonipm!G14+pt_oilgas!G14+np_oilgas!G14+rwc!G14+cmv_c3!G14+airports!G14+'ptfire-wild'!G14 -> 95,053 | H15: =rail!H14+nonpt!H14+ptagfire!H14++nonroad!H14+'onroad all'!EI14+cmv_c1c2!H14+'ptfire-rx'!H14+ptegu!H14+ptnonipm!H14+pt_oilgas!H14+np_oilgas!H14+rwc!H14+cmv_c3!H14+livestock!C14+airports!H14+'ptfire-wild'!H14+vcp!H14 -> 341,362 | I15: =rail!AO14+nonpt!BN14+ptagfire!AI14+nonroad!AK14+'onroad all'!H14+cmv_c1c2!N14+'ptfire-rx'!AN14+ptegu!BM14+ptnonipm!BX14+pt_oilgas!BL14+np_oilgas!AT14+rwc!AJ14+cmv_c3!O14+livestock!U14+airports!AJ14+'ptfire-wild'!AK14+vcp!AA14 -> 2,878 | J15: =rail!AU14+nonpt!BT14+ptagfire!AM14+nonroad!AP14+'onroad all'!P14+cmv_c1c2!T14+'ptfire-rx'!AR14+ptegu!BS14+ptnonipm!CD14+pt_oilgas!BR14+np_oilgas!AZ14+rwc!AN14+cmv_c3!T14+livestock!X14+airports!AM14+'ptfire-wild'!AO14+vcp!AE14 -> 3,525 | K15: =rail!BR14+nonpt!CY14+ptagfire!AX14+nonroad!BH14+'onroad all'!BC14+cmv_c1c2!AO14+'ptfire-rx'!BD14+ptegu!CX14+ptnonipm!DP14+pt_oilgas!CV14+np_oilgas!BV14+rwc!BC14+cmv_c3!AP14+livestock!AH14+airports!BE14+'ptfire-wild'!AZ14+vcp!AQ14 -> 4,994 | L15: =rail!CF14+nonpt!DO14+ptagfire!BG14+nonroad!BT14+'onroad all'!BU14+cmv_c1c2!BC14+'ptfire-rx'!BM14+ptegu!DM14+ptnonipm!EH14+pt_oilgas!DK14+np_oilgas!CJ14+rwc!BP14+cmv_c3!BC14+livestock!AN14+airports!BN14+'ptfire-wild'!BI14+vcp!AX14 -> 4,534 | M15: =rail!CG14+nonpt!DQ14+nonroad!BU14+'onroad all'!BY14+cmv_c1c2!BD14+'ptfire-rx'!BO14+ptegu!DO14+ptnonipm!EJ14+pt_oilgas!DM14+np_oilgas!CK14+rwc!BQ14+cmv_c3!BD14+airports!BO14+'ptfire-wild'!BK14+vcp!AY14+ptagfire!BI14 -> 563 | N15: =rail!AN14+nonpt!BK14+nonroad!AJ14+'onroad all'!G14+cmv_c1c2!M14+'ptfire-rx'!AK14+ptegu!BK14+ptnonipm!BU14+pt_oilgas!BJ14+np_oilgas!AS14+rwc!AI14+airports!AH14+cmv_c3!M14+'ptfire-wild'!AI14+ptagfire!AG14 -> 678 | O15: =rail!AY14+nonpt!BY14+ptagfire!AO14+nonroad!AR14+'onroad all'!Z14+cmv_c1c2!V14+'ptfire-rx'!AT14+ptegu!BX14+ptnonipm!CI14+pt_oilgas!BW14+np_oilgas!BB14+rwc!AP14+airports!AO14+cmv_c3!V14+'ptfire-wild'!AQ14 -> 578 | P15: =rail!AD14+nonroad!AD14+'onroad all'!AK14+'onroad all'!AL14+'onroad all'!AM14+'onroad all'!AN14+'onroad all'!AO14+'onroad all'!AP14+ptnonipm!BI14+SUM(airports!AR14:AW14)+SUM(cmv_c1c2!AC14:AH14)+SUM(cmv_c3!AC14:AH14) -> 5,708 | Q15: =rail!AE14+nonroad!AE14+'onroad all'!AL14+'onroad all'!AM14+'onroad all'!AN14+'onroad all'!AO14+'onroad all'!AP14+ptnonipm!BJ14+SUM(airports!AS14:AW14)+SUM(cmv_c1c2!AD14:AH14)+SUM(cmv_c3!AD14:AH14) -> 5,453 | R15: =rail!P14+nonpt!T14+nonroad!R14+'onroad all'!AC14+ptegu!T14+ptnonipm!T14+pt_oilgas!S14+np_oilgas!R14+rwc!N14+SUM(cmv_c1c2!Z14:AA14)+SUM(cmv_c3!Z14:AA14) -> 3.00 | S15: =rail!K14+nonpt!L14+nonroad!U14+'onroad all'!M14+ptegu!L14+ptnonipm!L14+pt_oilgas!K14+np_oilgas!K14+SUM(cmv_c1c2!R14:S14)+SUM(cmv_c3!R14:S14) -> 2.93 | T15: =rail!O14+nonpt!P14+ptegu!P14+ptnonipm!P14+pt_oilgas!O14+np_oilgas!N14+rwc!M14+SUM(cmv_c1c2!W14:X14)+SUM(cmv_c3!W14:X14) -> 1.26 | U15: =rail!V14+nonpt!AI14+nonroad!T14+'onroad all'!CB14+ptegu!AH14+ptnonipm!AL14+pt_oilgas!AG14+np_oilgas!AB14+rwc!T14+SUM(cmv_c1c2!BG14:BH14)+SUM(cmv_c3!BG14:BH14) -> 25.60 | V15: =rail!T14+nonpt!AE14+nonroad!S14+'onroad all'!BS14+'onroad all'!BT14+ptegu!AD14+ptnonipm!AH14+pt_oilgas!AC14+np_oilgas!X14+rwc!R14+SUM(cmv_c1c2!BA14:BB14)+SUM(cmv_c3!BA14:BB14) -> 64.46 | W15: =nonpt!CW14+ptegu!CV14+ptnonipm!DN14 -> 6.07 | X15: X | AA15: Illinois | AB15: =B15+beis!H14 -> 1,432,991 | AC15: 79,806 | AD15: =D15+beis!T14 -> 347,022 | AE15: 439,915 | AF15: 108,599 | AG15: 95,053 | AH15: =H15+beis!Z14 -> 577,132 | AI15: =I15+beis!E14 -> 8,554 | AJ15: 3,525 | AK15: =K15+beis!N14 -> 12,735 | AL15: =L15+beis!R14 -> 35,671 | AM15: 563 | AN15: 678 | AO15: 578 | AP15: 5,708 | AQ15: 5,453 | AR15: 3.00 | AS15: 2.93 | AT15: 1.26 | AU15: 25.60 | AV15: 64.46 | AX15: Illinois | AY15: =B15-'ptfire-rx'!B14 -> 1,227,349 | AZ15: =C15-'ptfire-rx'!C14 -> 77,326 | BA15: =D15-'ptfire-rx'!D14 -> 302,404 | BB15: =E15-'ptfire-rx'!E14 -> 423,851 | BC15: =F15-'ptfire-rx'!F14 -> 94,880 | BD15: =G15-'ptfire-rx'!G14 -> 93,794 | BE15: =H15-'ptfire-rx'!H14 -> 305,125 | BF15: =I15-'ptfire-rx'!AN14 -> 1,691 | BG15: =J15-'ptfire-rx'!AR14 -> 3,231 | BH15: =K15-'ptfire-rx'!BD14 -> 3,344 | BI15: =L15-'ptfire-rx'!BM14 -> 3,036 | BJ15: =M15-'ptfire-rx'!BO14 -> 268 | BK15: =N15-'ptfire-rx'!AK14 -> 297 | BL15: =O15-'ptfire-rx'!AT14 -> 408 | BM15: 5,708 | BN15: 5,453 | BO15: 3.00 | BP15: 2.93 | BQ15: 1.26 | BR15: 25.60 | BS15: 64.46
A16: Indiana | B16: =rail!B15+nonpt!B15+ptagfire!B15+nonroad!B15+'onroad all'!AG15+cmv_c1c2!B15+'ptfire-rx'!B15+ptegu!B15+ptnonipm!B15+pt_oilgas!B15+np_oilgas!B15+rwc!B15+cmv_c3!B15+airports!B15+'ptfire-wild'!B15 -> 1,171,920 | C16: =rail!C15+nonpt!C15+ptagfire!C15++nonroad!C15+'onroad all'!BZ15+cmv_c1c2!BE15+'ptfire-rx'!C15+ptegu!C15+ptnonipm!C15+pt_oilgas!C15+np_oilgas!C15+rwc!C15+cmv_c3!BE15+livestock!B15+airports!C15+'ptfire-wild'!C15+fertilizer!B15 -> 99,252 | D16: =rail!D15+nonpt!D15+ptagfire!D15++nonroad!D15+cmv_c1c2!D15+'ptfire-rx'!D15+ptegu!DW15+ptnonipm!D15+pt_oilgas!D15+np_oilgas!D15+rwc!D15+cmv_c3!D15+'onroad all'!CI15+airports!D15+'ptfire-wild'!D15 -> 269,082 | E16: =rail!E15+nonpt!E15+ptagfire!E15++nonroad!E15+cmv_c1c2!E15+'ptfire-rx'!E15+ptegu!E15+ptnonipm!E15+pt_oilgas!E15+np_oilgas!E15+rwc!E15+cmv_c3!E15+afdust!BA15+'onroad all'!DE15+'onroad all'!DD15+airports!E15+'ptfire-wild'!E15 -> 102,479 | F16: =rail!F15+nonpt!F15+ptagfire!F15++nonroad!F15+cmv_c1c2!F15+'ptfire-rx'!F15+ptegu!F15+ptnonipm!F15+pt_oilgas!F15+np_oilgas!F15+rwc!F15+cmv_c3!F15+afdust!BB15+'onroad all'!DD15+airports!F15+'ptfire-wild'!F15 -> 55,991 | G16: =rail!G15+nonpt!G15+ptagfire!G15++nonroad!G15+'onroad all'!DU15+cmv_c1c2!G15+'ptfire-rx'!G15+ptegu!FH15+ptnonipm!G15+pt_oilgas!G15+np_oilgas!G15+rwc!G15+cmv_c3!G15+airports!G15+'ptfire-wild'!G15 -> 105,809 | H16: =rail!H15+nonpt!H15+ptagfire!H15++nonroad!H15+'onroad all'!EI15+cmv_c1c2!H15+'ptfire-rx'!H15+ptegu!H15+ptnonipm!H15+pt_oilgas!H15+np_oilgas!H15+rwc!H15+cmv_c3!H15+livestock!C15+airports!H15+'ptfire-wild'!H15+vcp!H15 -> 200,695 | I16: =rail!AO15+nonpt!BN15+ptagfire!AI15+nonroad!AK15+'onroad all'!H15+cmv_c1c2!N15+'ptfire-rx'!AN15+ptegu!BM15+ptnonipm!BX15+pt_oilgas!BL15+np_oilgas!AT15+rwc!AJ15+cmv_c3!O15+livestock!U15+airports!AJ15+'ptfire-wild'!AK15+vcp!AA15 -> 1,676 | J16: =rail!AU15+nonpt!BT15+ptagfire!AM15+nonroad!AP15+'onroad all'!P15+cmv_c1c2!T15+'ptfire-rx'!AR15+ptegu!BS15+ptnonipm!CD15+pt_oilgas!BR15+np_oilgas!AZ15+rwc!AN15+cmv_c3!T15+livestock!X15+airports!AM15+'ptfire-wild'!AO15+vcp!AE15 -> 2,326 | K16: =rail!BR15+nonpt!CY15+ptagfire!AX15+nonroad!BH15+'onroad all'!BC15+cmv_c1c2!AO15+'ptfire-rx'!BD15+ptegu!CX15+ptnonipm!DP15+pt_oilgas!CV15+np_oilgas!BV15+rwc!BC15+cmv_c3!AP15+livestock!AH15+airports!BE15+'ptfire-wild'!AZ15+vcp!AQ15 -> 2,954 | L16: =rail!CF15+nonpt!DO15+ptagfire!BG15+nonroad!BT15+'onroad all'!BU15+cmv_c1c2!BC15+'ptfire-rx'!BM15+ptegu!DM15+ptnonipm!EH15+pt_oilgas!DK15+np_oilgas!CJ15+rwc!BP15+cmv_c3!BC15+livestock!AN15+airports!BN15+'ptfire-wild'!BI15+vcp!AX15 -> 2,571 | M16: =rail!CG15+nonpt!DQ15+nonroad!BU15+'onroad all'!BY15+cmv_c1c2!BD15+'ptfire-rx'!BO15+ptegu!DO15+ptnonipm!EJ15+pt_oilgas!DM15+np_oilgas!CK15+rwc!BQ15+cmv_c3!BD15+airports!BO15+'ptfire-wild'!BK15+vcp!AY15+ptagfire!BI15 -> 334 | N16: =rail!AN15+nonpt!BK15+nonroad!AJ15+'onroad all'!G15+cmv_c1c2!M15+'ptfire-rx'!AK15+ptegu!BK15+ptnonipm!BU15+pt_oilgas!BJ15+np_oilgas!AS15+rwc!AI15+airports!AH15+cmv_c3!M15+'ptfire-wild'!AI15+ptagfire!AG15 -> 302 | O16: =rail!AY15+nonpt!BY15+ptagfire!AO15+nonroad!AR15+'onroad all'!Z15+cmv_c1c2!V15+'ptfire-rx'!AT15+ptegu!BX15+ptnonipm!CI15+pt_oilgas!BW15+np_oilgas!BB15+rwc!AP15+airports!AO15+cmv_c3!V15+'ptfire-wild'!AQ15 -> 307 | P16: =rail!AD15+nonroad!AD15+'onroad all'!AK15+'onroad all'!AL15+'onroad all'!AM15+'onroad all'!AN15+'onroad all'!AO15+'onroad all'!AP15+ptnonipm!BI15+SUM(airports!AR15:AW15)+SUM(cmv_c1c2!AC15:AH15)+SUM(cmv_c3!AC15:AH15) -> 4,119 | Q16: =rail!AE15+nonroad!AE15+'onroad all'!AL15+'onroad all'!AM15+'onroad all'!AN15+'onroad all'!AO15+'onroad all'!AP15+ptnonipm!BJ15+SUM(airports!AS15:AW15)+SUM(cmv_c1c2!AD15:AH15)+SUM(cmv_c3!AD15:AH15) -> 3,920 | R16: =rail!P15+nonpt!T15+nonroad!R15+'onroad all'!AC15+ptegu!T15+ptnonipm!T15+pt_oilgas!S15+np_oilgas!R15+rwc!N15+SUM(cmv_c1c2!Z15:AA15)+SUM(cmv_c3!Z15:AA15) -> 1.30 | S16: =rail!K15+nonpt!L15+nonroad!U15+'onroad all'!M15+ptegu!L15+ptnonipm!L15+pt_oilgas!K15+np_oilgas!K15+SUM(cmv_c1c2!R15:S15)+SUM(cmv_c3!R15:S15) -> 2.00 | T16: =rail!O15+nonpt!P15+ptegu!P15+ptnonipm!P15+pt_oilgas!O15+np_oilgas!N15+rwc!M15+SUM(cmv_c1c2!W15:X15)+SUM(cmv_c3!W15:X15) -> 1.45 | U16: =rail!V15+nonpt!AI15+nonroad!T15+'onroad all'!CB15+ptegu!AH15+ptnonipm!AL15+pt_oilgas!AG15+np_oilgas!AB15+rwc!T15+SUM(cmv_c1c2!BG15:BH15)+SUM(cmv_c3!BG15:BH15) -> 15.55 | V16: =rail!T15+nonpt!AE15+nonroad!S15+'onroad all'!BS15+'onroad all'!BT15+ptegu!AD15+ptnonipm!AH15+pt_oilgas!AC15+np_oilgas!X15+rwc!R15+SUM(cmv_c1c2!BA15:BB15)+SUM(cmv_c3!BA15:BB15) -> 38.92 | W16: =nonpt!CW15+ptegu!CV15+ptnonipm!DN15 -> 0.20 | X16: X | AA16: Indiana | AB16: =B16+beis!H15 -> 1,208,473 | AC16: 99,252 | AD16: =D16+beis!T15 -> 293,312 | AE16: 102,479 | AF16: 55,991 | AG16: 105,809 | AH16: =H16+beis!Z15 -> 391,212 | AI16: =I16+beis!E15 -> 5,504 | AJ16: 2,326 | AK16: =K16+beis!N15 -> 8,173 | AL16: =L16+beis!R15 -> 22,485 | AM16: 334 | AN16: 302 | AO16: 307 | AP16: 4,119 | AQ16: 3,920 | AR16: 1.30 | AS16: 2.00 | AT16: 1.45 | AU16: 15.55 | AV16: 38.92 | AX16: Indiana | AY16: =B16-'ptfire-rx'!B15 -> 1,125,429 | AZ16: =C16-'ptfire-rx'!C15 -> 98,489 | BA16: =D16-'ptfire-rx'!D15 -> 268,286 | BB16: =E16-'ptfire-rx'!E15 -> 97,543 | BC16: =F16-'ptfire-rx'!F15 -> 51,786 | BD16: =G16-'ptfire-rx'!G15 -> 105,411 | BE16: =H16-'ptfire-rx'!H15 -> 189,598 | BF16: =I16-'ptfire-rx'!AN15 -> 1,312 | BG16: =J16-'ptfire-rx'!AR15 -> 2,234 | BH16: =K16-'ptfire-rx'!BD15 -> 2,435 | BI16: =L16-'ptfire-rx'!BM15 -> 2,099 | BJ16: =M16-'ptfire-rx'!BO15 -> 239 | BK16: =N16-'ptfire-rx'!AK15 -> 187 | BL16: =O16-'ptfire-rx'!AT15 -> 253 | BM16: 4,119 | BN16: 3,920 | BO16: 1.30 | BP16: 2.00 | BQ16: 1.45 | BR16: 15.55 | BS16: 38.92
A17: Iowa | B17: =rail!B16+nonpt!B16+ptagfire!B16+nonroad!B16+'onroad all'!AG16+cmv_c1c2!B16+'ptfire-rx'!B16+ptegu!B16+ptnonipm!B16+pt_oilgas!B16+np_oilgas!B16+rwc!B16+cmv_c3!B16+airports!B16+'ptfire-wild'!B16 -> 625,493 | C17: =rail!C16+nonpt!C16+ptagfire!C16++nonroad!C16+'onroad all'!BZ16+cmv_c1c2!BE16+'ptfire-rx'!C16+ptegu!C16+ptnonipm!C16+pt_oilgas!C16+np_oilgas!C16+rwc!C16+cmv_c3!BE16+livestock!B16+airports!C16+'ptfire-wild'!C16+fertilizer!B16 -> 328,894 | D17: =rail!D16+nonpt!D16+ptagfire!D16++nonroad!D16+cmv_c1c2!D16+'ptfire-rx'!D16+ptegu!DW16+ptnonipm!D16+pt_oilgas!D16+np_oilgas!D16+rwc!D16+cmv_c3!D16+'onroad all'!CI16+airports!D16+'ptfire-wild'!D16 -> 156,106 | E17: =rail!E16+nonpt!E16+ptagfire!E16++nonroad!E16+cmv_c1c2!E16+'ptfire-rx'!E16+ptegu!E16+ptnonipm!E16+pt_oilgas!E16+np_oilgas!E16+rwc!E16+cmv_c3!E16+afdust!BA16+'onroad all'!DE16+'onroad all'!DD16+airports!E16+'ptfire-wild'!E16 -> 162,988 | F17: =rail!F16+nonpt!F16+ptagfire!F16++nonroad!F16+cmv_c1c2!F16+'ptfire-rx'!F16+ptegu!F16+ptnonipm!F16+pt_oilgas!F16+np_oilgas!F16+rwc!F16+cmv_c3!F16+afdust!BB16+'onroad all'!DD16+airports!F16+'ptfire-wild'!F16 -> 52,368 | G17: =rail!G16+nonpt!G16+ptagfire!G16++nonroad!G16+'onroad all'!DU16+cmv_c1c2!G16+'ptfire-rx'!G16+ptegu!FH16+ptnonipm!G16+pt_oilgas!G16+np_oilgas!G16+rwc!G16+cmv_c3!G16+airports!G16+'ptfire-wild'!G16 -> 74,242 | H17: =rail!H16+nonpt!H16+ptagfire!H16++nonroad!H16+'onroad all'!EI16+cmv_c1c2!H16+'ptfire-rx'!H16+ptegu!H16+ptnonipm!H16+pt_oilgas!H16+np_oilgas!H16+rwc!H16+cmv_c3!H16+livestock!C16+airports!H16+'ptfire-wild'!H16+vcp!H16 -> 167,371 | I17: =rail!AO16+nonpt!BN16+ptagfire!AI16+nonroad!AK16+'onroad all'!H16+cmv_c1c2!N16+'ptfire-rx'!AN16+ptegu!BM16+ptnonipm!BX16+pt_oilgas!BL16+np_oilgas!AT16+rwc!AJ16+cmv_c3!O16+livestock!U16+airports!AJ16+'ptfire-wild'!AK16+vcp!AA16 -> 2,811 | J17: =rail!AU16+nonpt!BT16+ptagfire!AM16+nonroad!AP16+'onroad all'!P16+cmv_c1c2!T16+'ptfire-rx'!AR16+ptegu!BS16+ptnonipm!CD16+pt_oilgas!BR16+np_oilgas!AZ16+rwc!AN16+cmv_c3!T16+livestock!X16+airports!AM16+'ptfire-wild'!AO16+vcp!AE16 -> 1,618 | K17: =rail!BR16+nonpt!CY16+ptagfire!AX16+nonroad!BH16+'onroad all'!BC16+cmv_c1c2!AO16+'ptfire-rx'!BD16+ptegu!CX16+ptnonipm!DP16+pt_oilgas!CV16+np_oilgas!BV16+rwc!BC16+cmv_c3!AP16+livestock!AH16+airports!BE16+'ptfire-wild'!AZ16+vcp!AQ16 -> 3,395 | L17: =rail!CF16+nonpt!DO16+ptagfire!BG16+nonroad!BT16+'onroad all'!BU16+cmv_c1c2!BC16+'ptfire-rx'!BM16+ptegu!DM16+ptnonipm!EH16+pt_oilgas!DK16+np_oilgas!CJ16+rwc!BP16+cmv_c3!BC16+livestock!AN16+airports!BN16+'ptfire-wild'!BI16+vcp!AX16 -> 3,030 | M17: =rail!CG16+nonpt!DQ16+nonroad!BU16+'onroad all'!BY16+cmv_c1c2!BD16+'ptfire-rx'!BO16+ptegu!DO16+ptnonipm!EJ16+pt_oilgas!DM16+np_oilgas!CK16+rwc!BQ16+cmv_c3!BD16+airports!BO16+'ptfire-wild'!BK16+vcp!AY16+ptagfire!BI16 -> 476 | N17: =rail!AN16+nonpt!BK16+nonroad!AJ16+'onroad all'!G16+cmv_c1c2!M16+'ptfire-rx'!AK16+ptegu!BK16+ptnonipm!BU16+pt_oilgas!BJ16+np_oilgas!AS16+rwc!AI16+airports!AH16+cmv_c3!M16+'ptfire-wild'!AI16+ptagfire!AG16 -> 663 | O17: =rail!AY16+nonpt!BY16+ptagfire!AO16+nonroad!AR16+'onroad all'!Z16+cmv_c1c2!V16+'ptfire-rx'!AT16+ptegu!BX16+ptnonipm!CI16+pt_oilgas!BW16+np_oilgas!BB16+rwc!AP16+airports!AO16+cmv_c3!V16+'ptfire-wild'!AQ16 -> 336 | P17: =rail!AD16+nonroad!AD16+'onroad all'!AK16+'onroad all'!AL16+'onroad all'!AM16+'onroad all'!AN16+'onroad all'!AO16+'onroad all'!AP16+ptnonipm!BI16+SUM(airports!AR16:AW16)+SUM(cmv_c1c2!AC16:AH16)+SUM(cmv_c3!AC16:AH16) -> 3,230 | Q17: =rail!AE16+nonroad!AE16+'onroad all'!AL16+'onroad all'!AM16+'onroad all'!AN16+'onroad all'!AO16+'onroad all'!AP16+ptnonipm!BJ16+SUM(airports!AS16:AW16)+SUM(cmv_c1c2!AD16:AH16)+SUM(cmv_c3!AD16:AH16) -> 3,097 | R17: =rail!P16+nonpt!T16+nonroad!R16+'onroad all'!AC16+ptegu!T16+ptnonipm!T16+pt_oilgas!S16+np_oilgas!R16+rwc!N16+SUM(cmv_c1c2!Z16:AA16)+SUM(cmv_c3!Z16:AA16) -> 0.74 | S17: =rail!K16+nonpt!L16+nonroad!U16+'onroad all'!M16+ptegu!L16+ptnonipm!L16+pt_oilgas!K16+np_oilgas!K16+SUM(cmv_c1c2!R16:S16)+SUM(cmv_c3!R16:S16) -> 2.26 | T17: =rail!O16+nonpt!P16+ptegu!P16+ptnonipm!P16+pt_oilgas!O16+np_oilgas!N16+rwc!M16+SUM(cmv_c1c2!W16:X16)+SUM(cmv_c3!W16:X16) -> 0.41 | U17: =rail!V16+nonpt!AI16+nonroad!T16+'onroad all'!CB16+ptegu!AH16+ptnonipm!AL16+pt_oilgas!AG16+np_oilgas!AB16+rwc!T16+SUM(cmv_c1c2!BG16:BH16)+SUM(cmv_c3!BG16:BH16) -> 6.12 | V17: =rail!T16+nonpt!AE16+nonroad!S16+'onroad all'!BS16+'onroad all'!BT16+ptegu!AD16+ptnonipm!AH16+pt_oilgas!AC16+np_oilgas!X16+rwc!R16+SUM(cmv_c1c2!BA16:BB16)+SUM(cmv_c3!BA16:BB16) -> 15.13 | W17: =nonpt!CW16+ptegu!CV16+ptnonipm!DN16 -> 0.43 | X17: X | AA17: Iowa | AB17: =B17+beis!H16 -> 670,073 | AC17: 328,894 | AD17: =D17+beis!T16 -> 197,951 | AE17: 162,988 | AF17: 52,368 | AG17: 74,242 | AH17: =H17+beis!Z16 -> 312,119 | AI17: =I17+beis!E16 -> 7,482 | AJ17: 1,618 | AK17: =K17+beis!N16 -> 9,763 | AL17: =L17+beis!R16 -> 27,641 | AM17: 476 | AN17: 663 | AO17: 336 | AP17: 3,230 | AQ17: 3,097 | AR17: 0.74 | AS17: 2.26 | AT17: 0.41 | AU17: 6.12 | AV17: 15.13 | AX17: Iowa | AY17: =B17-'ptfire-rx'!B16 -> 474,370 | AZ17: =C17-'ptfire-rx'!C16 -> 326,437 | BA17: =D17-'ptfire-rx'!D16 -> 153,795 | BB17: =E17-'ptfire-rx'!E16 -> 146,803 | BC17: =F17-'ptfire-rx'!F16 -> 38,443 | BD17: =G17-'ptfire-rx'!G16 -> 73,036 | BE17: =H17-'ptfire-rx'!H16 -> 130,864 | BF17: =I17-'ptfire-rx'!AN16 -> 1,559 | BG17: =J17-'ptfire-rx'!AR16 -> 1,332 | BH17: =K17-'ptfire-rx'!BD16 -> 1,773 | BI17: =L17-'ptfire-rx'!BM16 -> 1,575 | BJ17: =M17-'ptfire-rx'!BO16 -> 212 | BK17: =N17-'ptfire-rx'!AK16 -> 243 | BL17: =O17-'ptfire-rx'!AT16 -> 176 | BM17: 3,230 | BN17: 3,097 | BO17: 0.74 | BP17: 2.26 | BQ17: 0.41 | BR17: 6.12 | BS17: 15.13
A18: Kansas | B18: =rail!B17+nonpt!B17+ptagfire!B17+nonroad!B17+'onroad all'!AG17+cmv_c1c2!B17+'ptfire-rx'!B17+ptegu!B17+ptnonipm!B17+pt_oilgas!B17+np_oilgas!B17+rwc!B17+cmv_c3!B17+airports!B17+'ptfire-wild'!B17 -> 937,900 | C18: =rail!C17+nonpt!C17+ptagfire!C17++nonroad!C17+'onroad all'!BZ17+cmv_c1c2!BE17+'ptfire-rx'!C17+ptegu!C17+ptnonipm!C17+pt_oilgas!C17+np_oilgas!C17+rwc!C17+cmv_c3!BE17+livestock!B17+airports!C17+'ptfire-wild'!C17+fertilizer!B17 -> 231,549 | D18: =rail!D17+nonpt!D17+ptagfire!D17++nonroad!D17+cmv_c1c2!D17+'ptfire-rx'!D17+ptegu!DW17+ptnonipm!D17+pt_oilgas!D17+np_oilgas!D17+rwc!D17+cmv_c3!D17+'onroad all'!CI17+airports!D17+'ptfire-wild'!D17 -> 213,724 | E18: =rail!E17+nonpt!E17+ptagfire!E17++nonroad!E17+cmv_c1c2!E17+'ptfire-rx'!E17+ptegu!E17+ptnonipm!E17+pt_oilgas!E17+np_oilgas!E17+rwc!E17+cmv_c3!E17+afdust!BA17+'onroad all'!DE17+'onroad all'!DD17+airports!E17+'ptfire-wild'!E17 -> 430,252 | F18: =rail!F17+nonpt!F17+ptagfire!F17++nonroad!F17+cmv_c1c2!F17+'ptfire-rx'!F17+ptegu!F17+ptnonipm!F17+pt_oilgas!F17+np_oilgas!F17+rwc!F17+cmv_c3!F17+afdust!BB17+'onroad all'!DD17+airports!F17+'ptfire-wild'!F17 -> 120,365 | G18: =rail!G17+nonpt!G17+ptagfire!G17++nonroad!G17+'onroad all'!DU17+cmv_c1c2!G17+'ptfire-rx'!G17+ptegu!FH17+ptnonipm!G17+pt_oilgas!G17+np_oilgas!G17+rwc!G17+cmv_c3!G17+airports!G17+'ptfire-wild'!G17 -> 17,287 | H18: =rail!H17+nonpt!H17+ptagfire!H17++nonroad!H17+'onroad all'!EI17+cmv_c1c2!H17+'ptfire-rx'!H17+ptegu!H17+ptnonipm!H17+pt_oilgas!H17+np_oilgas!H17+rwc!H17+cmv_c3!H17+livestock!C17+airports!H17+'ptfire-wild'!H17+vcp!H17 -> 312,701 | I18: =rail!AO17+nonpt!BN17+ptagfire!AI17+nonroad!AK17+'onroad all'!H17+cmv_c1c2!N17+'ptfire-rx'!AN17+ptegu!BM17+ptnonipm!BX17+pt_oilgas!BL17+np_oilgas!AT17+rwc!AJ17+cmv_c3!O17+livestock!U17+airports!AJ17+'ptfire-wild'!AK17+vcp!AA17 -> 9,773 | J18: =rail!AU17+nonpt!BT17+ptagfire!AM17+nonroad!AP17+'onroad all'!P17+cmv_c1c2!T17+'ptfire-rx'!AR17+ptegu!BS17+ptnonipm!CD17+pt_oilgas!BR17+np_oilgas!AZ17+rwc!AN17+cmv_c3!T17+livestock!X17+airports!AM17+'ptfire-wild'!AO17+vcp!AE17 -> 2,893 | K18: =rail!BR17+nonpt!CY17+ptagfire!AX17+nonroad!BH17+'onroad all'!BC17+cmv_c1c2!AO17+'ptfire-rx'!BD17+ptegu!CX17+ptnonipm!DP17+pt_oilgas!CV17+np_oilgas!BV17+rwc!BC17+cmv_c3!AP17+livestock!AH17+airports!BE17+'ptfire-wild'!AZ17+vcp!AQ17 -> 11,258 | L18: =rail!CF17+nonpt!DO17+ptagfire!BG17+nonroad!BT17+'onroad all'!BU17+cmv_c1c2!BC17+'ptfire-rx'!BM17+ptegu!DM17+ptnonipm!EH17+pt_oilgas!DK17+np_oilgas!CJ17+rwc!BP17+cmv_c3!BC17+livestock!AN17+airports!BN17+'ptfire-wild'!BI17+vcp!AX17 -> 9,808 | M18: =rail!CG17+nonpt!DQ17+nonroad!BU17+'onroad all'!BY17+cmv_c1c2!BD17+'ptfire-rx'!BO17+ptegu!DO17+ptnonipm!EJ17+pt_oilgas!DM17+np_oilgas!CK17+rwc!BQ17+cmv_c3!BD17+airports!BO17+'ptfire-wild'!BK17+vcp!AY17+ptagfire!BI17 -> 906 | N18: =rail!AN17+nonpt!BK17+nonroad!AJ17+'onroad all'!G17+cmv_c1c2!M17+'ptfire-rx'!AK17+ptegu!BK17+ptnonipm!BU17+pt_oilgas!BJ17+np_oilgas!AS17+rwc!AI17+airports!AH17+cmv_c3!M17+'ptfire-wild'!AI17+ptagfire!AG17 -> 3,618 | O18: =rail!AY17+nonpt!BY17+ptagfire!AO17+nonroad!AR17+'onroad all'!Z17+cmv_c1c2!V17+'ptfire-rx'!AT17+ptegu!BX17+ptnonipm!CI17+pt_oilgas!BW17+np_oilgas!BB17+rwc!AP17+airports!AO17+cmv_c3!V17+'ptfire-wild'!AQ17 -> 814 | P18: =rail!AD17+nonroad!AD17+'onroad all'!AK17+'onroad all'!AL17+'onroad all'!AM17+'onroad all'!AN17+'onroad all'!AO17+'onroad all'!AP17+ptnonipm!BI17+SUM(airports!AR17:AW17)+SUM(cmv_c1c2!AC17:AH17)+SUM(cmv_c3!AC17:AH17) -> 3,099 | Q18: =rail!AE17+nonroad!AE17+'onroad all'!AL17+'onroad all'!AM17+'onroad all'!AN17+'onroad all'!AO17+'onroad all'!AP17+ptnonipm!BJ17+SUM(airports!AS17:AW17)+SUM(cmv_c1c2!AD17:AH17)+SUM(cmv_c3!AD17:AH17) -> 2,966 | R18: =rail!P17+nonpt!T17+nonroad!R17+'onroad all'!AC17+ptegu!T17+ptnonipm!T17+pt_oilgas!S17+np_oilgas!R17+rwc!N17+SUM(cmv_c1c2!Z17:AA17)+SUM(cmv_c3!Z17:AA17) -> 0.44 | S18: =rail!K17+nonpt!L17+nonroad!U17+'onroad all'!M17+ptegu!L17+ptnonipm!L17+pt_oilgas!K17+np_oilgas!K17+SUM(cmv_c1c2!R17:S17)+SUM(cmv_c3!R17:S17) -> 1.04 | T18: =rail!O17+nonpt!P17+ptegu!P17+ptnonipm!P17+pt_oilgas!O17+np_oilgas!N17+rwc!M17+SUM(cmv_c1c2!W17:X17)+SUM(cmv_c3!W17:X17) -> 0.10 | U18: =rail!V17+nonpt!AI17+nonroad!T17+'onroad all'!CB17+ptegu!AH17+ptnonipm!AL17+pt_oilgas!AG17+np_oilgas!AB17+rwc!T17+SUM(cmv_c1c2!BG17:BH17)+SUM(cmv_c3!BG17:BH17) -> 5.64 | V18: =rail!T17+nonpt!AE17+nonroad!S17+'onroad all'!BS17+'onroad all'!BT17+ptegu!AD17+ptnonipm!AH17+pt_oilgas!AC17+np_oilgas!X17+rwc!R17+SUM(cmv_c1c2!BA17:BB17)+SUM(cmv_c3!BA17:BB17) -> 11.64 | W18: =nonpt!CW17+ptegu!CV17+ptnonipm!DN17 -> 0.28 | X18: X | AA18: Kansas | AB18: =B18+beis!H17 -> 1,012,756 | AC18: 231,549 | AD18: =D18+beis!T17 -> 251,158 | AE18: 430,252 | AF18: 120,365 | AG18: 17,287 | AH18: =H18+beis!Z17 -> 543,970 | AI18: =I18+beis!E17 -> 17,615 | AJ18: 2,893 | AK18: =K18+beis!N17 -> 21,952 | AL18: =L18+beis!R17 -> 55,063 | AM18: 906 | AN18: 3,618 | AO18: 814 | AP18: 3,099 | AQ18: 2,966 | AR18: 0.44 | AS18: 1.04 | AT18: 0.10 | AU18: 5.64 | AV18: 11.64 | AX18: Kansas | AY18: =B18-'ptfire-rx'!B17 -> 601,508 | AZ18: =C18-'ptfire-rx'!C17 -> 226,368 | BA18: =D18-'ptfire-rx'!D17 -> 201,880 | BB18: =E18-'ptfire-rx'!E17 -> 379,081 | BC18: =F18-'ptfire-rx'!F17 -> 73,309 | BD18: =G18-'ptfire-rx'!G17 -> 12,627 | BE18: =H18-'ptfire-rx'!H17 -> 217,321 | BF18: =I18-'ptfire-rx'!AN17 -> 1,896 | BG18: =J18-'ptfire-rx'!AR17 -> 1,672 | BH18: =K18-'ptfire-rx'!BD17 -> 3,981 | BI18: =L18-'ptfire-rx'!BM17 -> 3,701 | BJ18: =M18-'ptfire-rx'!BO17 -> 379 | BK18: =N18-'ptfire-rx'!AK17 -> 537 | BL18: =O18-'ptfire-rx'!AT17 -> 314 | BM18: 3,099 | BN18: 2,966 | BO18: 0.44 | BP18: 1.04 | BQ18: 0.10 | BR18: 5.64 | BS18: 11.64
A19: Kentucky | B19: =rail!B18+nonpt!B18+ptagfire!B18+nonroad!B18+'onroad all'!AG18+cmv_c1c2!B18+'ptfire-rx'!B18+ptegu!B18+ptnonipm!B18+pt_oilgas!B18+np_oilgas!B18+rwc!B18+cmv_c3!B18+airports!B18+'ptfire-wild'!B18 -> 753,634 | C19: =rail!C18+nonpt!C18+ptagfire!C18++nonroad!C18+'onroad all'!BZ18+cmv_c1c2!BE18+'ptfire-rx'!C18+ptegu!C18+ptnonipm!C18+pt_oilgas!C18+np_oilgas!C18+rwc!C18+cmv_c3!BE18+livestock!B18+airports!C18+'ptfire-wild'!C18+fertilizer!B18 -> 44,597 | D19: =rail!D18+nonpt!D18+ptagfire!D18++nonroad!D18+cmv_c1c2!D18+'ptfire-rx'!D18+ptegu!DW18+ptnonipm!D18+pt_oilgas!D18+np_oilgas!D18+rwc!D18+cmv_c3!D18+'onroad all'!CI18+airports!D18+'ptfire-wild'!D18 -> 182,730 | E19: =rail!E18+nonpt!E18+ptagfire!E18++nonroad!E18+cmv_c1c2!E18+'ptfire-rx'!E18+ptegu!E18+ptnonipm!E18+pt_oilgas!E18+np_oilgas!E18+rwc!E18+cmv_c3!E18+afdust!BA18+'onroad all'!DE18+'onroad all'!DD18+airports!E18+'ptfire-wild'!E18 -> 105,790 | F19: =rail!F18+nonpt!F18+ptagfire!F18++nonroad!F18+cmv_c1c2!F18+'ptfire-rx'!F18+ptegu!F18+ptnonipm!F18+pt_oilgas!F18+np_oilgas!F18+rwc!F18+cmv_c3!F18+afdust!BB18+'onroad all'!DD18+airports!F18+'ptfire-wild'!F18 -> 64,670 | G19: =rail!G18+nonpt!G18+ptagfire!G18++nonroad!G18+'onroad all'!DU18+cmv_c1c2!G18+'ptfire-rx'!G18+ptegu!FH18+ptnonipm!G18+pt_oilgas!G18+np_oilgas!G18+rwc!G18+cmv_c3!G18+airports!G18+'ptfire-wild'!G18 -> 68,709 | H19: =rail!H18+nonpt!H18+ptagfire!H18++nonroad!H18+'onroad all'!EI18+cmv_c1c2!H18+'ptfire-rx'!H18+ptegu!H18+ptnonipm!H18+pt_oilgas!H18+np_oilgas!H18+rwc!H18+cmv_c3!H18+livestock!C18+airports!H18+'ptfire-wild'!H18+vcp!H18 -> 208,020 | I19: =rail!AO18+nonpt!BN18+ptagfire!AI18+nonroad!AK18+'onroad all'!H18+cmv_c1c2!N18+'ptfire-rx'!AN18+ptegu!BM18+ptnonipm!BX18+pt_oilgas!BL18+np_oilgas!AT18+rwc!AJ18+cmv_c3!O18+livestock!U18+airports!AJ18+'ptfire-wild'!AK18+vcp!AA18 -> 1,588 | J19: =rail!AU18+nonpt!BT18+ptagfire!AM18+nonroad!AP18+'onroad all'!P18+cmv_c1c2!T18+'ptfire-rx'!AR18+ptegu!BS18+ptnonipm!CD18+pt_oilgas!BR18+np_oilgas!AZ18+rwc!AN18+cmv_c3!T18+livestock!X18+airports!AM18+'ptfire-wild'!AO18+vcp!AE18 -> 2,279 | K19: =rail!BR18+nonpt!CY18+ptagfire!AX18+nonroad!BH18+'onroad all'!BC18+cmv_c1c2!AO18+'ptfire-rx'!BD18+ptegu!CX18+ptnonipm!DP18+pt_oilgas!CV18+np_oilgas!BV18+rwc!BC18+cmv_c3!AP18+livestock!AH18+airports!BE18+'ptfire-wild'!AZ18+vcp!AQ18 -> 3,559 | L19: =rail!CF18+nonpt!DO18+ptagfire!BG18+nonroad!BT18+'onroad all'!BU18+cmv_c1c2!BC18+'ptfire-rx'!BM18+ptegu!DM18+ptnonipm!EH18+pt_oilgas!DK18+np_oilgas!CJ18+rwc!BP18+cmv_c3!BC18+livestock!AN18+airports!BN18+'ptfire-wild'!BI18+vcp!AX18 -> 3,632 | M19: =rail!CG18+nonpt!DQ18+nonroad!BU18+'onroad all'!BY18+cmv_c1c2!BD18+'ptfire-rx'!BO18+ptegu!DO18+ptnonipm!EJ18+pt_oilgas!DM18+np_oilgas!CK18+rwc!BQ18+cmv_c3!BD18+airports!BO18+'ptfire-wild'!BK18+vcp!AY18+ptagfire!BI18 -> 504 | N19: =rail!AN18+nonpt!BK18+nonroad!AJ18+'onroad all'!G18+cmv_c1c2!M18+'ptfire-rx'!AK18+ptegu!BK18+ptnonipm!BU18+pt_oilgas!BJ18+np_oilgas!AS18+rwc!AI18+airports!AH18+cmv_c3!M18+'ptfire-wild'!AI18+ptagfire!AG18 -> 468 | O19: =rail!AY18+nonpt!BY18+ptagfire!AO18+nonroad!AR18+'onroad all'!Z18+cmv_c1c2!V18+'ptfire-rx'!AT18+ptegu!BX18+ptnonipm!CI18+pt_oilgas!BW18+np_oilgas!BB18+rwc!AP18+airports!AO18+cmv_c3!V18+'ptfire-wild'!AQ18 -> 423 | P19: =rail!AD18+nonroad!AD18+'onroad all'!AK18+'onroad all'!AL18+'onroad all'!AM18+'onroad all'!AN18+'onroad all'!AO18+'onroad all'!AP18+ptnonipm!BI18+SUM(airports!AR18:AW18)+SUM(cmv_c1c2!AC18:AH18)+SUM(cmv_c3!AC18:AH18) -> 2,298 | Q19: =rail!AE18+nonroad!AE18+'onroad all'!AL18+'onroad all'!AM18+'onroad all'!AN18+'onroad all'!AO18+'onroad all'!AP18+ptnonipm!BJ18+SUM(airports!AS18:AW18)+SUM(cmv_c1c2!AD18:AH18)+SUM(cmv_c3!AD18:AH18) -> 2,167 | R19: =rail!P18+nonpt!T18+nonroad!R18+'onroad all'!AC18+ptegu!T18+ptnonipm!T18+pt_oilgas!S18+np_oilgas!R18+rwc!N18+SUM(cmv_c1c2!Z18:AA18)+SUM(cmv_c3!Z18:AA18) -> 2.48 | S19: =rail!K18+nonpt!L18+nonroad!U18+'onroad all'!M18+ptegu!L18+ptnonipm!L18+pt_oilgas!K18+np_oilgas!K18+SUM(cmv_c1c2!R18:S18)+SUM(cmv_c3!R18:S18) -> 1.82 | T19: =rail!O18+nonpt!P18+ptegu!P18+ptnonipm!P18+pt_oilgas!O18+np_oilgas!N18+rwc!M18+SUM(cmv_c1c2!W18:X18)+SUM(cmv_c3!W18:X18) -> 0.34 | U19: =rail!V18+nonpt!AI18+nonroad!T18+'onroad all'!CB18+ptegu!AH18+ptnonipm!AL18+pt_oilgas!AG18+np_oilgas!AB18+rwc!T18+SUM(cmv_c1c2!BG18:BH18)+SUM(cmv_c3!BG18:BH18) -> 17.04 | V19: =rail!T18+nonpt!AE18+nonroad!S18+'onroad all'!BS18+'onroad all'!BT18+ptegu!AD18+ptnonipm!AH18+pt_oilgas!AC18+np_oilgas!X18+rwc!R18+SUM(cmv_c1c2!BA18:BB18)+SUM(cmv_c3!BA18:BB18) -> 22.68 | W19: =nonpt!CW18+ptegu!CV18+ptnonipm!DN18 -> 0.99 | X19: X | AA19: Kentucky | AB19: =B19+beis!H18 -> 811,195 | AC19: 44,597 | AD19: =D19+beis!T18 -> 201,760 | AE19: 105,790 | AF19: 64,670 | AG19: 68,709 | AH19: =H19+beis!Z18 -> 732,156 | AI19: =I19+beis!E18 -> 7,607 | AJ19: 2,279 | AK19: =K19+beis!N18 -> 11,767 | AL19: =L19+beis!R18 -> 34,006 | AM19: 504 | AN19: 468 | AO19: 423 | AP19: 2,298 | AQ19: 2,167 | AR19: 2.48 | AS19: 1.82 | AT19: 0.34 | AU19: 17.04 | AV19: 22.68 | AX19: Kentucky | AY19: =B19-'ptfire-rx'!B18 -> 677,173 | AZ19: =C19-'ptfire-rx'!C18 -> 43,339 | BA19: =D19-'ptfire-rx'!D18 -> 181,247 | BB19: =E19-'ptfire-rx'!E18 -> 97,510 | BC19: =F19-'ptfire-rx'!F18 -> 57,613 | BD19: =G19-'ptfire-rx'!G18 -> 68,001 | BE19: =H19-'ptfire-rx'!H18 -> 189,712 | BF19: =I19-'ptfire-rx'!AN18 -> 1,077 | BG19: =J19-'ptfire-rx'!AR18 -> 2,074 | BH19: =K19-'ptfire-rx'!BD18 -> 2,343 | BI19: =L19-'ptfire-rx'!BM18 -> 2,907 | BJ19: =M19-'ptfire-rx'!BO18 -> 365 | BK19: =N19-'ptfire-rx'!AK18 -> 217 | BL19: =O19-'ptfire-rx'!AT18 -> 242 | BM19: 2,298 | BN19: 2,167 | BO19: 2.48 | BP19: 1.82 | BQ19: 0.34 | BR19: 17.04 | BS19: 22.68
A20: Louisiana | B20: =rail!B19+nonpt!B19+ptagfire!B19+nonroad!B19+'onroad all'!AG19+cmv_c1c2!B19+'ptfire-rx'!B19+ptegu!B19+ptnonipm!B19+pt_oilgas!B19+np_oilgas!B19+rwc!B19+cmv_c3!B19+airports!B19+'ptfire-wild'!B19 -> 1,290,275 | C20: =rail!C19+nonpt!C19+ptagfire!C19++nonroad!C19+'onroad all'!BZ19+cmv_c1c2!BE19+'ptfire-rx'!C19+ptegu!C19+ptnonipm!C19+pt_oilgas!C19+np_oilgas!C19+rwc!C19+cmv_c3!BE19+livestock!B19+airports!C19+'ptfire-wild'!C19+fertilizer!B19 -> 57,733 | D20: =rail!D19+nonpt!D19+ptagfire!D19++nonroad!D19+cmv_c1c2!D19+'ptfire-rx'!D19+ptegu!DW19+ptnonipm!D19+pt_oilgas!D19+np_oilgas!D19+rwc!D19+cmv_c3!D19+'onroad all'!CI19+airports!D19+'ptfire-wild'!D19 -> 318,534 | E20: =rail!E19+nonpt!E19+ptagfire!E19++nonroad!E19+cmv_c1c2!E19+'ptfire-rx'!E19+ptegu!E19+ptnonipm!E19+pt_oilgas!E19+np_oilgas!E19+rwc!E19+cmv_c3!E19+afdust!BA19+'onroad all'!DE19+'onroad all'!DD19+airports!E19+'ptfire-wild'!E19 -> 183,845 | F20: =rail!F19+nonpt!F19+ptagfire!F19++nonroad!F19+cmv_c1c2!F19+'ptfire-rx'!F19+ptegu!F19+ptnonipm!F19+pt_oilgas!F19+np_oilgas!F19+rwc!F19+cmv_c3!F19+afdust!BB19+'onroad all'!DD19+airports!F19+'ptfire-wild'!F19 -> 109,288 | G20: =rail!G19+nonpt!G19+ptagfire!G19++nonroad!G19+'onroad all'!DU19+cmv_c1c2!G19+'ptfire-rx'!G19+ptegu!FH19+ptnonipm!G19+pt_oilgas!G19+np_oilgas!G19+rwc!G19+cmv_c3!G19+airports!G19+'ptfire-wild'!G19 -> 142,705 | H20: =rail!H19+nonpt!H19+ptagfire!H19++nonroad!H19+'onroad all'!EI19+cmv_c1c2!H19+'ptfire-rx'!H19+ptegu!H19+ptnonipm!H19+pt_oilgas!H19+np_oilgas!H19+rwc!H19+cmv_c3!H19+livestock!C19+airports!H19+'ptfire-wild'!H19+vcp!H19 -> 378,524 | I20: =rail!AO19+nonpt!BN19+ptagfire!AI19+nonroad!AK19+'onroad all'!H19+cmv_c1c2!N19+'ptfire-rx'!AN19+ptegu!BM19+ptnonipm!BX19+pt_oilgas!BL19+np_oilgas!AT19+rwc!AJ19+cmv_c3!O19+livestock!U19+airports!AJ19+'ptfire-wild'!AK19+vcp!AA19 -> 4,786 | J20: =rail!AU19+nonpt!BT19+ptagfire!AM19+nonroad!AP19+'onroad all'!P19+cmv_c1c2!T19+'ptfire-rx'!AR19+ptegu!BS19+ptnonipm!CD19+pt_oilgas!BR19+np_oilgas!AZ19+rwc!AN19+cmv_c3!T19+livestock!X19+airports!AM19+'ptfire-wild'!AO19+vcp!AE19 -> 4,953 | K20: =rail!BR19+nonpt!CY19+ptagfire!AX19+nonroad!BH19+'onroad all'!BC19+cmv_c1c2!AO19+'ptfire-rx'!BD19+ptegu!CX19+ptnonipm!DP19+pt_oilgas!CV19+np_oilgas!BV19+rwc!BC19+cmv_c3!AP19+livestock!AH19+airports!BE19+'ptfire-wild'!AZ19+vcp!AQ19 -> 11,500 | L20: =rail!CF19+nonpt!DO19+ptagfire!BG19+nonroad!BT19+'onroad all'!BU19+cmv_c1c2!BC19+'ptfire-rx'!BM19+ptegu!DM19+ptnonipm!EH19+pt_oilgas!DK19+np_oilgas!CJ19+rwc!BP19+cmv_c3!BC19+livestock!AN19+airports!BN19+'ptfire-wild'!BI19+vcp!AX19 -> 12,795 | M20: =rail!CG19+nonpt!DQ19+nonroad!BU19+'onroad all'!BY19+cmv_c1c2!BD19+'ptfire-rx'!BO19+ptegu!DO19+ptnonipm!EJ19+pt_oilgas!DM19+np_oilgas!CK19+rwc!BQ19+cmv_c3!BD19+airports!BO19+'ptfire-wild'!BK19+vcp!AY19+ptagfire!BI19 -> 1,224 | N20: =rail!AN19+nonpt!BK19+nonroad!AJ19+'onroad all'!G19+cmv_c1c2!M19+'ptfire-rx'!AK19+ptegu!BK19+ptnonipm!BU19+pt_oilgas!BJ19+np_oilgas!AS19+rwc!AI19+airports!AH19+cmv_c3!M19+'ptfire-wild'!AI19+ptagfire!AG19 -> 1,936 | O20: =rail!AY19+nonpt!BY19+ptagfire!AO19+nonroad!AR19+'onroad all'!Z19+cmv_c1c2!V19+'ptfire-rx'!AT19+ptegu!BX19+ptnonipm!CI19+pt_oilgas!BW19+np_oilgas!BB19+rwc!AP19+airports!AO19+cmv_c3!V19+'ptfire-wild'!AQ19 -> 1,488 | P20: =rail!AD19+nonroad!AD19+'onroad all'!AK19+'onroad all'!AL19+'onroad all'!AM19+'onroad all'!AN19+'onroad all'!AO19+'onroad all'!AP19+ptnonipm!BI19+SUM(airports!AR19:AW19)+SUM(cmv_c1c2!AC19:AH19)+SUM(cmv_c3!AC19:AH19) -> 3,461 | Q20: =rail!AE19+nonroad!AE19+'onroad all'!AL19+'onroad all'!AM19+'onroad all'!AN19+'onroad all'!AO19+'onroad all'!AP19+ptnonipm!BJ19+SUM(airports!AS19:AW19)+SUM(cmv_c1c2!AD19:AH19)+SUM(cmv_c3!AD19:AH19) -> 3,271 | R20: =rail!P19+nonpt!T19+nonroad!R19+'onroad all'!AC19+ptegu!T19+ptnonipm!T19+pt_oilgas!S19+np_oilgas!R19+rwc!N19+SUM(cmv_c1c2!Z19:AA19)+SUM(cmv_c3!Z19:AA19) -> 0.89 | S20: =rail!K19+nonpt!L19+nonroad!U19+'onroad all'!M19+ptegu!L19+ptnonipm!L19+pt_oilgas!K19+np_oilgas!K19+SUM(cmv_c1c2!R19:S19)+SUM(cmv_c3!R19:S19) -> 1.80 | T20: =rail!O19+nonpt!P19+ptegu!P19+ptnonipm!P19+pt_oilgas!O19+np_oilgas!N19+rwc!M19+SUM(cmv_c1c2!W19:X19)+SUM(cmv_c3!W19:X19) -> 0.90 | U20: =rail!V19+nonpt!AI19+nonroad!T19+'onroad all'!CB19+ptegu!AH19+ptnonipm!AL19+pt_oilgas!AG19+np_oilgas!AB19+rwc!T19+SUM(cmv_c1c2!BG19:BH19)+SUM(cmv_c3!BG19:BH19) -> 18.61 | V20: =rail!T19+nonpt!AE19+nonroad!S19+'onroad all'!BS19+'onroad all'!BT19+ptegu!AD19+ptnonipm!AH19+pt_oilgas!AC19+np_oilgas!X19+rwc!R19+SUM(cmv_c1c2!BA19:BB19)+SUM(cmv_c3!BA19:BB19) -> 17.74 | W20: =nonpt!CW19+ptegu!CV19+ptnonipm!DN19 -> 20.64 | X20: X | AA20: Louisiana | AB20: =B20+beis!H19 -> 1,407,126 | AC20: 57,733 | AD20: =D20+beis!T19 -> 339,332 | AE20: 183,845 | AF20: 109,288 | AG20: 142,705 | AH20: =H20+beis!Z19 -> 1,494,262 | AI20: =I20+beis!E19 -> 17,019 | AJ20: 4,953 | AK20: =K20+beis!N19 -> 28,181 | AL20: =L20+beis!R19 -> 78,917 | AM20: 1,224 | AN20: 1,936 | AO20: 1,488 | AP20: 3,461 | AQ20: 3,271 | AR20: 0.89 | AS20: 1.80 | AT20: 0.90 | AU20: 18.61 | AV20: 17.74 | AX20: Louisiana | AY20: =B20-'ptfire-rx'!B19 -> 725,161 | AZ20: =C20-'ptfire-rx'!C19 -> 48,448 | BA20: =D20-'ptfire-rx'!D19 -> 309,289 | BB20: =E20-'ptfire-rx'!E19 -> 124,570 | BC20: =F20-'ptfire-rx'!F19 -> 58,907 | BD20: =G20-'ptfire-rx'!G19 -> 137,993 | BE20: =H20-'ptfire-rx'!H19 -> 244,214 | BF20: =I20-'ptfire-rx'!AN19 -> 1,518 | BG20: =J20-'ptfire-rx'!AR19 -> 3,591 | BH20: =K20-'ptfire-rx'!BD19 -> 3,405 | BI20: =L20-'ptfire-rx'!BM19 -> 8,000 | BJ20: =M20-'ptfire-rx'!BO19 -> 285 | BK20: =N20-'ptfire-rx'!AK19 -> 314 | BL20: =O20-'ptfire-rx'!AT19 -> 266 | BM20: 3,461 | BN20: 3,271 | BO20: 0.89 | BP20: 1.80 | BQ20: 0.90 | BR20: 18.61 | BS20: 17.74
A21: Maine | B21: =rail!B20+nonpt!B20+ptagfire!B20+nonroad!B20+'onroad all'!AG20+cmv_c1c2!B20+'ptfire-rx'!B20+ptegu!B20+ptnonipm!B20+pt_oilgas!B20+np_oilgas!B20+rwc!B20+cmv_c3!B20+airports!B20+'ptfire-wild'!B20 -> 266,055 | C21: =rail!C20+nonpt!C20+ptagfire!C20++nonroad!C20+'onroad all'!BZ20+cmv_c1c2!BE20+'ptfire-rx'!C20+ptegu!C20+ptnonipm!C20+pt_oilgas!C20+np_oilgas!C20+rwc!C20+cmv_c3!BE20+livestock!B20+airports!C20+'ptfire-wild'!C20+fertilizer!B20 -> 4,671 | D21: =rail!D20+nonpt!D20+ptagfire!D20++nonroad!D20+cmv_c1c2!D20+'ptfire-rx'!D20+ptegu!DW20+ptnonipm!D20+pt_oilgas!D20+np_oilgas!D20+rwc!D20+cmv_c3!D20+'onroad all'!CI20+airports!D20+'ptfire-wild'!D20 -> 46,007 | E21: =rail!E20+nonpt!E20+ptagfire!E20++nonroad!E20+cmv_c1c2!E20+'ptfire-rx'!E20+ptegu!E20+ptnonipm!E20+pt_oilgas!E20+np_oilgas!E20+rwc!E20+cmv_c3!E20+afdust!BA20+'onroad all'!DE20+'onroad all'!DD20+airports!E20+'ptfire-wild'!E20 -> 33,546 | F21: =rail!F20+nonpt!F20+ptagfire!F20++nonroad!F20+cmv_c1c2!F20+'ptfire-rx'!F20+ptegu!F20+ptnonipm!F20+pt_oilgas!F20+np_oilgas!F20+rwc!F20+cmv_c3!F20+afdust!BB20+'onroad all'!DD20+airports!F20+'ptfire-wild'!F20 -> 22,930 | G21: =rail!G20+nonpt!G20+ptagfire!G20++nonroad!G20+'onroad all'!DU20+cmv_c1c2!G20+'ptfire-rx'!G20+ptegu!FH20+ptnonipm!G20+pt_oilgas!G20+np_oilgas!G20+rwc!G20+cmv_c3!G20+airports!G20+'ptfire-wild'!G20 -> 5,904 | H21: =rail!H20+nonpt!H20+ptagfire!H20++nonroad!H20+'onroad all'!EI20+cmv_c1c2!H20+'ptfire-rx'!H20+ptegu!H20+ptnonipm!H20+pt_oilgas!H20+np_oilgas!H20+rwc!H20+cmv_c3!H20+livestock!C20+airports!H20+'ptfire-wild'!H20+vcp!H20 -> 47,488 | I21: =rail!AO20+nonpt!BN20+ptagfire!AI20+nonroad!AK20+'onroad all'!H20+cmv_c1c2!N20+'ptfire-rx'!AN20+ptegu!BM20+ptnonipm!BX20+pt_oilgas!BL20+np_oilgas!AT20+rwc!AJ20+cmv_c3!O20+livestock!U20+airports!AJ20+'ptfire-wild'!AK20+vcp!AA20 -> 559 | J21: =rail!AU20+nonpt!BT20+ptagfire!AM20+nonroad!AP20+'onroad all'!P20+cmv_c1c2!T20+'ptfire-rx'!AR20+ptegu!BS20+ptnonipm!CD20+pt_oilgas!BR20+np_oilgas!AZ20+rwc!AN20+cmv_c3!T20+livestock!X20+airports!AM20+'ptfire-wild'!AO20+vcp!AE20 -> 1,067 | K21: =rail!BR20+nonpt!CY20+ptagfire!AX20+nonroad!BH20+'onroad all'!BC20+cmv_c1c2!AO20+'ptfire-rx'!BD20+ptegu!CX20+ptnonipm!DP20+pt_oilgas!CV20+np_oilgas!BV20+rwc!BC20+cmv_c3!AP20+livestock!AH20+airports!BE20+'ptfire-wild'!AZ20+vcp!AQ20 -> 916 | L21: =rail!CF20+nonpt!DO20+ptagfire!BG20+nonroad!BT20+'onroad all'!BU20+cmv_c1c2!BC20+'ptfire-rx'!BM20+ptegu!DM20+ptnonipm!EH20+pt_oilgas!DK20+np_oilgas!CJ20+rwc!BP20+cmv_c3!BC20+livestock!AN20+airports!BN20+'ptfire-wild'!BI20+vcp!AX20 -> 960 | M21: =rail!CG20+nonpt!DQ20+nonroad!BU20+'onroad all'!BY20+cmv_c1c2!BD20+'ptfire-rx'!BO20+ptegu!DO20+ptnonipm!EJ20+pt_oilgas!DM20+np_oilgas!CK20+rwc!BQ20+cmv_c3!BD20+airports!BO20+'ptfire-wild'!BK20+vcp!AY20+ptagfire!BI20 -> 130 | N21: =rail!AN20+nonpt!BK20+nonroad!AJ20+'onroad all'!G20+cmv_c1c2!M20+'ptfire-rx'!AK20+ptegu!BK20+ptnonipm!BU20+pt_oilgas!BJ20+np_oilgas!AS20+rwc!AI20+airports!AH20+cmv_c3!M20+'ptfire-wild'!AI20+ptagfire!AG20 -> 91 | O21: =rail!AY20+nonpt!BY20+ptagfire!AO20+nonroad!AR20+'onroad all'!Z20+cmv_c1c2!V20+'ptfire-rx'!AT20+ptegu!BX20+ptnonipm!CI20+pt_oilgas!BW20+np_oilgas!BB20+rwc!AP20+airports!AO20+cmv_c3!V20+'ptfire-wild'!AQ20 -> 149 | P21: =rail!AD20+nonroad!AD20+'onroad all'!AK20+'onroad all'!AL20+'onroad all'!AM20+'onroad all'!AN20+'onroad all'!AO20+'onroad all'!AP20+ptnonipm!BI20+SUM(airports!AR20:AW20)+SUM(cmv_c1c2!AC20:AH20)+SUM(cmv_c3!AC20:AH20) -> 564 | Q21: =rail!AE20+nonroad!AE20+'onroad all'!AL20+'onroad all'!AM20+'onroad all'!AN20+'onroad all'!AO20+'onroad all'!AP20+ptnonipm!BJ20+SUM(airports!AS20:AW20)+SUM(cmv_c1c2!AD20:AH20)+SUM(cmv_c3!AD20:AH20) -> 533 | R21: =rail!P20+nonpt!T20+nonroad!R20+'onroad all'!AC20+ptegu!T20+ptnonipm!T20+pt_oilgas!S20+np_oilgas!R20+rwc!N20+SUM(cmv_c1c2!Z20:AA20)+SUM(cmv_c3!Z20:AA20) -> 0.09 | S21: =rail!K20+nonpt!L20+nonroad!U20+'onroad all'!M20+ptegu!L20+ptnonipm!L20+pt_oilgas!K20+np_oilgas!K20+SUM(cmv_c1c2!R20:S20)+SUM(cmv_c3!R20:S20) -> 0.25 | T21: =rail!O20+nonpt!P20+ptegu!P20+ptnonipm!P20+pt_oilgas!O20+np_oilgas!N20+rwc!M20+SUM(cmv_c1c2!W20:X20)+SUM(cmv_c3!W20:X20) -> 0.14 | U21: =rail!V20+nonpt!AI20+nonroad!T20+'onroad all'!CB20+ptegu!AH20+ptnonipm!AL20+pt_oilgas!AG20+np_oilgas!AB20+rwc!T20+SUM(cmv_c1c2!BG20:BH20)+SUM(cmv_c3!BG20:BH20) -> 2.47 | V21: =rail!T20+nonpt!AE20+nonroad!S20+'onroad all'!BS20+'onroad all'!BT20+ptegu!AD20+ptnonipm!AH20+pt_oilgas!AC20+np_oilgas!X20+rwc!R20+SUM(cmv_c1c2!BA20:BB20)+SUM(cmv_c3!BA20:BB20) -> 7.06 | W21: =nonpt!CW20+ptegu!CV20+ptnonipm!DN20 -> 0.05 | X21: X | AA21: Maine | AB21: =B21+beis!H20 -> 314,520 | AC21: 4,671 | AD21: =D21+beis!T20 -> 48,323 | AE21: 33,546 | AF21: 22,930 | AG21: 5,904 | AH21: =H21+beis!Z20 -> 332,631 | AI21: =I21+beis!E20 -> 5,632 | AJ21: 1,067 | AK21: =K21+beis!N20 -> 7,834 | AL21: =L21+beis!R20 -> 18,846 | AM21: 130 | AN21: 91 | AO21: 149 | AP21: 564 | AQ21: 533 | AR21: 0.09 | AS21: 0.25 | AT21: 0.14 | AU21: 2.47 | AV21: 7.06 | AX21: Maine | AY21: =B21-'ptfire-rx'!B20 -> 258,404 | AZ21: =C21-'ptfire-rx'!C20 -> 4,546 | BA21: =D21-'ptfire-rx'!D20 -> 45,919 | BB21: =E21-'ptfire-rx'!E20 -> 32,782 | BC21: =F21-'ptfire-rx'!F20 -> 22,283 | BD21: =G21-'ptfire-rx'!G20 -> 5,852 | BE21: =H21-'ptfire-rx'!H20 -> 45,688 | BF21: =I21-'ptfire-rx'!AN20 -> 525 | BG21: =J21-'ptfire-rx'!AR20 -> 1,052 | BH21: =K21-'ptfire-rx'!BD20 -> 826 | BI21: =L21-'ptfire-rx'!BM20 -> 907 | BJ21: =M21-'ptfire-rx'!BO20 -> 119 | BK21: =N21-'ptfire-rx'!AK20 -> 73 | BL21: =O21-'ptfire-rx'!AT20 -> 135 | BM21: 564 | BN21: 533 | BO21: 0.09 | BP21: 0.25 | BQ21: 0.14 | BR21: 2.47 | BS21: 7.06
A22: Maryland | B22: =rail!B21+nonpt!B21+ptagfire!B21+nonroad!B21+'onroad all'!AG21+cmv_c1c2!B21+'ptfire-rx'!B21+ptegu!B21+ptnonipm!B21+pt_oilgas!B21+np_oilgas!B21+rwc!B21+cmv_c3!B21+airports!B21+'ptfire-wild'!B21 -> 550,851 | C22: =rail!C21+nonpt!C21+ptagfire!C21++nonroad!C21+'onroad all'!BZ21+cmv_c1c2!BE21+'ptfire-rx'!C21+ptegu!C21+ptnonipm!C21+pt_oilgas!C21+np_oilgas!C21+rwc!C21+cmv_c3!BE21+livestock!B21+airports!C21+'ptfire-wild'!C21+fertilizer!B21 -> 6,240 | D22: =rail!D21+nonpt!D21+ptagfire!D21++nonroad!D21+cmv_c1c2!D21+'ptfire-rx'!D21+ptegu!DW21+ptnonipm!D21+pt_oilgas!D21+np_oilgas!D21+rwc!D21+cmv_c3!D21+'onroad all'!CI21+airports!D21+'ptfire-wild'!D21 -> 87,067 | E22: =rail!E21+nonpt!E21+ptagfire!E21++nonroad!E21+cmv_c1c2!E21+'ptfire-rx'!E21+ptegu!E21+ptnonipm!E21+pt_oilgas!E21+np_oilgas!E21+rwc!E21+cmv_c3!E21+afdust!BA21+'onroad all'!DE21+'onroad all'!DD21+airports!E21+'ptfire-wild'!E21 -> 42,162 | F22: =rail!F21+nonpt!F21+ptagfire!F21++nonroad!F21+cmv_c1c2!F21+'ptfire-rx'!F21+ptegu!F21+ptnonipm!F21+pt_oilgas!F21+np_oilgas!F21+rwc!F21+cmv_c3!F21+afdust!BB21+'onroad all'!DD21+airports!F21+'ptfire-wild'!F21 -> 21,934 | G22: =rail!G21+nonpt!G21+ptagfire!G21++nonroad!G21+'onroad all'!DU21+cmv_c1c2!G21+'ptfire-rx'!G21+ptegu!FH21+ptnonipm!G21+pt_oilgas!G21+np_oilgas!G21+rwc!G21+cmv_c3!G21+airports!G21+'ptfire-wild'!G21 -> 23,080 | H22: =rail!H21+nonpt!H21+ptagfire!H21++nonroad!H21+'onroad all'!EI21+cmv_c1c2!H21+'ptfire-rx'!H21+ptegu!H21+ptnonipm!H21+pt_oilgas!H21+np_oilgas!H21+rwc!H21+cmv_c3!H21+livestock!C21+airports!H21+'ptfire-wild'!H21+vcp!H21 -> 98,678 | I22: =rail!AO21+nonpt!BN21+ptagfire!AI21+nonroad!AK21+'onroad all'!H21+cmv_c1c2!N21+'ptfire-rx'!AN21+ptegu!BM21+ptnonipm!BX21+pt_oilgas!BL21+np_oilgas!AT21+rwc!AJ21+cmv_c3!O21+livestock!U21+airports!AJ21+'ptfire-wild'!AK21+vcp!AA21 -> 689 | J22: =rail!AU21+nonpt!BT21+ptagfire!AM21+nonroad!AP21+'onroad all'!P21+cmv_c1c2!T21+'ptfire-rx'!AR21+ptegu!BS21+ptnonipm!CD21+pt_oilgas!BR21+np_oilgas!AZ21+rwc!AN21+cmv_c3!T21+livestock!X21+airports!AM21+'ptfire-wild'!AO21+vcp!AE21 -> 1,248 | K22: =rail!BR21+nonpt!CY21+ptagfire!AX21+nonroad!BH21+'onroad all'!BC21+cmv_c1c2!AO21+'ptfire-rx'!BD21+ptegu!CX21+ptnonipm!DP21+pt_oilgas!CV21+np_oilgas!BV21+rwc!BC21+cmv_c3!AP21+livestock!AH21+airports!BE21+'ptfire-wild'!AZ21+vcp!AQ21 -> 1,360 | L22: =rail!CF21+nonpt!DO21+ptagfire!BG21+nonroad!BT21+'onroad all'!BU21+cmv_c1c2!BC21+'ptfire-rx'!BM21+ptegu!DM21+ptnonipm!EH21+pt_oilgas!DK21+np_oilgas!CJ21+rwc!BP21+cmv_c3!BC21+livestock!AN21+airports!BN21+'ptfire-wild'!BI21+vcp!AX21 -> 1,516 | M22: =rail!CG21+nonpt!DQ21+nonroad!BU21+'onroad all'!BY21+cmv_c1c2!BD21+'ptfire-rx'!BO21+ptegu!DO21+ptnonipm!EJ21+pt_oilgas!DM21+np_oilgas!CK21+rwc!BQ21+cmv_c3!BD21+airports!BO21+'ptfire-wild'!BK21+vcp!AY21+ptagfire!BI21 -> 146 | N22: =rail!AN21+nonpt!BK21+nonroad!AJ21+'onroad all'!G21+cmv_c1c2!M21+'ptfire-rx'!AK21+ptegu!BK21+ptnonipm!BU21+pt_oilgas!BJ21+np_oilgas!AS21+rwc!AI21+airports!AH21+cmv_c3!M21+'ptfire-wild'!AI21+ptagfire!AG21 -> 109 | O22: =rail!AY21+nonpt!BY21+ptagfire!AO21+nonroad!AR21+'onroad all'!Z21+cmv_c1c2!V21+'ptfire-rx'!AT21+ptegu!BX21+ptnonipm!CI21+pt_oilgas!BW21+np_oilgas!BB21+rwc!AP21+airports!AO21+cmv_c3!V21+'ptfire-wild'!AQ21 -> 219 | P22: =rail!AD21+nonroad!AD21+'onroad all'!AK21+'onroad all'!AL21+'onroad all'!AM21+'onroad all'!AN21+'onroad all'!AO21+'onroad all'!AP21+ptnonipm!BI21+SUM(airports!AR21:AW21)+SUM(cmv_c1c2!AC21:AH21)+SUM(cmv_c3!AC21:AH21) -> 1,379 | Q22: =rail!AE21+nonroad!AE21+'onroad all'!AL21+'onroad all'!AM21+'onroad all'!AN21+'onroad all'!AO21+'onroad all'!AP21+ptnonipm!BJ21+SUM(airports!AS21:AW21)+SUM(cmv_c1c2!AD21:AH21)+SUM(cmv_c3!AD21:AH21) -> 1,300 | R22: =rail!P21+nonpt!T21+nonroad!R21+'onroad all'!AC21+ptegu!T21+ptnonipm!T21+pt_oilgas!S21+np_oilgas!R21+rwc!N21+SUM(cmv_c1c2!Z21:AA21)+SUM(cmv_c3!Z21:AA21) -> 0.26 | S22: =rail!K21+nonpt!L21+nonroad!U21+'onroad all'!M21+ptegu!L21+ptnonipm!L21+pt_oilgas!K21+np_oilgas!K21+SUM(cmv_c1c2!R21:S21)+SUM(cmv_c3!R21:S21) -> 0.70 | T22: =rail!O21+nonpt!P21+ptegu!P21+ptnonipm!P21+pt_oilgas!O21+np_oilgas!N21+rwc!M21+SUM(cmv_c1c2!W21:X21)+SUM(cmv_c3!W21:X21) -> 0.14 | U22: =rail!V21+nonpt!AI21+nonroad!T21+'onroad all'!CB21+ptegu!AH21+ptnonipm!AL21+pt_oilgas!AG21+np_oilgas!AB21+rwc!T21+SUM(cmv_c1c2!BG21:BH21)+SUM(cmv_c3!BG21:BH21) -> 2.23 | V22: =rail!T21+nonpt!AE21+nonroad!S21+'onroad all'!BS21+'onroad all'!BT21+ptegu!AD21+ptnonipm!AH21+pt_oilgas!AC21+np_oilgas!X21+rwc!R21+SUM(cmv_c1c2!BA21:BB21)+SUM(cmv_c3!BA21:BB21) -> 6.90 | W22: =nonpt!CW21+ptegu!CV21+ptnonipm!DN21 -> 0.06 | X22: X | AA22: Maryland | AB22: =B22+beis!H21 -> 564,673 | AC22: 6,240 | AD22: =D22+beis!T21 -> 91,326 | AE22: 42,162 | AF22: 21,934 | AG22: 23,080 | AH22: =H22+beis!Z21 -> 213,954 | AI22: =I22+beis!E21 -> 2,135 | AJ22: 1,248 | AK22: =K22+beis!N21 -> 3,332 | AL22: =L22+beis!R21 -> 8,222 | AM22: 146 | AN22: 109 | AO22: 219 | AP22: 1,379 | AQ22: 1,300 | AR22: 0.26 | AS22: 0.70 | AT22: 0.14 | AU22: 2.23 | AV22: 6.90 | AX22: Maryland | AY22: =B22-'ptfire-rx'!B21 -> 541,637 | AZ22: =C22-'ptfire-rx'!C21 -> 6,088 | BA22: =D22-'ptfire-rx'!D21 -> 86,909 | BB22: =E22-'ptfire-rx'!E21 -> 41,192 | BC22: =F22-'ptfire-rx'!F21 -> 21,111 | BD22: =G22-'ptfire-rx'!G21 -> 23,001 | BE22: =H22-'ptfire-rx'!H21 -> 96,490 | BF22: =I22-'ptfire-rx'!AN21 -> 636 | BG22: =J22-'ptfire-rx'!AR21 -> 1,225 | BH22: =K22-'ptfire-rx'!BD21 -> 1,224 | BI22: =L22-'ptfire-rx'!BM21 -> 1,436 | BJ22: =M22-'ptfire-rx'!BO21 -> 130 | BK22: =N22-'ptfire-rx'!AK21 -> 82 | BL22: =O22-'ptfire-rx'!AT21 -> 198 | BM22: 1,379 | BN22: 1,300 | BO22: 0.26 | BP22: 0.70 | BQ22: 0.14 | BR22: 2.23 | BS22: 6.90
A23: Massachussetts | B23: =rail!B22+nonpt!B22+ptagfire!B22+nonroad!B22+'onroad all'!AG22+cmv_c1c2!B22+'ptfire-rx'!B22+ptegu!B22+ptnonipm!B22+pt_oilgas!B22+np_oilgas!B22+rwc!B22+cmv_c3!B22+airports!B22+'ptfire-wild'!B22 -> 568,211 | C23: =rail!C22+nonpt!C22+ptagfire!C22++nonroad!C22+'onroad all'!BZ22+cmv_c1c2!BE22+'ptfire-rx'!C22+ptegu!C22+ptnonipm!C22+pt_oilgas!C22+np_oilgas!C22+rwc!C22+cmv_c3!BE22+livestock!B22+airports!C22+'ptfire-wild'!C22+fertilizer!B22 -> 14,640 | D23: =rail!D22+nonpt!D22+ptagfire!D22++nonroad!D22+cmv_c1c2!D22+'ptfire-rx'!D22+ptegu!DW22+ptnonipm!D22+pt_oilgas!D22+np_oilgas!D22+rwc!D22+cmv_c3!D22+'onroad all'!CI22+airports!D22+'ptfire-wild'!D22 -> 94,825 | E23: =rail!E22+nonpt!E22+ptagfire!E22++nonroad!E22+cmv_c1c2!E22+'ptfire-rx'!E22+ptegu!E22+ptnonipm!E22+pt_oilgas!E22+np_oilgas!E22+rwc!E22+cmv_c3!E22+afdust!BA22+'onroad all'!DE22+'onroad all'!DD22+airports!E22+'ptfire-wild'!E22 -> 32,638 | F23: =rail!F22+nonpt!F22+ptagfire!F22++nonroad!F22+cmv_c1c2!F22+'ptfire-rx'!F22+ptegu!F22+ptnonipm!F22+pt_oilgas!F22+np_oilgas!F22+rwc!F22+cmv_c3!F22+afdust!BB22+'onroad all'!DD22+airports!F22+'ptfire-wild'!F22 -> 19,866 | G23: =rail!G22+nonpt!G22+ptagfire!G22++nonroad!G22+'onroad all'!DU22+cmv_c1c2!G22+'ptfire-rx'!G22+ptegu!FH22+ptnonipm!G22+pt_oilgas!G22+np_oilgas!G22+rwc!G22+cmv_c3!G22+airports!G22+'ptfire-wild'!G22 -> 5,889 | H23: =rail!H22+nonpt!H22+ptagfire!H22++nonroad!H22+'onroad all'!EI22+cmv_c1c2!H22+'ptfire-rx'!H22+ptegu!H22+ptnonipm!H22+pt_oilgas!H22+np_oilgas!H22+rwc!H22+cmv_c3!H22+livestock!C22+airports!H22+'ptfire-wild'!H22+vcp!H22 -> 113,647 | I23: =rail!AO22+nonpt!BN22+ptagfire!AI22+nonroad!AK22+'onroad all'!H22+cmv_c1c2!N22+'ptfire-rx'!AN22+ptegu!BM22+ptnonipm!BX22+pt_oilgas!BL22+np_oilgas!AT22+rwc!AJ22+cmv_c3!O22+livestock!U22+airports!AJ22+'ptfire-wild'!AK22+vcp!AA22 -> 672 | J23: =rail!AU22+nonpt!BT22+ptagfire!AM22+nonroad!AP22+'onroad all'!P22+cmv_c1c2!T22+'ptfire-rx'!AR22+ptegu!BS22+ptnonipm!CD22+pt_oilgas!BR22+np_oilgas!AZ22+rwc!AN22+cmv_c3!T22+livestock!X22+airports!AM22+'ptfire-wild'!AO22+vcp!AE22 -> 1,437 | K23: =rail!BR22+nonpt!CY22+ptagfire!AX22+nonroad!BH22+'onroad all'!BC22+cmv_c1c2!AO22+'ptfire-rx'!BD22+ptegu!CX22+ptnonipm!DP22+pt_oilgas!CV22+np_oilgas!BV22+rwc!BC22+cmv_c3!AP22+livestock!AH22+airports!BE22+'ptfire-wild'!AZ22+vcp!AQ22 -> 1,289 | L23: =rail!CF22+nonpt!DO22+ptagfire!BG22+nonroad!BT22+'onroad all'!BU22+cmv_c1c2!BC22+'ptfire-rx'!BM22+ptegu!DM22+ptnonipm!EH22+pt_oilgas!DK22+np_oilgas!CJ22+rwc!BP22+cmv_c3!BC22+livestock!AN22+airports!BN22+'ptfire-wild'!BI22+vcp!AX22 -> 1,747 | M23: =rail!CG22+nonpt!DQ22+nonroad!BU22+'onroad all'!BY22+cmv_c1c2!BD22+'ptfire-rx'!BO22+ptegu!DO22+ptnonipm!EJ22+pt_oilgas!DM22+np_oilgas!CK22+rwc!BQ22+cmv_c3!BD22+airports!BO22+'ptfire-wild'!BK22+vcp!AY22+ptagfire!BI22 -> 138 | N23: =rail!AN22+nonpt!BK22+nonroad!AJ22+'onroad all'!G22+cmv_c1c2!M22+'ptfire-rx'!AK22+ptegu!BK22+ptnonipm!BU22+pt_oilgas!BJ22+np_oilgas!AS22+rwc!AI22+airports!AH22+cmv_c3!M22+'ptfire-wild'!AI22+ptagfire!AG22 -> 88 | O23: =rail!AY22+nonpt!BY22+ptagfire!AO22+nonroad!AR22+'onroad all'!Z22+cmv_c1c2!V22+'ptfire-rx'!AT22+ptegu!BX22+ptnonipm!CI22+pt_oilgas!BW22+np_oilgas!BB22+rwc!AP22+airports!AO22+cmv_c3!V22+'ptfire-wild'!AQ22 -> 214 | P23: =rail!AD22+nonroad!AD22+'onroad all'!AK22+'onroad all'!AL22+'onroad all'!AM22+'onroad all'!AN22+'onroad all'!AO22+'onroad all'!AP22+ptnonipm!BI22+SUM(airports!AR22:AW22)+SUM(cmv_c1c2!AC22:AH22)+SUM(cmv_c3!AC22:AH22) -> 1,629 | Q23: =rail!AE22+nonroad!AE22+'onroad all'!AL22+'onroad all'!AM22+'onroad all'!AN22+'onroad all'!AO22+'onroad all'!AP22+ptnonipm!BJ22+SUM(airports!AS22:AW22)+SUM(cmv_c1c2!AD22:AH22)+SUM(cmv_c3!AD22:AH22) -> 1,544 | R23: =rail!P22+nonpt!T22+nonroad!R22+'onroad all'!AC22+ptegu!T22+ptnonipm!T22+pt_oilgas!S22+np_oilgas!R22+rwc!N22+SUM(cmv_c1c2!Z22:AA22)+SUM(cmv_c3!Z22:AA22) -> 0.07 | S23: =rail!K22+nonpt!L22+nonroad!U22+'onroad all'!M22+ptegu!L22+ptnonipm!L22+pt_oilgas!K22+np_oilgas!K22+SUM(cmv_c1c2!R22:S22)+SUM(cmv_c3!R22:S22) -> 0.51 | T23: =rail!O22+nonpt!P22+ptegu!P22+ptnonipm!P22+pt_oilgas!O22+np_oilgas!N22+rwc!M22+SUM(cmv_c1c2!W22:X22)+SUM(cmv_c3!W22:X22) -> 0.22 | U23: =rail!V22+nonpt!AI22+nonroad!T22+'onroad all'!CB22+ptegu!AH22+ptnonipm!AL22+pt_oilgas!AG22+np_oilgas!AB22+rwc!T22+SUM(cmv_c1c2!BG22:BH22)+SUM(cmv_c3!BG22:BH22) -> 6.15 | V23: =rail!T22+nonpt!AE22+nonroad!S22+'onroad all'!BS22+'onroad all'!BT22+ptegu!AD22+ptnonipm!AH22+pt_oilgas!AC22+np_oilgas!X22+rwc!R22+SUM(cmv_c1c2!BA22:BB22)+SUM(cmv_c3!BA22:BB22) -> 1.91 | W23: =nonpt!CW22+ptegu!CV22+ptnonipm!DN22 -> 0.17 | X23: X | AA23: Massachussetts | AB23: =B23+beis!H22 -> 579,826 | AC23: 14,640 | AD23: =D23+beis!T22 -> 95,735 | AE23: 32,638 | AF23: 19,866 | AG23: 5,889 | AH23: =H23+beis!Z22 -> 211,565 | AI23: =I23+beis!E22 -> 1,887 | AJ23: 1,437 | AK23: =K23+beis!N22 -> 2,946 | AL23: =L23+beis!R22 -> 6,668 | AM23: 138 | AN23: 88 | AO23: 214 | AP23: 1,629 | AQ23: 1,544 | AR23: 0.07 | AS23: 0.51 | AT23: 0.22 | AU23: 6.15 | AV23: 1.91 | AX23: Massachussetts | AY23: =B23-'ptfire-rx'!B22 -> 564,803 | AZ23: =C23-'ptfire-rx'!C22 -> 14,584 | BA23: =D23-'ptfire-rx'!D22 -> 94,776 | BB23: =E23-'ptfire-rx'!E22 -> 32,289 | BC23: =F23-'ptfire-rx'!F22 -> 19,570 | BD23: =G23-'ptfire-rx'!G22 -> 5,863 | BE23: =H23-'ptfire-rx'!H22 -> 112,842 | BF23: =I23-'ptfire-rx'!AN22 -> 655 | BG23: =J23-'ptfire-rx'!AR22 -> 1,429 | BH23: =K23-'ptfire-rx'!BD22 -> 1,244 | BI23: =L23-'ptfire-rx'!BM22 -> 1,720 | BJ23: =M23-'ptfire-rx'!BO22 -> 132 | BK23: =N23-'ptfire-rx'!AK22 -> 80 | BL23: =O23-'ptfire-rx'!AT22 -> 207 | BM23: 1,629 | BN23: 1,544 | BO23: 0.07 | BP23: 0.51 | BQ23: 0.22 | BR23: 6.15 | BS23: 1.91
A24: Michigan | B24: =rail!B23+nonpt!B23+ptagfire!B23+nonroad!B23+'onroad all'!AG23+cmv_c1c2!B23+'ptfire-rx'!B23+ptegu!B23+ptnonipm!B23+pt_oilgas!B23+np_oilgas!B23+rwc!B23+cmv_c3!B23+airports!B23+'ptfire-wild'!B23 -> 1,269,370 | C24: =rail!C23+nonpt!C23+ptagfire!C23++nonroad!C23+'onroad all'!BZ23+cmv_c1c2!BE23+'ptfire-rx'!C23+ptegu!C23+ptnonipm!C23+pt_oilgas!C23+np_oilgas!C23+rwc!C23+cmv_c3!BE23+livestock!B23+airports!C23+'ptfire-wild'!C23+fertilizer!B23 -> 57,684 | D24: =rail!D23+nonpt!D23+ptagfire!D23++nonroad!D23+cmv_c1c2!D23+'ptfire-rx'!D23+ptegu!DW23+ptnonipm!D23+pt_oilgas!D23+np_oilgas!D23+rwc!D23+cmv_c3!D23+'onroad all'!CI23+airports!D23+'ptfire-wild'!D23 -> 250,717 | E24: =rail!E23+nonpt!E23+ptagfire!E23++nonroad!E23+cmv_c1c2!E23+'ptfire-rx'!E23+ptegu!E23+ptnonipm!E23+pt_oilgas!E23+np_oilgas!E23+rwc!E23+cmv_c3!E23+afdust!BA23+'onroad all'!DE23+'onroad all'!DD23+airports!E23+'ptfire-wild'!E23 -> 131,249 | F24: =rail!F23+nonpt!F23+ptagfire!F23++nonroad!F23+cmv_c1c2!F23+'ptfire-rx'!F23+ptegu!F23+ptnonipm!F23+pt_oilgas!F23+np_oilgas!F23+rwc!F23+cmv_c3!F23+afdust!BB23+'onroad all'!DD23+airports!F23+'ptfire-wild'!F23 -> 60,878 | G24: =rail!G23+nonpt!G23+ptagfire!G23++nonroad!G23+'onroad all'!DU23+cmv_c1c2!G23+'ptfire-rx'!G23+ptegu!FH23+ptnonipm!G23+pt_oilgas!G23+np_oilgas!G23+rwc!G23+cmv_c3!G23+airports!G23+'ptfire-wild'!G23 -> 84,924 | H24: =rail!H23+nonpt!H23+ptagfire!H23++nonroad!H23+'onroad all'!EI23+cmv_c1c2!H23+'ptfire-rx'!H23+ptegu!H23+ptnonipm!H23+pt_oilgas!H23+np_oilgas!H23+rwc!H23+cmv_c3!H23+livestock!C23+airports!H23+'ptfire-wild'!H23+vcp!H23 -> 260,495 | I24: =rail!AO23+nonpt!BN23+ptagfire!AI23+nonroad!AK23+'onroad all'!H23+cmv_c1c2!N23+'ptfire-rx'!AN23+ptegu!BM23+ptnonipm!BX23+pt_oilgas!BL23+np_oilgas!AT23+rwc!AJ23+cmv_c3!O23+livestock!U23+airports!AJ23+'ptfire-wild'!AK23+vcp!AA23 -> 1,877 | J24: =rail!AU23+nonpt!BT23+ptagfire!AM23+nonroad!AP23+'onroad all'!P23+cmv_c1c2!T23+'ptfire-rx'!AR23+ptegu!BS23+ptnonipm!CD23+pt_oilgas!BR23+np_oilgas!AZ23+rwc!AN23+cmv_c3!T23+livestock!X23+airports!AM23+'ptfire-wild'!AO23+vcp!AE23 -> 3,429 | K24: =rail!BR23+nonpt!CY23+ptagfire!AX23+nonroad!BH23+'onroad all'!BC23+cmv_c1c2!AO23+'ptfire-rx'!BD23+ptegu!CX23+ptnonipm!DP23+pt_oilgas!CV23+np_oilgas!BV23+rwc!BC23+cmv_c3!AP23+livestock!AH23+airports!BE23+'ptfire-wild'!AZ23+vcp!AQ23 -> 3,753 | L24: =rail!CF23+nonpt!DO23+ptagfire!BG23+nonroad!BT23+'onroad all'!BU23+cmv_c1c2!BC23+'ptfire-rx'!BM23+ptegu!DM23+ptnonipm!EH23+pt_oilgas!DK23+np_oilgas!CJ23+rwc!BP23+cmv_c3!BC23+livestock!AN23+airports!BN23+'ptfire-wild'!BI23+vcp!AX23 -> 3,733 | M24: =rail!CG23+nonpt!DQ23+nonroad!BU23+'onroad all'!BY23+cmv_c1c2!BD23+'ptfire-rx'!BO23+ptegu!DO23+ptnonipm!EJ23+pt_oilgas!DM23+np_oilgas!CK23+rwc!BQ23+cmv_c3!BD23+airports!BO23+'ptfire-wild'!BK23+vcp!AY23+ptagfire!BI23 -> 497 | N24: =rail!AN23+nonpt!BK23+nonroad!AJ23+'onroad all'!G23+cmv_c1c2!M23+'ptfire-rx'!AK23+ptegu!BK23+ptnonipm!BU23+pt_oilgas!BJ23+np_oilgas!AS23+rwc!AI23+airports!AH23+cmv_c3!M23+'ptfire-wild'!AI23+ptagfire!AG23 -> 409 | O24: =rail!AY23+nonpt!BY23+ptagfire!AO23+nonroad!AR23+'onroad all'!Z23+cmv_c1c2!V23+'ptfire-rx'!AT23+ptegu!BX23+ptnonipm!CI23+pt_oilgas!BW23+np_oilgas!BB23+rwc!AP23+airports!AO23+cmv_c3!V23+'ptfire-wild'!AQ23 -> 537 | P24: =rail!AD23+nonroad!AD23+'onroad all'!AK23+'onroad all'!AL23+'onroad all'!AM23+'onroad all'!AN23+'onroad all'!AO23+'onroad all'!AP23+ptnonipm!BI23+SUM(airports!AR23:AW23)+SUM(cmv_c1c2!AC23:AH23)+SUM(cmv_c3!AC23:AH23) -> 2,904 | Q24: =rail!AE23+nonroad!AE23+'onroad all'!AL23+'onroad all'!AM23+'onroad all'!AN23+'onroad all'!AO23+'onroad all'!AP23+ptnonipm!BJ23+SUM(airports!AS23:AW23)+SUM(cmv_c1c2!AD23:AH23)+SUM(cmv_c3!AD23:AH23) -> 2,740 | R24: =rail!P23+nonpt!T23+nonroad!R23+'onroad all'!AC23+ptegu!T23+ptnonipm!T23+pt_oilgas!S23+np_oilgas!R23+rwc!N23+SUM(cmv_c1c2!Z23:AA23)+SUM(cmv_c3!Z23:AA23) -> 0.89 | S24: =rail!K23+nonpt!L23+nonroad!U23+'onroad all'!M23+ptegu!L23+ptnonipm!L23+pt_oilgas!K23+np_oilgas!K23+SUM(cmv_c1c2!R23:S23)+SUM(cmv_c3!R23:S23) -> 1.05 | T24: =rail!O23+nonpt!P23+ptegu!P23+ptnonipm!P23+pt_oilgas!O23+np_oilgas!N23+rwc!M23+SUM(cmv_c1c2!W23:X23)+SUM(cmv_c3!W23:X23) -> 1.19 | U24: =rail!V23+nonpt!AI23+nonroad!T23+'onroad all'!CB23+ptegu!AH23+ptnonipm!AL23+pt_oilgas!AG23+np_oilgas!AB23+rwc!T23+SUM(cmv_c1c2!BG23:BH23)+SUM(cmv_c3!BG23:BH23) -> 15.26 | V24: =rail!T23+nonpt!AE23+nonroad!S23+'onroad all'!BS23+'onroad all'!BT23+ptegu!AD23+ptnonipm!AH23+pt_oilgas!AC23+np_oilgas!X23+rwc!R23+SUM(cmv_c1c2!BA23:BB23)+SUM(cmv_c3!BA23:BB23) -> 35.88 | W24: =nonpt!CW23+ptegu!CV23+ptnonipm!DN23 -> 0.35 | X24: X | AA24: Michigan | AB24: =B24+beis!H23 -> 1,331,072 | AC24: 57,684 | AD24: =D24+beis!T23 -> 268,411 | AE24: 131,249 | AF24: 60,878 | AG24: 84,924 | AH24: =H24+beis!Z23 -> 655,580 | AI24: =I24+beis!E23 -> 8,335 | AJ24: 3,429 | AK24: =K24+beis!N23 -> 12,560 | AL24: =L24+beis!R23 -> 32,082 | AM24: 497 | AN24: 409 | AO24: 537 | AP24: 2,904 | AQ24: 2,740 | AR24: 0.89 | AS24: 1.05 | AT24: 1.19 | AU24: 15.26 | AV24: 35.88 | AX24: Michigan | AY24: =B24-'ptfire-rx'!B23 -> 1,206,802 | AZ24: =C24-'ptfire-rx'!C23 -> 56,662 | BA24: =D24-'ptfire-rx'!D23 -> 250,042 | BB24: =E24-'ptfire-rx'!E23 -> 125,005 | BC24: =F24-'ptfire-rx'!F23 -> 55,572 | BD24: =G24-'ptfire-rx'!G23 -> 84,509 | BE24: =H24-'ptfire-rx'!H23 -> 245,732 | BF24: =I24-'ptfire-rx'!AN23 -> 1,588 | BG24: =J24-'ptfire-rx'!AR23 -> 3,310 | BH24: =K24-'ptfire-rx'!BD23 -> 3,040 | BI24: =L24-'ptfire-rx'!BM23 -> 3,311 | BJ24: =M24-'ptfire-rx'!BO23 -> 415 | BK24: =N24-'ptfire-rx'!AK23 -> 265 | BL24: =O24-'ptfire-rx'!AT23 -> 430 | BM24: 2,904 | BN24: 2,740 | BO24: 0.89 | BP24: 1.05 | BQ24: 1.19 | BR24: 15.26 | BS24: 35.88
A25: Minnesota | B25: =rail!B24+nonpt!B24+ptagfire!B24+nonroad!B24+'onroad all'!AG24+cmv_c1c2!B24+'ptfire-rx'!B24+ptegu!B24+ptnonipm!B24+pt_oilgas!B24+np_oilgas!B24+rwc!B24+cmv_c3!B24+airports!B24+'ptfire-wild'!B24 -> 1,833,754 | C25: =rail!C24+nonpt!C24+ptagfire!C24++nonroad!C24+'onroad all'!BZ24+cmv_c1c2!BE24+'ptfire-rx'!C24+ptegu!C24+ptnonipm!C24+pt_oilgas!C24+np_oilgas!C24+rwc!C24+cmv_c3!BE24+livestock!B24+airports!C24+'ptfire-wild'!C24+fertilizer!B24 -> 186,663 | D25: =rail!D24+nonpt!D24+ptagfire!D24++nonroad!D24+cmv_c1c2!D24+'ptfire-rx'!D24+ptegu!DW24+ptnonipm!D24+pt_oilgas!D24+np_oilgas!D24+rwc!D24+cmv_c3!D24+'onroad all'!CI24+airports!D24+'ptfire-wild'!D24 -> 202,303 | E25: =rail!E24+nonpt!E24+ptagfire!E24++nonroad!E24+cmv_c1c2!E24+'ptfire-rx'!E24+ptegu!E24+ptnonipm!E24+pt_oilgas!E24+np_oilgas!E24+rwc!E24+cmv_c3!E24+afdust!BA24+'onroad all'!DE24+'onroad all'!DD24+airports!E24+'ptfire-wild'!E24 -> 259,490 | F25: =rail!F24+nonpt!F24+ptagfire!F24++nonroad!F24+cmv_c1c2!F24+'ptfire-rx'!F24+ptegu!F24+ptnonipm!F24+pt_oilgas!F24+np_oilgas!F24+rwc!F24+cmv_c3!F24+afdust!BB24+'onroad all'!DD24+airports!F24+'ptfire-wild'!F24 -> 145,008 | G25: =rail!G24+nonpt!G24+ptagfire!G24++nonroad!G24+'onroad all'!DU24+cmv_c1c2!G24+'ptfire-rx'!G24+ptegu!FH24+ptnonipm!G24+pt_oilgas!G24+np_oilgas!G24+rwc!G24+cmv_c3!G24+airports!G24+'ptfire-wild'!G24 -> 40,658 | H25: =rail!H24+nonpt!H24+ptagfire!H24++nonroad!H24+'onroad all'!EI24+cmv_c1c2!H24+'ptfire-rx'!H24+ptegu!H24+ptnonipm!H24+pt_oilgas!H24+np_oilgas!H24+rwc!H24+cmv_c3!H24+livestock!C24+airports!H24+'ptfire-wild'!H24+vcp!H24 -> 406,370 | I25: =rail!AO24+nonpt!BN24+ptagfire!AI24+nonroad!AK24+'onroad all'!H24+cmv_c1c2!N24+'ptfire-rx'!AN24+ptegu!BM24+ptnonipm!BX24+pt_oilgas!BL24+np_oilgas!AT24+rwc!AJ24+cmv_c3!O24+livestock!U24+airports!AJ24+'ptfire-wild'!AK24+vcp!AA24 -> 5,350 | J25: =rail!AU24+nonpt!BT24+ptagfire!AM24+nonroad!AP24+'onroad all'!P24+cmv_c1c2!T24+'ptfire-rx'!AR24+ptegu!BS24+ptnonipm!CD24+pt_oilgas!BR24+np_oilgas!AZ24+rwc!AN24+cmv_c3!T24+livestock!X24+airports!AM24+'ptfire-wild'!AO24+vcp!AE24 -> 5,361 | K25: =rail!BR24+nonpt!CY24+ptagfire!AX24+nonroad!BH24+'onroad all'!BC24+cmv_c1c2!AO24+'ptfire-rx'!BD24+ptegu!CX24+ptnonipm!DP24+pt_oilgas!CV24+np_oilgas!BV24+rwc!BC24+cmv_c3!AP24+livestock!AH24+airports!BE24+'ptfire-wild'!AZ24+vcp!AQ24 -> 11,584 | L25: =rail!CF24+nonpt!DO24+ptagfire!BG24+nonroad!BT24+'onroad all'!BU24+cmv_c1c2!BC24+'ptfire-rx'!BM24+ptegu!DM24+ptnonipm!EH24+pt_oilgas!DK24+np_oilgas!CJ24+rwc!BP24+cmv_c3!BC24+livestock!AN24+airports!BN24+'ptfire-wild'!BI24+vcp!AX24 -> 6,952 | M25: =rail!CG24+nonpt!DQ24+nonroad!BU24+'onroad all'!BY24+cmv_c1c2!BD24+'ptfire-rx'!BO24+ptegu!DO24+ptnonipm!EJ24+pt_oilgas!DM24+np_oilgas!CK24+rwc!BQ24+cmv_c3!BD24+airports!BO24+'ptfire-wild'!BK24+vcp!AY24+ptagfire!BI24 -> 1,546 | N25: =rail!AN24+nonpt!BK24+nonroad!AJ24+'onroad all'!G24+cmv_c1c2!M24+'ptfire-rx'!AK24+ptegu!BK24+ptnonipm!BU24+pt_oilgas!BJ24+np_oilgas!AS24+rwc!AI24+airports!AH24+cmv_c3!M24+'ptfire-wild'!AI24+ptagfire!AG24 -> 1,806 | O25: =rail!AY24+nonpt!BY24+ptagfire!AO24+nonroad!AR24+'onroad all'!Z24+cmv_c1c2!V24+'ptfire-rx'!AT24+ptegu!BX24+ptnonipm!CI24+pt_oilgas!BW24+np_oilgas!BB24+rwc!AP24+airports!AO24+cmv_c3!V24+'ptfire-wild'!AQ24 -> 1,502 | P25: =rail!AD24+nonroad!AD24+'onroad all'!AK24+'onroad all'!AL24+'onroad all'!AM24+'onroad all'!AN24+'onroad all'!AO24+'onroad all'!AP24+ptnonipm!BI24+SUM(airports!AR24:AW24)+SUM(cmv_c1c2!AC24:AH24)+SUM(cmv_c3!AC24:AH24) -> 3,831 | Q25: =rail!AE24+nonroad!AE24+'onroad all'!AL24+'onroad all'!AM24+'onroad all'!AN24+'onroad all'!AO24+'onroad all'!AP24+ptnonipm!BJ24+SUM(airports!AS24:AW24)+SUM(cmv_c1c2!AD24:AH24)+SUM(cmv_c3!AD24:AH24) -> 3,674 | R25: =rail!P24+nonpt!T24+nonroad!R24+'onroad all'!AC24+ptegu!T24+ptnonipm!T24+pt_oilgas!S24+np_oilgas!R24+rwc!N24+SUM(cmv_c1c2!Z24:AA24)+SUM(cmv_c3!Z24:AA24) -> 0.79 | S25: =rail!K24+nonpt!L24+nonroad!U24+'onroad all'!M24+ptegu!L24+ptnonipm!L24+pt_oilgas!K24+np_oilgas!K24+SUM(cmv_c1c2!R24:S24)+SUM(cmv_c3!R24:S24) -> 7.74 | T25: =rail!O24+nonpt!P24+ptegu!P24+ptnonipm!P24+pt_oilgas!O24+np_oilgas!N24+rwc!M24+SUM(cmv_c1c2!W24:X24)+SUM(cmv_c3!W24:X24) -> 0.54 | U25: =rail!V24+nonpt!AI24+nonroad!T24+'onroad all'!CB24+ptegu!AH24+ptnonipm!AL24+pt_oilgas!AG24+np_oilgas!AB24+rwc!T24+SUM(cmv_c1c2!BG24:BH24)+SUM(cmv_c3!BG24:BH24) -> 7.26 | V25: =rail!T24+nonpt!AE24+nonroad!S24+'onroad all'!BS24+'onroad all'!BT24+ptegu!AD24+ptnonipm!AH24+pt_oilgas!AC24+np_oilgas!X24+rwc!R24+SUM(cmv_c1c2!BA24:BB24)+SUM(cmv_c3!BA24:BB24) -> 25.32 | W25: =nonpt!CW24+ptegu!CV24+ptnonipm!DN24 -> 0.05 | X25: X | AA25: Minnesota | AB25: =B25+beis!H24 -> 1,903,078 | AC25: 186,663 | AD25: =D25+beis!T24 -> 236,133 | AE25: 259,490 | AF25: 145,008 | AG25: 40,658 | AH25: =H25+beis!Z24 -> 801,015 | AI25: =I25+beis!E24 -> 12,610 | AJ25: 5,361 | AK25: =K25+beis!N24 -> 21,484 | AL25: =L25+beis!R24 -> 40,449 | AM25: 1,546 | AN25: 1,806 | AO25: 1,502 | AP25: 3,831 | AQ25: 3,674 | AR25: 0.79 | AS25: 7.74 | AT25: 0.54 | AU25: 7.26 | AV25: 25.32 | AX25: Minnesota | AY25: =B25-'ptfire-rx'!B24 -> 1,103,664 | AZ25: =C25-'ptfire-rx'!C24 -> 174,785 | BA25: =D25-'ptfire-rx'!D24 -> 197,327 | BB25: =E25-'ptfire-rx'!E24 -> 189,500 | BC25: =F25-'ptfire-rx'!F24 -> 85,633 | BD25: =G25-'ptfire-rx'!G24 -> 36,698 | BE25: =H25-'ptfire-rx'!H24 -> 235,283 | BF25: =I25-'ptfire-rx'!AN24 -> 2,683 | BG25: =J25-'ptfire-rx'!AR24 -> 4,216 | BH25: =K25-'ptfire-rx'!BD24 -> 4,783 | BI25: =L25-'ptfire-rx'!BM24 -> 2,944 | BJ25: =M25-'ptfire-rx'!BO24 -> 749 | BK25: =N25-'ptfire-rx'!AK24 -> 472 | BL25: =O25-'ptfire-rx'!AT24 -> 467 | BM25: 3,831 | BN25: 3,674 | BO25: 0.79 | BP25: 7.74 | BQ25: 0.54 | BR25: 7.26 | BS25: 25.32
A26: Mississippi | B26: =rail!B25+nonpt!B25+ptagfire!B25+nonroad!B25+'onroad all'!AG25+cmv_c1c2!B25+'ptfire-rx'!B25+ptegu!B25+ptnonipm!B25+pt_oilgas!B25+np_oilgas!B25+rwc!B25+cmv_c3!B25+airports!B25+'ptfire-wild'!B25 -> 810,499 | C26: =rail!C25+nonpt!C25+ptagfire!C25++nonroad!C25+'onroad all'!BZ25+cmv_c1c2!BE25+'ptfire-rx'!C25+ptegu!C25+ptnonipm!C25+pt_oilgas!C25+np_oilgas!C25+rwc!C25+cmv_c3!BE25+livestock!B25+airports!C25+'ptfire-wild'!C25+fertilizer!B25 -> 62,201 | D26: =rail!D25+nonpt!D25+ptagfire!D25++nonroad!D25+cmv_c1c2!D25+'ptfire-rx'!D25+ptegu!DW25+ptnonipm!D25+pt_oilgas!D25+np_oilgas!D25+rwc!D25+cmv_c3!D25+'onroad all'!CI25+airports!D25+'ptfire-wild'!D25 -> 129,209 | E26: =rail!E25+nonpt!E25+ptagfire!E25++nonroad!E25+cmv_c1c2!E25+'ptfire-rx'!E25+ptegu!E25+ptnonipm!E25+pt_oilgas!E25+np_oilgas!E25+rwc!E25+cmv_c3!E25+afdust!BA25+'onroad all'!DE25+'onroad all'!DD25+airports!E25+'ptfire-wild'!E25 -> 189,816 | F26: =rail!F25+nonpt!F25+ptagfire!F25++nonroad!F25+cmv_c1c2!F25+'ptfire-rx'!F25+ptegu!F25+ptnonipm!F25+pt_oilgas!F25+np_oilgas!F25+rwc!F25+cmv_c3!F25+afdust!BB25+'onroad all'!DD25+airports!F25+'ptfire-wild'!F25 -> 77,630 | G26: =rail!G25+nonpt!G25+ptagfire!G25++nonroad!G25+'onroad all'!DU25+cmv_c1c2!G25+'ptfire-rx'!G25+ptegu!FH25+ptnonipm!G25+pt_oilgas!G25+np_oilgas!G25+rwc!G25+cmv_c3!G25+airports!G25+'ptfire-wild'!G25 -> 14,070 | H26: =rail!H25+nonpt!H25+ptagfire!H25++nonroad!H25+'onroad all'!EI25+cmv_c1c2!H25+'ptfire-rx'!H25+ptegu!H25+ptnonipm!H25+pt_oilgas!H25+np_oilgas!H25+rwc!H25+cmv_c3!H25+livestock!C25+airports!H25+'ptfire-wild'!H25+vcp!H25 -> 203,255 | I26: =rail!AO25+nonpt!BN25+ptagfire!AI25+nonroad!AK25+'onroad all'!H25+cmv_c1c2!N25+'ptfire-rx'!AN25+ptegu!BM25+ptnonipm!BX25+pt_oilgas!BL25+np_oilgas!AT25+rwc!AJ25+cmv_c3!O25+livestock!U25+airports!AJ25+'ptfire-wild'!AK25+vcp!AA25 -> 3,278 | J26: =rail!AU25+nonpt!BT25+ptagfire!AM25+nonroad!AP25+'onroad all'!P25+cmv_c1c2!T25+'ptfire-rx'!AR25+ptegu!BS25+ptnonipm!CD25+pt_oilgas!BR25+np_oilgas!AZ25+rwc!AN25+cmv_c3!T25+livestock!X25+airports!AM25+'ptfire-wild'!AO25+vcp!AE25 -> 2,152 | K26: =rail!BR25+nonpt!CY25+ptagfire!AX25+nonroad!BH25+'onroad all'!BC25+cmv_c1c2!AO25+'ptfire-rx'!BD25+ptegu!CX25+ptnonipm!DP25+pt_oilgas!CV25+np_oilgas!BV25+rwc!BC25+cmv_c3!AP25+livestock!AH25+airports!BE25+'ptfire-wild'!AZ25+vcp!AQ25 -> 7,203 | L26: =rail!CF25+nonpt!DO25+ptagfire!BG25+nonroad!BT25+'onroad all'!BU25+cmv_c1c2!BC25+'ptfire-rx'!BM25+ptegu!DM25+ptnonipm!EH25+pt_oilgas!DK25+np_oilgas!CJ25+rwc!BP25+cmv_c3!BC25+livestock!AN25+airports!BN25+'ptfire-wild'!BI25+vcp!AX25 -> 7,703 | M26: =rail!CG25+nonpt!DQ25+nonroad!BU25+'onroad all'!BY25+cmv_c1c2!BD25+'ptfire-rx'!BO25+ptegu!DO25+ptnonipm!EJ25+pt_oilgas!DM25+np_oilgas!CK25+rwc!BQ25+cmv_c3!BD25+airports!BO25+'ptfire-wild'!BK25+vcp!AY25+ptagfire!BI25 -> 897 | N26: =rail!AN25+nonpt!BK25+nonroad!AJ25+'onroad all'!G25+cmv_c1c2!M25+'ptfire-rx'!AK25+ptegu!BK25+ptnonipm!BU25+pt_oilgas!BJ25+np_oilgas!AS25+rwc!AI25+airports!AH25+cmv_c3!M25+'ptfire-wild'!AI25+ptagfire!AG25 -> 1,282 | O26: =rail!AY25+nonpt!BY25+ptagfire!AO25+nonroad!AR25+'onroad all'!Z25+cmv_c1c2!V25+'ptfire-rx'!AT25+ptegu!BX25+ptnonipm!CI25+pt_oilgas!BW25+np_oilgas!BB25+rwc!AP25+airports!AO25+cmv_c3!V25+'ptfire-wild'!AQ25 -> 936 | P26: =rail!AD25+nonroad!AD25+'onroad all'!AK25+'onroad all'!AL25+'onroad all'!AM25+'onroad all'!AN25+'onroad all'!AO25+'onroad all'!AP25+ptnonipm!BI25+SUM(airports!AR25:AW25)+SUM(cmv_c1c2!AC25:AH25)+SUM(cmv_c3!AC25:AH25) -> 1,664 | Q26: =rail!AE25+nonroad!AE25+'onroad all'!AL25+'onroad all'!AM25+'onroad all'!AN25+'onroad all'!AO25+'onroad all'!AP25+ptnonipm!BJ25+SUM(airports!AS25:AW25)+SUM(cmv_c1c2!AD25:AH25)+SUM(cmv_c3!AD25:AH25) -> 1,574 | R26: =rail!P25+nonpt!T25+nonroad!R25+'onroad all'!AC25+ptegu!T25+ptnonipm!T25+pt_oilgas!S25+np_oilgas!R25+rwc!N25+SUM(cmv_c1c2!Z25:AA25)+SUM(cmv_c3!Z25:AA25) -> 0.56 | S26: =rail!K25+nonpt!L25+nonroad!U25+'onroad all'!M25+ptegu!L25+ptnonipm!L25+pt_oilgas!K25+np_oilgas!K25+SUM(cmv_c1c2!R25:S25)+SUM(cmv_c3!R25:S25) -> 0.56 | T26: =rail!O25+nonpt!P25+ptegu!P25+ptnonipm!P25+pt_oilgas!O25+np_oilgas!N25+rwc!M25+SUM(cmv_c1c2!W25:X25)+SUM(cmv_c3!W25:X25) -> 0.48 | U26: =rail!V25+nonpt!AI25+nonroad!T25+'onroad all'!CB25+ptegu!AH25+ptnonipm!AL25+pt_oilgas!AG25+np_oilgas!AB25+rwc!T25+SUM(cmv_c1c2!BG25:BH25)+SUM(cmv_c3!BG25:BH25) -> 8.71 | V26: =rail!T25+nonpt!AE25+nonroad!S25+'onroad all'!BS25+'onroad all'!BT25+ptegu!AD25+ptnonipm!AH25+pt_oilgas!AC25+np_oilgas!X25+rwc!R25+SUM(cmv_c1c2!BA25:BB25)+SUM(cmv_c3!BA25:BB25) -> 45.44 | W26: =nonpt!CW25+ptegu!CV25+ptnonipm!DN25 -> 0.02 | X26: X | AA26: Mississippi | AB26: =B26+beis!H25 -> 927,685 | AC26: 62,201 | AD26: =D26+beis!T25 -> 153,463 | AE26: 189,816 | AF26: 77,630 | AG26: 14,070 | AH26: =H26+beis!Z25 -> 1,434,884 | AI26: =I26+beis!E25 -> 15,545 | AJ26: 2,152 | AK26: =K26+beis!N25 -> 23,931 | AL26: =L26+beis!R25 -> 74,670 | AM26: 897 | AN26: 1,282 | AO26: 936 | AP26: 1,664 | AQ26: 1,574 | AR26: 0.56 | AS26: 0.56 | AT26: 0.48 | AU26: 8.71 | AV26: 45.44 | AX26: Mississippi | AY26: =B26-'ptfire-rx'!B25 -> 497,094 | AZ26: =C26-'ptfire-rx'!C25 -> 57,040 | BA26: =D26-'ptfire-rx'!D25 -> 122,925 | BB26: =E26-'ptfire-rx'!E25 -> 155,687 | BC26: =F26-'ptfire-rx'!F25 -> 48,547 | BD26: =G26-'ptfire-rx'!G25 -> 11,105 | BE26: =H26-'ptfire-rx'!H25 -> 128,150 | BF26: =I26-'ptfire-rx'!AN25 -> 1,140 | BG26: =J26-'ptfire-rx'!AR25 -> 1,296 | BH26: =K26-'ptfire-rx'!BD25 -> 2,112 | BI26: =L26-'ptfire-rx'!BM25 -> 4,667 | BJ26: =M26-'ptfire-rx'!BO25 -> 316 | BK26: =N26-'ptfire-rx'!AK25 -> 232 | BL26: =O26-'ptfire-rx'!AT25 -> 177 | BM26: 1,664 | BN26: 1,574 | BO26: 0.56 | BP26: 0.56 | BQ26: 0.48 | BR26: 8.71 | BS26: 45.44
A27: Missouri | B27: =rail!B26+nonpt!B26+ptagfire!B26+nonroad!B26+'onroad all'!AG26+cmv_c1c2!B26+'ptfire-rx'!B26+ptegu!B26+ptnonipm!B26+pt_oilgas!B26+np_oilgas!B26+rwc!B26+cmv_c3!B26+airports!B26+'ptfire-wild'!B26 -> 1,826,617 | C27: =rail!C26+nonpt!C26+ptagfire!C26++nonroad!C26+'onroad all'!BZ26+cmv_c1c2!BE26+'ptfire-rx'!C26+ptegu!C26+ptnonipm!C26+pt_oilgas!C26+np_oilgas!C26+rwc!C26+cmv_c3!BE26+livestock!B26+airports!C26+'ptfire-wild'!C26+fertilizer!B26 -> 147,649 | D27: =rail!D26+nonpt!D26+ptagfire!D26++nonroad!D26+cmv_c1c2!D26+'ptfire-rx'!D26+ptegu!DW26+ptnonipm!D26+pt_oilgas!D26+np_oilgas!D26+rwc!D26+cmv_c3!D26+'onroad all'!CI26+airports!D26+'ptfire-wild'!D26 -> 261,948 | E27: =rail!E26+nonpt!E26+ptagfire!E26++nonroad!E26+cmv_c1c2!E26+'ptfire-rx'!E26+ptegu!E26+ptnonipm!E26+pt_oilgas!E26+np_oilgas!E26+rwc!E26+cmv_c3!E26+afdust!BA26+'onroad all'!DE26+'onroad all'!DD26+airports!E26+'ptfire-wild'!E26 -> 559,918 | F27: =rail!F26+nonpt!F26+ptagfire!F26++nonroad!F26+cmv_c1c2!F26+'ptfire-rx'!F26+ptegu!F26+ptnonipm!F26+pt_oilgas!F26+np_oilgas!F26+rwc!F26+cmv_c3!F26+afdust!BB26+'onroad all'!DD26+airports!F26+'ptfire-wild'!F26 -> 166,370 | G27: =rail!G26+nonpt!G26+ptagfire!G26++nonroad!G26+'onroad all'!DU26+cmv_c1c2!G26+'ptfire-rx'!G26+ptegu!FH26+ptnonipm!G26+pt_oilgas!G26+np_oilgas!G26+rwc!G26+cmv_c3!G26+airports!G26+'ptfire-wild'!G26 -> 123,951 | H27: =rail!H26+nonpt!H26+ptagfire!H26++nonroad!H26+'onroad all'!EI26+cmv_c1c2!H26+'ptfire-rx'!H26+ptegu!H26+ptnonipm!H26+pt_oilgas!H26+np_oilgas!H26+rwc!H26+cmv_c3!H26+livestock!C26+airports!H26+'ptfire-wild'!H26+vcp!H26 -> 373,900 | I27: =rail!AO26+nonpt!BN26+ptagfire!AI26+nonroad!AK26+'onroad all'!H26+cmv_c1c2!N26+'ptfire-rx'!AN26+ptegu!BM26+ptnonipm!BX26+pt_oilgas!BL26+np_oilgas!AT26+rwc!AJ26+cmv_c3!O26+livestock!U26+airports!AJ26+'ptfire-wild'!AK26+vcp!AA26 -> 8,288 | J27: =rail!AU26+nonpt!BT26+ptagfire!AM26+nonroad!AP26+'onroad all'!P26+cmv_c1c2!T26+'ptfire-rx'!AR26+ptegu!BS26+ptnonipm!CD26+pt_oilgas!BR26+np_oilgas!AZ26+rwc!AN26+cmv_c3!T26+livestock!X26+airports!AM26+'ptfire-wild'!AO26+vcp!AE26 -> 4,197 | K27: =rail!BR26+nonpt!CY26+ptagfire!AX26+nonroad!BH26+'onroad all'!BC26+cmv_c1c2!AO26+'ptfire-rx'!BD26+ptegu!CX26+ptnonipm!DP26+pt_oilgas!CV26+np_oilgas!BV26+rwc!BC26+cmv_c3!AP26+livestock!AH26+airports!BE26+'ptfire-wild'!AZ26+vcp!AQ26 -> 12,256 | L27: =rail!CF26+nonpt!DO26+ptagfire!BG26+nonroad!BT26+'onroad all'!BU26+cmv_c1c2!BC26+'ptfire-rx'!BM26+ptegu!DM26+ptnonipm!EH26+pt_oilgas!DK26+np_oilgas!CJ26+rwc!BP26+cmv_c3!BC26+livestock!AN26+airports!BN26+'ptfire-wild'!BI26+vcp!AX26 -> 10,318 | M27: =rail!CG26+nonpt!DQ26+nonroad!BU26+'onroad all'!BY26+cmv_c1c2!BD26+'ptfire-rx'!BO26+ptegu!DO26+ptnonipm!EJ26+pt_oilgas!DM26+np_oilgas!CK26+rwc!BQ26+cmv_c3!BD26+airports!BO26+'ptfire-wild'!BK26+vcp!AY26+ptagfire!BI26 -> 2,056 | N27: =rail!AN26+nonpt!BK26+nonroad!AJ26+'onroad all'!G26+cmv_c1c2!M26+'ptfire-rx'!AK26+ptegu!BK26+ptnonipm!BU26+pt_oilgas!BJ26+np_oilgas!AS26+rwc!AI26+airports!AH26+cmv_c3!M26+'ptfire-wild'!AI26+ptagfire!AG26 -> 2,365 | O27: =rail!AY26+nonpt!BY26+ptagfire!AO26+nonroad!AR26+'onroad all'!Z26+cmv_c1c2!V26+'ptfire-rx'!AT26+ptegu!BX26+ptnonipm!CI26+pt_oilgas!BW26+np_oilgas!BB26+rwc!AP26+airports!AO26+cmv_c3!V26+'ptfire-wild'!AQ26 -> 1,287 | P27: =rail!AD26+nonroad!AD26+'onroad all'!AK26+'onroad all'!AL26+'onroad all'!AM26+'onroad all'!AN26+'onroad all'!AO26+'onroad all'!AP26+ptnonipm!BI26+SUM(airports!AR26:AW26)+SUM(cmv_c1c2!AC26:AH26)+SUM(cmv_c3!AC26:AH26) -> 4,535 | Q27: =rail!AE26+nonroad!AE26+'onroad all'!AL26+'onroad all'!AM26+'onroad all'!AN26+'onroad all'!AO26+'onroad all'!AP26+ptnonipm!BJ26+SUM(airports!AS26:AW26)+SUM(cmv_c1c2!AD26:AH26)+SUM(cmv_c3!AD26:AH26) -> 4,306 | R27: =rail!P26+nonpt!T26+nonroad!R26+'onroad all'!AC26+ptegu!T26+ptnonipm!T26+pt_oilgas!S26+np_oilgas!R26+rwc!N26+SUM(cmv_c1c2!Z26:AA26)+SUM(cmv_c3!Z26:AA26) -> 0.85 | S27: =rail!K26+nonpt!L26+nonroad!U26+'onroad all'!M26+ptegu!L26+ptnonipm!L26+pt_oilgas!K26+np_oilgas!K26+SUM(cmv_c1c2!R26:S26)+SUM(cmv_c3!R26:S26) -> 1.82 | T27: =rail!O26+nonpt!P26+ptegu!P26+ptnonipm!P26+pt_oilgas!O26+np_oilgas!N26+rwc!M26+SUM(cmv_c1c2!W26:X26)+SUM(cmv_c3!W26:X26) -> 0.35 | U27: =rail!V26+nonpt!AI26+nonroad!T26+'onroad all'!CB26+ptegu!AH26+ptnonipm!AL26+pt_oilgas!AG26+np_oilgas!AB26+rwc!T26+SUM(cmv_c1c2!BG26:BH26)+SUM(cmv_c3!BG26:BH26) -> 20.76 | V27: =rail!T26+nonpt!AE26+nonroad!S26+'onroad all'!BS26+'onroad all'!BT26+ptegu!AD26+ptnonipm!AH26+pt_oilgas!AC26+np_oilgas!X26+rwc!R26+SUM(cmv_c1c2!BA26:BB26)+SUM(cmv_c3!BA26:BB26) -> 12.22 | W27: =nonpt!CW26+ptegu!CV26+ptnonipm!DN26 -> 4.47 | X27: X | AA27: Missouri | AB27: =B27+beis!H26 -> 1,913,951 | AC27: 147,649 | AD27: =D27+beis!T26 -> 301,257 | AE27: 559,918 | AF27: 166,370 | AG27: 123,951 | AH27: =H27+beis!Z26 -> 1,133,296 | AI27: =I27+beis!E26 -> 17,430 | AJ27: 4,197 | AK27: =K27+beis!N26 -> 24,721 | AL27: =L27+beis!R26 -> 60,361 | AM27: 2,056 | AN27: 2,365 | AO27: 1,287 | AP27: 4,535 | AQ27: 4,306 | AR27: 0.85 | AS27: 1.82 | AT27: 0.35 | AU27: 20.76 | AV27: 12.22 | AX27: Missouri | AY27: =B27-'ptfire-rx'!B26 -> 1,036,753 | AZ27: =C27-'ptfire-rx'!C26 -> 134,736 | BA27: =D27-'ptfire-rx'!D26 -> 249,349 | BB27: =E27-'ptfire-rx'!E26 -> 476,077 | BC27: =F27-'ptfire-rx'!F26 -> 94,656 | BD27: =G27-'ptfire-rx'!G26 -> 117,475 | BE27: =H27-'ptfire-rx'!H26 -> 184,561 | BF27: =I27-'ptfire-rx'!AN26 -> 2,051 | BG27: =J27-'ptfire-rx'!AR26 -> 2,682 | BH27: =K27-'ptfire-rx'!BD26 -> 3,714 | BI27: =L27-'ptfire-rx'!BM26 -> 2,588 | BJ27: =M27-'ptfire-rx'!BO26 -> 561 | BK27: =N27-'ptfire-rx'!AK26 -> 340 | BL27: =O27-'ptfire-rx'!AT26 -> 413 | BM27: 4,535 | BN27: 4,306 | BO27: 0.85 | BP27: 1.82 | BQ27: 0.35 | BR27: 20.76 | BS27: 12.22
A28: Montana | B28: =rail!B27+nonpt!B27+ptagfire!B27+nonroad!B27+'onroad all'!AG27+cmv_c1c2!B27+'ptfire-rx'!B27+ptegu!B27+ptnonipm!B27+pt_oilgas!B27+np_oilgas!B27+rwc!B27+cmv_c3!B27+airports!B27+'ptfire-wild'!B27 -> 688,940 | C28: =rail!C27+nonpt!C27+ptagfire!C27++nonroad!C27+'onroad all'!BZ27+cmv_c1c2!BE27+'ptfire-rx'!C27+ptegu!C27+ptnonipm!C27+pt_oilgas!C27+np_oilgas!C27+rwc!C27+cmv_c3!BE27+livestock!B27+airports!C27+'ptfire-wild'!C27+fertilizer!B27 -> 65,314 | D28: =rail!D27+nonpt!D27+ptagfire!D27++nonroad!D27+cmv_c1c2!D27+'ptfire-rx'!D27+ptegu!DW27+ptnonipm!D27+pt_oilgas!D27+np_oilgas!D27+rwc!D27+cmv_c3!D27+'onroad all'!CI27+airports!D27+'ptfire-wild'!D27 -> 90,651 | E28: =rail!E27+nonpt!E27+ptagfire!E27++nonroad!E27+cmv_c1c2!E27+'ptfire-rx'!E27+ptegu!E27+ptnonipm!E27+pt_oilgas!E27+np_oilgas!E27+rwc!E27+cmv_c3!E27+afdust!BA27+'onroad all'!DE27+'onroad all'!DD27+airports!E27+'ptfire-wild'!E27 -> 256,439 | F28: =rail!F27+nonpt!F27+ptagfire!F27++nonroad!F27+cmv_c1c2!F27+'ptfire-rx'!F27+ptegu!F27+ptnonipm!F27+pt_oilgas!F27+np_oilgas!F27+rwc!F27+cmv_c3!F27+afdust!BB27+'onroad all'!DD27+airports!F27+'ptfire-wild'!F27 -> 75,961 | G28: =rail!G27+nonpt!G27+ptagfire!G27++nonroad!G27+'onroad all'!DU27+cmv_c1c2!G27+'ptfire-rx'!G27+ptegu!FH27+ptnonipm!G27+pt_oilgas!G27+np_oilgas!G27+rwc!G27+cmv_c3!G27+airports!G27+'ptfire-wild'!G27 -> 20,794 | H28: =rail!H27+nonpt!H27+ptagfire!H27++nonroad!H27+'onroad all'!EI27+cmv_c1c2!H27+'ptfire-rx'!H27+ptegu!H27+ptnonipm!H27+pt_oilgas!H27+np_oilgas!H27+rwc!H27+cmv_c3!H27+livestock!C27+airports!H27+'ptfire-wild'!H27+vcp!H27 -> 191,684 | I28: =rail!AO27+nonpt!BN27+ptagfire!AI27+nonroad!AK27+'onroad all'!H27+cmv_c1c2!N27+'ptfire-rx'!AN27+ptegu!BM27+ptnonipm!BX27+pt_oilgas!BL27+np_oilgas!AT27+rwc!AJ27+cmv_c3!O27+livestock!U27+airports!AJ27+'ptfire-wild'!AK27+vcp!AA27 -> 4,270 | J28: =rail!AU27+nonpt!BT27+ptagfire!AM27+nonroad!AP27+'onroad all'!P27+cmv_c1c2!T27+'ptfire-rx'!AR27+ptegu!BS27+ptnonipm!CD27+pt_oilgas!BR27+np_oilgas!AZ27+rwc!AN27+cmv_c3!T27+livestock!X27+airports!AM27+'ptfire-wild'!AO27+vcp!AE27 -> 2,016 | K28: =rail!BR27+nonpt!CY27+ptagfire!AX27+nonroad!BH27+'onroad all'!BC27+cmv_c1c2!AO27+'ptfire-rx'!BD27+ptegu!CX27+ptnonipm!DP27+pt_oilgas!CV27+np_oilgas!BV27+rwc!BC27+cmv_c3!AP27+livestock!AH27+airports!BE27+'ptfire-wild'!AZ27+vcp!AQ27 -> 8,500 | L28: =rail!CF27+nonpt!DO27+ptagfire!BG27+nonroad!BT27+'onroad all'!BU27+cmv_c1c2!BC27+'ptfire-rx'!BM27+ptegu!DM27+ptnonipm!EH27+pt_oilgas!DK27+np_oilgas!CJ27+rwc!BP27+cmv_c3!BC27+livestock!AN27+airports!BN27+'ptfire-wild'!BI27+vcp!AX27 -> 8,832 | M28: =rail!CG27+nonpt!DQ27+nonroad!BU27+'onroad all'!BY27+cmv_c1c2!BD27+'ptfire-rx'!BO27+ptegu!DO27+ptnonipm!EJ27+pt_oilgas!DM27+np_oilgas!CK27+rwc!BQ27+cmv_c3!BD27+airports!BO27+'ptfire-wild'!BK27+vcp!AY27+ptagfire!BI27 -> 1,162 | N28: =rail!AN27+nonpt!BK27+nonroad!AJ27+'onroad all'!G27+cmv_c1c2!M27+'ptfire-rx'!AK27+ptegu!BK27+ptnonipm!BU27+pt_oilgas!BJ27+np_oilgas!AS27+rwc!AI27+airports!AH27+cmv_c3!M27+'ptfire-wild'!AI27+ptagfire!AG27 -> 1,280 | O28: =rail!AY27+nonpt!BY27+ptagfire!AO27+nonroad!AR27+'onroad all'!Z27+cmv_c1c2!V27+'ptfire-rx'!AT27+ptegu!BX27+ptnonipm!CI27+pt_oilgas!BW27+np_oilgas!BB27+rwc!AP27+airports!AO27+cmv_c3!V27+'ptfire-wild'!AQ27 -> 685 | P28: =rail!AD27+nonroad!AD27+'onroad all'!AK27+'onroad all'!AL27+'onroad all'!AM27+'onroad all'!AN27+'onroad all'!AO27+'onroad all'!AP27+ptnonipm!BI27+SUM(airports!AR27:AW27)+SUM(cmv_c1c2!AC27:AH27)+SUM(cmv_c3!AC27:AH27) -> 1,673 | Q28: =rail!AE27+nonroad!AE27+'onroad all'!AL27+'onroad all'!AM27+'onroad all'!AN27+'onroad all'!AO27+'onroad all'!AP27+ptnonipm!BJ27+SUM(airports!AS27:AW27)+SUM(cmv_c1c2!AD27:AH27)+SUM(cmv_c3!AD27:AH27) -> 1,603 | R28: =rail!P27+nonpt!T27+nonroad!R27+'onroad all'!AC27+ptegu!T27+ptnonipm!T27+pt_oilgas!S27+np_oilgas!R27+rwc!N27+SUM(cmv_c1c2!Z27:AA27)+SUM(cmv_c3!Z27:AA27) -> 0.17 | S28: =rail!K27+nonpt!L27+nonroad!U27+'onroad all'!M27+ptegu!L27+ptnonipm!L27+pt_oilgas!K27+np_oilgas!K27+SUM(cmv_c1c2!R27:S27)+SUM(cmv_c3!R27:S27) -> 0.99 | T28: =rail!O27+nonpt!P27+ptegu!P27+ptnonipm!P27+pt_oilgas!O27+np_oilgas!N27+rwc!M27+SUM(cmv_c1c2!W27:X27)+SUM(cmv_c3!W27:X27) -> 0.07 | U28: =rail!V27+nonpt!AI27+nonroad!T27+'onroad all'!CB27+ptegu!AH27+ptnonipm!AL27+pt_oilgas!AG27+np_oilgas!AB27+rwc!T27+SUM(cmv_c1c2!BG27:BH27)+SUM(cmv_c3!BG27:BH27) -> 3.09 | V28: =rail!T27+nonpt!AE27+nonroad!S27+'onroad all'!BS27+'onroad all'!BT27+ptegu!AD27+ptnonipm!AH27+pt_oilgas!AC27+np_oilgas!X27+rwc!R27+SUM(cmv_c1c2!BA27:BB27)+SUM(cmv_c3!BA27:BB27) -> 4.00 | W28: =nonpt!CW27+ptegu!CV27+ptnonipm!DN27 -> 0.00 | AA28: Montana | AB28: =B28+beis!H27 -> 803,386 | AC28: 65,314 | AD28: =D28+beis!T27 -> 111,166 | AE28: 256,439 | AF28: 75,961 | AG28: 20,794 | AH28: =H28+beis!Z27 -> 806,913 | AI28: =I28+beis!E27 -> 16,259 | AJ28: 2,016 | AK28: =K28+beis!N27 -> 24,849 | AL28: =L28+beis!R27 -> 63,034 | AM28: 1,162 | AN28: 1,280 | AO28: 685 | AP28: 1,673 | AQ28: 1,603 | AR28: 0.17 | AS28: 0.99 | AT28: 0.07 | AU28: 3.09 | AV28: 4.00 | AX28: Montana | AY28: =B28-'ptfire-rx'!B27 -> 510,438 | AZ28: =C28-'ptfire-rx'!C27 -> 62,404 | BA28: =D28-'ptfire-rx'!D27 -> 88,518 | BB28: =E28-'ptfire-rx'!E27 -> 238,242 | BC28: =F28-'ptfire-rx'!F27 -> 60,430 | BD28: =G28-'ptfire-rx'!G27 -> 19,547 | BE28: =H28-'ptfire-rx'!H27 -> 149,245 | BF28: =I28-'ptfire-rx'!AN27 -> 2,755 | BG28: =J28-'ptfire-rx'!AR27 -> 1,636 | BH28: =K28-'ptfire-rx'!BD27 -> 5,704 | BI28: =L28-'ptfire-rx'!BM27 -> 5,735 | BJ28: =M28-'ptfire-rx'!BO27 -> 774 | BK28: =N28-'ptfire-rx'!AK27 -> 797 | BL28: =O28-'ptfire-rx'!AT27 -> 463 | BM28: 1,673 | BN28: 1,603 | BO28: 0.17 | BP28: 0.99 | BQ28: 0.07 | BR28: 3.09 | BS28: 4.00
A29: Nebraska | B29: =rail!B28+nonpt!B28+ptagfire!B28+nonroad!B28+'onroad all'!AG28+cmv_c1c2!B28+'ptfire-rx'!B28+ptegu!B28+ptnonipm!B28+pt_oilgas!B28+np_oilgas!B28+rwc!B28+cmv_c3!B28+airports!B28+'ptfire-wild'!B28 -> 406,736 | C29: =rail!C28+nonpt!C28+ptagfire!C28++nonroad!C28+'onroad all'!BZ28+cmv_c1c2!BE28+'ptfire-rx'!C28+ptegu!C28+ptnonipm!C28+pt_oilgas!C28+np_oilgas!C28+rwc!C28+cmv_c3!BE28+livestock!B28+airports!C28+'ptfire-wild'!C28+fertilizer!B28 -> 184,145 | D29: =rail!D28+nonpt!D28+ptagfire!D28++nonroad!D28+cmv_c1c2!D28+'ptfire-rx'!D28+ptegu!DW28+ptnonipm!D28+pt_oilgas!D28+np_oilgas!D28+rwc!D28+cmv_c3!D28+'onroad all'!CI28+airports!D28+'ptfire-wild'!D28 -> 136,262 | E29: =rail!E28+nonpt!E28+ptagfire!E28++nonroad!E28+cmv_c1c2!E28+'ptfire-rx'!E28+ptegu!E28+ptnonipm!E28+pt_oilgas!E28+np_oilgas!E28+rwc!E28+cmv_c3!E28+afdust!BA28+'onroad all'!DE28+'onroad all'!DD28+airports!E28+'ptfire-wild'!E28 -> 261,756 | F29: =rail!F28+nonpt!F28+ptagfire!F28++nonroad!F28+cmv_c1c2!F28+'ptfire-rx'!F28+ptegu!F28+ptnonipm!F28+pt_oilgas!F28+np_oilgas!F28+rwc!F28+cmv_c3!F28+afdust!BB28+'onroad all'!DD28+airports!F28+'ptfire-wild'!F28 -> 53,908 | G29: =rail!G28+nonpt!G28+ptagfire!G28++nonroad!G28+'onroad all'!DU28+cmv_c1c2!G28+'ptfire-rx'!G28+ptegu!FH28+ptnonipm!G28+pt_oilgas!G28+np_oilgas!G28+rwc!G28+cmv_c3!G28+airports!G28+'ptfire-wild'!G28 -> 66,641 | H29: =rail!H28+nonpt!H28+ptagfire!H28++nonroad!H28+'onroad all'!EI28+cmv_c1c2!H28+'ptfire-rx'!H28+ptegu!H28+ptnonipm!H28+pt_oilgas!H28+np_oilgas!H28+rwc!H28+cmv_c3!H28+livestock!C28+airports!H28+'ptfire-wild'!H28+vcp!H28 -> 102,424 | I29: =rail!AO28+nonpt!BN28+ptagfire!AI28+nonroad!AK28+'onroad all'!H28+cmv_c1c2!N28+'ptfire-rx'!AN28+ptegu!BM28+ptnonipm!BX28+pt_oilgas!BL28+np_oilgas!AT28+rwc!AJ28+cmv_c3!O28+livestock!U28+airports!AJ28+'ptfire-wild'!AK28+vcp!AA28 -> 2,082 | J29: =rail!AU28+nonpt!BT28+ptagfire!AM28+nonroad!AP28+'onroad all'!P28+cmv_c1c2!T28+'ptfire-rx'!AR28+ptegu!BS28+ptnonipm!CD28+pt_oilgas!BR28+np_oilgas!AZ28+rwc!AN28+cmv_c3!T28+livestock!X28+airports!AM28+'ptfire-wild'!AO28+vcp!AE28 -> 1,017 | K29: =rail!BR28+nonpt!CY28+ptagfire!AX28+nonroad!BH28+'onroad all'!BC28+cmv_c1c2!AO28+'ptfire-rx'!BD28+ptegu!CX28+ptnonipm!DP28+pt_oilgas!CV28+np_oilgas!BV28+rwc!BC28+cmv_c3!AP28+livestock!AH28+airports!BE28+'ptfire-wild'!AZ28+vcp!AQ28 -> 3,474 | L29: =rail!CF28+nonpt!DO28+ptagfire!BG28+nonroad!BT28+'onroad all'!BU28+cmv_c1c2!BC28+'ptfire-rx'!BM28+ptegu!DM28+ptnonipm!EH28+pt_oilgas!DK28+np_oilgas!CJ28+rwc!BP28+cmv_c3!BC28+livestock!AN28+airports!BN28+'ptfire-wild'!BI28+vcp!AX28 -> 2,870 | M29: =rail!CG28+nonpt!DQ28+nonroad!BU28+'onroad all'!BY28+cmv_c1c2!BD28+'ptfire-rx'!BO28+ptegu!DO28+ptnonipm!EJ28+pt_oilgas!DM28+np_oilgas!CK28+rwc!BQ28+cmv_c3!BD28+airports!BO28+'ptfire-wild'!BK28+vcp!AY28+ptagfire!BI28 -> 446 | N29: =rail!AN28+nonpt!BK28+nonroad!AJ28+'onroad all'!G28+cmv_c1c2!M28+'ptfire-rx'!AK28+ptegu!BK28+ptnonipm!BU28+pt_oilgas!BJ28+np_oilgas!AS28+rwc!AI28+airports!AH28+cmv_c3!M28+'ptfire-wild'!AI28+ptagfire!AG28 -> 551 | O29: =rail!AY28+nonpt!BY28+ptagfire!AO28+nonroad!AR28+'onroad all'!Z28+cmv_c1c2!V28+'ptfire-rx'!AT28+ptegu!BX28+ptnonipm!CI28+pt_oilgas!BW28+np_oilgas!BB28+rwc!AP28+airports!AO28+cmv_c3!V28+'ptfire-wild'!AQ28 -> 261 | P29: =rail!AD28+nonroad!AD28+'onroad all'!AK28+'onroad all'!AL28+'onroad all'!AM28+'onroad all'!AN28+'onroad all'!AO28+'onroad all'!AP28+ptnonipm!BI28+SUM(airports!AR28:AW28)+SUM(cmv_c1c2!AC28:AH28)+SUM(cmv_c3!AC28:AH28) -> 2,964 | Q29: =rail!AE28+nonroad!AE28+'onroad all'!AL28+'onroad all'!AM28+'onroad all'!AN28+'onroad all'!AO28+'onroad all'!AP28+ptnonipm!BJ28+SUM(airports!AS28:AW28)+SUM(cmv_c1c2!AD28:AH28)+SUM(cmv_c3!AD28:AH28) -> 2,853 | R29: =rail!P28+nonpt!T28+nonroad!R28+'onroad all'!AC28+ptegu!T28+ptnonipm!T28+pt_oilgas!S28+np_oilgas!R28+rwc!N28+SUM(cmv_c1c2!Z28:AA28)+SUM(cmv_c3!Z28:AA28) -> 1.39 | S29: =rail!K28+nonpt!L28+nonroad!U28+'onroad all'!M28+ptegu!L28+ptnonipm!L28+pt_oilgas!K28+np_oilgas!K28+SUM(cmv_c1c2!R28:S28)+SUM(cmv_c3!R28:S28) -> 2.25 | T29: =rail!O28+nonpt!P28+ptegu!P28+ptnonipm!P28+pt_oilgas!O28+np_oilgas!N28+rwc!M28+SUM(cmv_c1c2!W28:X28)+SUM(cmv_c3!W28:X28) -> 0.19 | U29: =rail!V28+nonpt!AI28+nonroad!T28+'onroad all'!CB28+ptegu!AH28+ptnonipm!AL28+pt_oilgas!AG28+np_oilgas!AB28+rwc!T28+SUM(cmv_c1c2!BG28:BH28)+SUM(cmv_c3!BG28:BH28) -> 6.13 | V29: =rail!T28+nonpt!AE28+nonroad!S28+'onroad all'!BS28+'onroad all'!BT28+ptegu!AD28+ptnonipm!AH28+pt_oilgas!AC28+np_oilgas!X28+rwc!R28+SUM(cmv_c1c2!BA28:BB28)+SUM(cmv_c3!BA28:BB28) -> 9.69 | W29: =nonpt!CW28+ptegu!CV28+ptnonipm!DN28 -> 0.41 | X29: X | AA29: Nebraska | AB29: =B29+beis!H28 -> 461,700 | AC29: 184,145 | AD29: =D29+beis!T28 -> 170,846 | AE29: 261,756 | AF29: 53,908 | AG29: 66,641 | AH29: =H29+beis!Z28 -> 263,679 | AI29: =I29+beis!E28 -> 7,840 | AJ29: 1,017 | AK29: =K29+beis!N28 -> 11,326 | AL29: =L29+beis!R28 -> 34,868 | AM29: 446 | AN29: 551 | AO29: 261 | AP29: 2,964 | AQ29: 2,853 | AR29: 1.39 | AS29: 2.25 | AT29: 0.19 | AU29: 6.13 | AV29: 9.69 | AX29: Nebraska | AY29: =B29-'ptfire-rx'!B28 -> 313,618 | AZ29: =C29-'ptfire-rx'!C28 -> 182,634 | BA29: =D29-'ptfire-rx'!D28 -> 134,584 | BB29: =E29-'ptfire-rx'!E28 -> 251,373 | BC29: =F29-'ptfire-rx'!F28 -> 44,914 | BD29: =G29-'ptfire-rx'!G28 -> 65,821 | BE29: =H29-'ptfire-rx'!H28 -> 79,614 | BF29: =I29-'ptfire-rx'!AN28 -> 988 | BG29: =J29-'ptfire-rx'!AR28 -> 770 | BH29: =K29-'ptfire-rx'!BD28 -> 1,696 | BI29: =L29-'ptfire-rx'!BM28 -> 956 | BJ29: =M29-'ptfire-rx'!BO28 -> 220 | BK29: =N29-'ptfire-rx'!AK28 -> 181 | BL29: =O29-'ptfire-rx'!AT28 -> 125 | BM29: 2,964 | BN29: 2,853 | BO29: 1.39 | BP29: 2.25 | BQ29: 0.19 | BR29: 6.13 | BS29: 9.69
A30: Nevada | B30: =rail!B29+nonpt!B29+ptagfire!B29+nonroad!B29+'onroad all'!AG29+cmv_c1c2!B29+'ptfire-rx'!B29+ptegu!B29+ptnonipm!B29+pt_oilgas!B29+np_oilgas!B29+rwc!B29+cmv_c3!B29+airports!B29+'ptfire-wild'!B29 -> 781,743 | C30: =rail!C29+nonpt!C29+ptagfire!C29++nonroad!C29+'onroad all'!BZ29+cmv_c1c2!BE29+'ptfire-rx'!C29+ptegu!C29+ptnonipm!C29+pt_oilgas!C29+np_oilgas!C29+rwc!C29+cmv_c3!BE29+livestock!B29+airports!C29+'ptfire-wild'!C29+fertilizer!B29 -> 48,520 | D30: =rail!D29+nonpt!D29+ptagfire!D29++nonroad!D29+cmv_c1c2!D29+'ptfire-rx'!D29+ptegu!DW29+ptnonipm!D29+pt_oilgas!D29+np_oilgas!D29+rwc!D29+cmv_c3!D29+'onroad all'!CI29+airports!D29+'ptfire-wild'!D29 -> 73,850 | E30: =rail!E29+nonpt!E29+ptagfire!E29++nonroad!E29+cmv_c1c2!E29+'ptfire-rx'!E29+ptegu!E29+ptnonipm!E29+pt_oilgas!E29+np_oilgas!E29+rwc!E29+cmv_c3!E29+afdust!BA29+'onroad all'!DE29+'onroad all'!DD29+airports!E29+'ptfire-wild'!E29 -> 152,897 | F30: =rail!F29+nonpt!F29+ptagfire!F29++nonroad!F29+cmv_c1c2!F29+'ptfire-rx'!F29+ptegu!F29+ptnonipm!F29+pt_oilgas!F29+np_oilgas!F29+rwc!F29+cmv_c3!F29+afdust!BB29+'onroad all'!DD29+airports!F29+'ptfire-wild'!F29 -> 62,805 | G30: =rail!G29+nonpt!G29+ptagfire!G29++nonroad!G29+'onroad all'!DU29+cmv_c1c2!G29+'ptfire-rx'!G29+ptegu!FH29+ptnonipm!G29+pt_oilgas!G29+np_oilgas!G29+rwc!G29+cmv_c3!G29+airports!G29+'ptfire-wild'!G29 -> 9,373 | H30: =rail!H29+nonpt!H29+ptagfire!H29++nonroad!H29+'onroad all'!EI29+cmv_c1c2!H29+'ptfire-rx'!H29+ptegu!H29+ptnonipm!H29+pt_oilgas!H29+np_oilgas!H29+rwc!H29+cmv_c3!H29+livestock!C29+airports!H29+'ptfire-wild'!H29+vcp!H29 -> 172,714 | I30: =rail!AO29+nonpt!BN29+ptagfire!AI29+nonroad!AK29+'onroad all'!H29+cmv_c1c2!N29+'ptfire-rx'!AN29+ptegu!BM29+ptnonipm!BX29+pt_oilgas!BL29+np_oilgas!AT29+rwc!AJ29+cmv_c3!O29+livestock!U29+airports!AJ29+'ptfire-wild'!AK29+vcp!AA29 -> 4,260 | J30: =rail!AU29+nonpt!BT29+ptagfire!AM29+nonroad!AP29+'onroad all'!P29+cmv_c1c2!T29+'ptfire-rx'!AR29+ptegu!BS29+ptnonipm!CD29+pt_oilgas!BR29+np_oilgas!AZ29+rwc!AN29+cmv_c3!T29+livestock!X29+airports!AM29+'ptfire-wild'!AO29+vcp!AE29 -> 1,669 | K30: =rail!BR29+nonpt!CY29+ptagfire!AX29+nonroad!BH29+'onroad all'!BC29+cmv_c1c2!AO29+'ptfire-rx'!BD29+ptegu!CX29+ptnonipm!DP29+pt_oilgas!CV29+np_oilgas!BV29+rwc!BC29+cmv_c3!AP29+livestock!AH29+airports!BE29+'ptfire-wild'!AZ29+vcp!AQ29 -> 6,358 | L30: =rail!CF29+nonpt!DO29+ptagfire!BG29+nonroad!BT29+'onroad all'!BU29+cmv_c1c2!BC29+'ptfire-rx'!BM29+ptegu!DM29+ptnonipm!EH29+pt_oilgas!DK29+np_oilgas!CJ29+rwc!BP29+cmv_c3!BC29+livestock!AN29+airports!BN29+'ptfire-wild'!BI29+vcp!AX29 -> 5,614 | M30: =rail!CG29+nonpt!DQ29+nonroad!BU29+'onroad all'!BY29+cmv_c1c2!BD29+'ptfire-rx'!BO29+ptegu!DO29+ptnonipm!EJ29+pt_oilgas!DM29+np_oilgas!CK29+rwc!BQ29+cmv_c3!BD29+airports!BO29+'ptfire-wild'!BK29+vcp!AY29+ptagfire!BI29 -> 1,160 | N30: =rail!AN29+nonpt!BK29+nonroad!AJ29+'onroad all'!G29+cmv_c1c2!M29+'ptfire-rx'!AK29+ptegu!BK29+ptnonipm!BU29+pt_oilgas!BJ29+np_oilgas!AS29+rwc!AI29+airports!AH29+cmv_c3!M29+'ptfire-wild'!AI29+ptagfire!AG29 -> 1,147 | O30: =rail!AY29+nonpt!BY29+ptagfire!AO29+nonroad!AR29+'onroad all'!Z29+cmv_c1c2!V29+'ptfire-rx'!AT29+ptegu!BX29+ptnonipm!CI29+pt_oilgas!BW29+np_oilgas!BB29+rwc!AP29+airports!AO29+cmv_c3!V29+'ptfire-wild'!AQ29 -> 687 | P30: =rail!AD29+nonroad!AD29+'onroad all'!AK29+'onroad all'!AL29+'onroad all'!AM29+'onroad all'!AN29+'onroad all'!AO29+'onroad all'!AP29+ptnonipm!BI29+SUM(airports!AR29:AW29)+SUM(cmv_c1c2!AC29:AH29)+SUM(cmv_c3!AC29:AH29) -> 1,518 | Q30: =rail!AE29+nonroad!AE29+'onroad all'!AL29+'onroad all'!AM29+'onroad all'!AN29+'onroad all'!AO29+'onroad all'!AP29+ptnonipm!BJ29+SUM(airports!AS29:AW29)+SUM(cmv_c1c2!AD29:AH29)+SUM(cmv_c3!AD29:AH29) -> 1,452 | R30: =rail!P29+nonpt!T29+nonroad!R29+'onroad all'!AC29+ptegu!T29+ptnonipm!T29+pt_oilgas!S29+np_oilgas!R29+rwc!N29+SUM(cmv_c1c2!Z29:AA29)+SUM(cmv_c3!Z29:AA29) -> 2.19 | S30: =rail!K29+nonpt!L29+nonroad!U29+'onroad all'!M29+ptegu!L29+ptnonipm!L29+pt_oilgas!K29+np_oilgas!K29+SUM(cmv_c1c2!R29:S29)+SUM(cmv_c3!R29:S29) -> 1.81 | T30: =rail!O29+nonpt!P29+ptegu!P29+ptnonipm!P29+pt_oilgas!O29+np_oilgas!N29+rwc!M29+SUM(cmv_c1c2!W29:X29)+SUM(cmv_c3!W29:X29) -> 0.11 | U30: =rail!V29+nonpt!AI29+nonroad!T29+'onroad all'!CB29+ptegu!AH29+ptnonipm!AL29+pt_oilgas!AG29+np_oilgas!AB29+rwc!T29+SUM(cmv_c1c2!BG29:BH29)+SUM(cmv_c3!BG29:BH29) -> 1.89 | V30: =rail!T29+nonpt!AE29+nonroad!S29+'onroad all'!BS29+'onroad all'!BT29+ptegu!AD29+ptnonipm!AH29+pt_oilgas!AC29+np_oilgas!X29+rwc!R29+SUM(cmv_c1c2!BA29:BB29)+SUM(cmv_c3!BA29:BB29) -> 44.70 | W30: =nonpt!CW29+ptegu!CV29+ptnonipm!DN29 -> 0.04 | AA30: Nevada | AB30: =B30+beis!H29 -> 870,089 | AC30: 48,520 | AD30: =D30+beis!T29 -> 88,385 | AE30: 152,897 | AF30: 62,805 | AG30: 9,373 | AH30: =H30+beis!Z29 -> 521,467 | AI30: =I30+beis!E29 -> 13,515 | AJ30: 1,669 | AK30: =K30+beis!N29 -> 18,979 | AL30: =L30+beis!R29 -> 63,435 | AM30: 1,160 | AN30: 1,147 | AO30: 687 | AP30: 1,518 | AQ30: 1,452 | AR30: 2.19 | AS30: 1.81 | AT30: 0.11 | AU30: 1.89 | AV30: 44.70 | AX30: Nevada | AY30: =B30-'ptfire-rx'!B29 -> 774,307 | AZ30: =C30-'ptfire-rx'!C29 -> 48,400 | BA30: =D30-'ptfire-rx'!D29 -> 73,703 | BB30: =E30-'ptfire-rx'!E29 -> 152,052 | BC30: =F30-'ptfire-rx'!F29 -> 62,072 | BD30: =G30-'ptfire-rx'!G29 -> 9,304 | BE30: =H30-'ptfire-rx'!H29 -> 170,883 | BF30: =I30-'ptfire-rx'!AN29 -> 4,183 | BG30: =J30-'ptfire-rx'!AR29 -> 1,652 | BH30: =K30-'ptfire-rx'!BD29 -> 6,263 | BI30: =L30-'ptfire-rx'!BM29 -> 5,529 | BJ30: =M30-'ptfire-rx'!BO29 -> 1,145 | BK30: =N30-'ptfire-rx'!AK29 -> 1,120 | BL30: =O30-'ptfire-rx'!AT29 -> 678 | BM30: 1,518 | BN30: 1,452 | BO30: 2.19 | BP30: 1.81 | BQ30: 0.11 | BR30: 1.89 | BS30: 44.70
A31: New Hampshire | B31: =rail!B30+nonpt!B30+ptagfire!B30+nonroad!B30+'onroad all'!AG30+cmv_c1c2!B30+'ptfire-rx'!B30+ptegu!B30+ptnonipm!B30+pt_oilgas!B30+np_oilgas!B30+rwc!B30+cmv_c3!B30+airports!B30+'ptfire-wild'!B30 -> 188,371 | C31: =rail!C30+nonpt!C30+ptagfire!C30++nonroad!C30+'onroad all'!BZ30+cmv_c1c2!BE30+'ptfire-rx'!C30+ptegu!C30+ptnonipm!C30+pt_oilgas!C30+np_oilgas!C30+rwc!C30+cmv_c3!BE30+livestock!B30+airports!C30+'ptfire-wild'!C30+fertilizer!B30 -> 1,771 | D31: =rail!D30+nonpt!D30+ptagfire!D30++nonroad!D30+cmv_c1c2!D30+'ptfire-rx'!D30+ptegu!DW30+ptnonipm!D30+pt_oilgas!D30+np_oilgas!D30+rwc!D30+cmv_c3!D30+'onroad all'!CI30+airports!D30+'ptfire-wild'!D30 -> 25,948 | E31: =rail!E30+nonpt!E30+ptagfire!E30++nonroad!E30+cmv_c1c2!E30+'ptfire-rx'!E30+ptegu!E30+ptnonipm!E30+pt_oilgas!E30+np_oilgas!E30+rwc!E30+cmv_c3!E30+afdust!BA30+'onroad all'!DE30+'onroad all'!DD30+airports!E30+'ptfire-wild'!E30 -> 11,624 | F31: =rail!F30+nonpt!F30+ptagfire!F30++nonroad!F30+cmv_c1c2!F30+'ptfire-rx'!F30+ptegu!F30+ptnonipm!F30+pt_oilgas!F30+np_oilgas!F30+rwc!F30+cmv_c3!F30+afdust!BB30+'onroad all'!DD30+airports!F30+'ptfire-wild'!F30 -> 9,048 | G31: =rail!G30+nonpt!G30+ptagfire!G30++nonroad!G30+'onroad all'!DU30+cmv_c1c2!G30+'ptfire-rx'!G30+ptegu!FH30+ptnonipm!G30+pt_oilgas!G30+np_oilgas!G30+rwc!G30+cmv_c3!G30+airports!G30+'ptfire-wild'!G30 -> 6,669 | H31: =rail!H30+nonpt!H30+ptagfire!H30++nonroad!H30+'onroad all'!EI30+cmv_c1c2!H30+'ptfire-rx'!H30+ptegu!H30+ptnonipm!H30+pt_oilgas!H30+np_oilgas!H30+rwc!H30+cmv_c3!H30+livestock!C30+airports!H30+'ptfire-wild'!H30+vcp!H30 -> 32,920 | I31: =rail!AO30+nonpt!BN30+ptagfire!AI30+nonroad!AK30+'onroad all'!H30+cmv_c1c2!N30+'ptfire-rx'!AN30+ptegu!BM30+ptnonipm!BX30+pt_oilgas!BL30+np_oilgas!AT30+rwc!AJ30+cmv_c3!O30+livestock!U30+airports!AJ30+'ptfire-wild'!AK30+vcp!AA30 -> 261 | J31: =rail!AU30+nonpt!BT30+ptagfire!AM30+nonroad!AP30+'onroad all'!P30+cmv_c1c2!T30+'ptfire-rx'!AR30+ptegu!BS30+ptnonipm!CD30+pt_oilgas!BR30+np_oilgas!AZ30+rwc!AN30+cmv_c3!T30+livestock!X30+airports!AM30+'ptfire-wild'!AO30+vcp!AE30 -> 612 | K31: =rail!BR30+nonpt!CY30+ptagfire!AX30+nonroad!BH30+'onroad all'!BC30+cmv_c1c2!AO30+'ptfire-rx'!BD30+ptegu!CX30+ptnonipm!DP30+pt_oilgas!CV30+np_oilgas!BV30+rwc!BC30+cmv_c3!AP30+livestock!AH30+airports!BE30+'ptfire-wild'!AZ30+vcp!AQ30 -> 556 | L31: =rail!CF30+nonpt!DO30+ptagfire!BG30+nonroad!BT30+'onroad all'!BU30+cmv_c1c2!BC30+'ptfire-rx'!BM30+ptegu!DM30+ptnonipm!EH30+pt_oilgas!DK30+np_oilgas!CJ30+rwc!BP30+cmv_c3!BC30+livestock!AN30+airports!BN30+'ptfire-wild'!BI30+vcp!AX30 -> 339 | M31: =rail!CG30+nonpt!DQ30+nonroad!BU30+'onroad all'!BY30+cmv_c1c2!BD30+'ptfire-rx'!BO30+ptegu!DO30+ptnonipm!EJ30+pt_oilgas!DM30+np_oilgas!CK30+rwc!BQ30+cmv_c3!BD30+airports!BO30+'ptfire-wild'!BK30+vcp!AY30+ptagfire!BI30 -> 93 | N31: =rail!AN30+nonpt!BK30+nonroad!AJ30+'onroad all'!G30+cmv_c1c2!M30+'ptfire-rx'!AK30+ptegu!BK30+ptnonipm!BU30+pt_oilgas!BJ30+np_oilgas!AS30+rwc!AI30+airports!AH30+cmv_c3!M30+'ptfire-wild'!AI30+ptagfire!AG30 -> 34 | O31: =rail!AY30+nonpt!BY30+ptagfire!AO30+nonroad!AR30+'onroad all'!Z30+cmv_c1c2!V30+'ptfire-rx'!AT30+ptegu!BX30+ptnonipm!CI30+pt_oilgas!BW30+np_oilgas!BB30+rwc!AP30+airports!AO30+cmv_c3!V30+'ptfire-wild'!AQ30 -> 85 | P31: =rail!AD30+nonroad!AD30+'onroad all'!AK30+'onroad all'!AL30+'onroad all'!AM30+'onroad all'!AN30+'onroad all'!AO30+'onroad all'!AP30+ptnonipm!BI30+SUM(airports!AR30:AW30)+SUM(cmv_c1c2!AC30:AH30)+SUM(cmv_c3!AC30:AH30) -> 341 | Q31: =rail!AE30+nonroad!AE30+'onroad all'!AL30+'onroad all'!AM30+'onroad all'!AN30+'onroad all'!AO30+'onroad all'!AP30+ptnonipm!BJ30+SUM(airports!AS30:AW30)+SUM(cmv_c1c2!AD30:AH30)+SUM(cmv_c3!AD30:AH30) -> 323 | R31: =rail!P30+nonpt!T30+nonroad!R30+'onroad all'!AC30+ptegu!T30+ptnonipm!T30+pt_oilgas!S30+np_oilgas!R30+rwc!N30+SUM(cmv_c1c2!Z30:AA30)+SUM(cmv_c3!Z30:AA30) -> 0.08 | S31: =rail!K30+nonpt!L30+nonroad!U30+'onroad all'!M30+ptegu!L30+ptnonipm!L30+pt_oilgas!K30+np_oilgas!K30+SUM(cmv_c1c2!R30:S30)+SUM(cmv_c3!R30:S30) -> 0.81 | T31: =rail!O30+nonpt!P30+ptegu!P30+ptnonipm!P30+pt_oilgas!O30+np_oilgas!N30+rwc!M30+SUM(cmv_c1c2!W30:X30)+SUM(cmv_c3!W30:X30) -> 0.79 | U31: =rail!V30+nonpt!AI30+nonroad!T30+'onroad all'!CB30+ptegu!AH30+ptnonipm!AL30+pt_oilgas!AG30+np_oilgas!AB30+rwc!T30+SUM(cmv_c1c2!BG30:BH30)+SUM(cmv_c3!BG30:BH30) -> 1.19 | V31: =rail!T30+nonpt!AE30+nonroad!S30+'onroad all'!BS30+'onroad all'!BT30+ptegu!AD30+ptnonipm!AH30+pt_oilgas!AC30+np_oilgas!X30+rwc!R30+SUM(cmv_c1c2!BA30:BB30)+SUM(cmv_c3!BA30:BB30) -> 7.80 | W31: =nonpt!CW30+ptegu!CV30+ptnonipm!DN30 -> 0.00 | X31: X | AA31: New Hampshire | AB31: =B31+beis!H30 -> 202,527 | AC31: 1,771 | AD31: =D31+beis!T30 -> 26,552 | AE31: 11,624 | AF31: 9,048 | AG31: 6,669 | AH31: =H31+beis!Z30 -> 126,503 | AI31: =I31+beis!E30 -> 1,742 | AJ31: 612 | AK31: =K31+beis!N30 -> 2,576 | AL31: =L31+beis!R30 -> 5,926 | AM31: 93 | AN31: 34 | AO31: 85 | AP31: 341 | AQ31: 323 | AR31: 0.08 | AS31: 0.81 | AT31: 0.79 | AU31: 1.19 | AV31: 7.80 | AX31: New Hampshire | AY31: =B31-'ptfire-rx'!B30 -> 186,775 | AZ31: =C31-'ptfire-rx'!C30 -> 1,744 | BA31: =D31-'ptfire-rx'!D30 -> 25,926 | BB31: =E31-'ptfire-rx'!E30 -> 11,461 | BC31: =F31-'ptfire-rx'!F30 -> 8,909 | BD31: =G31-'ptfire-rx'!G30 -> 6,657 | BE31: =H31-'ptfire-rx'!H30 -> 32,544 | BF31: =I31-'ptfire-rx'!AN30 -> 253 | BG31: =J31-'ptfire-rx'!AR30 -> 608 | BH31: =K31-'ptfire-rx'!BD30 -> 535 | BI31: =L31-'ptfire-rx'!BM30 -> 327 | BJ31: =M31-'ptfire-rx'!BO30 -> 91 | BK31: =N31-'ptfire-rx'!AK30 -> 30 | BL31: =O31-'ptfire-rx'!AT30 -> 82 | BM31: 341 | BN31: 323 | BO31: 0.08 | BP31: 0.81 | BQ31: 0.79 | BR31: 1.19 | BS31: 7.80
A32: New Jersey | B32: =rail!B31+nonpt!B31+ptagfire!B31+nonroad!B31+'onroad all'!AG31+cmv_c1c2!B31+'ptfire-rx'!B31+ptegu!B31+ptnonipm!B31+pt_oilgas!B31+np_oilgas!B31+rwc!B31+cmv_c3!B31+airports!B31+'ptfire-wild'!B31 -> 696,894 | C32: =rail!C31+nonpt!C31+ptagfire!C31++nonroad!C31+'onroad all'!BZ31+cmv_c1c2!BE31+'ptfire-rx'!C31+ptegu!C31+ptnonipm!C31+pt_oilgas!C31+np_oilgas!C31+rwc!C31+cmv_c3!BE31+livestock!B31+airports!C31+'ptfire-wild'!C31+fertilizer!B31 -> 6,569 | D32: =rail!D31+nonpt!D31+ptagfire!D31++nonroad!D31+cmv_c1c2!D31+'ptfire-rx'!D31+ptegu!DW31+ptnonipm!D31+pt_oilgas!D31+np_oilgas!D31+rwc!D31+cmv_c3!D31+'onroad all'!CI31+airports!D31+'ptfire-wild'!D31 -> 118,514 | E32: =rail!E31+nonpt!E31+ptagfire!E31++nonroad!E31+cmv_c1c2!E31+'ptfire-rx'!E31+ptegu!E31+ptnonipm!E31+pt_oilgas!E31+np_oilgas!E31+rwc!E31+cmv_c3!E31+afdust!BA31+'onroad all'!DE31+'onroad all'!DD31+airports!E31+'ptfire-wild'!E31 -> 30,223 | F32: =rail!F31+nonpt!F31+ptagfire!F31++nonroad!F31+cmv_c1c2!F31+'ptfire-rx'!F31+ptegu!F31+ptnonipm!F31+pt_oilgas!F31+np_oilgas!F31+rwc!F31+cmv_c3!F31+afdust!BB31+'onroad all'!DD31+airports!F31+'ptfire-wild'!F31 -> 20,462 | G32: =rail!G31+nonpt!G31+ptagfire!G31++nonroad!G31+'onroad all'!DU31+cmv_c1c2!G31+'ptfire-rx'!G31+ptegu!FH31+ptnonipm!G31+pt_oilgas!G31+np_oilgas!G31+rwc!G31+cmv_c3!G31+airports!G31+'ptfire-wild'!G31 -> 4,345 | H32: =rail!H31+nonpt!H31+ptagfire!H31++nonroad!H31+'onroad all'!EI31+cmv_c1c2!H31+'ptfire-rx'!H31+ptegu!H31+ptnonipm!H31+pt_oilgas!H31+np_oilgas!H31+rwc!H31+cmv_c3!H31+livestock!C31+airports!H31+'ptfire-wild'!H31+vcp!H31 -> 149,348 | I32: =rail!AO31+nonpt!BN31+ptagfire!AI31+nonroad!AK31+'onroad all'!H31+cmv_c1c2!N31+'ptfire-rx'!AN31+ptegu!BM31+ptnonipm!BX31+pt_oilgas!BL31+np_oilgas!AT31+rwc!AJ31+cmv_c3!O31+livestock!U31+airports!AJ31+'ptfire-wild'!AK31+vcp!AA31 -> 864 | J32: =rail!AU31+nonpt!BT31+ptagfire!AM31+nonroad!AP31+'onroad all'!P31+cmv_c1c2!T31+'ptfire-rx'!AR31+ptegu!BS31+ptnonipm!CD31+pt_oilgas!BR31+np_oilgas!AZ31+rwc!AN31+cmv_c3!T31+livestock!X31+airports!AM31+'ptfire-wild'!AO31+vcp!AE31 -> 1,715 | K32: =rail!BR31+nonpt!CY31+ptagfire!AX31+nonroad!BH31+'onroad all'!BC31+cmv_c1c2!AO31+'ptfire-rx'!BD31+ptegu!CX31+ptnonipm!DP31+pt_oilgas!CV31+np_oilgas!BV31+rwc!BC31+cmv_c3!AP31+livestock!AH31+airports!BE31+'ptfire-wild'!AZ31+vcp!AQ31 -> 1,871 | L32: =rail!CF31+nonpt!DO31+ptagfire!BG31+nonroad!BT31+'onroad all'!BU31+cmv_c1c2!BC31+'ptfire-rx'!BM31+ptegu!DM31+ptnonipm!EH31+pt_oilgas!DK31+np_oilgas!CJ31+rwc!BP31+cmv_c3!BC31+livestock!AN31+airports!BN31+'ptfire-wild'!BI31+vcp!AX31 -> 2,114 | M32: =rail!CG31+nonpt!DQ31+nonroad!BU31+'onroad all'!BY31+cmv_c1c2!BD31+'ptfire-rx'!BO31+ptegu!DO31+ptnonipm!EJ31+pt_oilgas!DM31+np_oilgas!CK31+rwc!BQ31+cmv_c3!BD31+airports!BO31+'ptfire-wild'!BK31+vcp!AY31+ptagfire!BI31 -> 255 | N32: =rail!AN31+nonpt!BK31+nonroad!AJ31+'onroad all'!G31+cmv_c1c2!M31+'ptfire-rx'!AK31+ptegu!BK31+ptnonipm!BU31+pt_oilgas!BJ31+np_oilgas!AS31+rwc!AI31+airports!AH31+cmv_c3!M31+'ptfire-wild'!AI31+ptagfire!AG31 -> 160 | O32: =rail!AY31+nonpt!BY31+ptagfire!AO31+nonroad!AR31+'onroad all'!Z31+cmv_c1c2!V31+'ptfire-rx'!AT31+ptegu!BX31+ptnonipm!CI31+pt_oilgas!BW31+np_oilgas!BB31+rwc!AP31+airports!AO31+cmv_c3!V31+'ptfire-wild'!AQ31 -> 279 | P32: =rail!AD31+nonroad!AD31+'onroad all'!AK31+'onroad all'!AL31+'onroad all'!AM31+'onroad all'!AN31+'onroad all'!AO31+'onroad all'!AP31+ptnonipm!BI31+SUM(airports!AR31:AW31)+SUM(cmv_c1c2!AC31:AH31)+SUM(cmv_c3!AC31:AH31) -> 2,283 | Q32: =rail!AE31+nonroad!AE31+'onroad all'!AL31+'onroad all'!AM31+'onroad all'!AN31+'onroad all'!AO31+'onroad all'!AP31+ptnonipm!BJ31+SUM(airports!AS31:AW31)+SUM(cmv_c1c2!AD31:AH31)+SUM(cmv_c3!AD31:AH31) -> 2,165 | R32: =rail!P31+nonpt!T31+nonroad!R31+'onroad all'!AC31+ptegu!T31+ptnonipm!T31+pt_oilgas!S31+np_oilgas!R31+rwc!N31+SUM(cmv_c1c2!Z31:AA31)+SUM(cmv_c3!Z31:AA31) -> 0.09 | S32: =rail!K31+nonpt!L31+nonroad!U31+'onroad all'!M31+ptegu!L31+ptnonipm!L31+pt_oilgas!K31+np_oilgas!K31+SUM(cmv_c1c2!R31:S31)+SUM(cmv_c3!R31:S31) -> 0.51 | T32: =rail!O31+nonpt!P31+ptegu!P31+ptnonipm!P31+pt_oilgas!O31+np_oilgas!N31+rwc!M31+SUM(cmv_c1c2!W31:X31)+SUM(cmv_c3!W31:X31) -> 0.26 | U32: =rail!V31+nonpt!AI31+nonroad!T31+'onroad all'!CB31+ptegu!AH31+ptnonipm!AL31+pt_oilgas!AG31+np_oilgas!AB31+rwc!T31+SUM(cmv_c1c2!BG31:BH31)+SUM(cmv_c3!BG31:BH31) -> 1.90 | V32: =rail!T31+nonpt!AE31+nonroad!S31+'onroad all'!BS31+'onroad all'!BT31+ptegu!AD31+ptnonipm!AH31+pt_oilgas!AC31+np_oilgas!X31+rwc!R31+SUM(cmv_c1c2!BA31:BB31)+SUM(cmv_c3!BA31:BB31) -> 3.53 | W32: =nonpt!CW31+ptegu!CV31+ptnonipm!DN31 -> 0.13 | X32: X | AA32: New Jersey | AB32: =B32+beis!H31 -> 707,644 | AC32: 6,569 | AD32: =D32+beis!T31 -> 120,511 | AE32: 30,223 | AF32: 20,462 | AG32: 4,345 | AH32: =H32+beis!Z31 -> 242,023 | AI32: =I32+beis!E31 -> 1,989 | AJ32: 1,715 | AK32: =K32+beis!N31 -> 3,405 | AL32: =L32+beis!R31 -> 6,999 | AM32: 255 | AN32: 160 | AO32: 279 | AP32: 2,283 | AQ32: 2,165 | AR32: 0.09 | AS32: 0.51 | AT32: 0.26 | AU32: 1.90 | AV32: 3.53 | AX32: New Jersey | AY32: =B32-'ptfire-rx'!B31 -> 677,829 | AZ32: =C32-'ptfire-rx'!C31 -> 6,257 | BA32: =D32-'ptfire-rx'!D31 -> 118,265 | BB32: =E32-'ptfire-rx'!E31 -> 28,292 | BC32: =F32-'ptfire-rx'!F31 -> 18,825 | BD32: =G32-'ptfire-rx'!G31 -> 4,205 | BE32: =H32-'ptfire-rx'!H31 -> 144,851 | BF32: =I32-'ptfire-rx'!AN31 -> 772 | BG32: =J32-'ptfire-rx'!AR31 -> 1,675 | BH32: =K32-'ptfire-rx'!BD31 -> 1,630 | BI32: =L32-'ptfire-rx'!BM31 -> 1,973 | BJ32: =M32-'ptfire-rx'!BO31 -> 226 | BK32: =N32-'ptfire-rx'!AK31 -> 114 | BL32: =O32-'ptfire-rx'!AT31 -> 242 | BM32: 2,283 | BN32: 2,165 | BO32: 0.09 | BP32: 0.51 | BQ32: 0.26 | BR32: 1.90 | BS32: 3.53
A33: New Mexico | B33: =rail!B32+nonpt!B32+ptagfire!B32+nonroad!B32+'onroad all'!AG32+cmv_c1c2!B32+'ptfire-rx'!B32+ptegu!B32+ptnonipm!B32+pt_oilgas!B32+np_oilgas!B32+rwc!B32+cmv_c3!B32+airports!B32+'ptfire-wild'!B32 -> 726,149 | C33: =rail!C32+nonpt!C32+ptagfire!C32++nonroad!C32+'onroad all'!BZ32+cmv_c1c2!BE32+'ptfire-rx'!C32+ptegu!C32+ptnonipm!C32+pt_oilgas!C32+np_oilgas!C32+rwc!C32+cmv_c3!BE32+livestock!B32+airports!C32+'ptfire-wild'!C32+fertilizer!B32 -> 49,495 | D33: =rail!D32+nonpt!D32+ptagfire!D32++nonroad!D32+cmv_c1c2!D32+'ptfire-rx'!D32+ptegu!DW32+ptnonipm!D32+pt_oilgas!D32+np_oilgas!D32+rwc!D32+cmv_c3!D32+'onroad all'!CI32+airports!D32+'ptfire-wild'!D32 -> 169,181 | E33: =rail!E32+nonpt!E32+ptagfire!E32++nonroad!E32+cmv_c1c2!E32+'ptfire-rx'!E32+ptegu!E32+ptnonipm!E32+pt_oilgas!E32+np_oilgas!E32+rwc!E32+cmv_c3!E32+afdust!BA32+'onroad all'!DE32+'onroad all'!DD32+airports!E32+'ptfire-wild'!E32 -> 184,075 | F33: =rail!F32+nonpt!F32+ptagfire!F32++nonroad!F32+cmv_c1c2!F32+'ptfire-rx'!F32+ptegu!F32+ptnonipm!F32+pt_oilgas!F32+np_oilgas!F32+rwc!F32+cmv_c3!F32+afdust!BB32+'onroad all'!DD32+airports!F32+'ptfire-wild'!F32 -> 59,482 | G33: =rail!G32+nonpt!G32+ptagfire!G32++nonroad!G32+'onroad all'!DU32+cmv_c1c2!G32+'ptfire-rx'!G32+ptegu!FH32+ptnonipm!G32+pt_oilgas!G32+np_oilgas!G32+rwc!G32+cmv_c3!G32+airports!G32+'ptfire-wild'!G32 -> 18,872 | H33: =rail!H32+nonpt!H32+ptagfire!H32++nonroad!H32+'onroad all'!EI32+cmv_c1c2!H32+'ptfire-rx'!H32+ptegu!H32+ptnonipm!H32+pt_oilgas!H32+np_oilgas!H32+rwc!H32+cmv_c3!H32+livestock!C32+airports!H32+'ptfire-wild'!H32+vcp!H32 -> 353,194 | I33: =rail!AO32+nonpt!BN32+ptagfire!AI32+nonroad!AK32+'onroad all'!H32+cmv_c1c2!N32+'ptfire-rx'!AN32+ptegu!BM32+ptnonipm!BX32+pt_oilgas!BL32+np_oilgas!AT32+rwc!AJ32+cmv_c3!O32+livestock!U32+airports!AJ32+'ptfire-wild'!AK32+vcp!AA32 -> 3,251 | J33: =rail!AU32+nonpt!BT32+ptagfire!AM32+nonroad!AP32+'onroad all'!P32+cmv_c1c2!T32+'ptfire-rx'!AR32+ptegu!BS32+ptnonipm!CD32+pt_oilgas!BR32+np_oilgas!AZ32+rwc!AN32+cmv_c3!T32+livestock!X32+airports!AM32+'ptfire-wild'!AO32+vcp!AE32 -> 2,841 | K33: =rail!BR32+nonpt!CY32+ptagfire!AX32+nonroad!BH32+'onroad all'!BC32+cmv_c1c2!AO32+'ptfire-rx'!BD32+ptegu!CX32+ptnonipm!DP32+pt_oilgas!CV32+np_oilgas!BV32+rwc!BC32+cmv_c3!AP32+livestock!AH32+airports!BE32+'ptfire-wild'!AZ32+vcp!AQ32 -> 5,901 | L33: =rail!CF32+nonpt!DO32+ptagfire!BG32+nonroad!BT32+'onroad all'!BU32+cmv_c1c2!BC32+'ptfire-rx'!BM32+ptegu!DM32+ptnonipm!EH32+pt_oilgas!DK32+np_oilgas!CJ32+rwc!BP32+cmv_c3!BC32+livestock!AN32+airports!BN32+'ptfire-wild'!BI32+vcp!AX32 -> 5,491 | M33: =rail!CG32+nonpt!DQ32+nonroad!BU32+'onroad all'!BY32+cmv_c1c2!BD32+'ptfire-rx'!BO32+ptegu!DO32+ptnonipm!EJ32+pt_oilgas!DM32+np_oilgas!CK32+rwc!BQ32+cmv_c3!BD32+airports!BO32+'ptfire-wild'!BK32+vcp!AY32+ptagfire!BI32 -> 930 | N33: =rail!AN32+nonpt!BK32+nonroad!AJ32+'onroad all'!G32+cmv_c1c2!M32+'ptfire-rx'!AK32+ptegu!BK32+ptnonipm!BU32+pt_oilgas!BJ32+np_oilgas!AS32+rwc!AI32+airports!AH32+cmv_c3!M32+'ptfire-wild'!AI32+ptagfire!AG32 -> 1,027 | O33: =rail!AY32+nonpt!BY32+ptagfire!AO32+nonroad!AR32+'onroad all'!Z32+cmv_c1c2!V32+'ptfire-rx'!AT32+ptegu!BX32+ptnonipm!CI32+pt_oilgas!BW32+np_oilgas!BB32+rwc!AP32+airports!AO32+cmv_c3!V32+'ptfire-wild'!AQ32 -> 504 | P33: =rail!AD32+nonroad!AD32+'onroad all'!AK32+'onroad all'!AL32+'onroad all'!AM32+'onroad all'!AN32+'onroad all'!AO32+'onroad all'!AP32+ptnonipm!BI32+SUM(airports!AR32:AW32)+SUM(cmv_c1c2!AC32:AH32)+SUM(cmv_c3!AC32:AH32) -> 1,756 | Q33: =rail!AE32+nonroad!AE32+'onroad all'!AL32+'onroad all'!AM32+'onroad all'!AN32+'onroad all'!AO32+'onroad all'!AP32+ptnonipm!BJ32+SUM(airports!AS32:AW32)+SUM(cmv_c1c2!AD32:AH32)+SUM(cmv_c3!AD32:AH32) -> 1,662 | R33: =rail!P32+nonpt!T32+nonroad!R32+'onroad all'!AC32+ptegu!T32+ptnonipm!T32+pt_oilgas!S32+np_oilgas!R32+rwc!N32+SUM(cmv_c1c2!Z32:AA32)+SUM(cmv_c3!Z32:AA32) -> 0.05 | S33: =rail!K32+nonpt!L32+nonroad!U32+'onroad all'!M32+ptegu!L32+ptnonipm!L32+pt_oilgas!K32+np_oilgas!K32+SUM(cmv_c1c2!R32:S32)+SUM(cmv_c3!R32:S32) -> 0.77 | T33: =rail!O32+nonpt!P32+ptegu!P32+ptnonipm!P32+pt_oilgas!O32+np_oilgas!N32+rwc!M32+SUM(cmv_c1c2!W32:X32)+SUM(cmv_c3!W32:X32) -> 0.07 | U33: =rail!V32+nonpt!AI32+nonroad!T32+'onroad all'!CB32+ptegu!AH32+ptnonipm!AL32+pt_oilgas!AG32+np_oilgas!AB32+rwc!T32+SUM(cmv_c1c2!BG32:BH32)+SUM(cmv_c3!BG32:BH32) -> 2.95 | V33: =rail!T32+nonpt!AE32+nonroad!S32+'onroad all'!BS32+'onroad all'!BT32+ptegu!AD32+ptnonipm!AH32+pt_oilgas!AC32+np_oilgas!X32+rwc!R32+SUM(cmv_c1c2!BA32:BB32)+SUM(cmv_c3!BA32:BB32) -> 1.74 | W33: =nonpt!CW32+ptegu!CV32+ptnonipm!DN32 -> 0.49 | AA33: New Mexico | AB33: =B33+beis!H32 -> 843,148 | AC33: 49,495 | AD33: =D33+beis!T32 -> 185,705 | AE33: 184,075 | AF33: 59,482 | AG33: 18,872 | AH33: =H33+beis!Z32 -> 863,914 | AI33: =I33+beis!E32 -> 15,508 | AJ33: 2,841 | AK33: =K33+beis!N32 -> 22,616 | AL33: =L33+beis!R32 -> 81,994 | AM33: 930 | AN33: 1,027 | AO33: 504 | AP33: 1,756 | AQ33: 1,662 | AR33: 0.05 | AS33: 0.77 | AT33: 0.07 | AU33: 2.95 | AV33: 1.74 | AX33: New Mexico | AY33: =B33-'ptfire-rx'!B32 -> 656,502 | AZ33: =C33-'ptfire-rx'!C32 -> 48,365 | BA33: =D33-'ptfire-rx'!D32 -> 167,963 | BB33: =E33-'ptfire-rx'!E32 -> 176,350 | BC33: =F33-'ptfire-rx'!F32 -> 52,793 | BD33: =G33-'ptfire-rx'!G32 -> 18,270 | BE33: =H33-'ptfire-rx'!H32 -> 336,155 | BF33: =I33-'ptfire-rx'!AN32 -> 2,586 | BG33: =J33-'ptfire-rx'!AR32 -> 2,697 | BH33: =K33-'ptfire-rx'!BD32 -> 5,078 | BI33: =L33-'ptfire-rx'!BM32 -> 4,759 | BJ33: =M33-'ptfire-rx'!BO32 -> 805 | BK33: =N33-'ptfire-rx'!AK32 -> 798 | BL33: =O33-'ptfire-rx'!AT32 -> 426 | BM33: 1,756 | BN33: 1,662 | BO33: 0.05 | BP33: 0.77 | BQ33: 0.07 | BR33: 2.95 | BS33: 1.74
A34: New York | B34: =rail!B33+nonpt!B33+ptagfire!B33+nonroad!B33+'onroad all'!AG33+cmv_c1c2!B33+'ptfire-rx'!B33+ptegu!B33+ptnonipm!B33+pt_oilgas!B33+np_oilgas!B33+rwc!B33+cmv_c3!B33+airports!B33+'ptfire-wild'!B33 -> 1,223,108 | C34: =rail!C33+nonpt!C33+ptagfire!C33++nonroad!C33+'onroad all'!BZ33+cmv_c1c2!BE33+'ptfire-rx'!C33+ptegu!C33+ptnonipm!C33+pt_oilgas!C33+np_oilgas!C33+rwc!C33+cmv_c3!BE33+livestock!B33+airports!C33+'ptfire-wild'!C33+fertilizer!B33 -> 39,520 | D34: =rail!D33+nonpt!D33+ptagfire!D33++nonroad!D33+cmv_c1c2!D33+'ptfire-rx'!D33+ptegu!DW33+ptnonipm!D33+pt_oilgas!D33+np_oilgas!D33+rwc!D33+cmv_c3!D33+'onroad all'!CI33+airports!D33+'ptfire-wild'!D33 -> 217,171 | E34: =rail!E33+nonpt!E33+ptagfire!E33++nonroad!E33+cmv_c1c2!E33+'ptfire-rx'!E33+ptegu!E33+ptnonipm!E33+pt_oilgas!E33+np_oilgas!E33+rwc!E33+cmv_c3!E33+afdust!BA33+'onroad all'!DE33+'onroad all'!DD33+airports!E33+'ptfire-wild'!E33 -> 90,458 | F34: =rail!F33+nonpt!F33+ptagfire!F33++nonroad!F33+cmv_c1c2!F33+'ptfire-rx'!F33+ptegu!F33+ptnonipm!F33+pt_oilgas!F33+np_oilgas!F33+rwc!F33+cmv_c3!F33+afdust!BB33+'onroad all'!DD33+airports!F33+'ptfire-wild'!F33 -> 46,972 | G34: =rail!G33+nonpt!G33+ptagfire!G33++nonroad!G33+'onroad all'!DU33+cmv_c1c2!G33+'ptfire-rx'!G33+ptegu!FH33+ptnonipm!G33+pt_oilgas!G33+np_oilgas!G33+rwc!G33+cmv_c3!G33+airports!G33+'ptfire-wild'!G33 -> 20,690 | H34: =rail!H33+nonpt!H33+ptagfire!H33++nonroad!H33+'onroad all'!EI33+cmv_c1c2!H33+'ptfire-rx'!H33+ptegu!H33+ptnonipm!H33+pt_oilgas!H33+np_oilgas!H33+rwc!H33+cmv_c3!H33+livestock!C33+airports!H33+'ptfire-wild'!H33+vcp!H33 -> 297,260 | I34: =rail!AO33+nonpt!BN33+ptagfire!AI33+nonroad!AK33+'onroad all'!H33+cmv_c1c2!N33+'ptfire-rx'!AN33+ptegu!BM33+ptnonipm!BX33+pt_oilgas!BL33+np_oilgas!AT33+rwc!AJ33+cmv_c3!O33+livestock!U33+airports!AJ33+'ptfire-wild'!AK33+vcp!AA33 -> 1,419 | J34: =rail!AU33+nonpt!BT33+ptagfire!AM33+nonroad!AP33+'onroad all'!P33+cmv_c1c2!T33+'ptfire-rx'!AR33+ptegu!BS33+ptnonipm!CD33+pt_oilgas!BR33+np_oilgas!AZ33+rwc!AN33+cmv_c3!T33+livestock!X33+airports!AM33+'ptfire-wild'!AO33+vcp!AE33 -> 3,078 | K34: =rail!BR33+nonpt!CY33+ptagfire!AX33+nonroad!BH33+'onroad all'!BC33+cmv_c1c2!AO33+'ptfire-rx'!BD33+ptegu!CX33+ptnonipm!DP33+pt_oilgas!CV33+np_oilgas!BV33+rwc!BC33+cmv_c3!AP33+livestock!AH33+airports!BE33+'ptfire-wild'!AZ33+vcp!AQ33 -> 3,021 | L34: =rail!CF33+nonpt!DO33+ptagfire!BG33+nonroad!BT33+'onroad all'!BU33+cmv_c1c2!BC33+'ptfire-rx'!BM33+ptegu!DM33+ptnonipm!EH33+pt_oilgas!DK33+np_oilgas!CJ33+rwc!BP33+cmv_c3!BC33+livestock!AN33+airports!BN33+'ptfire-wild'!BI33+vcp!AX33 -> 5,949 | M34: =rail!CG33+nonpt!DQ33+nonroad!BU33+'onroad all'!BY33+cmv_c1c2!BD33+'ptfire-rx'!BO33+ptegu!DO33+ptnonipm!EJ33+pt_oilgas!DM33+np_oilgas!CK33+rwc!BQ33+cmv_c3!BD33+airports!BO33+'ptfire-wild'!BK33+vcp!AY33+ptagfire!BI33 -> 495 | N34: =rail!AN33+nonpt!BK33+nonroad!AJ33+'onroad all'!G33+cmv_c1c2!M33+'ptfire-rx'!AK33+ptegu!BK33+ptnonipm!BU33+pt_oilgas!BJ33+np_oilgas!AS33+rwc!AI33+airports!AH33+cmv_c3!M33+'ptfire-wild'!AI33+ptagfire!AG33 -> 213 | O34: =rail!AY33+nonpt!BY33+ptagfire!AO33+nonroad!AR33+'onroad all'!Z33+cmv_c1c2!V33+'ptfire-rx'!AT33+ptegu!BX33+ptnonipm!CI33+pt_oilgas!BW33+np_oilgas!BB33+rwc!AP33+airports!AO33+cmv_c3!V33+'ptfire-wild'!AQ33 -> 444 | P34: =rail!AD33+nonroad!AD33+'onroad all'!AK33+'onroad all'!AL33+'onroad all'!AM33+'onroad all'!AN33+'onroad all'!AO33+'onroad all'!AP33+ptnonipm!BI33+SUM(airports!AR33:AW33)+SUM(cmv_c1c2!AC33:AH33)+SUM(cmv_c3!AC33:AH33) -> 3,672 | Q34: =rail!AE33+nonroad!AE33+'onroad all'!AL33+'onroad all'!AM33+'onroad all'!AN33+'onroad all'!AO33+'onroad all'!AP33+ptnonipm!BJ33+SUM(airports!AS33:AW33)+SUM(cmv_c1c2!AD33:AH33)+SUM(cmv_c3!AD33:AH33) -> 3,486 | R34: =rail!P33+nonpt!T33+nonroad!R33+'onroad all'!AC33+ptegu!T33+ptnonipm!T33+pt_oilgas!S33+np_oilgas!R33+rwc!N33+SUM(cmv_c1c2!Z33:AA33)+SUM(cmv_c3!Z33:AA33) -> 0.24 | S34: =rail!K33+nonpt!L33+nonroad!U33+'onroad all'!M33+ptegu!L33+ptnonipm!L33+pt_oilgas!K33+np_oilgas!K33+SUM(cmv_c1c2!R33:S33)+SUM(cmv_c3!R33:S33) -> 1.37 | T34: =rail!O33+nonpt!P33+ptegu!P33+ptnonipm!P33+pt_oilgas!O33+np_oilgas!N33+rwc!M33+SUM(cmv_c1c2!W33:X33)+SUM(cmv_c3!W33:X33) -> 0.65 | U34: =rail!V33+nonpt!AI33+nonroad!T33+'onroad all'!CB33+ptegu!AH33+ptnonipm!AL33+pt_oilgas!AG33+np_oilgas!AB33+rwc!T33+SUM(cmv_c1c2!BG33:BH33)+SUM(cmv_c3!BG33:BH33) -> 10.21 | V34: =rail!T33+nonpt!AE33+nonroad!S33+'onroad all'!BS33+'onroad all'!BT33+ptegu!AD33+ptnonipm!AH33+pt_oilgas!AC33+np_oilgas!X33+rwc!R33+SUM(cmv_c1c2!BA33:BB33)+SUM(cmv_c3!BA33:BB33) -> 9.60 | W34: =nonpt!CW33+ptegu!CV33+ptnonipm!DN33 -> 0.27 | X34: X | AA34: New York | AB34: =B34+beis!H33 -> 1,276,341 | AC34: 39,520 | AD34: =D34+beis!T33 -> 228,371 | AE34: 90,458 | AF34: 46,972 | AG34: 20,690 | AH34: =H34+beis!Z33 -> 645,647 | AI34: =I34+beis!E33 -> 6,986 | AJ34: 3,078 | AK34: =K34+beis!N33 -> 10,612 | AL34: =L34+beis!R33 -> 28,949 | AM34: 495 | AN34: 213 | AO34: 444 | AP34: 3,672 | AQ34: 3,486 | AR34: 0.24 | AS34: 1.37 | AT34: 0.65 | AU34: 10.21 | AV34: 9.60 | AX34: New York | AY34: =B34-'ptfire-rx'!B33 -> 1,209,944 | AZ34: =C34-'ptfire-rx'!C33 -> 39,304 | BA34: =D34-'ptfire-rx'!D33 -> 216,998 | BB34: =E34-'ptfire-rx'!E33 -> 89,121 | BC34: =F34-'ptfire-rx'!F33 -> 45,837 | BD34: =G34-'ptfire-rx'!G33 -> 20,593 | BE34: =H34-'ptfire-rx'!H33 -> 294,152 | BF34: =I34-'ptfire-rx'!AN33 -> 1,354 | BG34: =J34-'ptfire-rx'!AR33 -> 3,050 | BH34: =K34-'ptfire-rx'!BD33 -> 2,854 | BI34: =L34-'ptfire-rx'!BM33 -> 5,851 | BJ34: =M34-'ptfire-rx'!BO33 -> 476 | BK34: =N34-'ptfire-rx'!AK33 -> 181 | BL34: =O34-'ptfire-rx'!AT33 -> 419 | BM34: 3,672 | BN34: 3,486 | BO34: 0.24 | BP34: 1.37 | BQ34: 0.65 | BR34: 10.21 | BS34: 9.60
A35: North Carolina | B35: =rail!B34+nonpt!B34+ptagfire!B34+nonroad!B34+'onroad all'!AG34+cmv_c1c2!B34+'ptfire-rx'!B34+ptegu!B34+ptnonipm!B34+pt_oilgas!B34+np_oilgas!B34+rwc!B34+cmv_c3!B34+airports!B34+'ptfire-wild'!B34 -> 1,444,369 | C35: =rail!C34+nonpt!C34+ptagfire!C34++nonroad!C34+'onroad all'!BZ34+cmv_c1c2!BE34+'ptfire-rx'!C34+ptegu!C34+ptnonipm!C34+pt_oilgas!C34+np_oilgas!C34+rwc!C34+cmv_c3!BE34+livestock!B34+airports!C34+'ptfire-wild'!C34+fertilizer!B34 -> 206,547 | D35: =rail!D34+nonpt!D34+ptagfire!D34++nonroad!D34+cmv_c1c2!D34+'ptfire-rx'!D34+ptegu!DW34+ptnonipm!D34+pt_oilgas!D34+np_oilgas!D34+rwc!D34+cmv_c3!D34+'onroad all'!CI34+airports!D34+'ptfire-wild'!D34 -> 205,309 | E35: =rail!E34+nonpt!E34+ptagfire!E34++nonroad!E34+cmv_c1c2!E34+'ptfire-rx'!E34+ptegu!E34+ptnonipm!E34+pt_oilgas!E34+np_oilgas!E34+rwc!E34+cmv_c3!E34+afdust!BA34+'onroad all'!DE34+'onroad all'!DD34+airports!E34+'ptfire-wild'!E34 -> 127,964 | F35: =rail!F34+nonpt!F34+ptagfire!F34++nonroad!F34+cmv_c1c2!F34+'ptfire-rx'!F34+ptegu!F34+ptnonipm!F34+pt_oilgas!F34+np_oilgas!F34+rwc!F34+cmv_c3!F34+afdust!BB34+'onroad all'!DD34+airports!F34+'ptfire-wild'!F34 -> 63,690 | G35: =rail!G34+nonpt!G34+ptagfire!G34++nonroad!G34+'onroad all'!DU34+cmv_c1c2!G34+'ptfire-rx'!G34+ptegu!FH34+ptnonipm!G34+pt_oilgas!G34+np_oilgas!G34+rwc!G34+cmv_c3!G34+airports!G34+'ptfire-wild'!G34 -> 44,720 | H35: =rail!H34+nonpt!H34+ptagfire!H34++nonroad!H34+'onroad all'!EI34+cmv_c1c2!H34+'ptfire-rx'!H34+ptegu!H34+ptnonipm!H34+pt_oilgas!H34+np_oilgas!H34+rwc!H34+cmv_c3!H34+livestock!C34+airports!H34+'ptfire-wild'!H34+vcp!H34 -> 289,461 | I35: =rail!AO34+nonpt!BN34+ptagfire!AI34+nonroad!AK34+'onroad all'!H34+cmv_c1c2!N34+'ptfire-rx'!AN34+ptegu!BM34+ptnonipm!BX34+pt_oilgas!BL34+np_oilgas!AT34+rwc!AJ34+cmv_c3!O34+livestock!U34+airports!AJ34+'ptfire-wild'!AK34+vcp!AA34 -> 3,162 | J35: =rail!AU34+nonpt!BT34+ptagfire!AM34+nonroad!AP34+'onroad all'!P34+cmv_c1c2!T34+'ptfire-rx'!AR34+ptegu!BS34+ptnonipm!CD34+pt_oilgas!BR34+np_oilgas!AZ34+rwc!AN34+cmv_c3!T34+livestock!X34+airports!AM34+'ptfire-wild'!AO34+vcp!AE34 -> 3,523 | K35: =rail!BR34+nonpt!CY34+ptagfire!AX34+nonroad!BH34+'onroad all'!BC34+cmv_c1c2!AO34+'ptfire-rx'!BD34+ptegu!CX34+ptnonipm!DP34+pt_oilgas!CV34+np_oilgas!BV34+rwc!BC34+cmv_c3!AP34+livestock!AH34+airports!BE34+'ptfire-wild'!AZ34+vcp!AQ34 -> 6,309 | L35: =rail!CF34+nonpt!DO34+ptagfire!BG34+nonroad!BT34+'onroad all'!BU34+cmv_c1c2!BC34+'ptfire-rx'!BM34+ptegu!DM34+ptnonipm!EH34+pt_oilgas!DK34+np_oilgas!CJ34+rwc!BP34+cmv_c3!BC34+livestock!AN34+airports!BN34+'ptfire-wild'!BI34+vcp!AX34 -> 7,946 | M35: =rail!CG34+nonpt!DQ34+nonroad!BU34+'onroad all'!BY34+cmv_c1c2!BD34+'ptfire-rx'!BO34+ptegu!DO34+ptnonipm!EJ34+pt_oilgas!DM34+np_oilgas!CK34+rwc!BQ34+cmv_c3!BD34+airports!BO34+'ptfire-wild'!BK34+vcp!AY34+ptagfire!BI34 -> 652 | N35: =rail!AN34+nonpt!BK34+nonroad!AJ34+'onroad all'!G34+cmv_c1c2!M34+'ptfire-rx'!AK34+ptegu!BK34+ptnonipm!BU34+pt_oilgas!BJ34+np_oilgas!AS34+rwc!AI34+airports!AH34+cmv_c3!M34+'ptfire-wild'!AI34+ptagfire!AG34 -> 937 | O35: =rail!AY34+nonpt!BY34+ptagfire!AO34+nonroad!AR34+'onroad all'!Z34+cmv_c1c2!V34+'ptfire-rx'!AT34+ptegu!BX34+ptnonipm!CI34+pt_oilgas!BW34+np_oilgas!BB34+rwc!AP34+airports!AO34+cmv_c3!V34+'ptfire-wild'!AQ34 -> 886 | P35: =rail!AD34+nonroad!AD34+'onroad all'!AK34+'onroad all'!AL34+'onroad all'!AM34+'onroad all'!AN34+'onroad all'!AO34+'onroad all'!AP34+ptnonipm!BI34+SUM(airports!AR34:AW34)+SUM(cmv_c1c2!AC34:AH34)+SUM(cmv_c3!AC34:AH34) -> 2,793 | Q35: =rail!AE34+nonroad!AE34+'onroad all'!AL34+'onroad all'!AM34+'onroad all'!AN34+'onroad all'!AO34+'onroad all'!AP34+ptnonipm!BJ34+SUM(airports!AS34:AW34)+SUM(cmv_c1c2!AD34:AH34)+SUM(cmv_c3!AD34:AH34) -> 2,646 | R35: =rail!P34+nonpt!T34+nonroad!R34+'onroad all'!AC34+ptegu!T34+ptnonipm!T34+pt_oilgas!S34+np_oilgas!R34+rwc!N34+SUM(cmv_c1c2!Z34:AA34)+SUM(cmv_c3!Z34:AA34) -> 2.69 | S35: =rail!K34+nonpt!L34+nonroad!U34+'onroad all'!M34+ptegu!L34+ptnonipm!L34+pt_oilgas!K34+np_oilgas!K34+SUM(cmv_c1c2!R34:S34)+SUM(cmv_c3!R34:S34) -> 1.34 | T35: =rail!O34+nonpt!P34+ptegu!P34+ptnonipm!P34+pt_oilgas!O34+np_oilgas!N34+rwc!M34+SUM(cmv_c1c2!W34:X34)+SUM(cmv_c3!W34:X34) -> 0.54 | U35: =rail!V34+nonpt!AI34+nonroad!T34+'onroad all'!CB34+ptegu!AH34+ptnonipm!AL34+pt_oilgas!AG34+np_oilgas!AB34+rwc!T34+SUM(cmv_c1c2!BG34:BH34)+SUM(cmv_c3!BG34:BH34) -> 4.95 | V35: =rail!T34+nonpt!AE34+nonroad!S34+'onroad all'!BS34+'onroad all'!BT34+ptegu!AD34+ptnonipm!AH34+pt_oilgas!AC34+np_oilgas!X34+rwc!R34+SUM(cmv_c1c2!BA34:BB34)+SUM(cmv_c3!BA34:BB34) -> 23.28 | W35: =nonpt!CW34+ptegu!CV34+ptnonipm!DN34 -> 0.75 | X35: X | AA35: North Carolina | AB35: =B35+beis!H34 -> 1,538,925 | AC35: 206,547 | AD35: =D35+beis!T34 -> 227,120 | AE35: 127,964 | AF35: 63,690 | AG35: 44,720 | AH35: =H35+beis!Z34 -> 1,138,185 | AI35: =I35+beis!E34 -> 13,058 | AJ35: 3,523 | AK35: =K35+beis!N34 -> 19,805 | AL35: =L35+beis!R34 -> 56,609 | AM35: 652 | AN35: 937 | AO35: 886 | AP35: 2,793 | AQ35: 2,646 | AR35: 2.69 | AS35: 1.34 | AT35: 0.54 | AU35: 4.95 | AV35: 23.28 | AX35: North Carolina | AY35: =B35-'ptfire-rx'!B34 -> 1,226,636 | AZ35: =C35-'ptfire-rx'!C34 -> 202,964 | BA35: =D35-'ptfire-rx'!D34 -> 201,524 | BB35: =E35-'ptfire-rx'!E34 -> 104,963 | BC35: =F35-'ptfire-rx'!F34 -> 44,153 | BD35: =G35-'ptfire-rx'!G34 -> 42,836 | BE35: =H35-'ptfire-rx'!H34 -> 237,699 | BF35: =I35-'ptfire-rx'!AN34 -> 1,874 | BG35: =J35-'ptfire-rx'!AR34 -> 2,979 | BH35: =K35-'ptfire-rx'!BD34 -> 3,074 | BI35: =L35-'ptfire-rx'!BM34 -> 6,035 | BJ35: =M35-'ptfire-rx'!BO34 -> 275 | BK35: =N35-'ptfire-rx'!AK34 -> 296 | BL35: =O35-'ptfire-rx'!AT34 -> 396 | BM35: 2,793 | BN35: 2,646 | BO35: 2.69 | BP35: 1.34 | BQ35: 0.54 | BR35: 4.95 | BS35: 23.28
A36: North Dakota | B36: =rail!B35+nonpt!B35+ptagfire!B35+nonroad!B35+'onroad all'!AG35+cmv_c1c2!B35+'ptfire-rx'!B35+ptegu!B35+ptnonipm!B35+pt_oilgas!B35+np_oilgas!B35+rwc!B35+cmv_c3!B35+airports!B35+'ptfire-wild'!B35 -> 289,357 | C36: =rail!C35+nonpt!C35+ptagfire!C35++nonroad!C35+'onroad all'!BZ35+cmv_c1c2!BE35+'ptfire-rx'!C35+ptegu!C35+ptnonipm!C35+pt_oilgas!C35+np_oilgas!C35+rwc!C35+cmv_c3!BE35+livestock!B35+airports!C35+'ptfire-wild'!C35+fertilizer!B35 -> 78,590 | D36: =rail!D35+nonpt!D35+ptagfire!D35++nonroad!D35+cmv_c1c2!D35+'ptfire-rx'!D35+ptegu!DW35+ptnonipm!D35+pt_oilgas!D35+np_oilgas!D35+rwc!D35+cmv_c3!D35+'onroad all'!CI35+airports!D35+'ptfire-wild'!D35 -> 144,594 | E36: =rail!E35+nonpt!E35+ptagfire!E35++nonroad!E35+cmv_c1c2!E35+'ptfire-rx'!E35+ptegu!E35+ptnonipm!E35+pt_oilgas!E35+np_oilgas!E35+rwc!E35+cmv_c3!E35+afdust!BA35+'onroad all'!DE35+'onroad all'!DD35+airports!E35+'ptfire-wild'!E35 -> 186,898 | F36: =rail!F35+nonpt!F35+ptagfire!F35++nonroad!F35+cmv_c1c2!F35+'ptfire-rx'!F35+ptegu!F35+ptnonipm!F35+pt_oilgas!F35+np_oilgas!F35+rwc!F35+cmv_c3!F35+afdust!BB35+'onroad all'!DD35+airports!F35+'ptfire-wild'!F35 -> 44,581 | G36: =rail!G35+nonpt!G35+ptagfire!G35++nonroad!G35+'onroad all'!DU35+cmv_c1c2!G35+'ptfire-rx'!G35+ptegu!FH35+ptnonipm!G35+pt_oilgas!G35+np_oilgas!G35+rwc!G35+cmv_c3!G35+airports!G35+'ptfire-wild'!G35 -> 107,472 | H36: =rail!H35+nonpt!H35+ptagfire!H35++nonroad!H35+'onroad all'!EI35+cmv_c1c2!H35+'ptfire-rx'!H35+ptegu!H35+ptnonipm!H35+pt_oilgas!H35+np_oilgas!H35+rwc!H35+cmv_c3!H35+livestock!C35+airports!H35+'ptfire-wild'!H35+vcp!H35 -> 486,234 | I36: =rail!AO35+nonpt!BN35+ptagfire!AI35+nonroad!AK35+'onroad all'!H35+cmv_c1c2!N35+'ptfire-rx'!AN35+ptegu!BM35+ptnonipm!BX35+pt_oilgas!BL35+np_oilgas!AT35+rwc!AJ35+cmv_c3!O35+livestock!U35+airports!AJ35+'ptfire-wild'!AK35+vcp!AA35 -> 1,559 | J36: =rail!AU35+nonpt!BT35+ptagfire!AM35+nonroad!AP35+'onroad all'!P35+cmv_c1c2!T35+'ptfire-rx'!AR35+ptegu!BS35+ptnonipm!CD35+pt_oilgas!BR35+np_oilgas!AZ35+rwc!AN35+cmv_c3!T35+livestock!X35+airports!AM35+'ptfire-wild'!AO35+vcp!AE35 -> 5,640 | K36: =rail!BR35+nonpt!CY35+ptagfire!AX35+nonroad!BH35+'onroad all'!BC35+cmv_c1c2!AO35+'ptfire-rx'!BD35+ptegu!CX35+ptnonipm!DP35+pt_oilgas!CV35+np_oilgas!BV35+rwc!BC35+cmv_c3!AP35+livestock!AH35+airports!BE35+'ptfire-wild'!AZ35+vcp!AQ35 -> 5,529 | L36: =rail!CF35+nonpt!DO35+ptagfire!BG35+nonroad!BT35+'onroad all'!BU35+cmv_c1c2!BC35+'ptfire-rx'!BM35+ptegu!DM35+ptnonipm!EH35+pt_oilgas!DK35+np_oilgas!CJ35+rwc!BP35+cmv_c3!BC35+livestock!AN35+airports!BN35+'ptfire-wild'!BI35+vcp!AX35 -> 2,020 | M36: =rail!CG35+nonpt!DQ35+nonroad!BU35+'onroad all'!BY35+cmv_c1c2!BD35+'ptfire-rx'!BO35+ptegu!DO35+ptnonipm!EJ35+pt_oilgas!DM35+np_oilgas!CK35+rwc!BQ35+cmv_c3!BD35+airports!BO35+'ptfire-wild'!BK35+vcp!AY35+ptagfire!BI35 -> 311 | N36: =rail!AN35+nonpt!BK35+nonroad!AJ35+'onroad all'!G35+cmv_c1c2!M35+'ptfire-rx'!AK35+ptegu!BK35+ptnonipm!BU35+pt_oilgas!BJ35+np_oilgas!AS35+rwc!AI35+airports!AH35+cmv_c3!M35+'ptfire-wild'!AI35+ptagfire!AG35 -> 362 | O36: =rail!AY35+nonpt!BY35+ptagfire!AO35+nonroad!AR35+'onroad all'!Z35+cmv_c1c2!V35+'ptfire-rx'!AT35+ptegu!BX35+ptnonipm!CI35+pt_oilgas!BW35+np_oilgas!BB35+rwc!AP35+airports!AO35+cmv_c3!V35+'ptfire-wild'!AQ35 -> 185 | P36: =rail!AD35+nonroad!AD35+'onroad all'!AK35+'onroad all'!AL35+'onroad all'!AM35+'onroad all'!AN35+'onroad all'!AO35+'onroad all'!AP35+ptnonipm!BI35+SUM(airports!AR35:AW35)+SUM(cmv_c1c2!AC35:AH35)+SUM(cmv_c3!AC35:AH35) -> 2,564 | Q36: =rail!AE35+nonroad!AE35+'onroad all'!AL35+'onroad all'!AM35+'onroad all'!AN35+'onroad all'!AO35+'onroad all'!AP35+ptnonipm!BJ35+SUM(airports!AS35:AW35)+SUM(cmv_c1c2!AD35:AH35)+SUM(cmv_c3!AD35:AH35) -> 2,470 | R36: =rail!P35+nonpt!T35+nonroad!R35+'onroad all'!AC35+ptegu!T35+ptnonipm!T35+pt_oilgas!S35+np_oilgas!R35+rwc!N35+SUM(cmv_c1c2!Z35:AA35)+SUM(cmv_c3!Z35:AA35) -> 0.68 | S36: =rail!K35+nonpt!L35+nonroad!U35+'onroad all'!M35+ptegu!L35+ptnonipm!L35+pt_oilgas!K35+np_oilgas!K35+SUM(cmv_c1c2!R35:S35)+SUM(cmv_c3!R35:S35) -> 2.90 | T36: =rail!O35+nonpt!P35+ptegu!P35+ptnonipm!P35+pt_oilgas!O35+np_oilgas!N35+rwc!M35+SUM(cmv_c1c2!W35:X35)+SUM(cmv_c3!W35:X35) -> 0.16 | U36: =rail!V35+nonpt!AI35+nonroad!T35+'onroad all'!CB35+ptegu!AH35+ptnonipm!AL35+pt_oilgas!AG35+np_oilgas!AB35+rwc!T35+SUM(cmv_c1c2!BG35:BH35)+SUM(cmv_c3!BG35:BH35) -> 5.66 | V36: =rail!T35+nonpt!AE35+nonroad!S35+'onroad all'!BS35+'onroad all'!BT35+ptegu!AD35+ptnonipm!AH35+pt_oilgas!AC35+np_oilgas!X35+rwc!R35+SUM(cmv_c1c2!BA35:BB35)+SUM(cmv_c3!BA35:BB35) -> 8.64 | W36: =nonpt!CW35+ptegu!CV35+ptnonipm!DN35 -> 0.00 | X36: X | AA36: North Dakota | AB36: =B36+beis!H35 -> 331,103 | AC36: 78,590 | AD36: =D36+beis!T35 -> 173,761 | AE36: 186,898 | AF36: 44,581 | AG36: 107,472 | AH36: =H36+beis!Z35 -> 610,370 | AI36: =I36+beis!E35 -> 5,932 | AJ36: 5,640 | AK36: =K36+beis!N35 -> 11,493 | AL36: =L36+beis!R35 -> 24,427 | AM36: 311 | AN36: 362 | AO36: 185 | AP36: 2,564 | AQ36: 2,470 | AR36: 0.68 | AS36: 2.90 | AT36: 0.16 | AU36: 5.66 | AV36: 8.64 | AX36: North Dakota | AY36: =B36-'ptfire-rx'!B35 -> 244,890 | AZ36: =C36-'ptfire-rx'!C35 -> 77,871 | BA36: =D36-'ptfire-rx'!D35 -> 143,471 | BB36: =E36-'ptfire-rx'!E35 -> 181,463 | BC36: =F36-'ptfire-rx'!F35 -> 39,815 | BD36: =G36-'ptfire-rx'!G35 -> 106,984 | BE36: =H36-'ptfire-rx'!H35 -> 475,001 | BF36: =I36-'ptfire-rx'!AN35 -> 871 | BG36: =J36-'ptfire-rx'!AR35 -> 5,494 | BH36: =K36-'ptfire-rx'!BD35 -> 4,490 | BI36: =L36-'ptfire-rx'!BM35 -> 923 | BJ36: =M36-'ptfire-rx'!BO35 -> 187 | BK36: =N36-'ptfire-rx'!AK35 -> 123 | BL36: =O36-'ptfire-rx'!AT35 -> 107 | BM36: 2,564 | BN36: 2,470 | BO36: 0.68 | BP36: 2.90 | BQ36: 0.16 | BR36: 5.66 | BS36: 8.64
A37: Ohio | B37: =rail!B36+nonpt!B36+ptagfire!B36+nonroad!B36+'onroad all'!AG36+cmv_c1c2!B36+'ptfire-rx'!B36+ptegu!B36+ptnonipm!B36+pt_oilgas!B36+np_oilgas!B36+rwc!B36+cmv_c3!B36+airports!B36+'ptfire-wild'!B36 -> 1,381,947 | C37: =rail!C36+nonpt!C36+ptagfire!C36++nonroad!C36+'onroad all'!BZ36+cmv_c1c2!BE36+'ptfire-rx'!C36+ptegu!C36+ptnonipm!C36+pt_oilgas!C36+np_oilgas!C36+rwc!C36+cmv_c3!BE36+livestock!B36+airports!C36+'ptfire-wild'!C36+fertilizer!B36 -> 88,850 | D37: =rail!D36+nonpt!D36+ptagfire!D36++nonroad!D36+cmv_c1c2!D36+'ptfire-rx'!D36+ptegu!DW36+ptnonipm!D36+pt_oilgas!D36+np_oilgas!D36+rwc!D36+cmv_c3!D36+'onroad all'!CI36+airports!D36+'ptfire-wild'!D36 -> 290,835 | E37: =rail!E36+nonpt!E36+ptagfire!E36++nonroad!E36+cmv_c1c2!E36+'ptfire-rx'!E36+ptegu!E36+ptnonipm!E36+pt_oilgas!E36+np_oilgas!E36+rwc!E36+cmv_c3!E36+afdust!BA36+'onroad all'!DE36+'onroad all'!DD36+airports!E36+'ptfire-wild'!E36 -> 133,366 | F37: =rail!F36+nonpt!F36+ptagfire!F36++nonroad!F36+cmv_c1c2!F36+'ptfire-rx'!F36+ptegu!F36+ptnonipm!F36+pt_oilgas!F36+np_oilgas!F36+rwc!F36+cmv_c3!F36+afdust!BB36+'onroad all'!DD36+airports!F36+'ptfire-wild'!F36 -> 64,681 | G37: =rail!G36+nonpt!G36+ptagfire!G36++nonroad!G36+'onroad all'!DU36+cmv_c1c2!G36+'ptfire-rx'!G36+ptegu!FH36+ptnonipm!G36+pt_oilgas!G36+np_oilgas!G36+rwc!G36+cmv_c3!G36+airports!G36+'ptfire-wild'!G36 -> 121,822 | H37: =rail!H36+nonpt!H36+ptagfire!H36++nonroad!H36+'onroad all'!EI36+cmv_c1c2!H36+'ptfire-rx'!H36+ptegu!H36+ptnonipm!H36+pt_oilgas!H36+np_oilgas!H36+rwc!H36+cmv_c3!H36+livestock!C36+airports!H36+'ptfire-wild'!H36+vcp!H36 -> 285,661 | I37: =rail!AO36+nonpt!BN36+ptagfire!AI36+nonroad!AK36+'onroad all'!H36+cmv_c1c2!N36+'ptfire-rx'!AN36+ptegu!BM36+ptnonipm!BX36+pt_oilgas!BL36+np_oilgas!AT36+rwc!AJ36+cmv_c3!O36+livestock!U36+airports!AJ36+'ptfire-wild'!AK36+vcp!AA36 -> 1,936 | J37: =rail!AU36+nonpt!BT36+ptagfire!AM36+nonroad!AP36+'onroad all'!P36+cmv_c1c2!T36+'ptfire-rx'!AR36+ptegu!BS36+ptnonipm!CD36+pt_oilgas!BR36+np_oilgas!AZ36+rwc!AN36+cmv_c3!T36+livestock!X36+airports!AM36+'ptfire-wild'!AO36+vcp!AE36 -> 3,472 | K37: =rail!BR36+nonpt!CY36+ptagfire!AX36+nonroad!BH36+'onroad all'!BC36+cmv_c1c2!AO36+'ptfire-rx'!BD36+ptegu!CX36+ptnonipm!DP36+pt_oilgas!CV36+np_oilgas!BV36+rwc!BC36+cmv_c3!AP36+livestock!AH36+airports!BE36+'ptfire-wild'!AZ36+vcp!AQ36 -> 3,683 | L37: =rail!CF36+nonpt!DO36+ptagfire!BG36+nonroad!BT36+'onroad all'!BU36+cmv_c1c2!BC36+'ptfire-rx'!BM36+ptegu!DM36+ptnonipm!EH36+pt_oilgas!DK36+np_oilgas!CJ36+rwc!BP36+cmv_c3!BC36+livestock!AN36+airports!BN36+'ptfire-wild'!BI36+vcp!AX36 -> 4,119 | M37: =rail!CG36+nonpt!DQ36+nonroad!BU36+'onroad all'!BY36+cmv_c1c2!BD36+'ptfire-rx'!BO36+ptegu!DO36+ptnonipm!EJ36+pt_oilgas!DM36+np_oilgas!CK36+rwc!BQ36+cmv_c3!BD36+airports!BO36+'ptfire-wild'!BK36+vcp!AY36+ptagfire!BI36 -> 426 | N37: =rail!AN36+nonpt!BK36+nonroad!AJ36+'onroad all'!G36+cmv_c1c2!M36+'ptfire-rx'!AK36+ptegu!BK36+ptnonipm!BU36+pt_oilgas!BJ36+np_oilgas!AS36+rwc!AI36+airports!AH36+cmv_c3!M36+'ptfire-wild'!AI36+ptagfire!AG36 -> 285 | O37: =rail!AY36+nonpt!BY36+ptagfire!AO36+nonroad!AR36+'onroad all'!Z36+cmv_c1c2!V36+'ptfire-rx'!AT36+ptegu!BX36+ptnonipm!CI36+pt_oilgas!BW36+np_oilgas!BB36+rwc!AP36+airports!AO36+cmv_c3!V36+'ptfire-wild'!AQ36 -> 440 | P37: =rail!AD36+nonroad!AD36+'onroad all'!AK36+'onroad all'!AL36+'onroad all'!AM36+'onroad all'!AN36+'onroad all'!AO36+'onroad all'!AP36+ptnonipm!BI36+SUM(airports!AR36:AW36)+SUM(cmv_c1c2!AC36:AH36)+SUM(cmv_c3!AC36:AH36) -> 4,783 | Q37: =rail!AE36+nonroad!AE36+'onroad all'!AL36+'onroad all'!AM36+'onroad all'!AN36+'onroad all'!AO36+'onroad all'!AP36+ptnonipm!BJ36+SUM(airports!AS36:AW36)+SUM(cmv_c1c2!AD36:AH36)+SUM(cmv_c3!AD36:AH36) -> 4,540 | R37: =rail!P36+nonpt!T36+nonroad!R36+'onroad all'!AC36+ptegu!T36+ptnonipm!T36+pt_oilgas!S36+np_oilgas!R36+rwc!N36+SUM(cmv_c1c2!Z36:AA36)+SUM(cmv_c3!Z36:AA36) -> 3.16 | S37: =rail!K36+nonpt!L36+nonroad!U36+'onroad all'!M36+ptegu!L36+ptnonipm!L36+pt_oilgas!K36+np_oilgas!K36+SUM(cmv_c1c2!R36:S36)+SUM(cmv_c3!R36:S36) -> 1.97 | T37: =rail!O36+nonpt!P36+ptegu!P36+ptnonipm!P36+pt_oilgas!O36+np_oilgas!N36+rwc!M36+SUM(cmv_c1c2!W36:X36)+SUM(cmv_c3!W36:X36) -> 4.35 | U37: =rail!V36+nonpt!AI36+nonroad!T36+'onroad all'!CB36+ptegu!AH36+ptnonipm!AL36+pt_oilgas!AG36+np_oilgas!AB36+rwc!T36+SUM(cmv_c1c2!BG36:BH36)+SUM(cmv_c3!BG36:BH36) -> 66.64 | V37: =rail!T36+nonpt!AE36+nonroad!S36+'onroad all'!BS36+'onroad all'!BT36+ptegu!AD36+ptnonipm!AH36+pt_oilgas!AC36+np_oilgas!X36+rwc!R36+SUM(cmv_c1c2!BA36:BB36)+SUM(cmv_c3!BA36:BB36) -> 99.68 | W37: =nonpt!CW36+ptegu!CV36+ptnonipm!DN36 -> 0.07 | X37: X | AA37: Ohio | AB37: =B37+beis!H36 -> 1,424,285 | AC37: 88,850 | AD37: =D37+beis!T36 -> 312,518 | AE37: 133,366 | AF37: 64,681 | AG37: 121,822 | AH37: =H37+beis!Z36 -> 548,933 | AI37: =I37+beis!E36 -> 6,367 | AJ37: 3,472 | AK37: =K37+beis!N36 -> 9,725 | AL37: =L37+beis!R36 -> 25,321 | AM37: 426 | AN37: 285 | AO37: 440 | AP37: 4,783 | AQ37: 4,540 | AR37: 3.16 | AS37: 1.97 | AT37: 4.35 | AU37: 66.64 | AV37: 99.68 | AX37: Ohio | AY37: =B37-'ptfire-rx'!B36 -> 1,361,070 | AZ37: =C37-'ptfire-rx'!C36 -> 88,507 | BA37: =D37-'ptfire-rx'!D36 -> 290,460 | BB37: =E37-'ptfire-rx'!E36 -> 131,122 | BC37: =F37-'ptfire-rx'!F36 -> 62,765 | BD37: =G37-'ptfire-rx'!G36 -> 121,638 | BE37: =H37-'ptfire-rx'!H36 -> 280,659 | BF37: =I37-'ptfire-rx'!AN36 -> 1,763 | BG37: =J37-'ptfire-rx'!AR36 -> 3,429 | BH37: =K37-'ptfire-rx'!BD36 -> 3,442 | BI37: =L37-'ptfire-rx'!BM36 -> 3,900 | BJ37: =M37-'ptfire-rx'!BO36 -> 383 | BK37: =N37-'ptfire-rx'!AK36 -> 230 | BL37: =O37-'ptfire-rx'!AT36 -> 415 | BM37: 4,783 | BN37: 4,540 | BO37: 3.16 | BP37: 1.97 | BQ37: 4.35 | BR37: 66.64 | BS37: 99.68
A38: Oklahoma | B38: =rail!B37+nonpt!B37+ptagfire!B37+nonroad!B37+'onroad all'!AG37+cmv_c1c2!B37+'ptfire-rx'!B37+ptegu!B37+ptnonipm!B37+pt_oilgas!B37+np_oilgas!B37+rwc!B37+cmv_c3!B37+airports!B37+'ptfire-wild'!B37 -> 1,748,182 | C38: =rail!C37+nonpt!C37+ptagfire!C37++nonroad!C37+'onroad all'!BZ37+cmv_c1c2!BE37+'ptfire-rx'!C37+ptegu!C37+ptnonipm!C37+pt_oilgas!C37+np_oilgas!C37+rwc!C37+cmv_c3!BE37+livestock!B37+airports!C37+'ptfire-wild'!C37+fertilizer!B37 -> 174,554 | D38: =rail!D37+nonpt!D37+ptagfire!D37++nonroad!D37+cmv_c1c2!D37+'ptfire-rx'!D37+ptegu!DW37+ptnonipm!D37+pt_oilgas!D37+np_oilgas!D37+rwc!D37+cmv_c3!D37+'onroad all'!CI37+airports!D37+'ptfire-wild'!D37 -> 284,328 | E38: =rail!E37+nonpt!E37+ptagfire!E37++nonroad!E37+cmv_c1c2!E37+'ptfire-rx'!E37+ptegu!E37+ptnonipm!E37+pt_oilgas!E37+np_oilgas!E37+rwc!E37+cmv_c3!E37+afdust!BA37+'onroad all'!DE37+'onroad all'!DD37+airports!E37+'ptfire-wild'!E37 -> 433,015 | F38: =rail!F37+nonpt!F37+ptagfire!F37++nonroad!F37+cmv_c1c2!F37+'ptfire-rx'!F37+ptegu!F37+ptnonipm!F37+pt_oilgas!F37+np_oilgas!F37+rwc!F37+cmv_c3!F37+afdust!BB37+'onroad all'!DD37+airports!F37+'ptfire-wild'!F37 -> 169,229 | G38: =rail!G37+nonpt!G37+ptagfire!G37++nonroad!G37+'onroad all'!DU37+cmv_c1c2!G37+'ptfire-rx'!G37+ptegu!FH37+ptnonipm!G37+pt_oilgas!G37+np_oilgas!G37+rwc!G37+cmv_c3!G37+airports!G37+'ptfire-wild'!G37 -> 71,577 | H38: =rail!H37+nonpt!H37+ptagfire!H37++nonroad!H37+'onroad all'!EI37+cmv_c1c2!H37+'ptfire-rx'!H37+ptegu!H37+ptnonipm!H37+pt_oilgas!H37+np_oilgas!H37+rwc!H37+cmv_c3!H37+livestock!C37+airports!H37+'ptfire-wild'!H37+vcp!H37 -> 597,707 | I38: =rail!AO37+nonpt!BN37+ptagfire!AI37+nonroad!AK37+'onroad all'!H37+cmv_c1c2!N37+'ptfire-rx'!AN37+ptegu!BM37+ptnonipm!BX37+pt_oilgas!BL37+np_oilgas!AT37+rwc!AJ37+cmv_c3!O37+livestock!U37+airports!AJ37+'ptfire-wild'!AK37+vcp!AA37 -> 13,334 | J38: =rail!AU37+nonpt!BT37+ptagfire!AM37+nonroad!AP37+'onroad all'!P37+cmv_c1c2!T37+'ptfire-rx'!AR37+ptegu!BS37+ptnonipm!CD37+pt_oilgas!BR37+np_oilgas!AZ37+rwc!AN37+cmv_c3!T37+livestock!X37+airports!AM37+'ptfire-wild'!AO37+vcp!AE37 -> 5,090 | K38: =rail!BR37+nonpt!CY37+ptagfire!AX37+nonroad!BH37+'onroad all'!BC37+cmv_c1c2!AO37+'ptfire-rx'!BD37+ptegu!CX37+ptnonipm!DP37+pt_oilgas!CV37+np_oilgas!BV37+rwc!BC37+cmv_c3!AP37+livestock!AH37+airports!BE37+'ptfire-wild'!AZ37+vcp!AQ37 -> 21,267 | L38: =rail!CF37+nonpt!DO37+ptagfire!BG37+nonroad!BT37+'onroad all'!BU37+cmv_c1c2!BC37+'ptfire-rx'!BM37+ptegu!DM37+ptnonipm!EH37+pt_oilgas!DK37+np_oilgas!CJ37+rwc!BP37+cmv_c3!BC37+livestock!AN37+airports!BN37+'ptfire-wild'!BI37+vcp!AX37 -> 18,203 | M38: =rail!CG37+nonpt!DQ37+nonroad!BU37+'onroad all'!BY37+cmv_c1c2!BD37+'ptfire-rx'!BO37+ptegu!DO37+ptnonipm!EJ37+pt_oilgas!DM37+np_oilgas!CK37+rwc!BQ37+cmv_c3!BD37+airports!BO37+'ptfire-wild'!BK37+vcp!AY37+ptagfire!BI37 -> 2,370 | N38: =rail!AN37+nonpt!BK37+nonroad!AJ37+'onroad all'!G37+cmv_c1c2!M37+'ptfire-rx'!AK37+ptegu!BK37+ptnonipm!BU37+pt_oilgas!BJ37+np_oilgas!AS37+rwc!AI37+airports!AH37+cmv_c3!M37+'ptfire-wild'!AI37+ptagfire!AG37 -> 4,797 | O38: =rail!AY37+nonpt!BY37+ptagfire!AO37+nonroad!AR37+'onroad all'!Z37+cmv_c1c2!V37+'ptfire-rx'!AT37+ptegu!BX37+ptnonipm!CI37+pt_oilgas!BW37+np_oilgas!BB37+rwc!AP37+airports!AO37+cmv_c3!V37+'ptfire-wild'!AQ37 -> 1,743 | P38: =rail!AD37+nonroad!AD37+'onroad all'!AK37+'onroad all'!AL37+'onroad all'!AM37+'onroad all'!AN37+'onroad all'!AO37+'onroad all'!AP37+ptnonipm!BI37+SUM(airports!AR37:AW37)+SUM(cmv_c1c2!AC37:AH37)+SUM(cmv_c3!AC37:AH37) -> 2,348 | Q38: =rail!AE37+nonroad!AE37+'onroad all'!AL37+'onroad all'!AM37+'onroad all'!AN37+'onroad all'!AO37+'onroad all'!AP37+ptnonipm!BJ37+SUM(airports!AS37:AW37)+SUM(cmv_c1c2!AD37:AH37)+SUM(cmv_c3!AD37:AH37) -> 2,217 | R38: =rail!P37+nonpt!T37+nonroad!R37+'onroad all'!AC37+ptegu!T37+ptnonipm!T37+pt_oilgas!S37+np_oilgas!R37+rwc!N37+SUM(cmv_c1c2!Z37:AA37)+SUM(cmv_c3!Z37:AA37) -> 0.50 | S38: =rail!K37+nonpt!L37+nonroad!U37+'onroad all'!M37+ptegu!L37+ptnonipm!L37+pt_oilgas!K37+np_oilgas!K37+SUM(cmv_c1c2!R37:S37)+SUM(cmv_c3!R37:S37) -> 0.90 | T38: =rail!O37+nonpt!P37+ptegu!P37+ptnonipm!P37+pt_oilgas!O37+np_oilgas!N37+rwc!M37+SUM(cmv_c1c2!W37:X37)+SUM(cmv_c3!W37:X37) -> 0.19 | U38: =rail!V37+nonpt!AI37+nonroad!T37+'onroad all'!CB37+ptegu!AH37+ptnonipm!AL37+pt_oilgas!AG37+np_oilgas!AB37+rwc!T37+SUM(cmv_c1c2!BG37:BH37)+SUM(cmv_c3!BG37:BH37) -> 9.95 | V38: =rail!T37+nonpt!AE37+nonroad!S37+'onroad all'!BS37+'onroad all'!BT37+ptegu!AD37+ptnonipm!AH37+pt_oilgas!AC37+np_oilgas!X37+rwc!R37+SUM(cmv_c1c2!BA37:BB37)+SUM(cmv_c3!BA37:BB37) -> 6.58 | W38: =nonpt!CW37+ptegu!CV37+ptnonipm!DN37 -> 0.02 | X38: X | AA38: Oklahoma | AB38: =B38+beis!H37 -> 1,832,033 | AC38: 174,554 | AD38: =D38+beis!T37 -> 309,604 | AE38: 433,015 | AF38: 169,229 | AG38: 71,577 | AH38: =H38+beis!Z37 -> 1,061,793 | AI38: =I38+beis!E37 -> 22,116 | AJ38: 5,090 | AK38: =K38+beis!N37 -> 33,243 | AL38: =L38+beis!R37 -> 68,435 | AM38: 2,370 | AN38: 4,797 | AO38: 1,743 | AP38: 2,348 | AQ38: 2,217 | AR38: 0.50 | AS38: 0.90 | AT38: 0.19 | AU38: 9.95 | AV38: 6.58 | AX38: Oklahoma | AY38: =B38-'ptfire-rx'!B37 -> 1,203,442 | AZ38: =C38-'ptfire-rx'!C37 -> 165,819 | BA38: =D38-'ptfire-rx'!D37 -> 270,842 | BB38: =E38-'ptfire-rx'!E37 -> 365,193 | BC38: =F38-'ptfire-rx'!F37 -> 109,281 | BD38: =G38-'ptfire-rx'!G37 -> 65,691 | BE38: =H38-'ptfire-rx'!H37 -> 458,157 | BF38: =I38-'ptfire-rx'!AN37 -> 5,691 | BG38: =J38-'ptfire-rx'!AR37 -> 3,637 | BH38: =K38-'ptfire-rx'!BD37 -> 12,842 | BI38: =L38-'ptfire-rx'!BM37 -> 10,862 | BJ38: =M38-'ptfire-rx'!BO37 -> 1,330 | BK38: =N38-'ptfire-rx'!AK37 -> 2,012 | BL38: =O38-'ptfire-rx'!AT37 -> 1,024 | BM38: 2,348 | BN38: 2,217 | BO38: 0.50 | BP38: 0.90 | BQ38: 0.19 | BR38: 9.95 | BS38: 6.58
A39: Oregon | B39: =rail!B38+nonpt!B38+ptagfire!B38+nonroad!B38+'onroad all'!AG38+cmv_c1c2!B38+'ptfire-rx'!B38+ptegu!B38+ptnonipm!B38+pt_oilgas!B38+np_oilgas!B38+rwc!B38+cmv_c3!B38+airports!B38+'ptfire-wild'!B38 -> 2,698,261 | C39: =rail!C38+nonpt!C38+ptagfire!C38++nonroad!C38+'onroad all'!BZ38+cmv_c1c2!BE38+'ptfire-rx'!C38+ptegu!C38+ptnonipm!C38+pt_oilgas!C38+np_oilgas!C38+rwc!C38+cmv_c3!BE38+livestock!B38+airports!C38+'ptfire-wild'!C38+fertilizer!B38 -> 66,951 | D39: =rail!D38+nonpt!D38+ptagfire!D38++nonroad!D38+cmv_c1c2!D38+'ptfire-rx'!D38+ptegu!DW38+ptnonipm!D38+pt_oilgas!D38+np_oilgas!D38+rwc!D38+cmv_c3!D38+'onroad all'!CI38+airports!D38+'ptfire-wild'!D38 -> 131,470 | E39: =rail!E38+nonpt!E38+ptagfire!E38++nonroad!E38+cmv_c1c2!E38+'ptfire-rx'!E38+ptegu!E38+ptnonipm!E38+pt_oilgas!E38+np_oilgas!E38+rwc!E38+cmv_c3!E38+afdust!BA38+'onroad all'!DE38+'onroad all'!DD38+airports!E38+'ptfire-wild'!E38 -> 465,399 | F39: =rail!F38+nonpt!F38+ptagfire!F38++nonroad!F38+cmv_c1c2!F38+'ptfire-rx'!F38+ptegu!F38+ptnonipm!F38+pt_oilgas!F38+np_oilgas!F38+rwc!F38+cmv_c3!F38+afdust!BB38+'onroad all'!DD38+airports!F38+'ptfire-wild'!F38 -> 233,422 | G39: =rail!G38+nonpt!G38+ptagfire!G38++nonroad!G38+'onroad all'!DU38+cmv_c1c2!G38+'ptfire-rx'!G38+ptegu!FH38+ptnonipm!G38+pt_oilgas!G38+np_oilgas!G38+rwc!G38+cmv_c3!G38+airports!G38+'ptfire-wild'!G38 -> 21,975 | H39: =rail!H38+nonpt!H38+ptagfire!H38++nonroad!H38+'onroad all'!EI38+cmv_c1c2!H38+'ptfire-rx'!H38+ptegu!H38+ptnonipm!H38+pt_oilgas!H38+np_oilgas!H38+rwc!H38+cmv_c3!H38+livestock!C38+airports!H38+'ptfire-wild'!H38+vcp!H38 -> 612,807 | I39: =rail!AO38+nonpt!BN38+ptagfire!AI38+nonroad!AK38+'onroad all'!H38+cmv_c1c2!N38+'ptfire-rx'!AN38+ptegu!BM38+ptnonipm!BX38+pt_oilgas!BL38+np_oilgas!AT38+rwc!AJ38+cmv_c3!O38+livestock!U38+airports!AJ38+'ptfire-wild'!AK38+vcp!AA38 -> 18,860 | J39: =rail!AU38+nonpt!BT38+ptagfire!AM38+nonroad!AP38+'onroad all'!P38+cmv_c1c2!T38+'ptfire-rx'!AR38+ptegu!BS38+ptnonipm!CD38+pt_oilgas!BR38+np_oilgas!AZ38+rwc!AN38+cmv_c3!T38+livestock!X38+airports!AM38+'ptfire-wild'!AO38+vcp!AE38 -> 6,362 | K39: =rail!BR38+nonpt!CY38+ptagfire!AX38+nonroad!BH38+'onroad all'!BC38+cmv_c1c2!AO38+'ptfire-rx'!BD38+ptegu!CX38+ptnonipm!DP38+pt_oilgas!CV38+np_oilgas!BV38+rwc!BC38+cmv_c3!AP38+livestock!AH38+airports!BE38+'ptfire-wild'!AZ38+vcp!AQ38 -> 37,011 | L39: =rail!CF38+nonpt!DO38+ptagfire!BG38+nonroad!BT38+'onroad all'!BU38+cmv_c1c2!BC38+'ptfire-rx'!BM38+ptegu!DM38+ptnonipm!EH38+pt_oilgas!DK38+np_oilgas!CJ38+rwc!BP38+cmv_c3!BC38+livestock!AN38+airports!BN38+'ptfire-wild'!BI38+vcp!AX38 -> 42,660 | M39: =rail!CG38+nonpt!DQ38+nonroad!BU38+'onroad all'!BY38+cmv_c1c2!BD38+'ptfire-rx'!BO38+ptegu!DO38+ptnonipm!EJ38+pt_oilgas!DM38+np_oilgas!CK38+rwc!BQ38+cmv_c3!BD38+airports!BO38+'ptfire-wild'!BK38+vcp!AY38+ptagfire!BI38 -> 5,378 | N39: =rail!AN38+nonpt!BK38+nonroad!AJ38+'onroad all'!G38+cmv_c1c2!M38+'ptfire-rx'!AK38+ptegu!BK38+ptnonipm!BU38+pt_oilgas!BJ38+np_oilgas!AS38+rwc!AI38+airports!AH38+cmv_c3!M38+'ptfire-wild'!AI38+ptagfire!AG38 -> 5,595 | O39: =rail!AY38+nonpt!BY38+ptagfire!AO38+nonroad!AR38+'onroad all'!Z38+cmv_c1c2!V38+'ptfire-rx'!AT38+ptegu!BX38+ptnonipm!CI38+pt_oilgas!BW38+np_oilgas!BB38+rwc!AP38+airports!AO38+cmv_c3!V38+'ptfire-wild'!AQ38 -> 3,088 | P39: =rail!AD38+nonroad!AD38+'onroad all'!AK38+'onroad all'!AL38+'onroad all'!AM38+'onroad all'!AN38+'onroad all'!AO38+'onroad all'!AP38+ptnonipm!BI38+SUM(airports!AR38:AW38)+SUM(cmv_c1c2!AC38:AH38)+SUM(cmv_c3!AC38:AH38) -> 2,262 | Q39: =rail!AE38+nonroad!AE38+'onroad all'!AL38+'onroad all'!AM38+'onroad all'!AN38+'onroad all'!AO38+'onroad all'!AP38+ptnonipm!BJ38+SUM(airports!AS38:AW38)+SUM(cmv_c1c2!AD38:AH38)+SUM(cmv_c3!AD38:AH38) -> 2,130 | R39: =rail!P38+nonpt!T38+nonroad!R38+'onroad all'!AC38+ptegu!T38+ptnonipm!T38+pt_oilgas!S38+np_oilgas!R38+rwc!N38+SUM(cmv_c1c2!Z38:AA38)+SUM(cmv_c3!Z38:AA38) -> 0.88 | S39: =rail!K38+nonpt!L38+nonroad!U38+'onroad all'!M38+ptegu!L38+ptnonipm!L38+pt_oilgas!K38+np_oilgas!K38+SUM(cmv_c1c2!R38:S38)+SUM(cmv_c3!R38:S38) -> 0.55 | T39: =rail!O38+nonpt!P38+ptegu!P38+ptnonipm!P38+pt_oilgas!O38+np_oilgas!N38+rwc!M38+SUM(cmv_c1c2!W38:X38)+SUM(cmv_c3!W38:X38) -> 0.16 | U39: =rail!V38+nonpt!AI38+nonroad!T38+'onroad all'!CB38+ptegu!AH38+ptnonipm!AL38+pt_oilgas!AG38+np_oilgas!AB38+rwc!T38+SUM(cmv_c1c2!BG38:BH38)+SUM(cmv_c3!BG38:BH38) -> 1.92 | V39: =rail!T38+nonpt!AE38+nonroad!S38+'onroad all'!BS38+'onroad all'!BT38+ptegu!AD38+ptnonipm!AH38+pt_oilgas!AC38+np_oilgas!X38+rwc!R38+SUM(cmv_c1c2!BA38:BB38)+SUM(cmv_c3!BA38:BB38) -> 5.93 | W39: =nonpt!CW38+ptegu!CV38+ptnonipm!DN38 -> 0.02 | AA39: Oregon | AB39: =B39+beis!H38 -> 2,844,381 | AC39: 66,951 | AD39: =D39+beis!T38 -> 145,941 | AE39: 465,399 | AF39: 233,422 | AG39: 21,975 | AH39: =H39+beis!Z38 -> 1,444,661 | AI39: =I39+beis!E38 -> 34,166 | AJ39: 6,362 | AK39: =K39+beis!N38 -> 57,884 | AL39: =L39+beis!R38 -> 104,183 | AM39: 5,378 | AN39: 5,595 | AO39: 3,088 | AP39: 2,262 | AQ39: 2,130 | AR39: 0.88 | AS39: 0.55 | AT39: 0.16 | AU39: 1.92 | AV39: 5.93 | AX39: Oregon | AY39: =B39-'ptfire-rx'!B38 -> 1,863,552 | AZ39: =C39-'ptfire-rx'!C38 -> 53,325 | BA39: =D39-'ptfire-rx'!D38 -> 122,800 | BB39: =E39-'ptfire-rx'!E38 -> 382,452 | BC39: =F39-'ptfire-rx'!F38 -> 162,964 | BD39: =G39-'ptfire-rx'!G38 -> 16,538 | BE39: =H39-'ptfire-rx'!H38 -> 416,019 | BF39: =I39-'ptfire-rx'!AN38 -> 12,497 | BG39: =J39-'ptfire-rx'!AR38 -> 4,696 | BH39: =K39-'ptfire-rx'!BD38 -> 24,647 | BI39: =L39-'ptfire-rx'!BM38 -> 28,821 | BJ39: =M39-'ptfire-rx'!BO38 -> 3,608 | BK39: =N39-'ptfire-rx'!AK38 -> 3,621 | BL39: =O39-'ptfire-rx'!AT38 -> 2,093 | BM39: 2,262 | BN39: 2,130 | BO39: 0.88 | BP39: 0.55 | BQ39: 0.16 | BR39: 1.92 | BS39: 5.93
A40: Pennsyvlania | B40: =rail!B39+nonpt!B39+ptagfire!B39+nonroad!B39+'onroad all'!AG39+cmv_c1c2!B39+'ptfire-rx'!B39+ptegu!B39+ptnonipm!B39+pt_oilgas!B39+np_oilgas!B39+rwc!B39+cmv_c3!B39+airports!B39+'ptfire-wild'!B39 -> 1,289,102 | C40: =rail!C39+nonpt!C39+ptagfire!C39++nonroad!C39+'onroad all'!BZ39+cmv_c1c2!BE39+'ptfire-rx'!C39+ptegu!C39+ptnonipm!C39+pt_oilgas!C39+np_oilgas!C39+rwc!C39+cmv_c3!BE39+livestock!B39+airports!C39+'ptfire-wild'!C39+fertilizer!B39 -> 65,332 | D40: =rail!D39+nonpt!D39+ptagfire!D39++nonroad!D39+cmv_c1c2!D39+'ptfire-rx'!D39+ptegu!DW39+ptnonipm!D39+pt_oilgas!D39+np_oilgas!D39+rwc!D39+cmv_c3!D39+'onroad all'!CI39+airports!D39+'ptfire-wild'!D39 -> 300,810 | E40: =rail!E39+nonpt!E39+ptagfire!E39++nonroad!E39+cmv_c1c2!E39+'ptfire-rx'!E39+ptegu!E39+ptnonipm!E39+pt_oilgas!E39+np_oilgas!E39+rwc!E39+cmv_c3!E39+afdust!BA39+'onroad all'!DE39+'onroad all'!DD39+airports!E39+'ptfire-wild'!E39 -> 103,299 | F40: =rail!F39+nonpt!F39+ptagfire!F39++nonroad!F39+cmv_c1c2!F39+'ptfire-rx'!F39+ptegu!F39+ptnonipm!F39+pt_oilgas!F39+np_oilgas!F39+rwc!F39+cmv_c3!F39+afdust!BB39+'onroad all'!DD39+airports!F39+'ptfire-wild'!F39 -> 69,806 | G40: =rail!G39+nonpt!G39+ptagfire!G39++nonroad!G39+'onroad all'!DU39+cmv_c1c2!G39+'ptfire-rx'!G39+ptegu!FH39+ptnonipm!G39+pt_oilgas!G39+np_oilgas!G39+rwc!G39+cmv_c3!G39+airports!G39+'ptfire-wild'!G39 -> 95,489 | H40: =rail!H39+nonpt!H39+ptagfire!H39++nonroad!H39+'onroad all'!EI39+cmv_c1c2!H39+'ptfire-rx'!H39+ptegu!H39+ptnonipm!H39+pt_oilgas!H39+np_oilgas!H39+rwc!H39+cmv_c3!H39+livestock!C39+airports!H39+'ptfire-wild'!H39+vcp!H39 -> 384,918 | I40: =rail!AO39+nonpt!BN39+ptagfire!AI39+nonroad!AK39+'onroad all'!H39+cmv_c1c2!N39+'ptfire-rx'!AN39+ptegu!BM39+ptnonipm!BX39+pt_oilgas!BL39+np_oilgas!AT39+rwc!AJ39+cmv_c3!O39+livestock!U39+airports!AJ39+'ptfire-wild'!AK39+vcp!AA39 -> 1,880 | J40: =rail!AU39+nonpt!BT39+ptagfire!AM39+nonroad!AP39+'onroad all'!P39+cmv_c1c2!T39+'ptfire-rx'!AR39+ptegu!BS39+ptnonipm!CD39+pt_oilgas!BR39+np_oilgas!AZ39+rwc!AN39+cmv_c3!T39+livestock!X39+airports!AM39+'ptfire-wild'!AO39+vcp!AE39 -> 9,524 | K40: =rail!BR39+nonpt!CY39+ptagfire!AX39+nonroad!BH39+'onroad all'!BC39+cmv_c1c2!AO39+'ptfire-rx'!BD39+ptegu!CX39+ptnonipm!DP39+pt_oilgas!CV39+np_oilgas!BV39+rwc!BC39+cmv_c3!AP39+livestock!AH39+airports!BE39+'ptfire-wild'!AZ39+vcp!AQ39 -> 4,318 | L40: =rail!CF39+nonpt!DO39+ptagfire!BG39+nonroad!BT39+'onroad all'!BU39+cmv_c1c2!BC39+'ptfire-rx'!BM39+ptegu!DM39+ptnonipm!EH39+pt_oilgas!DK39+np_oilgas!CJ39+rwc!BP39+cmv_c3!BC39+livestock!AN39+airports!BN39+'ptfire-wild'!BI39+vcp!AX39 -> 5,947 | M40: =rail!CG39+nonpt!DQ39+nonroad!BU39+'onroad all'!BY39+cmv_c1c2!BD39+'ptfire-rx'!BO39+ptegu!DO39+ptnonipm!EJ39+pt_oilgas!DM39+np_oilgas!CK39+rwc!BQ39+cmv_c3!BD39+airports!BO39+'ptfire-wild'!BK39+vcp!AY39+ptagfire!BI39 -> 745 | N40: =rail!AN39+nonpt!BK39+nonroad!AJ39+'onroad all'!G39+cmv_c1c2!M39+'ptfire-rx'!AK39+ptegu!BK39+ptnonipm!BU39+pt_oilgas!BJ39+np_oilgas!AS39+rwc!AI39+airports!AH39+cmv_c3!M39+'ptfire-wild'!AI39+ptagfire!AG39 -> 360 | O40: =rail!AY39+nonpt!BY39+ptagfire!AO39+nonroad!AR39+'onroad all'!Z39+cmv_c1c2!V39+'ptfire-rx'!AT39+ptegu!BX39+ptnonipm!CI39+pt_oilgas!BW39+np_oilgas!BB39+rwc!AP39+airports!AO39+cmv_c3!V39+'ptfire-wild'!AQ39 -> 506 | P40: =rail!AD39+nonroad!AD39+'onroad all'!AK39+'onroad all'!AL39+'onroad all'!AM39+'onroad all'!AN39+'onroad all'!AO39+'onroad all'!AP39+ptnonipm!BI39+SUM(airports!AR39:AW39)+SUM(cmv_c1c2!AC39:AH39)+SUM(cmv_c3!AC39:AH39) -> 3,983 | Q40: =rail!AE39+nonroad!AE39+'onroad all'!AL39+'onroad all'!AM39+'onroad all'!AN39+'onroad all'!AO39+'onroad all'!AP39+ptnonipm!BJ39+SUM(airports!AS39:AW39)+SUM(cmv_c1c2!AD39:AH39)+SUM(cmv_c3!AD39:AH39) -> 3,769 | R40: =rail!P39+nonpt!T39+nonroad!R39+'onroad all'!AC39+ptegu!T39+ptnonipm!T39+pt_oilgas!S39+np_oilgas!R39+rwc!N39+SUM(cmv_c1c2!Z39:AA39)+SUM(cmv_c3!Z39:AA39) -> 3.06 | S40: =rail!K39+nonpt!L39+nonroad!U39+'onroad all'!M39+ptegu!L39+ptnonipm!L39+pt_oilgas!K39+np_oilgas!K39+SUM(cmv_c1c2!R39:S39)+SUM(cmv_c3!R39:S39) -> 2.80 | T40: =rail!O39+nonpt!P39+ptegu!P39+ptnonipm!P39+pt_oilgas!O39+np_oilgas!N39+rwc!M39+SUM(cmv_c1c2!W39:X39)+SUM(cmv_c3!W39:X39) -> 1.37 | U40: =rail!V39+nonpt!AI39+nonroad!T39+'onroad all'!CB39+ptegu!AH39+ptnonipm!AL39+pt_oilgas!AG39+np_oilgas!AB39+rwc!T39+SUM(cmv_c1c2!BG39:BH39)+SUM(cmv_c3!BG39:BH39) -> 44.53 | V40: =rail!T39+nonpt!AE39+nonroad!S39+'onroad all'!BS39+'onroad all'!BT39+ptegu!AD39+ptnonipm!AH39+pt_oilgas!AC39+np_oilgas!X39+rwc!R39+SUM(cmv_c1c2!BA39:BB39)+SUM(cmv_c3!BA39:BB39) -> 44.65 | W40: =nonpt!CW39+ptegu!CV39+ptnonipm!DN39 -> 2.65 | X40: X | AA40: Pennsyvlania | AB40: =B40+beis!H39 -> 1,341,026 | AC40: 65,332 | AD40: =D40+beis!T39 -> 313,257 | AE40: 103,299 | AF40: 69,806 | AG40: 95,489 | AH40: =H40+beis!Z39 -> 816,144 | AI40: =I40+beis!E39 -> 7,309 | AJ40: 9,524 | AK40: =K40+beis!N39 -> 11,720 | AL40: =L40+beis!R39 -> 28,483 | AM40: 745 | AN40: 360 | AO40: 506 | AP40: 3,983 | AQ40: 3,769 | AR40: 3.06 | AS40: 2.80 | AT40: 1.37 | AU40: 44.53 | AV40: 44.65 | AX40: Pennsyvlania | AY40: =B40-'ptfire-rx'!B39 -> 1,253,410 | AZ40: =C40-'ptfire-rx'!C39 -> 64,745 | BA40: =D40-'ptfire-rx'!D39 -> 300,247 | BB40: =E40-'ptfire-rx'!E39 -> 99,591 | BC40: =F40-'ptfire-rx'!F39 -> 66,661 | BD40: =G40-'ptfire-rx'!G39 -> 95,198 | BE40: =H40-'ptfire-rx'!H39 -> 376,464 | BF40: =I40-'ptfire-rx'!AN39 -> 1,685 | BG40: =J40-'ptfire-rx'!AR39 -> 9,440 | BH40: =K40-'ptfire-rx'!BD39 -> 3,817 | BI40: =L40-'ptfire-rx'!BM39 -> 5,653 | BJ40: =M40-'ptfire-rx'!BO39 -> 686 | BK40: =N40-'ptfire-rx'!AK39 -> 262 | BL40: =O40-'ptfire-rx'!AT39 -> 430 | BM40: 3,983 | BN40: 3,769 | BO40: 3.06 | BP40: 2.80 | BQ40: 1.37 | BR40: 44.53 | BS40: 44.65
A41: Rhode Island | B41: =rail!B40+nonpt!B40+ptagfire!B40+nonroad!B40+'onroad all'!AG40+cmv_c1c2!B40+'ptfire-rx'!B40+ptegu!B40+ptnonipm!B40+pt_oilgas!B40+np_oilgas!B40+rwc!B40+cmv_c3!B40+airports!B40+'ptfire-wild'!B40 -> 80,907 | C41: =rail!C40+nonpt!C40+ptagfire!C40++nonroad!C40+'onroad all'!BZ40+cmv_c1c2!BE40+'ptfire-rx'!C40+ptegu!C40+ptnonipm!C40+pt_oilgas!C40+np_oilgas!C40+rwc!C40+cmv_c3!BE40+livestock!B40+airports!C40+'ptfire-wild'!C40+fertilizer!B40 -> 845 | D41: =rail!D40+nonpt!D40+ptagfire!D40++nonroad!D40+cmv_c1c2!D40+'ptfire-rx'!D40+ptegu!DW40+ptnonipm!D40+pt_oilgas!D40+np_oilgas!D40+rwc!D40+cmv_c3!D40+'onroad all'!CI40+airports!D40+'ptfire-wild'!D40 -> 13,157 | E41: =rail!E40+nonpt!E40+ptagfire!E40++nonroad!E40+cmv_c1c2!E40+'ptfire-rx'!E40+ptegu!E40+ptnonipm!E40+pt_oilgas!E40+np_oilgas!E40+rwc!E40+cmv_c3!E40+afdust!BA40+'onroad all'!DE40+'onroad all'!DD40+airports!E40+'ptfire-wild'!E40 -> 4,396 | F41: =rail!F40+nonpt!F40+ptagfire!F40++nonroad!F40+cmv_c1c2!F40+'ptfire-rx'!F40+ptegu!F40+ptnonipm!F40+pt_oilgas!F40+np_oilgas!F40+rwc!F40+cmv_c3!F40+afdust!BB40+'onroad all'!DD40+airports!F40+'ptfire-wild'!F40 -> 3,040 | G41: =rail!G40+nonpt!G40+ptagfire!G40++nonroad!G40+'onroad all'!DU40+cmv_c1c2!G40+'ptfire-rx'!G40+ptegu!FH40+ptnonipm!G40+pt_oilgas!G40+np_oilgas!G40+rwc!G40+cmv_c3!G40+airports!G40+'ptfire-wild'!G40 -> 856 | H41: =rail!H40+nonpt!H40+ptagfire!H40++nonroad!H40+'onroad all'!EI40+cmv_c1c2!H40+'ptfire-rx'!H40+ptegu!H40+ptnonipm!H40+pt_oilgas!H40+np_oilgas!H40+rwc!H40+cmv_c3!H40+livestock!C40+airports!H40+'ptfire-wild'!H40+vcp!H40 -> 16,397 | I41: =rail!AO40+nonpt!BN40+ptagfire!AI40+nonroad!AK40+'onroad all'!H40+cmv_c1c2!N40+'ptfire-rx'!AN40+ptegu!BM40+ptnonipm!BX40+pt_oilgas!BL40+np_oilgas!AT40+rwc!AJ40+cmv_c3!O40+livestock!U40+airports!AJ40+'ptfire-wild'!AK40+vcp!AA40 -> 103 | J41: =rail!AU40+nonpt!BT40+ptagfire!AM40+nonroad!AP40+'onroad all'!P40+cmv_c1c2!T40+'ptfire-rx'!AR40+ptegu!BS40+ptnonipm!CD40+pt_oilgas!BR40+np_oilgas!AZ40+rwc!AN40+cmv_c3!T40+livestock!X40+airports!AM40+'ptfire-wild'!AO40+vcp!AE40 -> 208 | K41: =rail!BR40+nonpt!CY40+ptagfire!AX40+nonroad!BH40+'onroad all'!BC40+cmv_c1c2!AO40+'ptfire-rx'!BD40+ptegu!CX40+ptnonipm!DP40+pt_oilgas!CV40+np_oilgas!BV40+rwc!BC40+cmv_c3!AP40+livestock!AH40+airports!BE40+'ptfire-wild'!AZ40+vcp!AQ40 -> 213 | L41: =rail!CF40+nonpt!DO40+ptagfire!BG40+nonroad!BT40+'onroad all'!BU40+cmv_c1c2!BC40+'ptfire-rx'!BM40+ptegu!DM40+ptnonipm!EH40+pt_oilgas!DK40+np_oilgas!CJ40+rwc!BP40+cmv_c3!BC40+livestock!AN40+airports!BN40+'ptfire-wild'!BI40+vcp!AX40 -> 264 | M41: =rail!CG40+nonpt!DQ40+nonroad!BU40+'onroad all'!BY40+cmv_c1c2!BD40+'ptfire-rx'!BO40+ptegu!DO40+ptnonipm!EJ40+pt_oilgas!DM40+np_oilgas!CK40+rwc!BQ40+cmv_c3!BD40+airports!BO40+'ptfire-wild'!BK40+vcp!AY40+ptagfire!BI40 -> 20 | N41: =rail!AN40+nonpt!BK40+nonroad!AJ40+'onroad all'!G40+cmv_c1c2!M40+'ptfire-rx'!AK40+ptegu!BK40+ptnonipm!BU40+pt_oilgas!BJ40+np_oilgas!AS40+rwc!AI40+airports!AH40+cmv_c3!M40+'ptfire-wild'!AI40+ptagfire!AG40 -> 15 | O41: =rail!AY40+nonpt!BY40+ptagfire!AO40+nonroad!AR40+'onroad all'!Z40+cmv_c1c2!V40+'ptfire-rx'!AT40+ptegu!BX40+ptnonipm!CI40+pt_oilgas!BW40+np_oilgas!BB40+rwc!AP40+airports!AO40+cmv_c3!V40+'ptfire-wild'!AQ40 -> 32 | P41: =rail!AD40+nonroad!AD40+'onroad all'!AK40+'onroad all'!AL40+'onroad all'!AM40+'onroad all'!AN40+'onroad all'!AO40+'onroad all'!AP40+ptnonipm!BI40+SUM(airports!AR40:AW40)+SUM(cmv_c1c2!AC40:AH40)+SUM(cmv_c3!AC40:AH40) -> 239 | Q41: =rail!AE40+nonroad!AE40+'onroad all'!AL40+'onroad all'!AM40+'onroad all'!AN40+'onroad all'!AO40+'onroad all'!AP40+ptnonipm!BJ40+SUM(airports!AS40:AW40)+SUM(cmv_c1c2!AD40:AH40)+SUM(cmv_c3!AD40:AH40) -> 227 | R41: =rail!P40+nonpt!T40+nonroad!R40+'onroad all'!AC40+ptegu!T40+ptnonipm!T40+pt_oilgas!S40+np_oilgas!R40+rwc!N40+SUM(cmv_c1c2!Z40:AA40)+SUM(cmv_c3!Z40:AA40) -> 0.01 | S41: =rail!K40+nonpt!L40+nonroad!U40+'onroad all'!M40+ptegu!L40+ptnonipm!L40+pt_oilgas!K40+np_oilgas!K40+SUM(cmv_c1c2!R40:S40)+SUM(cmv_c3!R40:S40) -> 0.05 | T41: =rail!O40+nonpt!P40+ptegu!P40+ptnonipm!P40+pt_oilgas!O40+np_oilgas!N40+rwc!M40+SUM(cmv_c1c2!W40:X40)+SUM(cmv_c3!W40:X40) -> 0.04 | U41: =rail!V40+nonpt!AI40+nonroad!T40+'onroad all'!CB40+ptegu!AH40+ptnonipm!AL40+pt_oilgas!AG40+np_oilgas!AB40+rwc!T40+SUM(cmv_c1c2!BG40:BH40)+SUM(cmv_c3!BG40:BH40) -> 0.48 | V41: =rail!T40+nonpt!AE40+nonroad!S40+'onroad all'!BS40+'onroad all'!BT40+ptegu!AD40+ptnonipm!AH40+pt_oilgas!AC40+np_oilgas!X40+rwc!R40+SUM(cmv_c1c2!BA40:BB40)+SUM(cmv_c3!BA40:BB40) -> 0.21 | W41: =nonpt!CW40+ptegu!CV40+ptnonipm!DN40 -> 0.34 | X41: X | AA41: Rhode Island | AB41: =B41+beis!H40 -> 82,519 | AC41: 845 | AD41: =D41+beis!T40 -> 13,316 | AE41: 4,396 | AF41: 3,040 | AG41: 856 | AH41: =H41+beis!Z40 -> 33,525 | AI41: =I41+beis!E40 -> 272 | AJ41: 208 | AK41: =K41+beis!N40 -> 443 | AL41: =L41+beis!R40 -> 960 | AM41: 20 | AN41: 15 | AO41: 32 | AP41: 239 | AQ41: 227 | AR41: 0.01 | AS41: 0.05 | AT41: 0.04 | AU41: 0.48 | AV41: 0.21 | AX41: Rhode Island | AY41: =B41-'ptfire-rx'!B40 -> 79,956 | AZ41: =C41-'ptfire-rx'!C40 -> 830 | BA41: =D41-'ptfire-rx'!D40 -> 13,144 | BB41: =E41-'ptfire-rx'!E40 -> 4,299 | BC41: =F41-'ptfire-rx'!F40 -> 2,957 | BD41: =G41-'ptfire-rx'!G40 -> 849 | BE41: =H41-'ptfire-rx'!H40 -> 16,172 | BF41: =I41-'ptfire-rx'!AN40 -> 99 | BG41: =J41-'ptfire-rx'!AR40 -> 206 | BH41: =K41-'ptfire-rx'!BD40 -> 201 | BI41: =L41-'ptfire-rx'!BM40 -> 257 | BJ41: =M41-'ptfire-rx'!BO40 -> 19 | BK41: =N41-'ptfire-rx'!AK40 -> 13 | BL41: =O41-'ptfire-rx'!AT40 -> 30 | BM41: 239 | BN41: 227 | BO41: 0.01 | BP41: 0.05 | BQ41: 0.04 | BR41: 0.48 | BS41: 0.21
A42: South Carolina | B42: =rail!B41+nonpt!B41+ptagfire!B41+nonroad!B41+'onroad all'!AG41+cmv_c1c2!B41+'ptfire-rx'!B41+ptegu!B41+ptnonipm!B41+pt_oilgas!B41+np_oilgas!B41+rwc!B41+cmv_c3!B41+airports!B41+'ptfire-wild'!B41 -> 1,068,140 | C42: =rail!C41+nonpt!C41+ptagfire!C41++nonroad!C41+'onroad all'!BZ41+cmv_c1c2!BE41+'ptfire-rx'!C41+ptegu!C41+ptnonipm!C41+pt_oilgas!C41+np_oilgas!C41+rwc!C41+cmv_c3!BE41+livestock!B41+airports!C41+'ptfire-wild'!C41+fertilizer!B41 -> 38,323 | D42: =rail!D41+nonpt!D41+ptagfire!D41++nonroad!D41+cmv_c1c2!D41+'ptfire-rx'!D41+ptegu!DW41+ptnonipm!D41+pt_oilgas!D41+np_oilgas!D41+rwc!D41+cmv_c3!D41+'onroad all'!CI41+airports!D41+'ptfire-wild'!D41 -> 138,620 | E42: =rail!E41+nonpt!E41+ptagfire!E41++nonroad!E41+cmv_c1c2!E41+'ptfire-rx'!E41+ptegu!E41+ptnonipm!E41+pt_oilgas!E41+np_oilgas!E41+rwc!E41+cmv_c3!E41+afdust!BA41+'onroad all'!DE41+'onroad all'!DD41+airports!E41+'ptfire-wild'!E41 -> 108,589 | F42: =rail!F41+nonpt!F41+ptagfire!F41++nonroad!F41+cmv_c1c2!F41+'ptfire-rx'!F41+ptegu!F41+ptnonipm!F41+pt_oilgas!F41+np_oilgas!F41+rwc!F41+cmv_c3!F41+afdust!BB41+'onroad all'!DD41+airports!F41+'ptfire-wild'!F41 -> 66,635 | G42: =rail!G41+nonpt!G41+ptagfire!G41++nonroad!G41+'onroad all'!DU41+cmv_c1c2!G41+'ptfire-rx'!G41+ptegu!FH41+ptnonipm!G41+pt_oilgas!G41+np_oilgas!G41+rwc!G41+cmv_c3!G41+airports!G41+'ptfire-wild'!G41 -> 24,887 | H42: =rail!H41+nonpt!H41+ptagfire!H41++nonroad!H41+'onroad all'!EI41+cmv_c1c2!H41+'ptfire-rx'!H41+ptegu!H41+ptnonipm!H41+pt_oilgas!H41+np_oilgas!H41+rwc!H41+cmv_c3!H41+livestock!C41+airports!H41+'ptfire-wild'!H41+vcp!H41 -> 208,438 | I42: =rail!AO41+nonpt!BN41+ptagfire!AI41+nonroad!AK41+'onroad all'!H41+cmv_c1c2!N41+'ptfire-rx'!AN41+ptegu!BM41+ptnonipm!BX41+pt_oilgas!BL41+np_oilgas!AT41+rwc!AJ41+cmv_c3!O41+livestock!U41+airports!AJ41+'ptfire-wild'!AK41+vcp!AA41 -> 3,042 | J42: =rail!AU41+nonpt!BT41+ptagfire!AM41+nonroad!AP41+'onroad all'!P41+cmv_c1c2!T41+'ptfire-rx'!AR41+ptegu!BS41+ptnonipm!CD41+pt_oilgas!BR41+np_oilgas!AZ41+rwc!AN41+cmv_c3!T41+livestock!X41+airports!AM41+'ptfire-wild'!AO41+vcp!AE41 -> 2,507 | K42: =rail!BR41+nonpt!CY41+ptagfire!AX41+nonroad!BH41+'onroad all'!BC41+cmv_c1c2!AO41+'ptfire-rx'!BD41+ptegu!CX41+ptnonipm!DP41+pt_oilgas!CV41+np_oilgas!BV41+rwc!BC41+cmv_c3!AP41+livestock!AH41+airports!BE41+'ptfire-wild'!AZ41+vcp!AQ41 -> 6,198 | L42: =rail!CF41+nonpt!DO41+ptagfire!BG41+nonroad!BT41+'onroad all'!BU41+cmv_c1c2!BC41+'ptfire-rx'!BM41+ptegu!DM41+ptnonipm!EH41+pt_oilgas!DK41+np_oilgas!CJ41+rwc!BP41+cmv_c3!BC41+livestock!AN41+airports!BN41+'ptfire-wild'!BI41+vcp!AX41 -> 7,429 | M42: =rail!CG41+nonpt!DQ41+nonroad!BU41+'onroad all'!BY41+cmv_c1c2!BD41+'ptfire-rx'!BO41+ptegu!DO41+ptnonipm!EJ41+pt_oilgas!DM41+np_oilgas!CK41+rwc!BQ41+cmv_c3!BD41+airports!BO41+'ptfire-wild'!BK41+vcp!AY41+ptagfire!BI41 -> 691 | N42: =rail!AN41+nonpt!BK41+nonroad!AJ41+'onroad all'!G41+cmv_c1c2!M41+'ptfire-rx'!AK41+ptegu!BK41+ptnonipm!BU41+pt_oilgas!BJ41+np_oilgas!AS41+rwc!AI41+airports!AH41+cmv_c3!M41+'ptfire-wild'!AI41+ptagfire!AG41 -> 1,078 | O42: =rail!AY41+nonpt!BY41+ptagfire!AO41+nonroad!AR41+'onroad all'!Z41+cmv_c1c2!V41+'ptfire-rx'!AT41+ptegu!BX41+ptnonipm!CI41+pt_oilgas!BW41+np_oilgas!BB41+rwc!AP41+airports!AO41+cmv_c3!V41+'ptfire-wild'!AQ41 -> 855 | P42: =rail!AD41+nonroad!AD41+'onroad all'!AK41+'onroad all'!AL41+'onroad all'!AM41+'onroad all'!AN41+'onroad all'!AO41+'onroad all'!AP41+ptnonipm!BI41+SUM(airports!AR41:AW41)+SUM(cmv_c1c2!AC41:AH41)+SUM(cmv_c3!AC41:AH41) -> 2,065 | Q42: =rail!AE41+nonroad!AE41+'onroad all'!AL41+'onroad all'!AM41+'onroad all'!AN41+'onroad all'!AO41+'onroad all'!AP41+ptnonipm!BJ41+SUM(airports!AS41:AW41)+SUM(cmv_c1c2!AD41:AH41)+SUM(cmv_c3!AD41:AH41) -> 1,939 | R42: =rail!P41+nonpt!T41+nonroad!R41+'onroad all'!AC41+ptegu!T41+ptnonipm!T41+pt_oilgas!S41+np_oilgas!R41+rwc!N41+SUM(cmv_c1c2!Z41:AA41)+SUM(cmv_c3!Z41:AA41) -> 0.75 | S42: =rail!K41+nonpt!L41+nonroad!U41+'onroad all'!M41+ptegu!L41+ptnonipm!L41+pt_oilgas!K41+np_oilgas!K41+SUM(cmv_c1c2!R41:S41)+SUM(cmv_c3!R41:S41) -> 1.34 | T42: =rail!O41+nonpt!P41+ptegu!P41+ptnonipm!P41+pt_oilgas!O41+np_oilgas!N41+rwc!M41+SUM(cmv_c1c2!W41:X41)+SUM(cmv_c3!W41:X41) -> 0.29 | U42: =rail!V41+nonpt!AI41+nonroad!T41+'onroad all'!CB41+ptegu!AH41+ptnonipm!AL41+pt_oilgas!AG41+np_oilgas!AB41+rwc!T41+SUM(cmv_c1c2!BG41:BH41)+SUM(cmv_c3!BG41:BH41) -> 4.61 | V42: =rail!T41+nonpt!AE41+nonroad!S41+'onroad all'!BS41+'onroad all'!BT41+ptegu!AD41+ptnonipm!AH41+pt_oilgas!AC41+np_oilgas!X41+rwc!R41+SUM(cmv_c1c2!BA41:BB41)+SUM(cmv_c3!BA41:BB41) -> 26.82 | W42: =nonpt!CW41+ptegu!CV41+ptnonipm!DN41 -> 1.79 | X42: X | AA42: South Carolina | AB42: =B42+beis!H41 -> 1,144,418 | AC42: 38,323 | AD42: =D42+beis!T41 -> 150,854 | AE42: 108,589 | AF42: 66,635 | AG42: 24,887 | AH42: =H42+beis!Z41 -> 973,896 | AI42: =I42+beis!E41 -> 11,028 | AJ42: 2,507 | AK42: =K42+beis!N41 -> 17,088 | AL42: =L42+beis!R41 -> 48,613 | AM42: 691 | AN42: 1,078 | AO42: 855 | AP42: 2,065 | AQ42: 1,939 | AR42: 0.75 | AS42: 1.34 | AT42: 0.29 | AU42: 4.61 | AV42: 26.82 | AX42: South Carolina | AY42: =B42-'ptfire-rx'!B41 -> 799,447 | AZ42: =C42-'ptfire-rx'!C41 -> 33,899 | BA42: =D42-'ptfire-rx'!D41 -> 133,799 | BB42: =E42-'ptfire-rx'!E41 -> 80,031 | BC42: =F42-'ptfire-rx'!F41 -> 42,365 | BD42: =G42-'ptfire-rx'!G41 -> 22,516 | BE42: =H42-'ptfire-rx'!H41 -> 144,466 | BF42: =I42-'ptfire-rx'!AN41 -> 1,406 | BG42: =J42-'ptfire-rx'!AR41 -> 1,823 | BH42: =K42-'ptfire-rx'!BD41 -> 2,128 | BI42: =L42-'ptfire-rx'!BM41 -> 5,020 | BJ42: =M42-'ptfire-rx'!BO41 -> 218 | BK42: =N42-'ptfire-rx'!AK41 -> 265 | BL42: =O42-'ptfire-rx'!AT41 -> 240 | BM42: 2,065 | BN42: 1,939 | BO42: 0.75 | BP42: 1.34 | BQ42: 0.29 | BR42: 4.61 | BS42: 26.82
A43: South Dakota | B43: =rail!B42+nonpt!B42+ptagfire!B42+nonroad!B42+'onroad all'!AG42+cmv_c1c2!B42+'ptfire-rx'!B42+ptegu!B42+ptnonipm!B42+pt_oilgas!B42+np_oilgas!B42+rwc!B42+cmv_c3!B42+airports!B42+'ptfire-wild'!B42 -> 230,046 | C43: =rail!C42+nonpt!C42+ptagfire!C42++nonroad!C42+'onroad all'!BZ42+cmv_c1c2!BE42+'ptfire-rx'!C42+ptegu!C42+ptnonipm!C42+pt_oilgas!C42+np_oilgas!C42+rwc!C42+cmv_c3!BE42+livestock!B42+airports!C42+'ptfire-wild'!C42+fertilizer!B42 -> 105,957 | D43: =rail!D42+nonpt!D42+ptagfire!D42++nonroad!D42+cmv_c1c2!D42+'ptfire-rx'!D42+ptegu!DW42+ptnonipm!D42+pt_oilgas!D42+np_oilgas!D42+rwc!D42+cmv_c3!D42+'onroad all'!CI42+airports!D42+'ptfire-wild'!D42 -> 41,755 | E43: =rail!E42+nonpt!E42+ptagfire!E42++nonroad!E42+cmv_c1c2!E42+'ptfire-rx'!E42+ptegu!E42+ptnonipm!E42+pt_oilgas!E42+np_oilgas!E42+rwc!E42+cmv_c3!E42+afdust!BA42+'onroad all'!DE42+'onroad all'!DD42+airports!E42+'ptfire-wild'!E42 -> 104,500 | F43: =rail!F42+nonpt!F42+ptagfire!F42++nonroad!F42+cmv_c1c2!F42+'ptfire-rx'!F42+ptegu!F42+ptnonipm!F42+pt_oilgas!F42+np_oilgas!F42+rwc!F42+cmv_c3!F42+afdust!BB42+'onroad all'!DD42+airports!F42+'ptfire-wild'!F42 -> 28,955 | G43: =rail!G42+nonpt!G42+ptagfire!G42++nonroad!G42+'onroad all'!DU42+cmv_c1c2!G42+'ptfire-rx'!G42+ptegu!FH42+ptnonipm!G42+pt_oilgas!G42+np_oilgas!G42+rwc!G42+cmv_c3!G42+airports!G42+'ptfire-wild'!G42 -> 3,761 | H43: =rail!H42+nonpt!H42+ptagfire!H42++nonroad!H42+'onroad all'!EI42+cmv_c1c2!H42+'ptfire-rx'!H42+ptegu!H42+ptnonipm!H42+pt_oilgas!H42+np_oilgas!H42+rwc!H42+cmv_c3!H42+livestock!C42+airports!H42+'ptfire-wild'!H42+vcp!H42 -> 70,413 | I43: =rail!AO42+nonpt!BN42+ptagfire!AI42+nonroad!AK42+'onroad all'!H42+cmv_c1c2!N42+'ptfire-rx'!AN42+ptegu!BM42+ptnonipm!BX42+pt_oilgas!BL42+np_oilgas!AT42+rwc!AJ42+cmv_c3!O42+livestock!U42+airports!AJ42+'ptfire-wild'!AK42+vcp!AA42 -> 1,165 | J43: =rail!AU42+nonpt!BT42+ptagfire!AM42+nonroad!AP42+'onroad all'!P42+cmv_c1c2!T42+'ptfire-rx'!AR42+ptegu!BS42+ptnonipm!CD42+pt_oilgas!BR42+np_oilgas!AZ42+rwc!AN42+cmv_c3!T42+livestock!X42+airports!AM42+'ptfire-wild'!AO42+vcp!AE42 -> 665 | K43: =rail!BR42+nonpt!CY42+ptagfire!AX42+nonroad!BH42+'onroad all'!BC42+cmv_c1c2!AO42+'ptfire-rx'!BD42+ptegu!CX42+ptnonipm!DP42+pt_oilgas!CV42+np_oilgas!BV42+rwc!BC42+cmv_c3!AP42+livestock!AH42+airports!BE42+'ptfire-wild'!AZ42+vcp!AQ42 -> 2,040 | L43: =rail!CF42+nonpt!DO42+ptagfire!BG42+nonroad!BT42+'onroad all'!BU42+cmv_c1c2!BC42+'ptfire-rx'!BM42+ptegu!DM42+ptnonipm!EH42+pt_oilgas!DK42+np_oilgas!CJ42+rwc!BP42+cmv_c3!BC42+livestock!AN42+airports!BN42+'ptfire-wild'!BI42+vcp!AX42 -> 2,069 | M43: =rail!CG42+nonpt!DQ42+nonroad!BU42+'onroad all'!BY42+cmv_c1c2!BD42+'ptfire-rx'!BO42+ptegu!DO42+ptnonipm!EJ42+pt_oilgas!DM42+np_oilgas!CK42+rwc!BQ42+cmv_c3!BD42+airports!BO42+'ptfire-wild'!BK42+vcp!AY42+ptagfire!BI42 -> 491 | N43: =rail!AN42+nonpt!BK42+nonroad!AJ42+'onroad all'!G42+cmv_c1c2!M42+'ptfire-rx'!AK42+ptegu!BK42+ptnonipm!BU42+pt_oilgas!BJ42+np_oilgas!AS42+rwc!AI42+airports!AH42+cmv_c3!M42+'ptfire-wild'!AI42+ptagfire!AG42 -> 307 | O43: =rail!AY42+nonpt!BY42+ptagfire!AO42+nonroad!AR42+'onroad all'!Z42+cmv_c1c2!V42+'ptfire-rx'!AT42+ptegu!BX42+ptnonipm!CI42+pt_oilgas!BW42+np_oilgas!BB42+rwc!AP42+airports!AO42+cmv_c3!V42+'ptfire-wild'!AQ42 -> 169 | P43: =rail!AD42+nonroad!AD42+'onroad all'!AK42+'onroad all'!AL42+'onroad all'!AM42+'onroad all'!AN42+'onroad all'!AO42+'onroad all'!AP42+ptnonipm!BI42+SUM(airports!AR42:AW42)+SUM(cmv_c1c2!AC42:AH42)+SUM(cmv_c3!AC42:AH42) -> 1,371 | Q43: =rail!AE42+nonroad!AE42+'onroad all'!AL42+'onroad all'!AM42+'onroad all'!AN42+'onroad all'!AO42+'onroad all'!AP42+ptnonipm!BJ42+SUM(airports!AS42:AW42)+SUM(cmv_c1c2!AD42:AH42)+SUM(cmv_c3!AD42:AH42) -> 1,316 | R43: =rail!P42+nonpt!T42+nonroad!R42+'onroad all'!AC42+ptegu!T42+ptnonipm!T42+pt_oilgas!S42+np_oilgas!R42+rwc!N42+SUM(cmv_c1c2!Z42:AA42)+SUM(cmv_c3!Z42:AA42) -> 0.06 | S43: =rail!K42+nonpt!L42+nonroad!U42+'onroad all'!M42+ptegu!L42+ptnonipm!L42+pt_oilgas!K42+np_oilgas!K42+SUM(cmv_c1c2!R42:S42)+SUM(cmv_c3!R42:S42) -> 0.19 | T43: =rail!O42+nonpt!P42+ptegu!P42+ptnonipm!P42+pt_oilgas!O42+np_oilgas!N42+rwc!M42+SUM(cmv_c1c2!W42:X42)+SUM(cmv_c3!W42:X42) -> 0.03 | U43: =rail!V42+nonpt!AI42+nonroad!T42+'onroad all'!CB42+ptegu!AH42+ptnonipm!AL42+pt_oilgas!AG42+np_oilgas!AB42+rwc!T42+SUM(cmv_c1c2!BG42:BH42)+SUM(cmv_c3!BG42:BH42) -> 1.16 | V43: =rail!T42+nonpt!AE42+nonroad!S42+'onroad all'!BS42+'onroad all'!BT42+ptegu!AD42+ptnonipm!AH42+pt_oilgas!AC42+np_oilgas!X42+rwc!R42+SUM(cmv_c1c2!BA42:BB42)+SUM(cmv_c3!BA42:BB42) -> 1.57 | W43: =nonpt!CW42+ptegu!CV42+ptnonipm!DN42 -> 0.00 | X43: X | AA43: South Dakota | AB43: =B43+beis!H42 -> 281,183 | AC43: 105,957 | AD43: =D43+beis!T42 -> 68,964 | AE43: 104,500 | AF43: 28,955 | AG43: 3,761 | AH43: =H43+beis!Z42 -> 239,064 | AI43: =I43+beis!E42 -> 6,522 | AJ43: 665 | AK43: =K43+beis!N42 -> 9,345 | AL43: =L43+beis!R42 -> 30,593 | AM43: 491 | AN43: 307 | AO43: 169 | AP43: 1,371 | AQ43: 1,316 | AR43: 0.06 | AS43: 0.19 | AT43: 0.03 | AU43: 1.16 | AV43: 1.57 | AX43: South Dakota | AY43: =B43-'ptfire-rx'!B42 -> 144,921 | AZ43: =C43-'ptfire-rx'!C42 -> 104,567 | BA43: =D43-'ptfire-rx'!D42 -> 40,579 | BB43: =E43-'ptfire-rx'!E42 -> 95,681 | BC43: =F43-'ptfire-rx'!F42 -> 21,430 | BD43: =G43-'ptfire-rx'!G42 -> 3,118 | BE43: =H43-'ptfire-rx'!H42 -> 50,131 | BF43: =I43-'ptfire-rx'!AN42 -> 388 | BG43: =J43-'ptfire-rx'!AR42 -> 470 | BH43: =K43-'ptfire-rx'!BD42 -> 597 | BI43: =L43-'ptfire-rx'!BM42 -> 468 | BJ43: =M43-'ptfire-rx'!BO42 -> 290 | BK43: =N43-'ptfire-rx'!AK42 -> 60 | BL43: =O43-'ptfire-rx'!AT42 -> 54 | BM43: 1,371 | BN43: 1,316 | BO43: 0.06 | BP43: 0.19 | BQ43: 0.03 | BR43: 1.16 | BS43: 1.57
A44: Tennessee | B44: =rail!B43+nonpt!B43+ptagfire!B43+nonroad!B43+'onroad all'!AG43+cmv_c1c2!B43+'ptfire-rx'!B43+ptegu!B43+ptnonipm!B43+pt_oilgas!B43+np_oilgas!B43+rwc!B43+cmv_c3!B43+airports!B43+'ptfire-wild'!B43 -> 1,012,835 | C44: =rail!C43+nonpt!C43+ptagfire!C43++nonroad!C43+'onroad all'!BZ43+cmv_c1c2!BE43+'ptfire-rx'!C43+ptegu!C43+ptnonipm!C43+pt_oilgas!C43+np_oilgas!C43+rwc!C43+cmv_c3!BE43+livestock!B43+airports!C43+'ptfire-wild'!C43+fertilizer!B43 -> 31,815 | D44: =rail!D43+nonpt!D43+ptagfire!D43++nonroad!D43+cmv_c1c2!D43+'ptfire-rx'!D43+ptegu!DW43+ptnonipm!D43+pt_oilgas!D43+np_oilgas!D43+rwc!D43+cmv_c3!D43+'onroad all'!CI43+airports!D43+'ptfire-wild'!D43 -> 170,186 | E44: =rail!E43+nonpt!E43+ptagfire!E43++nonroad!E43+cmv_c1c2!E43+'ptfire-rx'!E43+ptegu!E43+ptnonipm!E43+pt_oilgas!E43+np_oilgas!E43+rwc!E43+cmv_c3!E43+afdust!BA43+'onroad all'!DE43+'onroad all'!DD43+airports!E43+'ptfire-wild'!E43 -> 92,995 | F44: =rail!F43+nonpt!F43+ptagfire!F43++nonroad!F43+cmv_c1c2!F43+'ptfire-rx'!F43+ptegu!F43+ptnonipm!F43+pt_oilgas!F43+np_oilgas!F43+rwc!F43+cmv_c3!F43+afdust!BB43+'onroad all'!DD43+airports!F43+'ptfire-wild'!F43 -> 55,194 | G44: =rail!G43+nonpt!G43+ptagfire!G43++nonroad!G43+'onroad all'!DU43+cmv_c1c2!G43+'ptfire-rx'!G43+ptegu!FH43+ptnonipm!G43+pt_oilgas!G43+np_oilgas!G43+rwc!G43+cmv_c3!G43+airports!G43+'ptfire-wild'!G43 -> 31,865 | H44: =rail!H43+nonpt!H43+ptagfire!H43++nonroad!H43+'onroad all'!EI43+cmv_c1c2!H43+'ptfire-rx'!H43+ptegu!H43+ptnonipm!H43+pt_oilgas!H43+np_oilgas!H43+rwc!H43+cmv_c3!H43+livestock!C43+airports!H43+'ptfire-wild'!H43+vcp!H43 -> 204,655 | I44: =rail!AO43+nonpt!BN43+ptagfire!AI43+nonroad!AK43+'onroad all'!H43+cmv_c1c2!N43+'ptfire-rx'!AN43+ptegu!BM43+ptnonipm!BX43+pt_oilgas!BL43+np_oilgas!AT43+rwc!AJ43+cmv_c3!O43+livestock!U43+airports!AJ43+'ptfire-wild'!AK43+vcp!AA43 -> 1,988 | J44: =rail!AU43+nonpt!BT43+ptagfire!AM43+nonroad!AP43+'onroad all'!P43+cmv_c1c2!T43+'ptfire-rx'!AR43+ptegu!BS43+ptnonipm!CD43+pt_oilgas!BR43+np_oilgas!AZ43+rwc!AN43+cmv_c3!T43+livestock!X43+airports!AM43+'ptfire-wild'!AO43+vcp!AE43 -> 2,347 | K44: =rail!BR43+nonpt!CY43+ptagfire!AX43+nonroad!BH43+'onroad all'!BC43+cmv_c1c2!AO43+'ptfire-rx'!BD43+ptegu!CX43+ptnonipm!DP43+pt_oilgas!CV43+np_oilgas!BV43+rwc!BC43+cmv_c3!AP43+livestock!AH43+airports!BE43+'ptfire-wild'!AZ43+vcp!AQ43 -> 3,809 | L44: =rail!CF43+nonpt!DO43+ptagfire!BG43+nonroad!BT43+'onroad all'!BU43+cmv_c1c2!BC43+'ptfire-rx'!BM43+ptegu!DM43+ptnonipm!EH43+pt_oilgas!DK43+np_oilgas!CJ43+rwc!BP43+cmv_c3!BC43+livestock!AN43+airports!BN43+'ptfire-wild'!BI43+vcp!AX43 -> 3,997 | M44: =rail!CG43+nonpt!DQ43+nonroad!BU43+'onroad all'!BY43+cmv_c1c2!BD43+'ptfire-rx'!BO43+ptegu!DO43+ptnonipm!EJ43+pt_oilgas!DM43+np_oilgas!CK43+rwc!BQ43+cmv_c3!BD43+airports!BO43+'ptfire-wild'!BK43+vcp!AY43+ptagfire!BI43 -> 501 | N44: =rail!AN43+nonpt!BK43+nonroad!AJ43+'onroad all'!G43+cmv_c1c2!M43+'ptfire-rx'!AK43+ptegu!BK43+ptnonipm!BU43+pt_oilgas!BJ43+np_oilgas!AS43+rwc!AI43+airports!AH43+cmv_c3!M43+'ptfire-wild'!AI43+ptagfire!AG43 -> 575 | O44: =rail!AY43+nonpt!BY43+ptagfire!AO43+nonroad!AR43+'onroad all'!Z43+cmv_c1c2!V43+'ptfire-rx'!AT43+ptegu!BX43+ptnonipm!CI43+pt_oilgas!BW43+np_oilgas!BB43+rwc!AP43+airports!AO43+cmv_c3!V43+'ptfire-wild'!AQ43 -> 548 | P44: =rail!AD43+nonroad!AD43+'onroad all'!AK43+'onroad all'!AL43+'onroad all'!AM43+'onroad all'!AN43+'onroad all'!AO43+'onroad all'!AP43+ptnonipm!BI43+SUM(airports!AR43:AW43)+SUM(cmv_c1c2!AC43:AH43)+SUM(cmv_c3!AC43:AH43) -> 2,712 | Q44: =rail!AE43+nonroad!AE43+'onroad all'!AL43+'onroad all'!AM43+'onroad all'!AN43+'onroad all'!AO43+'onroad all'!AP43+ptnonipm!BJ43+SUM(airports!AS43:AW43)+SUM(cmv_c1c2!AD43:AH43)+SUM(cmv_c3!AD43:AH43) -> 2,561 | R44: =rail!P43+nonpt!T43+nonroad!R43+'onroad all'!AC43+ptegu!T43+ptnonipm!T43+pt_oilgas!S43+np_oilgas!R43+rwc!N43+SUM(cmv_c1c2!Z43:AA43)+SUM(cmv_c3!Z43:AA43) -> 1.33 | S44: =rail!K43+nonpt!L43+nonroad!U43+'onroad all'!M43+ptegu!L43+ptnonipm!L43+pt_oilgas!K43+np_oilgas!K43+SUM(cmv_c1c2!R43:S43)+SUM(cmv_c3!R43:S43) -> 1.18 | T44: =rail!O43+nonpt!P43+ptegu!P43+ptnonipm!P43+pt_oilgas!O43+np_oilgas!N43+rwc!M43+SUM(cmv_c1c2!W43:X43)+SUM(cmv_c3!W43:X43) -> 0.28 | U44: =rail!V43+nonpt!AI43+nonroad!T43+'onroad all'!CB43+ptegu!AH43+ptnonipm!AL43+pt_oilgas!AG43+np_oilgas!AB43+rwc!T43+SUM(cmv_c1c2!BG43:BH43)+SUM(cmv_c3!BG43:BH43) -> 6.67 | V44: =rail!T43+nonpt!AE43+nonroad!S43+'onroad all'!BS43+'onroad all'!BT43+ptegu!AD43+ptnonipm!AH43+pt_oilgas!AC43+np_oilgas!X43+rwc!R43+SUM(cmv_c1c2!BA43:BB43)+SUM(cmv_c3!BA43:BB43) -> 42.17 | W44: =nonpt!CW43+ptegu!CV43+ptnonipm!DN43 -> 0.14 | X44: X | AA44: Tennessee | AB44: =B44+beis!H43 -> 1,081,601 | AC44: 31,815 | AD44: =D44+beis!T43 -> 189,230 | AE44: 92,995 | AF44: 55,194 | AG44: 31,865 | AH44: =H44+beis!Z43 -> 893,991 | AI44: =I44+beis!E43 -> 9,181 | AJ44: 2,347 | AK44: =K44+beis!N43 -> 13,617 | AL44: =L44+beis!R43 -> 40,237 | AM44: 501 | AN44: 575 | AO44: 548 | AP44: 2,712 | AQ44: 2,561 | AR44: 1.33 | AS44: 1.18 | AT44: 0.28 | AU44: 6.67 | AV44: 42.17 | AX44: Tennessee | AY44: =B44-'ptfire-rx'!B43 -> 897,371 | AZ44: =C44-'ptfire-rx'!C43 -> 29,913 | BA44: =D44-'ptfire-rx'!D43 -> 167,851 | BB44: =E44-'ptfire-rx'!E43 -> 80,415 | BC44: =F44-'ptfire-rx'!F43 -> 44,478 | BD44: =G44-'ptfire-rx'!G43 -> 30,767 | BE44: =H44-'ptfire-rx'!H43 -> 176,995 | BF44: =I44-'ptfire-rx'!AN43 -> 1,202 | BG44: =J44-'ptfire-rx'!AR43 -> 2,030 | BH44: =K44-'ptfire-rx'!BD43 -> 1,923 | BI44: =L44-'ptfire-rx'!BM43 -> 2,873 | BJ44: =M44-'ptfire-rx'!BO43 -> 284 | BK44: =N44-'ptfire-rx'!AK43 -> 188 | BL44: =O44-'ptfire-rx'!AT43 -> 266 | BM44: 2,712 | BN44: 2,561 | BO44: 1.33 | BP44: 1.18 | BQ44: 0.28 | BR44: 6.67 | BS44: 42.17
A45: Texas | B45: =rail!B44+nonpt!B44+ptagfire!B44+nonroad!B44+'onroad all'!AG44+cmv_c1c2!B44+'ptfire-rx'!B44+ptegu!B44+ptnonipm!B44+pt_oilgas!B44+np_oilgas!B44+rwc!B44+cmv_c3!B44+airports!B44+'ptfire-wild'!B44 -> 3,637,516 | C45: =rail!C44+nonpt!C44+ptagfire!C44++nonroad!C44+'onroad all'!BZ44+cmv_c1c2!BE44+'ptfire-rx'!C44+ptegu!C44+ptnonipm!C44+pt_oilgas!C44+np_oilgas!C44+rwc!C44+cmv_c3!BE44+livestock!B44+airports!C44+'ptfire-wild'!C44+fertilizer!B44 -> 485,469 | D45: =rail!D44+nonpt!D44+ptagfire!D44++nonroad!D44+cmv_c1c2!D44+'ptfire-rx'!D44+ptegu!DW44+ptnonipm!D44+pt_oilgas!D44+np_oilgas!D44+rwc!D44+cmv_c3!D44+'onroad all'!CI44+airports!D44+'ptfire-wild'!D44 -> 1,018,415 | E45: =rail!E44+nonpt!E44+ptagfire!E44++nonroad!E44+cmv_c1c2!E44+'ptfire-rx'!E44+ptegu!E44+ptnonipm!E44+pt_oilgas!E44+np_oilgas!E44+rwc!E44+cmv_c3!E44+afdust!BA44+'onroad all'!DE44+'onroad all'!DD44+airports!E44+'ptfire-wild'!E44 -> 873,823 | F45: =rail!F44+nonpt!F44+ptagfire!F44++nonroad!F44+cmv_c1c2!F44+'ptfire-rx'!F44+ptegu!F44+ptnonipm!F44+pt_oilgas!F44+np_oilgas!F44+rwc!F44+cmv_c3!F44+afdust!BB44+'onroad all'!DD44+airports!F44+'ptfire-wild'!F44 -> 269,950 | G45: =rail!G44+nonpt!G44+ptagfire!G44++nonroad!G44+'onroad all'!DU44+cmv_c1c2!G44+'ptfire-rx'!G44+ptegu!FH44+ptnonipm!G44+pt_oilgas!G44+np_oilgas!G44+rwc!G44+cmv_c3!G44+airports!G44+'ptfire-wild'!G44 -> 335,941 | H45: =rail!H44+nonpt!H44+ptagfire!H44++nonroad!H44+'onroad all'!EI44+cmv_c1c2!H44+'ptfire-rx'!H44+ptegu!H44+ptnonipm!H44+pt_oilgas!H44+np_oilgas!H44+rwc!H44+cmv_c3!H44+livestock!C44+airports!H44+'ptfire-wild'!H44+vcp!H44 -> 1,888,143 | I45: =rail!AO44+nonpt!BN44+ptagfire!AI44+nonroad!AK44+'onroad all'!H44+cmv_c1c2!N44+'ptfire-rx'!AN44+ptegu!BM44+ptnonipm!BX44+pt_oilgas!BL44+np_oilgas!AT44+rwc!AJ44+cmv_c3!O44+livestock!U44+airports!AJ44+'ptfire-wild'!AK44+vcp!AA44 -> 13,609 | J45: =rail!AU44+nonpt!BT44+ptagfire!AM44+nonroad!AP44+'onroad all'!P44+cmv_c1c2!T44+'ptfire-rx'!AR44+ptegu!BS44+ptnonipm!CD44+pt_oilgas!BR44+np_oilgas!AZ44+rwc!AN44+cmv_c3!T44+livestock!X44+airports!AM44+'ptfire-wild'!AO44+vcp!AE44 -> 17,030 | K45: =rail!BR44+nonpt!CY44+ptagfire!AX44+nonroad!BH44+'onroad all'!BC44+cmv_c1c2!AO44+'ptfire-rx'!BD44+ptegu!CX44+ptnonipm!DP44+pt_oilgas!CV44+np_oilgas!BV44+rwc!BC44+cmv_c3!AP44+livestock!AH44+airports!BE44+'ptfire-wild'!AZ44+vcp!AQ44 -> 26,680 | L45: =rail!CF44+nonpt!DO44+ptagfire!BG44+nonroad!BT44+'onroad all'!BU44+cmv_c1c2!BC44+'ptfire-rx'!BM44+ptegu!DM44+ptnonipm!EH44+pt_oilgas!DK44+np_oilgas!CJ44+rwc!BP44+cmv_c3!BC44+livestock!AN44+airports!BN44+'ptfire-wild'!BI44+vcp!AX44 -> 27,250 | M45: =rail!CG44+nonpt!DQ44+nonroad!BU44+'onroad all'!BY44+cmv_c1c2!BD44+'ptfire-rx'!BO44+ptegu!DO44+ptnonipm!EJ44+pt_oilgas!DM44+np_oilgas!CK44+rwc!BQ44+cmv_c3!BD44+airports!BO44+'ptfire-wild'!BK44+vcp!AY44+ptagfire!BI44 -> 3,035 | N45: =rail!AN44+nonpt!BK44+nonroad!AJ44+'onroad all'!G44+cmv_c1c2!M44+'ptfire-rx'!AK44+ptegu!BK44+ptnonipm!BU44+pt_oilgas!BJ44+np_oilgas!AS44+rwc!AI44+airports!AH44+cmv_c3!M44+'ptfire-wild'!AI44+ptagfire!AG44 -> 4,377 | O45: =rail!AY44+nonpt!BY44+ptagfire!AO44+nonroad!AR44+'onroad all'!Z44+cmv_c1c2!V44+'ptfire-rx'!AT44+ptegu!BX44+ptnonipm!CI44+pt_oilgas!BW44+np_oilgas!BB44+rwc!AP44+airports!AO44+cmv_c3!V44+'ptfire-wild'!AQ44 -> 2,386 | P45: =rail!AD44+nonroad!AD44+'onroad all'!AK44+'onroad all'!AL44+'onroad all'!AM44+'onroad all'!AN44+'onroad all'!AO44+'onroad all'!AP44+ptnonipm!BI44+SUM(airports!AR44:AW44)+SUM(cmv_c1c2!AC44:AH44)+SUM(cmv_c3!AC44:AH44) -> 12,116 | Q45: =rail!AE44+nonroad!AE44+'onroad all'!AL44+'onroad all'!AM44+'onroad all'!AN44+'onroad all'!AO44+'onroad all'!AP44+ptnonipm!BJ44+SUM(airports!AS44:AW44)+SUM(cmv_c1c2!AD44:AH44)+SUM(cmv_c3!AD44:AH44) -> 11,497 | R45: =rail!P44+nonpt!T44+nonroad!R44+'onroad all'!AC44+ptegu!T44+ptnonipm!T44+pt_oilgas!S44+np_oilgas!R44+rwc!N44+SUM(cmv_c1c2!Z44:AA44)+SUM(cmv_c3!Z44:AA44) -> 21.06 | S45: =rail!K44+nonpt!L44+nonroad!U44+'onroad all'!M44+ptegu!L44+ptnonipm!L44+pt_oilgas!K44+np_oilgas!K44+SUM(cmv_c1c2!R44:S44)+SUM(cmv_c3!R44:S44) -> 4.95 | T45: =rail!O44+nonpt!P44+ptegu!P44+ptnonipm!P44+pt_oilgas!O44+np_oilgas!N44+rwc!M44+SUM(cmv_c1c2!W44:X44)+SUM(cmv_c3!W44:X44) -> 2.75 | U45: =rail!V44+nonpt!AI44+nonroad!T44+'onroad all'!CB44+ptegu!AH44+ptnonipm!AL44+pt_oilgas!AG44+np_oilgas!AB44+rwc!T44+SUM(cmv_c1c2!BG44:BH44)+SUM(cmv_c3!BG44:BH44) -> 41.72 | V45: =rail!T44+nonpt!AE44+nonroad!S44+'onroad all'!BS44+'onroad all'!BT44+ptegu!AD44+ptnonipm!AH44+pt_oilgas!AC44+np_oilgas!X44+rwc!R44+SUM(cmv_c1c2!BA44:BB44)+SUM(cmv_c3!BA44:BB44) -> 61.17 | W45: =nonpt!CW44+ptegu!CV44+ptnonipm!DN44 -> 38.26 | X45: X | AA45: Texas | AB45: =B45+beis!H44 -> 4,056,141 | AC45: 485,469 | AD45: =D45+beis!T44 -> 1,117,304 | AE45: 873,823 | AF45: 269,950 | AG45: 335,941 | AH45: =H45+beis!Z44 -> 3,980,974 | AI45: =I45+beis!E44 -> 57,462 | AJ45: 17,030 | AK45: =K45+beis!N44 -> 86,480 | AL45: =L45+beis!R44 -> 279,131 | AM45: 3,035 | AN45: 4,377 | AO45: 2,386 | AP45: 12,116 | AQ45: 11,497 | AR45: 21.06 | AS45: 4.95 | AT45: 2.75 | AU45: 41.72 | AV45: 61.17 | AX45: Texas | AY45: =B45-'ptfire-rx'!B44 -> 2,942,774 | AZ45: =C45-'ptfire-rx'!C44 -> 474,147 | BA45: =D45-'ptfire-rx'!D44 -> 1,003,660 | BB45: =E45-'ptfire-rx'!E44 -> 794,509 | BC45: =F45-'ptfire-rx'!F44 -> 201,341 | BD45: =G45-'ptfire-rx'!G44 -> 329,141 | BE45: =H45-'ptfire-rx'!H44 -> 1,717,539 | BF45: =I45-'ptfire-rx'!AN44 -> 6,323 | BG45: =J45-'ptfire-rx'!AR44 -> 15,410 | BH45: =K45-'ptfire-rx'!BD44 -> 17,461 | BI45: =L45-'ptfire-rx'!BM44 -> 19,013 | BJ45: =M45-'ptfire-rx'!BO44 -> 1,583 | BK45: =N45-'ptfire-rx'!AK44 -> 1,899 | BL45: =O45-'ptfire-rx'!AT44 -> 1,497 | BM45: 12,116 | BN45: 11,497 | BO45: 21.06 | BP45: 4.95 | BQ45: 2.75 | BR45: 41.72 | BS45: 61.17
A46: Utah | B46: =rail!B45+nonpt!B45+ptagfire!B45+nonroad!B45+'onroad all'!AG45+cmv_c1c2!B45+'ptfire-rx'!B45+ptegu!B45+ptnonipm!B45+pt_oilgas!B45+np_oilgas!B45+rwc!B45+cmv_c3!B45+airports!B45+'ptfire-wild'!B45 -> 993,523 | C46: =rail!C45+nonpt!C45+ptagfire!C45++nonroad!C45+'onroad all'!BZ45+cmv_c1c2!BE45+'ptfire-rx'!C45+ptegu!C45+ptnonipm!C45+pt_oilgas!C45+np_oilgas!C45+rwc!C45+cmv_c3!BE45+livestock!B45+airports!C45+'ptfire-wild'!C45+fertilizer!B45 -> 55,977 | D46: =rail!D45+nonpt!D45+ptagfire!D45++nonroad!D45+cmv_c1c2!D45+'ptfire-rx'!D45+ptegu!DW45+ptnonipm!D45+pt_oilgas!D45+np_oilgas!D45+rwc!D45+cmv_c3!D45+'onroad all'!CI45+airports!D45+'ptfire-wild'!D45 -> 124,805 | E46: =rail!E45+nonpt!E45+ptagfire!E45++nonroad!E45+cmv_c1c2!E45+'ptfire-rx'!E45+ptegu!E45+ptnonipm!E45+pt_oilgas!E45+np_oilgas!E45+rwc!E45+cmv_c3!E45+afdust!BA45+'onroad all'!DE45+'onroad all'!DD45+airports!E45+'ptfire-wild'!E45 -> 166,870 | F46: =rail!F45+nonpt!F45+ptagfire!F45++nonroad!F45+cmv_c1c2!F45+'ptfire-rx'!F45+ptegu!F45+ptnonipm!F45+pt_oilgas!F45+np_oilgas!F45+rwc!F45+cmv_c3!F45+afdust!BB45+'onroad all'!DD45+airports!F45+'ptfire-wild'!F45 -> 77,657 | G46: =rail!G45+nonpt!G45+ptagfire!G45++nonroad!G45+'onroad all'!DU45+cmv_c1c2!G45+'ptfire-rx'!G45+ptegu!FH45+ptnonipm!G45+pt_oilgas!G45+np_oilgas!G45+rwc!G45+cmv_c3!G45+airports!G45+'ptfire-wild'!G45 -> 15,444 | H46: =rail!H45+nonpt!H45+ptagfire!H45++nonroad!H45+'onroad all'!EI45+cmv_c1c2!H45+'ptfire-rx'!H45+ptegu!H45+ptnonipm!H45+pt_oilgas!H45+np_oilgas!H45+rwc!H45+cmv_c3!H45+livestock!C45+airports!H45+'ptfire-wild'!H45+vcp!H45 -> 288,171 | I46: =rail!AO45+nonpt!BN45+ptagfire!AI45+nonroad!AK45+'onroad all'!H45+cmv_c1c2!N45+'ptfire-rx'!AN45+ptegu!BM45+ptnonipm!BX45+pt_oilgas!BL45+np_oilgas!AT45+rwc!AJ45+cmv_c3!O45+livestock!U45+airports!AJ45+'ptfire-wild'!AK45+vcp!AA45 -> 6,247 | J46: =rail!AU45+nonpt!BT45+ptagfire!AM45+nonroad!AP45+'onroad all'!P45+cmv_c1c2!T45+'ptfire-rx'!AR45+ptegu!BS45+ptnonipm!CD45+pt_oilgas!BR45+np_oilgas!AZ45+rwc!AN45+cmv_c3!T45+livestock!X45+airports!AM45+'ptfire-wild'!AO45+vcp!AE45 -> 3,318 | K46: =rail!BR45+nonpt!CY45+ptagfire!AX45+nonroad!BH45+'onroad all'!BC45+cmv_c1c2!AO45+'ptfire-rx'!BD45+ptegu!CX45+ptnonipm!DP45+pt_oilgas!CV45+np_oilgas!BV45+rwc!BC45+cmv_c3!AP45+livestock!AH45+airports!BE45+'ptfire-wild'!AZ45+vcp!AQ45 -> 13,340 | L46: =rail!CF45+nonpt!DO45+ptagfire!BG45+nonroad!BT45+'onroad all'!BU45+cmv_c1c2!BC45+'ptfire-rx'!BM45+ptegu!DM45+ptnonipm!EH45+pt_oilgas!DK45+np_oilgas!CJ45+rwc!BP45+cmv_c3!BC45+livestock!AN45+airports!BN45+'ptfire-wild'!BI45+vcp!AX45 -> 14,504 | M46: =rail!CG45+nonpt!DQ45+nonroad!BU45+'onroad all'!BY45+cmv_c1c2!BD45+'ptfire-rx'!BO45+ptegu!DO45+ptnonipm!EJ45+pt_oilgas!DM45+np_oilgas!CK45+rwc!BQ45+cmv_c3!BD45+airports!BO45+'ptfire-wild'!BK45+vcp!AY45+ptagfire!BI45 -> 1,746 | N46: =rail!AN45+nonpt!BK45+nonroad!AJ45+'onroad all'!G45+cmv_c1c2!M45+'ptfire-rx'!AK45+ptegu!BK45+ptnonipm!BU45+pt_oilgas!BJ45+np_oilgas!AS45+rwc!AI45+airports!AH45+cmv_c3!M45+'ptfire-wild'!AI45+ptagfire!AG45 -> 1,957 | O46: =rail!AY45+nonpt!BY45+ptagfire!AO45+nonroad!AR45+'onroad all'!Z45+cmv_c1c2!V45+'ptfire-rx'!AT45+ptegu!BX45+ptnonipm!CI45+pt_oilgas!BW45+np_oilgas!BB45+rwc!AP45+airports!AO45+cmv_c3!V45+'ptfire-wild'!AQ45 -> 1,043 | P46: =rail!AD45+nonroad!AD45+'onroad all'!AK45+'onroad all'!AL45+'onroad all'!AM45+'onroad all'!AN45+'onroad all'!AO45+'onroad all'!AP45+ptnonipm!BI45+SUM(airports!AR45:AW45)+SUM(cmv_c1c2!AC45:AH45)+SUM(cmv_c3!AC45:AH45) -> 1,608 | Q46: =rail!AE45+nonroad!AE45+'onroad all'!AL45+'onroad all'!AM45+'onroad all'!AN45+'onroad all'!AO45+'onroad all'!AP45+ptnonipm!BJ45+SUM(airports!AS45:AW45)+SUM(cmv_c1c2!AD45:AH45)+SUM(cmv_c3!AD45:AH45) -> 1,417 | R46: =rail!P45+nonpt!T45+nonroad!R45+'onroad all'!AC45+ptegu!T45+ptnonipm!T45+pt_oilgas!S45+np_oilgas!R45+rwc!N45+SUM(cmv_c1c2!Z45:AA45)+SUM(cmv_c3!Z45:AA45) -> 0.32 | S46: =rail!K45+nonpt!L45+nonroad!U45+'onroad all'!M45+ptegu!L45+ptnonipm!L45+pt_oilgas!K45+np_oilgas!K45+SUM(cmv_c1c2!R45:S45)+SUM(cmv_c3!R45:S45) -> 3.23 | T46: =rail!O45+nonpt!P45+ptegu!P45+ptnonipm!P45+pt_oilgas!O45+np_oilgas!N45+rwc!M45+SUM(cmv_c1c2!W45:X45)+SUM(cmv_c3!W45:X45) -> 0.68 | U46: =rail!V45+nonpt!AI45+nonroad!T45+'onroad all'!CB45+ptegu!AH45+ptnonipm!AL45+pt_oilgas!AG45+np_oilgas!AB45+rwc!T45+SUM(cmv_c1c2!BG45:BH45)+SUM(cmv_c3!BG45:BH45) -> 3.08 | V46: =rail!T45+nonpt!AE45+nonroad!S45+'onroad all'!BS45+'onroad all'!BT45+ptegu!AD45+ptnonipm!AH45+pt_oilgas!AC45+np_oilgas!X45+rwc!R45+SUM(cmv_c1c2!BA45:BB45)+SUM(cmv_c3!BA45:BB45) -> 5.99 | W46: =nonpt!CW45+ptegu!CV45+ptnonipm!DN45 -> 1.33 | AA46: Utah | AB46: =B46+beis!H45 -> 1,059,455 | AC46: 55,977 | AD46: =D46+beis!T45 -> 137,095 | AE46: 166,870 | AF46: 77,657 | AG46: 15,444 | AH46: =H46+beis!Z45 -> 565,740 | AI46: =I46+beis!E45 -> 13,155 | AJ46: 3,318 | AK46: =K46+beis!N45 -> 22,759 | AL46: =L46+beis!R45 -> 56,584 | AM46: 1,746 | AN46: 1,957 | AO46: 1,043 | AP46: 1,608 | AQ46: 1,417 | AR46: 0.32 | AS46: 3.23 | AT46: 0.68 | AU46: 3.08 | AV46: 5.99 | AX46: Utah | AY46: =B46-'ptfire-rx'!B45 -> 908,919 | AZ46: =C46-'ptfire-rx'!C45 -> 54,596 | BA46: =D46-'ptfire-rx'!D45 -> 123,887 | BB46: =E46-'ptfire-rx'!E45 -> 158,416 | BC46: =F46-'ptfire-rx'!F45 -> 70,471 | BD46: =G46-'ptfire-rx'!G45 -> 14,881 | BE46: =H46-'ptfire-rx'!H45 -> 268,199 | BF46: =I46-'ptfire-rx'!AN45 -> 5,587 | BG46: =J46-'ptfire-rx'!AR45 -> 3,146 | BH46: =K46-'ptfire-rx'!BD45 -> 12,065 | BI46: =L46-'ptfire-rx'!BM45 -> 13,078 | BJ46: =M46-'ptfire-rx'!BO45 -> 1,565 | BK46: =N46-'ptfire-rx'!AK45 -> 1,751 | BL46: =O46-'ptfire-rx'!AT45 -> 940 | BM46: 1,608 | BN46: 1,417 | BO46: 0.32 | BP46: 3.23 | BQ46: 0.68 | BR46: 3.08 | BS46: 5.99
A47: Vermont | B47: =rail!B46+nonpt!B46+ptagfire!B46+nonroad!B46+'onroad all'!AG46+cmv_c1c2!B46+'ptfire-rx'!B46+ptegu!B46+ptnonipm!B46+pt_oilgas!B46+np_oilgas!B46+rwc!B46+cmv_c3!B46+airports!B46+'ptfire-wild'!B46 -> 110,404 | C47: =rail!C46+nonpt!C46+ptagfire!C46++nonroad!C46+'onroad all'!BZ46+cmv_c1c2!BE46+'ptfire-rx'!C46+ptegu!C46+ptnonipm!C46+pt_oilgas!C46+np_oilgas!C46+rwc!C46+cmv_c3!BE46+livestock!B46+airports!C46+'ptfire-wild'!C46+fertilizer!B46 -> 6,103 | D47: =rail!D46+nonpt!D46+ptagfire!D46++nonroad!D46+cmv_c1c2!D46+'ptfire-rx'!D46+ptegu!DW46+ptnonipm!D46+pt_oilgas!D46+np_oilgas!D46+rwc!D46+cmv_c3!D46+'onroad all'!CI46+airports!D46+'ptfire-wild'!D46 -> 13,625 | E47: =rail!E46+nonpt!E46+ptagfire!E46++nonroad!E46+cmv_c1c2!E46+'ptfire-rx'!E46+ptegu!E46+ptnonipm!E46+pt_oilgas!E46+np_oilgas!E46+rwc!E46+cmv_c3!E46+afdust!BA46+'onroad all'!DE46+'onroad all'!DD46+airports!E46+'ptfire-wild'!E46 -> 16,154 | F47: =rail!F46+nonpt!F46+ptagfire!F46++nonroad!F46+cmv_c1c2!F46+'ptfire-rx'!F46+ptegu!F46+ptnonipm!F46+pt_oilgas!F46+np_oilgas!F46+rwc!F46+cmv_c3!F46+afdust!BB46+'onroad all'!DD46+airports!F46+'ptfire-wild'!F46 -> 8,379 | G47: =rail!G46+nonpt!G46+ptagfire!G46++nonroad!G46+'onroad all'!DU46+cmv_c1c2!G46+'ptfire-rx'!G46+ptegu!FH46+ptnonipm!G46+pt_oilgas!G46+np_oilgas!G46+rwc!G46+cmv_c3!G46+airports!G46+'ptfire-wild'!G46 -> 764 | H47: =rail!H46+nonpt!H46+ptagfire!H46++nonroad!H46+'onroad all'!EI46+cmv_c1c2!H46+'ptfire-rx'!H46+ptegu!H46+ptnonipm!H46+pt_oilgas!H46+np_oilgas!H46+rwc!H46+cmv_c3!H46+livestock!C46+airports!H46+'ptfire-wild'!H46+vcp!H46 -> 20,172 | I47: =rail!AO46+nonpt!BN46+ptagfire!AI46+nonroad!AK46+'onroad all'!H46+cmv_c1c2!N46+'ptfire-rx'!AN46+ptegu!BM46+ptnonipm!BX46+pt_oilgas!BL46+np_oilgas!AT46+rwc!AJ46+cmv_c3!O46+livestock!U46+airports!AJ46+'ptfire-wild'!AK46+vcp!AA46 -> 242 | J47: =rail!AU46+nonpt!BT46+ptagfire!AM46+nonroad!AP46+'onroad all'!P46+cmv_c1c2!T46+'ptfire-rx'!AR46+ptegu!BS46+ptnonipm!CD46+pt_oilgas!BR46+np_oilgas!AZ46+rwc!AN46+cmv_c3!T46+livestock!X46+airports!AM46+'ptfire-wild'!AO46+vcp!AE46 -> 514 | K47: =rail!BR46+nonpt!CY46+ptagfire!AX46+nonroad!BH46+'onroad all'!BC46+cmv_c1c2!AO46+'ptfire-rx'!BD46+ptegu!CX46+ptnonipm!DP46+pt_oilgas!CV46+np_oilgas!BV46+rwc!BC46+cmv_c3!AP46+livestock!AH46+airports!BE46+'ptfire-wild'!AZ46+vcp!AQ46 -> 529 | L47: =rail!CF46+nonpt!DO46+ptagfire!BG46+nonroad!BT46+'onroad all'!BU46+cmv_c1c2!BC46+'ptfire-rx'!BM46+ptegu!DM46+ptnonipm!EH46+pt_oilgas!DK46+np_oilgas!CJ46+rwc!BP46+cmv_c3!BC46+livestock!AN46+airports!BN46+'ptfire-wild'!BI46+vcp!AX46 -> 363 | M47: =rail!CG46+nonpt!DQ46+nonroad!BU46+'onroad all'!BY46+cmv_c1c2!BD46+'ptfire-rx'!BO46+ptegu!DO46+ptnonipm!EJ46+pt_oilgas!DM46+np_oilgas!CK46+rwc!BQ46+cmv_c3!BD46+airports!BO46+'ptfire-wild'!BK46+vcp!AY46+ptagfire!BI46 -> 84 | N47: =rail!AN46+nonpt!BK46+nonroad!AJ46+'onroad all'!G46+cmv_c1c2!M46+'ptfire-rx'!AK46+ptegu!BK46+ptnonipm!BU46+pt_oilgas!BJ46+np_oilgas!AS46+rwc!AI46+airports!AH46+cmv_c3!M46+'ptfire-wild'!AI46+ptagfire!AG46 -> 44 | O47: =rail!AY46+nonpt!BY46+ptagfire!AO46+nonroad!AR46+'onroad all'!Z46+cmv_c1c2!V46+'ptfire-rx'!AT46+ptegu!BX46+ptnonipm!CI46+pt_oilgas!BW46+np_oilgas!BB46+rwc!AP46+airports!AO46+cmv_c3!V46+'ptfire-wild'!AQ46 -> 69 | P47: =rail!AD46+nonroad!AD46+'onroad all'!AK46+'onroad all'!AL46+'onroad all'!AM46+'onroad all'!AN46+'onroad all'!AO46+'onroad all'!AP46+ptnonipm!BI46+SUM(airports!AR46:AW46)+SUM(cmv_c1c2!AC46:AH46)+SUM(cmv_c3!AC46:AH46) -> 372 | Q47: =rail!AE46+nonroad!AE46+'onroad all'!AL46+'onroad all'!AM46+'onroad all'!AN46+'onroad all'!AO46+'onroad all'!AP46+ptnonipm!BJ46+SUM(airports!AS46:AW46)+SUM(cmv_c1c2!AD46:AH46)+SUM(cmv_c3!AD46:AH46) -> 357 | R47: =rail!P46+nonpt!T46+nonroad!R46+'onroad all'!AC46+ptegu!T46+ptnonipm!T46+pt_oilgas!S46+np_oilgas!R46+rwc!N46+SUM(cmv_c1c2!Z46:AA46)+SUM(cmv_c3!Z46:AA46) -> 0.01 | S47: =rail!K46+nonpt!L46+nonroad!U46+'onroad all'!M46+ptegu!L46+ptnonipm!L46+pt_oilgas!K46+np_oilgas!K46+SUM(cmv_c1c2!R46:S46)+SUM(cmv_c3!R46:S46) -> 0.12 | T47: =rail!O46+nonpt!P46+ptegu!P46+ptnonipm!P46+pt_oilgas!O46+np_oilgas!N46+rwc!M46+SUM(cmv_c1c2!W46:X46)+SUM(cmv_c3!W46:X46) -> 0.03 | U47: =rail!V46+nonpt!AI46+nonroad!T46+'onroad all'!CB46+ptegu!AH46+ptnonipm!AL46+pt_oilgas!AG46+np_oilgas!AB46+rwc!T46+SUM(cmv_c1c2!BG46:BH46)+SUM(cmv_c3!BG46:BH46) -> 1.03 | V47: =rail!T46+nonpt!AE46+nonroad!S46+'onroad all'!BS46+'onroad all'!BT46+ptegu!AD46+ptnonipm!AH46+pt_oilgas!AC46+np_oilgas!X46+rwc!R46+SUM(cmv_c1c2!BA46:BB46)+SUM(cmv_c3!BA46:BB46) -> 3.55 | W47: =nonpt!CW46+ptegu!CV46+ptnonipm!DN46 -> 0.00 | X47: X | AA47: Vermont | AB47: =B47+beis!H46 -> 122,528 | AC47: 6,103 | AD47: =D47+beis!T46 -> 14,873 | AE47: 16,154 | AF47: 8,379 | AG47: 764 | AH47: =H47+beis!Z46 -> 91,269 | AI47: =I47+beis!E46 -> 1,509 | AJ47: 514 | AK47: =K47+beis!N46 -> 2,258 | AL47: =L47+beis!R46 -> 5,186 | AM47: 84 | AN47: 44 | AO47: 69 | AP47: 372 | AQ47: 357 | AR47: 0.01 | AS47: 0.12 | AT47: 0.03 | AU47: 1.03 | AV47: 3.55 | AX47: Vermont | AY47: =B47-'ptfire-rx'!B46 -> 105,957 | AZ47: =C47-'ptfire-rx'!C46 -> 6,030 | BA47: =D47-'ptfire-rx'!D46 -> 13,562 | BB47: =E47-'ptfire-rx'!E46 -> 15,698 | BC47: =F47-'ptfire-rx'!F46 -> 7,993 | BD47: =G47-'ptfire-rx'!G46 -> 730 | BE47: =H47-'ptfire-rx'!H46 -> 19,120 | BF47: =I47-'ptfire-rx'!AN46 -> 219 | BG47: =J47-'ptfire-rx'!AR46 -> 504 | BH47: =K47-'ptfire-rx'!BD46 -> 471 | BI47: =L47-'ptfire-rx'!BM46 -> 328 | BJ47: =M47-'ptfire-rx'!BO46 -> 77 | BK47: =N47-'ptfire-rx'!AK46 -> 33 | BL47: =O47-'ptfire-rx'!AT46 -> 60 | BM47: 372 | BN47: 357 | BO47: 0.01 | BP47: 0.12 | BQ47: 0.03 | BR47: 1.03 | BS47: 3.55
A48: Virginia | B48: =rail!B47+nonpt!B47+ptagfire!B47+nonroad!B47+'onroad all'!AG47+cmv_c1c2!B47+'ptfire-rx'!B47+ptegu!B47+ptnonipm!B47+pt_oilgas!B47+np_oilgas!B47+rwc!B47+cmv_c3!B47+airports!B47+'ptfire-wild'!B47 -> 1,140,227 | C48: =rail!C47+nonpt!C47+ptagfire!C47++nonroad!C47+'onroad all'!BZ47+cmv_c1c2!BE47+'ptfire-rx'!C47+ptegu!C47+ptnonipm!C47+pt_oilgas!C47+np_oilgas!C47+rwc!C47+cmv_c3!BE47+livestock!B47+airports!C47+'ptfire-wild'!C47+fertilizer!B47 -> 45,001 | D48: =rail!D47+nonpt!D47+ptagfire!D47++nonroad!D47+cmv_c1c2!D47+'ptfire-rx'!D47+ptegu!DW47+ptnonipm!D47+pt_oilgas!D47+np_oilgas!D47+rwc!D47+cmv_c3!D47+'onroad all'!CI47+airports!D47+'ptfire-wild'!D47 -> 185,038 | E48: =rail!E47+nonpt!E47+ptagfire!E47++nonroad!E47+cmv_c1c2!E47+'ptfire-rx'!E47+ptegu!E47+ptnonipm!E47+pt_oilgas!E47+np_oilgas!E47+rwc!E47+cmv_c3!E47+afdust!BA47+'onroad all'!DE47+'onroad all'!DD47+airports!E47+'ptfire-wild'!E47 -> 84,497 | F48: =rail!F47+nonpt!F47+ptagfire!F47++nonroad!F47+cmv_c1c2!F47+'ptfire-rx'!F47+ptegu!F47+ptnonipm!F47+pt_oilgas!F47+np_oilgas!F47+rwc!F47+cmv_c3!F47+afdust!BB47+'onroad all'!DD47+airports!F47+'ptfire-wild'!F47 -> 54,241 | G48: =rail!G47+nonpt!G47+ptagfire!G47++nonroad!G47+'onroad all'!DU47+cmv_c1c2!G47+'ptfire-rx'!G47+ptegu!FH47+ptnonipm!G47+pt_oilgas!G47+np_oilgas!G47+rwc!G47+cmv_c3!G47+airports!G47+'ptfire-wild'!G47 -> 27,021 | H48: =rail!H47+nonpt!H47+ptagfire!H47++nonroad!H47+'onroad all'!EI47+cmv_c1c2!H47+'ptfire-rx'!H47+ptegu!H47+ptnonipm!H47+pt_oilgas!H47+np_oilgas!H47+rwc!H47+cmv_c3!H47+livestock!C47+airports!H47+'ptfire-wild'!H47+vcp!H47 -> 223,260 | I48: =rail!AO47+nonpt!BN47+ptagfire!AI47+nonroad!AK47+'onroad all'!H47+cmv_c1c2!N47+'ptfire-rx'!AN47+ptegu!BM47+ptnonipm!BX47+pt_oilgas!BL47+np_oilgas!AT47+rwc!AJ47+cmv_c3!O47+livestock!U47+airports!AJ47+'ptfire-wild'!AK47+vcp!AA47 -> 2,175 | J48: =rail!AU47+nonpt!BT47+ptagfire!AM47+nonroad!AP47+'onroad all'!P47+cmv_c1c2!T47+'ptfire-rx'!AR47+ptegu!BS47+ptnonipm!CD47+pt_oilgas!BR47+np_oilgas!AZ47+rwc!AN47+cmv_c3!T47+livestock!X47+airports!AM47+'ptfire-wild'!AO47+vcp!AE47 -> 2,964 | K48: =rail!BR47+nonpt!CY47+ptagfire!AX47+nonroad!BH47+'onroad all'!BC47+cmv_c1c2!AO47+'ptfire-rx'!BD47+ptegu!CX47+ptnonipm!DP47+pt_oilgas!CV47+np_oilgas!BV47+rwc!BC47+cmv_c3!AP47+livestock!AH47+airports!BE47+'ptfire-wild'!AZ47+vcp!AQ47 -> 4,552 | L48: =rail!CF47+nonpt!DO47+ptagfire!BG47+nonroad!BT47+'onroad all'!BU47+cmv_c1c2!BC47+'ptfire-rx'!BM47+ptegu!DM47+ptnonipm!EH47+pt_oilgas!DK47+np_oilgas!CJ47+rwc!BP47+cmv_c3!BC47+livestock!AN47+airports!BN47+'ptfire-wild'!BI47+vcp!AX47 -> 5,646 | M48: =rail!CG47+nonpt!DQ47+nonroad!BU47+'onroad all'!BY47+cmv_c1c2!BD47+'ptfire-rx'!BO47+ptegu!DO47+ptnonipm!EJ47+pt_oilgas!DM47+np_oilgas!CK47+rwc!BQ47+cmv_c3!BD47+airports!BO47+'ptfire-wild'!BK47+vcp!AY47+ptagfire!BI47 -> 650 | N48: =rail!AN47+nonpt!BK47+nonroad!AJ47+'onroad all'!G47+cmv_c1c2!M47+'ptfire-rx'!AK47+ptegu!BK47+ptnonipm!BU47+pt_oilgas!BJ47+np_oilgas!AS47+rwc!AI47+airports!AH47+cmv_c3!M47+'ptfire-wild'!AI47+ptagfire!AG47 -> 612 | O48: =rail!AY47+nonpt!BY47+ptagfire!AO47+nonroad!AR47+'onroad all'!Z47+cmv_c1c2!V47+'ptfire-rx'!AT47+ptegu!BX47+ptnonipm!CI47+pt_oilgas!BW47+np_oilgas!BB47+rwc!AP47+airports!AO47+cmv_c3!V47+'ptfire-wild'!AQ47 -> 635 | P48: =rail!AD47+nonroad!AD47+'onroad all'!AK47+'onroad all'!AL47+'onroad all'!AM47+'onroad all'!AN47+'onroad all'!AO47+'onroad all'!AP47+ptnonipm!BI47+SUM(airports!AR47:AW47)+SUM(cmv_c1c2!AC47:AH47)+SUM(cmv_c3!AC47:AH47) -> 2,734 | Q48: =rail!AE47+nonroad!AE47+'onroad all'!AL47+'onroad all'!AM47+'onroad all'!AN47+'onroad all'!AO47+'onroad all'!AP47+ptnonipm!BJ47+SUM(airports!AS47:AW47)+SUM(cmv_c1c2!AD47:AH47)+SUM(cmv_c3!AD47:AH47) -> 2,591 | R48: =rail!P47+nonpt!T47+nonroad!R47+'onroad all'!AC47+ptegu!T47+ptnonipm!T47+pt_oilgas!S47+np_oilgas!R47+rwc!N47+SUM(cmv_c1c2!Z47:AA47)+SUM(cmv_c3!Z47:AA47) -> 0.15 | S48: =rail!K47+nonpt!L47+nonroad!U47+'onroad all'!M47+ptegu!L47+ptnonipm!L47+pt_oilgas!K47+np_oilgas!K47+SUM(cmv_c1c2!R47:S47)+SUM(cmv_c3!R47:S47) -> 1.04 | T48: =rail!O47+nonpt!P47+ptegu!P47+ptnonipm!P47+pt_oilgas!O47+np_oilgas!N47+rwc!M47+SUM(cmv_c1c2!W47:X47)+SUM(cmv_c3!W47:X47) -> 0.23 | U48: =rail!V47+nonpt!AI47+nonroad!T47+'onroad all'!CB47+ptegu!AH47+ptnonipm!AL47+pt_oilgas!AG47+np_oilgas!AB47+rwc!T47+SUM(cmv_c1c2!BG47:BH47)+SUM(cmv_c3!BG47:BH47) -> 3.93 | V48: =rail!T47+nonpt!AE47+nonroad!S47+'onroad all'!BS47+'onroad all'!BT47+ptegu!AD47+ptnonipm!AH47+pt_oilgas!AC47+np_oilgas!X47+rwc!R47+SUM(cmv_c1c2!BA47:BB47)+SUM(cmv_c3!BA47:BB47) -> 8.94 | W48: =nonpt!CW47+ptegu!CV47+ptnonipm!DN47 -> 2.13 | X48: X | AA48: Virginia | AB48: =B48+beis!H47 -> 1,207,939 | AC48: 45,001 | AD48: =D48+beis!T47 -> 196,407 | AE48: 84,497 | AF48: 54,241 | AG48: 27,021 | AH48: =H48+beis!Z47 -> 932,306 | AI48: =I48+beis!E47 -> 9,256 | AJ48: 2,964 | AK48: =K48+beis!N47 -> 14,208 | AL48: =L48+beis!R47 -> 39,038 | AM48: 650 | AN48: 612 | AO48: 635 | AP48: 2,734 | AQ48: 2,591 | AR48: 0.15 | AS48: 1.04 | AT48: 0.23 | AU48: 3.93 | AV48: 8.94 | AX48: Virginia | AY48: =B48-'ptfire-rx'!B47 -> 1,031,771 | AZ48: =C48-'ptfire-rx'!C47 -> 43,215 | BA48: =D48-'ptfire-rx'!D47 -> 183,126 | BB48: =E48-'ptfire-rx'!E47 -> 73,027 | BC48: =F48-'ptfire-rx'!F47 -> 44,502 | BD48: =G48-'ptfire-rx'!G47 -> 26,074 | BE48: =H48-'ptfire-rx'!H47 -> 197,484 | BF48: =I48-'ptfire-rx'!AN47 -> 1,533 | BG48: =J48-'ptfire-rx'!AR47 -> 2,691 | BH48: =K48-'ptfire-rx'!BD47 -> 2,926 | BI48: =L48-'ptfire-rx'!BM47 -> 4,687 | BJ48: =M48-'ptfire-rx'!BO47 -> 460 | BK48: =N48-'ptfire-rx'!AK47 -> 292 | BL48: =O48-'ptfire-rx'!AT47 -> 388 | BM48: 2,734 | BN48: 2,591 | BO48: 0.15 | BP48: 1.04 | BQ48: 0.23 | BR48: 3.93 | BS48: 8.94
A49: Washington | B49: =rail!B48+nonpt!B48+ptagfire!B48+nonroad!B48+'onroad all'!AG48+cmv_c1c2!B48+'ptfire-rx'!B48+ptegu!B48+ptnonipm!B48+pt_oilgas!B48+np_oilgas!B48+rwc!B48+cmv_c3!B48+airports!B48+'ptfire-wild'!B48 -> 1,703,785 | C49: =rail!C48+nonpt!C48+ptagfire!C48++nonroad!C48+'onroad all'!BZ48+cmv_c1c2!BE48+'ptfire-rx'!C48+ptegu!C48+ptnonipm!C48+pt_oilgas!C48+np_oilgas!C48+rwc!C48+cmv_c3!BE48+livestock!B48+airports!C48+'ptfire-wild'!C48+fertilizer!B48 -> 76,506 | D49: =rail!D48+nonpt!D48+ptagfire!D48++nonroad!D48+cmv_c1c2!D48+'ptfire-rx'!D48+ptegu!DW48+ptnonipm!D48+pt_oilgas!D48+np_oilgas!D48+rwc!D48+cmv_c3!D48+'onroad all'!CI48+airports!D48+'ptfire-wild'!D48 -> 177,889 | E49: =rail!E48+nonpt!E48+ptagfire!E48++nonroad!E48+cmv_c1c2!E48+'ptfire-rx'!E48+ptegu!E48+ptnonipm!E48+pt_oilgas!E48+np_oilgas!E48+rwc!E48+cmv_c3!E48+afdust!BA48+'onroad all'!DE48+'onroad all'!DD48+airports!E48+'ptfire-wild'!E48 -> 224,745 | F49: =rail!F48+nonpt!F48+ptagfire!F48++nonroad!F48+cmv_c1c2!F48+'ptfire-rx'!F48+ptegu!F48+ptnonipm!F48+pt_oilgas!F48+np_oilgas!F48+rwc!F48+cmv_c3!F48+afdust!BB48+'onroad all'!DD48+airports!F48+'ptfire-wild'!F48 -> 117,852 | G49: =rail!G48+nonpt!G48+ptagfire!G48++nonroad!G48+'onroad all'!DU48+cmv_c1c2!G48+'ptfire-rx'!G48+ptegu!FH48+ptnonipm!G48+pt_oilgas!G48+np_oilgas!G48+rwc!G48+cmv_c3!G48+airports!G48+'ptfire-wild'!G48 -> 17,631 | H49: =rail!H48+nonpt!H48+ptagfire!H48++nonroad!H48+'onroad all'!EI48+cmv_c1c2!H48+'ptfire-rx'!H48+ptegu!H48+ptnonipm!H48+pt_oilgas!H48+np_oilgas!H48+rwc!H48+cmv_c3!H48+livestock!C48+airports!H48+'ptfire-wild'!H48+vcp!H48 -> 377,319 | I49: =rail!AO48+nonpt!BN48+ptagfire!AI48+nonroad!AK48+'onroad all'!H48+cmv_c1c2!N48+'ptfire-rx'!AN48+ptegu!BM48+ptnonipm!BX48+pt_oilgas!BL48+np_oilgas!AT48+rwc!AJ48+cmv_c3!O48+livestock!U48+airports!AJ48+'ptfire-wild'!AK48+vcp!AA48 -> 8,365 | J49: =rail!AU48+nonpt!BT48+ptagfire!AM48+nonroad!AP48+'onroad all'!P48+cmv_c1c2!T48+'ptfire-rx'!AR48+ptegu!BS48+ptnonipm!CD48+pt_oilgas!BR48+np_oilgas!AZ48+rwc!AN48+cmv_c3!T48+livestock!X48+airports!AM48+'ptfire-wild'!AO48+vcp!AE48 -> 4,231 | K49: =rail!BR48+nonpt!CY48+ptagfire!AX48+nonroad!BH48+'onroad all'!BC48+cmv_c1c2!AO48+'ptfire-rx'!BD48+ptegu!CX48+ptnonipm!DP48+pt_oilgas!CV48+np_oilgas!BV48+rwc!BC48+cmv_c3!AP48+livestock!AH48+airports!BE48+'ptfire-wild'!AZ48+vcp!AQ48 -> 16,094 | L49: =rail!CF48+nonpt!DO48+ptagfire!BG48+nonroad!BT48+'onroad all'!BU48+cmv_c1c2!BC48+'ptfire-rx'!BM48+ptegu!DM48+ptnonipm!EH48+pt_oilgas!DK48+np_oilgas!CJ48+rwc!BP48+cmv_c3!BC48+livestock!AN48+airports!BN48+'ptfire-wild'!BI48+vcp!AX48 -> 19,322 | M49: =rail!CG48+nonpt!DQ48+nonroad!BU48+'onroad all'!BY48+cmv_c1c2!BD48+'ptfire-rx'!BO48+ptegu!DO48+ptnonipm!EJ48+pt_oilgas!DM48+np_oilgas!CK48+rwc!BQ48+cmv_c3!BD48+airports!BO48+'ptfire-wild'!BK48+vcp!AY48+ptagfire!BI48 -> 2,313 | N49: =rail!AN48+nonpt!BK48+nonroad!AJ48+'onroad all'!G48+cmv_c1c2!M48+'ptfire-rx'!AK48+ptegu!BK48+ptnonipm!BU48+pt_oilgas!BJ48+np_oilgas!AS48+rwc!AI48+airports!AH48+cmv_c3!M48+'ptfire-wild'!AI48+ptagfire!AG48 -> 2,336 | O49: =rail!AY48+nonpt!BY48+ptagfire!AO48+nonroad!AR48+'onroad all'!Z48+cmv_c1c2!V48+'ptfire-rx'!AT48+ptegu!BX48+ptnonipm!CI48+pt_oilgas!BW48+np_oilgas!BB48+rwc!AP48+airports!AO48+cmv_c3!V48+'ptfire-wild'!AQ48 -> 1,466 | P49: =rail!AD48+nonroad!AD48+'onroad all'!AK48+'onroad all'!AL48+'onroad all'!AM48+'onroad all'!AN48+'onroad all'!AO48+'onroad all'!AP48+ptnonipm!BI48+SUM(airports!AR48:AW48)+SUM(cmv_c1c2!AC48:AH48)+SUM(cmv_c3!AC48:AH48) -> 3,219 | Q49: =rail!AE48+nonroad!AE48+'onroad all'!AL48+'onroad all'!AM48+'onroad all'!AN48+'onroad all'!AO48+'onroad all'!AP48+ptnonipm!BJ48+SUM(airports!AS48:AW48)+SUM(cmv_c1c2!AD48:AH48)+SUM(cmv_c3!AD48:AH48) -> 3,057 | R49: =rail!P48+nonpt!T48+nonroad!R48+'onroad all'!AC48+ptegu!T48+ptnonipm!T48+pt_oilgas!S48+np_oilgas!R48+rwc!N48+SUM(cmv_c1c2!Z48:AA48)+SUM(cmv_c3!Z48:AA48) -> 0.39 | S49: =rail!K48+nonpt!L48+nonroad!U48+'onroad all'!M48+ptegu!L48+ptnonipm!L48+pt_oilgas!K48+np_oilgas!K48+SUM(cmv_c1c2!R48:S48)+SUM(cmv_c3!R48:S48) -> 0.84 | T49: =rail!O48+nonpt!P48+ptegu!P48+ptnonipm!P48+pt_oilgas!O48+np_oilgas!N48+rwc!M48+SUM(cmv_c1c2!W48:X48)+SUM(cmv_c3!W48:X48) -> 0.62 | U49: =rail!V48+nonpt!AI48+nonroad!T48+'onroad all'!CB48+ptegu!AH48+ptnonipm!AL48+pt_oilgas!AG48+np_oilgas!AB48+rwc!T48+SUM(cmv_c1c2!BG48:BH48)+SUM(cmv_c3!BG48:BH48) -> 4.06 | V49: =rail!T48+nonpt!AE48+nonroad!S48+'onroad all'!BS48+'onroad all'!BT48+ptegu!AD48+ptnonipm!AH48+pt_oilgas!AC48+np_oilgas!X48+rwc!R48+SUM(cmv_c1c2!BA48:BB48)+SUM(cmv_c3!BA48:BB48) -> 11.02 | W49: =nonpt!CW48+ptegu!CV48+ptnonipm!DN48 -> 0.02 | AA49: Washington | AB49: =B49+beis!H48 -> 1,830,269 | AC49: 76,506 | AD49: =D49+beis!T48 -> 189,574 | AE49: 224,745 | AF49: 117,852 | AG49: 17,631 | AH49: =H49+beis!Z48 -> 1,053,583 | AI49: =I49+beis!E48 -> 21,615 | AJ49: 4,231 | AK49: =K49+beis!N48 -> 34,162 | AL49: =L49+beis!R48 -> 64,928 | AM49: 2,313 | AN49: 2,336 | AO49: 1,466 | AP49: 3,219 | AQ49: 3,057 | AR49: 0.39 | AS49: 0.84 | AT49: 0.62 | AU49: 4.06 | AV49: 11.02 | AX49: Washington | AY49: =B49-'ptfire-rx'!B48 -> 1,419,196 | AZ49: =C49-'ptfire-rx'!C48 -> 71,862 | BA49: =D49-'ptfire-rx'!D48 -> 174,915 | BB49: =E49-'ptfire-rx'!E48 -> 196,405 | BC49: =F49-'ptfire-rx'!F48 -> 93,763 | BD49: =G49-'ptfire-rx'!G48 -> 15,772 | BE49: =H49-'ptfire-rx'!H48 -> 310,162 | BF49: =I49-'ptfire-rx'!AN48 -> 6,176 | BG49: =J49-'ptfire-rx'!AR48 -> 3,661 | BH49: =K49-'ptfire-rx'!BD48 -> 11,872 | BI49: =L49-'ptfire-rx'!BM48 -> 14,604 | BJ49: =M49-'ptfire-rx'!BO48 -> 1,711 | BK49: =N49-'ptfire-rx'!AK48 -> 1,654 | BL49: =O49-'ptfire-rx'!AT48 -> 1,127 | BM49: 3,219 | BN49: 3,057 | BO49: 0.39 | BP49: 0.84 | BQ49: 0.62 | BR49: 4.06 | BS49: 11.02
A50: West Virginia | B50: =rail!B49+nonpt!B49+ptagfire!B49+nonroad!B49+'onroad all'!AG49+cmv_c1c2!B49+'ptfire-rx'!B49+ptegu!B49+ptnonipm!B49+pt_oilgas!B49+np_oilgas!B49+rwc!B49+cmv_c3!B49+airports!B49+'ptfire-wild'!B49 -> 424,067 | C50: =rail!C49+nonpt!C49+ptagfire!C49++nonroad!C49+'onroad all'!BZ49+cmv_c1c2!BE49+'ptfire-rx'!C49+ptegu!C49+ptnonipm!C49+pt_oilgas!C49+np_oilgas!C49+rwc!C49+cmv_c3!BE49+livestock!B49+airports!C49+'ptfire-wild'!C49+fertilizer!B49 -> 11,912 | D50: =rail!D49+nonpt!D49+ptagfire!D49++nonroad!D49+cmv_c1c2!D49+'ptfire-rx'!D49+ptegu!DW49+ptnonipm!D49+pt_oilgas!D49+np_oilgas!D49+rwc!D49+cmv_c3!D49+'onroad all'!CI49+airports!D49+'ptfire-wild'!D49 -> 122,859 | E50: =rail!E49+nonpt!E49+ptagfire!E49++nonroad!E49+cmv_c1c2!E49+'ptfire-rx'!E49+ptegu!E49+ptnonipm!E49+pt_oilgas!E49+np_oilgas!E49+rwc!E49+cmv_c3!E49+afdust!BA49+'onroad all'!DE49+'onroad all'!DD49+airports!E49+'ptfire-wild'!E49 -> 42,879 | F50: =rail!F49+nonpt!F49+ptagfire!F49++nonroad!F49+cmv_c1c2!F49+'ptfire-rx'!F49+ptegu!F49+ptnonipm!F49+pt_oilgas!F49+np_oilgas!F49+rwc!F49+cmv_c3!F49+afdust!BB49+'onroad all'!DD49+airports!F49+'ptfire-wild'!F49 -> 29,930 | G50: =rail!G49+nonpt!G49+ptagfire!G49++nonroad!G49+'onroad all'!DU49+cmv_c1c2!G49+'ptfire-rx'!G49+ptegu!FH49+ptnonipm!G49+pt_oilgas!G49+np_oilgas!G49+rwc!G49+cmv_c3!G49+airports!G49+'ptfire-wild'!G49 -> 52,322 | H50: =rail!H49+nonpt!H49+ptagfire!H49++nonroad!H49+'onroad all'!EI49+cmv_c1c2!H49+'ptfire-rx'!H49+ptegu!H49+ptnonipm!H49+pt_oilgas!H49+np_oilgas!H49+rwc!H49+cmv_c3!H49+livestock!C49+airports!H49+'ptfire-wild'!H49+vcp!H49 -> 175,263 | I50: =rail!AO49+nonpt!BN49+ptagfire!AI49+nonroad!AK49+'onroad all'!H49+cmv_c1c2!N49+'ptfire-rx'!AN49+ptegu!BM49+ptnonipm!BX49+pt_oilgas!BL49+np_oilgas!AT49+rwc!AJ49+cmv_c3!O49+livestock!U49+airports!AJ49+'ptfire-wild'!AK49+vcp!AA49 -> 1,146 | J50: =rail!AU49+nonpt!BT49+ptagfire!AM49+nonroad!AP49+'onroad all'!P49+cmv_c1c2!T49+'ptfire-rx'!AR49+ptegu!BS49+ptnonipm!CD49+pt_oilgas!BR49+np_oilgas!AZ49+rwc!AN49+cmv_c3!T49+livestock!X49+airports!AM49+'ptfire-wild'!AO49+vcp!AE49 -> 3,370 | K50: =rail!BR49+nonpt!CY49+ptagfire!AX49+nonroad!BH49+'onroad all'!BC49+cmv_c1c2!AO49+'ptfire-rx'!BD49+ptegu!CX49+ptnonipm!DP49+pt_oilgas!CV49+np_oilgas!BV49+rwc!BC49+cmv_c3!AP49+livestock!AH49+airports!BE49+'ptfire-wild'!AZ49+vcp!AQ49 -> 3,038 | L50: =rail!CF49+nonpt!DO49+ptagfire!BG49+nonroad!BT49+'onroad all'!BU49+cmv_c1c2!BC49+'ptfire-rx'!BM49+ptegu!DM49+ptnonipm!EH49+pt_oilgas!DK49+np_oilgas!CJ49+rwc!BP49+cmv_c3!BC49+livestock!AN49+airports!BN49+'ptfire-wild'!BI49+vcp!AX49 -> 2,520 | M50: =rail!CG49+nonpt!DQ49+nonroad!BU49+'onroad all'!BY49+cmv_c1c2!BD49+'ptfire-rx'!BO49+ptegu!DO49+ptnonipm!EJ49+pt_oilgas!DM49+np_oilgas!CK49+rwc!BQ49+cmv_c3!BD49+airports!BO49+'ptfire-wild'!BK49+vcp!AY49+ptagfire!BI49 -> 292 | N50: =rail!AN49+nonpt!BK49+nonroad!AJ49+'onroad all'!G49+cmv_c1c2!M49+'ptfire-rx'!AK49+ptegu!BK49+ptnonipm!BU49+pt_oilgas!BJ49+np_oilgas!AS49+rwc!AI49+airports!AH49+cmv_c3!M49+'ptfire-wild'!AI49+ptagfire!AG49 -> 366 | O50: =rail!AY49+nonpt!BY49+ptagfire!AO49+nonroad!AR49+'onroad all'!Z49+cmv_c1c2!V49+'ptfire-rx'!AT49+ptegu!BX49+ptnonipm!CI49+pt_oilgas!BW49+np_oilgas!BB49+rwc!AP49+airports!AO49+cmv_c3!V49+'ptfire-wild'!AQ49 -> 300 | P50: =rail!AD49+nonroad!AD49+'onroad all'!AK49+'onroad all'!AL49+'onroad all'!AM49+'onroad all'!AN49+'onroad all'!AO49+'onroad all'!AP49+ptnonipm!BI49+SUM(airports!AR49:AW49)+SUM(cmv_c1c2!AC49:AH49)+SUM(cmv_c3!AC49:AH49) -> 729 | Q50: =rail!AE49+nonroad!AE49+'onroad all'!AL49+'onroad all'!AM49+'onroad all'!AN49+'onroad all'!AO49+'onroad all'!AP49+ptnonipm!BJ49+SUM(airports!AS49:AW49)+SUM(cmv_c1c2!AD49:AH49)+SUM(cmv_c3!AD49:AH49) -> 691 | R50: =rail!P49+nonpt!T49+nonroad!R49+'onroad all'!AC49+ptegu!T49+ptnonipm!T49+pt_oilgas!S49+np_oilgas!R49+rwc!N49+SUM(cmv_c1c2!Z49:AA49)+SUM(cmv_c3!Z49:AA49) -> 0.44 | S50: =rail!K49+nonpt!L49+nonroad!U49+'onroad all'!M49+ptegu!L49+ptnonipm!L49+pt_oilgas!K49+np_oilgas!K49+SUM(cmv_c1c2!R49:S49)+SUM(cmv_c3!R49:S49) -> 0.94 | T50: =rail!O49+nonpt!P49+ptegu!P49+ptnonipm!P49+pt_oilgas!O49+np_oilgas!N49+rwc!M49+SUM(cmv_c1c2!W49:X49)+SUM(cmv_c3!W49:X49) -> 0.13 | U50: =rail!V49+nonpt!AI49+nonroad!T49+'onroad all'!CB49+ptegu!AH49+ptnonipm!AL49+pt_oilgas!AG49+np_oilgas!AB49+rwc!T49+SUM(cmv_c1c2!BG49:BH49)+SUM(cmv_c3!BG49:BH49) -> 18.04 | V50: =rail!T49+nonpt!AE49+nonroad!S49+'onroad all'!BS49+'onroad all'!BT49+ptegu!AD49+ptnonipm!AH49+pt_oilgas!AC49+np_oilgas!X49+rwc!R49+SUM(cmv_c1c2!BA49:BB49)+SUM(cmv_c3!BA49:BB49) -> 11.12 | W50: =nonpt!CW49+ptegu!CV49+ptnonipm!DN49 -> 1.57 | X50: X | AA50: West Virginia | AB50: =B50+beis!H49 -> 460,969 | AC50: 11,912 | AD50: =D50+beis!T49 -> 125,941 | AE50: 42,879 | AF50: 29,930 | AG50: 52,322 | AH50: =H50+beis!Z49 -> 595,470 | AI50: =I50+beis!E49 -> 5,000 | AJ50: 3,370 | AK50: =K50+beis!N49 -> 8,293 | AL50: =L50+beis!R49 -> 19,242 | AM50: 292 | AN50: 366 | AO50: 300 | AP50: 729 | AQ50: 691 | AR50: 0.44 | AS50: 0.94 | AT50: 0.13 | AU50: 18.04 | AV50: 11.12 | AX50: West Virginia | AY50: =B50-'ptfire-rx'!B49 -> 363,495 | AZ50: =C50-'ptfire-rx'!C49 -> 10,914 | BA50: =D50-'ptfire-rx'!D49 -> 121,814 | BB50: =E50-'ptfire-rx'!E49 -> 36,515 | BC50: =F50-'ptfire-rx'!F49 -> 24,535 | BD50: =G50-'ptfire-rx'!G49 -> 51,800 | BE50: =H50-'ptfire-rx'!H49 -> 160,902 | BF50: =I50-'ptfire-rx'!AN49 -> 801 | BG50: =J50-'ptfire-rx'!AR49 -> 3,219 | BH50: =K50-'ptfire-rx'!BD49 -> 2,141 | BI50: =L50-'ptfire-rx'!BM49 -> 1,993 | BJ50: =M50-'ptfire-rx'!BO49 -> 186 | BK50: =N50-'ptfire-rx'!AK49 -> 192 | BL50: =O50-'ptfire-rx'!AT49 -> 163 | BM50: 729 | BN50: 691 | BO50: 0.44 | BP50: 0.94 | BQ50: 0.13 | BR50: 18.04 | BS50: 11.12
A51: Wisconsin | B51: =rail!B50+nonpt!B50+ptagfire!B50+nonroad!B50+'onroad all'!AG50+cmv_c1c2!B50+'ptfire-rx'!B50+ptegu!B50+ptnonipm!B50+pt_oilgas!B50+np_oilgas!B50+rwc!B50+cmv_c3!B50+airports!B50+'ptfire-wild'!B50 -> 922,237 | C51: =rail!C50+nonpt!C50+ptagfire!C50++nonroad!C50+'onroad all'!BZ50+cmv_c1c2!BE50+'ptfire-rx'!C50+ptegu!C50+ptnonipm!C50+pt_oilgas!C50+np_oilgas!C50+rwc!C50+cmv_c3!BE50+livestock!B50+airports!C50+'ptfire-wild'!C50+fertilizer!B50 -> 71,094 | D51: =rail!D50+nonpt!D50+ptagfire!D50++nonroad!D50+cmv_c1c2!D50+'ptfire-rx'!D50+ptegu!DW50+ptnonipm!D50+pt_oilgas!D50+np_oilgas!D50+rwc!D50+cmv_c3!D50+'onroad all'!CI50+airports!D50+'ptfire-wild'!D50 -> 150,938 | E51: =rail!E50+nonpt!E50+ptagfire!E50++nonroad!E50+cmv_c1c2!E50+'ptfire-rx'!E50+ptegu!E50+ptnonipm!E50+pt_oilgas!E50+np_oilgas!E50+rwc!E50+cmv_c3!E50+afdust!BA50+'onroad all'!DE50+'onroad all'!DD50+airports!E50+'ptfire-wild'!E50 -> 105,086 | F51: =rail!F50+nonpt!F50+ptagfire!F50++nonroad!F50+cmv_c1c2!F50+'ptfire-rx'!F50+ptegu!F50+ptnonipm!F50+pt_oilgas!F50+np_oilgas!F50+rwc!F50+cmv_c3!F50+afdust!BB50+'onroad all'!DD50+airports!F50+'ptfire-wild'!F50 -> 57,488 | G51: =rail!G50+nonpt!G50+ptagfire!G50++nonroad!G50+'onroad all'!DU50+cmv_c1c2!G50+'ptfire-rx'!G50+ptegu!FH50+ptnonipm!G50+pt_oilgas!G50+np_oilgas!G50+rwc!G50+cmv_c3!G50+airports!G50+'ptfire-wild'!G50 -> 29,566 | H51: =rail!H50+nonpt!H50+ptagfire!H50++nonroad!H50+'onroad all'!EI50+cmv_c1c2!H50+'ptfire-rx'!H50+ptegu!H50+ptnonipm!H50+pt_oilgas!H50+np_oilgas!H50+rwc!H50+cmv_c3!H50+livestock!C50+airports!H50+'ptfire-wild'!H50+vcp!H50 -> 202,437 | I51: =rail!AO50+nonpt!BN50+ptagfire!AI50+nonroad!AK50+'onroad all'!H50+cmv_c1c2!N50+'ptfire-rx'!AN50+ptegu!BM50+ptnonipm!BX50+pt_oilgas!BL50+np_oilgas!AT50+rwc!AJ50+cmv_c3!O50+livestock!U50+airports!AJ50+'ptfire-wild'!AK50+vcp!AA50 -> 2,406 | J51: =rail!AU50+nonpt!BT50+ptagfire!AM50+nonroad!AP50+'onroad all'!P50+cmv_c1c2!T50+'ptfire-rx'!AR50+ptegu!BS50+ptnonipm!CD50+pt_oilgas!BR50+np_oilgas!AZ50+rwc!AN50+cmv_c3!T50+livestock!X50+airports!AM50+'ptfire-wild'!AO50+vcp!AE50 -> 3,059 | K51: =rail!BR50+nonpt!CY50+ptagfire!AX50+nonroad!BH50+'onroad all'!BC50+cmv_c1c2!AO50+'ptfire-rx'!BD50+ptegu!CX50+ptnonipm!DP50+pt_oilgas!CV50+np_oilgas!BV50+rwc!BC50+cmv_c3!AP50+livestock!AH50+airports!BE50+'ptfire-wild'!AZ50+vcp!AQ50 -> 4,182 | L51: =rail!CF50+nonpt!DO50+ptagfire!BG50+nonroad!BT50+'onroad all'!BU50+cmv_c1c2!BC50+'ptfire-rx'!BM50+ptegu!DM50+ptnonipm!EH50+pt_oilgas!DK50+np_oilgas!CJ50+rwc!BP50+cmv_c3!BC50+livestock!AN50+airports!BN50+'ptfire-wild'!BI50+vcp!AX50 -> 6,789 | M51: =rail!CG50+nonpt!DQ50+nonroad!BU50+'onroad all'!BY50+cmv_c1c2!BD50+'ptfire-rx'!BO50+ptegu!DO50+ptnonipm!EJ50+pt_oilgas!DM50+np_oilgas!CK50+rwc!BQ50+cmv_c3!BD50+airports!BO50+'ptfire-wild'!BK50+vcp!AY50+ptagfire!BI50 -> 669 | N51: =rail!AN50+nonpt!BK50+nonroad!AJ50+'onroad all'!G50+cmv_c1c2!M50+'ptfire-rx'!AK50+ptegu!BK50+ptnonipm!BU50+pt_oilgas!BJ50+np_oilgas!AS50+rwc!AI50+airports!AH50+cmv_c3!M50+'ptfire-wild'!AI50+ptagfire!AG50 -> 499 | O51: =rail!AY50+nonpt!BY50+ptagfire!AO50+nonroad!AR50+'onroad all'!Z50+cmv_c1c2!V50+'ptfire-rx'!AT50+ptegu!BX50+ptnonipm!CI50+pt_oilgas!BW50+np_oilgas!BB50+rwc!AP50+airports!AO50+cmv_c3!V50+'ptfire-wild'!AQ50 -> 472 | P51: =rail!AD50+nonroad!AD50+'onroad all'!AK50+'onroad all'!AL50+'onroad all'!AM50+'onroad all'!AN50+'onroad all'!AO50+'onroad all'!AP50+ptnonipm!BI50+SUM(airports!AR50:AW50)+SUM(cmv_c1c2!AC50:AH50)+SUM(cmv_c3!AC50:AH50) -> 2,466 | Q51: =rail!AE50+nonroad!AE50+'onroad all'!AL50+'onroad all'!AM50+'onroad all'!AN50+'onroad all'!AO50+'onroad all'!AP50+ptnonipm!BJ50+SUM(airports!AS50:AW50)+SUM(cmv_c1c2!AD50:AH50)+SUM(cmv_c3!AD50:AH50) -> 2,339 | R51: =rail!P50+nonpt!T50+nonroad!R50+'onroad all'!AC50+ptegu!T50+ptnonipm!T50+pt_oilgas!S50+np_oilgas!R50+rwc!N50+SUM(cmv_c1c2!Z50:AA50)+SUM(cmv_c3!Z50:AA50) -> 0.96 | S51: =rail!K50+nonpt!L50+nonroad!U50+'onroad all'!M50+ptegu!L50+ptnonipm!L50+pt_oilgas!K50+np_oilgas!K50+SUM(cmv_c1c2!R50:S50)+SUM(cmv_c3!R50:S50) -> 0.88 | T51: =rail!O50+nonpt!P50+ptegu!P50+ptnonipm!P50+pt_oilgas!O50+np_oilgas!N50+rwc!M50+SUM(cmv_c1c2!W50:X50)+SUM(cmv_c3!W50:X50) -> 0.22 | U51: =rail!V50+nonpt!AI50+nonroad!T50+'onroad all'!CB50+ptegu!AH50+ptnonipm!AL50+pt_oilgas!AG50+np_oilgas!AB50+rwc!T50+SUM(cmv_c1c2!BG50:BH50)+SUM(cmv_c3!BG50:BH50) -> 6.22 | V51: =rail!T50+nonpt!AE50+nonroad!S50+'onroad all'!BS50+'onroad all'!BT50+ptegu!AD50+ptnonipm!AH50+pt_oilgas!AC50+np_oilgas!X50+rwc!R50+SUM(cmv_c1c2!BA50:BB50)+SUM(cmv_c3!BA50:BB50) -> 16.41 | W51: =nonpt!CW50+ptegu!CV50+ptnonipm!DN50 -> 0.29 | X51: X | AA51: Wisconsin | AB51: =B51+beis!H50 -> 973,661 | AC51: 71,094 | AD51: =D51+beis!T50 -> 170,965 | AE51: 105,086 | AF51: 57,488 | AG51: 29,566 | AH51: =H51+beis!Z50 -> 530,913 | AI51: =I51+beis!E50 -> 7,788 | AJ51: 3,059 | AK51: =K51+beis!N50 -> 11,522 | AL51: =L51+beis!R50 -> 31,751 | AM51: 669 | AN51: 499 | AO51: 472 | AP51: 2,466 | AQ51: 2,339 | AR51: 0.96 | AS51: 0.88 | AT51: 0.22 | AU51: 6.22 | AV51: 16.41 | AX51: Wisconsin | AY51: =B51-'ptfire-rx'!B50 -> 792,239 | AZ51: =C51-'ptfire-rx'!C50 -> 68,970 | BA51: =D51-'ptfire-rx'!D50 -> 149,324 | BB51: =E51-'ptfire-rx'!E50 -> 91,874 | BC51: =F51-'ptfire-rx'!F50 -> 46,244 | BD51: =G51-'ptfire-rx'!G50 -> 28,639 | BE51: =H51-'ptfire-rx'!H50 -> 171,638 | BF51: =I51-'ptfire-rx'!AN50 -> 1,309 | BG51: =J51-'ptfire-rx'!AR50 -> 2,776 | BH51: =K51-'ptfire-rx'!BD50 -> 2,088 | BI51: =L51-'ptfire-rx'!BM50 -> 4,453 | BJ51: =M51-'ptfire-rx'!BO50 -> 372 | BK51: =N51-'ptfire-rx'!AK50 -> 156 | BL51: =O51-'ptfire-rx'!AT50 -> 304 | BM51: 2,466 | BN51: 2,339 | BO51: 0.96 | BP51: 0.88 | BQ51: 0.22 | BR51: 6.22 | BS51: 16.41
A52: Wyoming | B52: =rail!B51+nonpt!B51+ptagfire!B51+nonroad!B51+'onroad all'!AG51+cmv_c1c2!B51+'ptfire-rx'!B51+ptegu!B51+ptnonipm!B51+pt_oilgas!B51+np_oilgas!B51+rwc!B51+cmv_c3!B51+airports!B51+'ptfire-wild'!B51 -> 549,242 | C52: =rail!C51+nonpt!C51+ptagfire!C51++nonroad!C51+'onroad all'!BZ51+cmv_c1c2!BE51+'ptfire-rx'!C51+ptegu!C51+ptnonipm!C51+pt_oilgas!C51+np_oilgas!C51+rwc!C51+cmv_c3!BE51+livestock!B51+airports!C51+'ptfire-wild'!C51+fertilizer!B51 -> 41,220 | D52: =rail!D51+nonpt!D51+ptagfire!D51++nonroad!D51+cmv_c1c2!D51+'ptfire-rx'!D51+ptegu!DW51+ptnonipm!D51+pt_oilgas!D51+np_oilgas!D51+rwc!D51+cmv_c3!D51+'onroad all'!CI51+airports!D51+'ptfire-wild'!D51 -> 149,257 | E52: =rail!E51+nonpt!E51+ptagfire!E51++nonroad!E51+cmv_c1c2!E51+'ptfire-rx'!E51+ptegu!E51+ptnonipm!E51+pt_oilgas!E51+np_oilgas!E51+rwc!E51+cmv_c3!E51+afdust!BA51+'onroad all'!DE51+'onroad all'!DD51+airports!E51+'ptfire-wild'!E51 -> 325,921 | F52: =rail!F51+nonpt!F51+ptagfire!F51++nonroad!F51+cmv_c1c2!F51+'ptfire-rx'!F51+ptegu!F51+ptnonipm!F51+pt_oilgas!F51+np_oilgas!F51+rwc!F51+cmv_c3!F51+afdust!BB51+'onroad all'!DD51+airports!F51+'ptfire-wild'!F51 -> 72,823 | G52: =rail!G51+nonpt!G51+ptagfire!G51++nonroad!G51+'onroad all'!DU51+cmv_c1c2!G51+'ptfire-rx'!G51+ptegu!FH51+ptnonipm!G51+pt_oilgas!G51+np_oilgas!G51+rwc!G51+cmv_c3!G51+airports!G51+'ptfire-wild'!G51 -> 47,196 | H52: =rail!H51+nonpt!H51+ptagfire!H51++nonroad!H51+'onroad all'!EI51+cmv_c1c2!H51+'ptfire-rx'!H51+ptegu!H51+ptnonipm!H51+pt_oilgas!H51+np_oilgas!H51+rwc!H51+cmv_c3!H51+livestock!C51+airports!H51+'ptfire-wild'!H51+vcp!H51 -> 229,777 | I52: =rail!AO51+nonpt!BN51+ptagfire!AI51+nonroad!AK51+'onroad all'!H51+cmv_c1c2!N51+'ptfire-rx'!AN51+ptegu!BM51+ptnonipm!BX51+pt_oilgas!BL51+np_oilgas!AT51+rwc!AJ51+cmv_c3!O51+livestock!U51+airports!AJ51+'ptfire-wild'!AK51+vcp!AA51 -> 4,578 | J52: =rail!AU51+nonpt!BT51+ptagfire!AM51+nonroad!AP51+'onroad all'!P51+cmv_c1c2!T51+'ptfire-rx'!AR51+ptegu!BS51+ptnonipm!CD51+pt_oilgas!BR51+np_oilgas!AZ51+rwc!AN51+cmv_c3!T51+livestock!X51+airports!AM51+'ptfire-wild'!AO51+vcp!AE51 -> 1,802 | K52: =rail!BR51+nonpt!CY51+ptagfire!AX51+nonroad!BH51+'onroad all'!BC51+cmv_c1c2!AO51+'ptfire-rx'!BD51+ptegu!CX51+ptnonipm!DP51+pt_oilgas!CV51+np_oilgas!BV51+rwc!BC51+cmv_c3!AP51+livestock!AH51+airports!BE51+'ptfire-wild'!AZ51+vcp!AQ51 -> 12,957 | L52: =rail!CF51+nonpt!DO51+ptagfire!BG51+nonroad!BT51+'onroad all'!BU51+cmv_c1c2!BC51+'ptfire-rx'!BM51+ptegu!DM51+ptnonipm!EH51+pt_oilgas!DK51+np_oilgas!CJ51+rwc!BP51+cmv_c3!BC51+livestock!AN51+airports!BN51+'ptfire-wild'!BI51+vcp!AX51 -> 8,209 | M52: =rail!CG51+nonpt!DQ51+nonroad!BU51+'onroad all'!BY51+cmv_c1c2!BD51+'ptfire-rx'!BO51+ptegu!DO51+ptnonipm!EJ51+pt_oilgas!DM51+np_oilgas!CK51+rwc!BQ51+cmv_c3!BD51+airports!BO51+'ptfire-wild'!BK51+vcp!AY51+ptagfire!BI51 -> 962 | N52: =rail!AN51+nonpt!BK51+nonroad!AJ51+'onroad all'!G51+cmv_c1c2!M51+'ptfire-rx'!AK51+ptegu!BK51+ptnonipm!BU51+pt_oilgas!BJ51+np_oilgas!AS51+rwc!AI51+airports!AH51+cmv_c3!M51+'ptfire-wild'!AI51+ptagfire!AG51 -> 1,411 | O52: =rail!AY51+nonpt!BY51+ptagfire!AO51+nonroad!AR51+'onroad all'!Z51+cmv_c1c2!V51+'ptfire-rx'!AT51+ptegu!BX51+ptnonipm!CI51+pt_oilgas!BW51+np_oilgas!BB51+rwc!AP51+airports!AO51+cmv_c3!V51+'ptfire-wild'!AQ51 -> 662 | P52: =rail!AD51+nonroad!AD51+'onroad all'!AK51+'onroad all'!AL51+'onroad all'!AM51+'onroad all'!AN51+'onroad all'!AO51+'onroad all'!AP51+ptnonipm!BI51+SUM(airports!AR51:AW51)+SUM(cmv_c1c2!AC51:AH51)+SUM(cmv_c3!AC51:AH51) -> 1,108 | Q52: =rail!AE51+nonroad!AE51+'onroad all'!AL51+'onroad all'!AM51+'onroad all'!AN51+'onroad all'!AO51+'onroad all'!AP51+ptnonipm!BJ51+SUM(airports!AS51:AW51)+SUM(cmv_c1c2!AD51:AH51)+SUM(cmv_c3!AD51:AH51) -> 1,055 | R52: =rail!P51+nonpt!T51+nonroad!R51+'onroad all'!AC51+ptegu!T51+ptnonipm!T51+pt_oilgas!S51+np_oilgas!R51+rwc!N51+SUM(cmv_c1c2!Z51:AA51)+SUM(cmv_c3!Z51:AA51) -> 0.25 | S52: =rail!K51+nonpt!L51+nonroad!U51+'onroad all'!M51+ptegu!L51+ptnonipm!L51+pt_oilgas!K51+np_oilgas!K51+SUM(cmv_c1c2!R51:S51)+SUM(cmv_c3!R51:S51) -> 2.41 | T52: =rail!O51+nonpt!P51+ptegu!P51+ptnonipm!P51+pt_oilgas!O51+np_oilgas!N51+rwc!M51+SUM(cmv_c1c2!W51:X51)+SUM(cmv_c3!W51:X51) -> 2.86 | U52: =rail!V51+nonpt!AI51+nonroad!T51+'onroad all'!CB51+ptegu!AH51+ptnonipm!AL51+pt_oilgas!AG51+np_oilgas!AB51+rwc!T51+SUM(cmv_c1c2!BG51:BH51)+SUM(cmv_c3!BG51:BH51) -> 5.64 | V52: =rail!T51+nonpt!AE51+nonroad!S51+'onroad all'!BS51+'onroad all'!BT51+ptegu!AD51+ptnonipm!AH51+pt_oilgas!AC51+np_oilgas!X51+rwc!R51+SUM(cmv_c1c2!BA51:BB51)+SUM(cmv_c3!BA51:BB51) -> 6.98 | W52: =nonpt!CW51+ptegu!CV51+ptnonipm!DN51 -> 0.00 | AA52: Wyoming | AB52: =B52+beis!H51 -> 604,370 | AC52: 41,220 | AD52: =D52+beis!T51 -> 162,453 | AE52: 325,921 | AF52: 72,823 | AG52: 47,196 | AH52: =H52+beis!Z51 -> 458,352 | AI52: =I52+beis!E51 -> 10,353 | AJ52: 1,802 | AK52: =K52+beis!N51 -> 20,832 | AL52: =L52+beis!R51 -> 39,958 | AM52: 962 | AN52: 1,411 | AO52: 662 | AP52: 1,108 | AQ52: 1,055 | AR52: 0.25 | AS52: 2.41 | AT52: 2.86 | AU52: 5.64 | AV52: 6.98 | AX52: Wyoming | AY52: =B52-'ptfire-rx'!B51 -> 476,656 | AZ52: =C52-'ptfire-rx'!C51 -> 40,035 | BA52: =D52-'ptfire-rx'!D51 -> 148,253 | BB52: =E52-'ptfire-rx'!E51 -> 318,392 | BC52: =F52-'ptfire-rx'!F51 -> 66,395 | BD52: =G52-'ptfire-rx'!G51 -> 46,648 | BE52: =H52-'ptfire-rx'!H51 -> 212,471 | BF52: =I52-'ptfire-rx'!AN51 -> 3,912 | BG52: =J52-'ptfire-rx'!AR51 -> 1,635 | BH52: =K52-'ptfire-rx'!BD51 -> 11,727 | BI52: =L52-'ptfire-rx'!BM51 -> 6,846 | BJ52: =M52-'ptfire-rx'!BO51 -> 791 | BK52: =N52-'ptfire-rx'!AK51 -> 1,199 | BL52: =O52-'ptfire-rx'!AT51 -> 565 | BM52: 1,108 | BN52: 1,055 | BO52: 0.25 | BP52: 2.41 | BQ52: 2.86 | BR52: 5.64 | BS52: 6.98
A53: Tribal Data (point) | B53: =ptegu!B54+ptnonipm!B54+pt_oilgas!B54+airports!B54 -> 10,342 | C53: =ptegu!C54+ptnonipm!C54+pt_oilgas!C54+airports!C54 -> 14 | D53: =ptegu!DW54+ptnonipm!D54+pt_oilgas!D54+airports!D54 -> 32,054 | E53: =ptegu!E54+ptnonipm!E54+pt_oilgas!E54+airports!E54 -> 6,509 | F53: =ptegu!F54+ptnonipm!F54+pt_oilgas!F54+airports!F54 -> 4,372 | G53: =ptegu!FH54+ptnonipm!G54+pt_oilgas!G54+airports!G54 -> 7,951 | H53: =ptegu!H54+ptnonipm!H54+pt_oilgas!H54+airports!H54 -> 3,184 | I53: =ptegu!BM54+ptnonipm!BX54+pt_oilgas!BL54+airports!AJ54 -> 75 | J53: =ptegu!BS54+ptnonipm!CD54+pt_oilgas!BR54+airports!AM54 -> 25 | K53: =ptegu!CX54+ptnonipm!DP54+pt_oilgas!CV54+airports!BE54 -> 476 | L53: =ptegu!DM54+ptnonipm!EH54+pt_oilgas!DK54+airports!BN54 -> 57 | M53: =ptegu!DO54+ptnonipm!EJ54+pt_oilgas!DM54+airports!BO54 -> 1 | N53: =ptegu!BK54+ptnonipm!BU54+pt_oilgas!BJ54+airports!AH54 -> 48 | O53: =ptegu!BX54+ptnonipm!CI54+pt_oilgas!BW54+airports!AO54 -> 5 | P53: =ptnonipm!BI54+SUM(airports!AR54:AW54) -> 0 | Q53: =ptnonipm!BJ54+SUM(airports!AS54:AW54) -> 0 | R53: =ptegu!T54+ptnonipm!T54+pt_oilgas!S54 -> 0.15 | S53: =ptegu!L54+ptnonipm!L54+pt_oilgas!K54 -> 0.14 | T53: =ptegu!P54+ptnonipm!P54+pt_oilgas!O54 -> 0.03 | U53: =ptegu!AH54+ptnonipm!AL54+pt_oilgas!AG54 -> 0.28 | V53: =ptegu!AD54+ptnonipm!AH54+pt_oilgas!AC54 -> 1.37 | W53: =ptegu!CV54+ptnonipm!DN54 -> 0.00 | AA53: Tribal Data (point) | AB53: =B53 -> 10,342 | AC53: 14 | AD53: =D53 -> 32,054 | AE53: 6,509 | AF53: 4,372 | AG53: 7,951 | AH53: =H53 -> 3,184 | AI53: 75 | AJ53: 25 | AK53: =K53 -> 476 | AL53: 57 | AM53: 1 | AN53: 48 | AO53: 5 | AP53: 0 | AQ53: 0 | AR53: 0 | AS53: 0 | AT53: 0 | AU53: 0 | AV53: 1 | AX53: Tribal Data (point) | AY53: =B53 -> 10,342 | AZ53: =C53 -> 14 | BA53: 32,054 | BB53: 6,509 | BC53: 4,372 | BD53: 7,951 | BE53: 3,184 | BF53: 75 | BG53: 25 | BH53: 476 | BI53: 57 | BJ53: 1 | BK53: 48 | BL53: 5 | BM53: 0 | BN53: 0 | BO53: 0.15 | BP53: 0.14 | BQ53: 0.03 | BR53: 0.28 | BS53: 1.37
A55: CONUS Total | B55: =SUM(B3:B53) -> 56,630,375 | C55: =SUM(C3:C53) -> 4,579,496 | D55: 9,003,657 | E55: 9,752,629 | F55: 4,095,265 | G55: 2,373,089 | H55: 15,212,360 | I55: 225,895 | J55: 168,864 | K55: 425,829 | L55: 426,556 | M55: 55,580 | N55: 69,458 | O55: 43,905 | P55: 132,666 | Q55: 125,691 | R55: 67.62 | S55: 75.26 | T55: 30.61 | U55: 476.19 | V55: 922.33 | W55: 95.80 | AA55: CONUS Total | AB55: =SUM(AB3:AB53) -> 60,488,836 | AC55: 4,579,496 | AD55: 9,962,738 | AE55: 9,752,629 | AF55: 4,095,265 | AG55: 2,373,089 | AH55: 40,989,925 | AI55: =SUM(AI3:AI53) -> 629,921 | AJ55: 168,864 | AK55: 976,784 | AL55: 2,508,111 | AM55: 55,580 | AN55: 69,458 | AO55: 43,905 | AP55: 132,666 | AQ55: 125,691 | AR55: 67.62 | AS55: 75.26 | AT55: 30.61 | AU55: 476.19 | AV55: 922.33 | AX55: CONUS Total | AY55: =SUM(AY3:AY53) -> 45,757,306 | AZ55: 4,401,867 | BA55: 8,821,184 | BB55: 8,583,829 | BC55: 3,093,353 | BD55: 2,281,221 | BE55: 12,594,596 | BF55: =SUM(BF3:BF53) -> 140,156 | BG55: 143,487 | BH55: 269,760 | BI55: 303,939 | BJ55: 35,522 | BK55: 35,143 | BL55: 25,152 | BM55: 132,666 | BN55: 125,691 | BO55: 67.62 | BP55: 75.26 | BQ55: 30.61 | BR55: 476.19 | BS55: 922.33
A56: Eastern State Total | B56: =+B51+B50+B48+B47+B45+B44+B43+B42+B41+B40+B38+B37+B36+B35+B34+B32+B31+B29+B27+B26+B25+B24+B23+B22+B21+B20+B19+B18+B17+B16+B15+B13+B12+B10+B9+B6+B4 -> 39,492,775 | C56: =+C51+C50+C48+C47+C45+C44+C43+C42+C41+C40+C38+C37+C36+C35+C34+C32+C31+C29+C27+C26+C25+C24+C23+C22+C21+C20+C19+C18+C17+C16+C15+C13+C12+C10+C9+C6+C4 -> 3,355,165 | D56: 7,172,182 | E56: 6,494,336 | F56: 2,685,626 | G56: 2,106,795 | H56: 10,518,662 | I56: 125,275 | J56: 124,698 | K56: 240,930 | L56: 233,515 | M56: 29,089 | N56: 40,839 | O56: 27,883 | P56: 106,396 | Q56: 101,001 | R56: 60.25 | S56: 55.67 | T56: 22.09 | U56: 431.88 | V56: 782.76 | W56: 91.79 | AA56: Eastern State Total | AB56: =+AB51+AB50+AB48+AB47+AB45+AB44+AB43+AB42+AB41+AB40+AB38+AB37+AB36+AB35+AB34+AB32+AB31+AB29+AB27+AB26+AB25+AB24+AB23+AB22+AB21+AB20+AB19+AB18+AB17+AB16+AB15+AB13+AB12+AB10+AB9+AB6+AB4 -> 42,061,289 | AC56: 3,355,165 | AD56: 7,941,035 | AE56: 6,494,336 | AF56: 2,685,626 | AG56: 2,106,795 | AH56: 29,553,935 | AI56: =+AI51+AI50+AI48+AI47+AI45+AI44+AI43+AI42+AI41+AI40+AI38+AI37+AI36+AI35+AI34+AI32+AI31+AI29+AI27+AI26+AI25+AI24+AI23+AI22+AI21+AI20+AI19+AI18+AI17+AI16+AI15+AI13+AI12+AI10+AI9+AI6+AI4 -> 394,169 | AJ56: 124,698 | AK56: 607,612 | AL56: 1,625,846 | AM56: 29,089 | AN56: 40,839 | AO56: 27,883 | AP56: 106,396 | AQ56: 101,001 | AR56: 60.25 | AS56: 55.67 | AT56: 22.09 | AU56: 431.88 | AV56: 782.76 | AX56: Eastern State Total | AY56: =+AY51+AY50+AY48+AY47+AY45+AY44+AY43+AY42+AY41+AY40+AY38+AY37+AY36+AY35+AY34+AY32+AY31+AY29+AY27+AY26+AY25+AY24+AY23+AY22+AY21+AY20+AY19+AY18+AY17+AY16+AY15+AY13+AY12+AY10+AY9+AY6+AY4 -> 30,938,063 | AZ56: 3,215,332 | BA56: 7,016,895 | BB56: 5,561,041 | BC56: 1,884,584 | BD56: 2,030,957 | BE56: 8,451,455 | BF56: =+BF51+BF50+BF48+BF47+BF45+BF44+BF43+BF42+BF41+BF40+BF38+BF37+BF36+BF35+BF34+BF32+BF31+BF29+BF27+BF26+BF25+BF24+BF23+BF22+BF21+BF20+BF19+BF18+BF17+BF16+BF15+BF13+BF12+BF10+BF9+BF6+BF4 -> 58,088 | BG56: 103,986 | BH56: 117,940 | BI56: 146,746 | BJ56: 13,805 | BK56: 12,426 | BL56: 11,863 | BM56: 106,396 | BN56: 101,001 | BO56: 60.25 | BP56: 55.67 | BQ56: 22.09 | BR56: 431.88 | BS56: 782.76

Sheet All Sectors CAPs
A1: 2018gc case CAPs by sector from EMF/inventory summaries
A3: Continental US totals
A4: Includes Tribal Data for point only. Does not include CMV or pt_oilgas offshore (that's in the Canada/Mexico/offshore table). Onroad is the sum of onroad+onroad_ca_adj. Ptegu NOX/SO2 are post-SMOKE.
A5: Sector | B5: CO | C5: NH3 | D5: NOX | E5: PM10 | F5: PM2_5 | G5: SO2 | H5: VOC
A6: afdust_adj | E6: =afdust!BA62 -> 5,691,832 | F6: =afdust!BB62 -> 789,322
A7: airports | B7: =airports!B62 -> 489,039 | C7: =airports!C62 -> 0 | D7: =airports!D62 -> 131,779 | E7: =airports!E62 -> 9,813 | F7: =airports!F62 -> 8,576 | G7: =airports!G62 -> 16,492 | H7: =airports!H62 -> 54,939
A8: cmv_c1c2 | B8: =cmv_c1c2!B62 -> 24,431 | C8: =cmv_c1c2!BE62 -> 86 | D8: =cmv_c1c2!D62 -> 168,566 | E8: =cmv_c1c2!E62 -> 4,622 | F8: =cmv_c1c2!F62 -> 4,480 | G8: =cmv_c1c2!G62 -> 655 | H8: =cmv_c1c2!H62 -> 6,674
A9: cmv_c3 | B9: =cmv_c3!B62 -> 15,068 | C9: =cmv_c3!BE62 -> 42 | D9: =cmv_c3!D62 -> 114,722 | E9: =cmv_c3!E62 -> 2,380 | F9: =cmv_c3!F62 -> 2,189 | G9: =cmv_c3!G62 -> 4,891 | H9: =cmv_c3!H62 -> 9,311
A10: fertilizer | C10: =fertilizer!B62 -> 1,259,282
A11: livestock | C11: =livestock!B62 -> 2,571,572 | H11: =livestock!C62 -> 225,550
A12: nonpt | B12: =nonpt!B62 -> 1,927,267 | C12: =nonpt!C62 -> 102,898 | D12: =nonpt!D62 -> 739,250 | E12: =nonpt!E62 -> 572,589 | F12: =nonpt!F62 -> 475,154 | G12: =nonpt!G62 -> 166,399 | H12: =nonpt!H62 -> 818,185
A13: nonroad | B13: =nonroad!B62 -> 10,473,047 | C13: =nonroad!C62 -> 1,925 | D13: =nonroad!D62 -> 988,078 | E13: =nonroad!E62 -> 96,182 | F13: =nonroad!F62 -> 90,714 | G13: =nonroad!G62 -> 1,372 | H13: =nonroad!H62 -> 1,016,057
A14: np_oilgas | B14: =np_oilgas!B62 -> 668,211 | C14: =np_oilgas!C62 -> 15 | D14: =np_oilgas!D62 -> 664,978 | E14: =np_oilgas!E62 -> 11,570 | F14: =np_oilgas!F62 -> 11,397 | G14: =np_oilgas!G62 -> 43,657 | H14: =np_oilgas!H62 -> 2,783,694
A15: onroad | B15: ='onroad all'!AG61 -> 17,043,371 | C15: ='onroad all'!BZ61 -> 103,249 | D15: ='onroad all'!CI61 -> 2,827,451 | E15: ='onroad all'!DE61+'onroad all'!DD61 -> 207,714 | F15: ='onroad all'!DD61 -> 88,309 | G15: ='onroad all'!DU61 -> 22,628 | H15: ='onroad all'!EI61 -> 1,172,608
A16: ptegu | B16: =ptegu!B62 -> 575,731 | C16: =ptegu!C62 -> 21,523 | D16: =ptegu!DW61 -> 1,143,934 | E16: =ptegu!E62 -> 159,382 | F16: =ptegu!F62 -> 126,097 | G16: =ptegu!FH61 -> 1,320,882 | H16: =ptegu!H62 -> 32,793
A17: ptagfire | B17: =ptagfire!B62 -> 421,836 | C17: =ptagfire!C62 -> 93,685 | D17: =ptagfire!D62 -> 17,935 | E17: =ptagfire!E62 -> 59,968 | F17: =ptagfire!F62 -> 38,050 | G17: =ptagfire!G62 -> 7,451 | H17: =ptagfire!H62 -> 63,726
A18: ptfire-rx | B18: ='ptfire-rx'!B62 -> 10,873,070 | C18: ='ptfire-rx'!C62 -> 177,629 | D18: ='ptfire-rx'!D62 -> 182,473 | E18: ='ptfire-rx'!E62 -> 1,168,800 | F18: ='ptfire-rx'!F62 -> 1,001,912 | G18: ='ptfire-rx'!G62 -> 91,868 | H18: ='ptfire-rx'!H62 -> 2,617,765
A19: ptfire-wild | B19: ='ptfire-wild'!B62 -> 10,275,916 | C19: ='ptfire-wild'!C62 -> 168,798 | D19: ='ptfire-wild'!D62 -> 147,585 | E19: ='ptfire-wild'!E62 -> 1,051,942 | F19: ='ptfire-wild'!F62 -> 891,476 | G19: ='ptfire-wild'!G62 -> 79,478 | H19: ='ptfire-wild'!H62 -> 2,426,465
A20: ptnonipm | B20: =ptnonipm!B62 -> 1,387,105 | C20: =ptnonipm!C62 -> 61,531 | D20: =ptnonipm!D62 -> 905,359 | E20: =ptnonipm!E62 -> 387,125 | F20: =ptnonipm!F62 -> 241,089 | G20: =ptnonipm!G62 -> 569,451 | H20: =ptnonipm!H62 -> 609,870
A21: pt_oilgas | B21: =pt_oilgas!B62 -> 178,585 | C21: =pt_oilgas!C62 -> 485 | D21: =pt_oilgas!D62 -> 366,485 | E21: =pt_oilgas!E62 -> 13,077 | F21: =pt_oilgas!F62 -> 12,218 | G21: =pt_oilgas!G62 -> 39,151 | H21: =pt_oilgas!H62 -> 138,835
A22: rail | B22: =rail!B62 -> 117,171 | C22: =rail!C62 -> 365 | D22: =rail!D62 -> 570,969 | E22: =rail!E62 -> 15,494 | F22: =rail!F62 -> 15,005 | G22: =rail!G62 -> 727 | H22: =rail!H62 -> 24,947
A23: rwc | B23: =rwc!B62 -> 2,160,529 | C23: =rwc!C62 -> 16,413 | D23: =rwc!D62 -> 34,093 | E23: =rwc!E62 -> 300,139 | F23: =rwc!F62 -> 299,278 | G23: =rwc!G62 -> 7,988 | H23: =rwc!H62 -> 323,969
A24: vcp | H24: =vcp!H62 -> 2,886,974
A25: beis (not merged) | B25: =beis!H53 -> 3,858,461 | D25: =beis!T53 -> 959,081 | H25: =beis!Z53 -> 25,777,565
A26: TOTAL no beis | B26: =SUM(B6:B24) -> 56,630,375 | C26: 4,579,496 | D26: 9,003,657 | E26: 9,752,629 | F26: 4,095,265 | G26: 2,373,089 | H26: 15,212,360
A27: TOTAL w/beis | B27: =B26+B25 -> 60,488,836 | C27: =C26+C25 -> 4,579,496 | D27: 9,962,738 | E27: 9,752,629 | F27: 4,095,265 | G27: 2,373,089 | H27: 40,989,925
A29: Non-US totals (12US1 only), including CMV offshore from cmv_c1c2/cmv_c3 and oil/gas offshore from pt_oilgas
A30: Sector | B30: CO | C30: NH3 | D30: NOX | E30: PM10 | F30: PM2_5 | G30: SO2 | H30: VOC
A31: Canada othafdust | E31: =othafdust!AZ18 -> 580,703 | F31: =othafdust!BA18 -> 90,421
A32: Canada othptdust | E32: ='othptdust 12US1'!AZ18 -> 132,266 | F32: ='othptdust 12US1'!BA18 -> 46,401
A33: Canada othar | B33: =othar!S50 -> 2,182,369 | C33: =othar!AH50 -> 3,815 | D33: =othar!AM50 -> 306,078 | E33: =othar!AX50 -> 223,090 | F33: =othar!AY50 -> 174,668 | G33: =othar!BM50 -> 16,318 | H33: =othar!BT50 -> 725,957
A34: Canada onroad_can | B34: =onroad_can!S50 -> 1,661,932 | C34: =onroad_can!AH50 -> 7,156 | D34: =onroad_can!AM50 -> 331,485 | E34: =onroad_can!AX50 -> 23,592 | F34: =onroad_can!AY50 -> 11,282 | G34: =onroad_can!BM50 -> 1,531 | H34: =onroad_can!BT50 -> 134,046
A35: Canada othpt | B35: =othpt!V50 -> 1,115,786 | C35: =othpt!AK50 -> 348,022 | D35: =othpt!AP50 -> 653,888 | E35: =othpt!BA50 -> 90,209 | F35: =othpt!BB50 -> 43,221 | G35: =othpt!BP50 -> 993,759 | H35: =othpt!BW50 -> 762,206
A36: Canada ptfire_othna | B36: =ptfire_othna!S65 -> 4,679,983 | C36: =ptfire_othna!AI65 -> 93,406 | D36: =ptfire_othna!AN65 -> 195,209 | E36: =ptfire_othna!AY65 -> 671,858 | F36: =ptfire_othna!AZ65 -> 565,668 | G36: =ptfire_othna!BN65 -> 38,759 | H36: =ptfire_othna!BU65 -> 1,343,696
A37: Canada cmv_c1c2 | B37: =cmv_c1c2!AB63 -> 2,050 | C37: =cmv_c1c2!BE63 -> 7 | D37: =cmv_c1c2!BL63 -> 14,088 | E37: =cmv_c1c2!CC63 -> 364 | F37: =cmv_c1c2!CD63 -> 350 | G37: =cmv_c1c2!CR63 -> 127 | H37: =cmv_c1c2!CZ63 -> 513
A38: Canada cmv_c3 | B38: =cmv_c3!AB64 -> 9,054 | C38: =cmv_c3!BE64 -> 30 | D38: =cmv_c3!BL64 -> 82,533 | E38: =cmv_c3!CC64 -> 1,352 | F38: =cmv_c3!CD64 -> 1,244 | G38: =cmv_c3!CR64 -> 2,814 | H38: =cmv_c3!CZ64 -> 4,896
A39: Canada subtotal | B39: =SUM(B31:B38) -> 9,651,174 | C39: =SUM(C31:C38) -> 452,436 | D39: 1,583,282 | E39: 1,723,433 | F39: 933,256 | G39: 1,053,308 | H39: 2,971,314
A40: Mexico othar | B40: =othar!S51 -> 115,420 | C40: =othar!AH51 -> 111,699 | D40: =othar!AM51 -> 60,057 | E40: =othar!AX51 -> 104,896 | F40: =othar!AY51 -> 34,686 | G40: =othar!BM51 -> 1,729 | H40: =othar!BT51 -> 361,621
A41: Mexico onroad_mex | B41: =onroad_mex!AD38 -> 1,821,182 | C41: =onroad_mex!AS38 -> 2,918 | D41: =onroad_mex!AX38 -> 447,430 | E41: =onroad_mex!BH38 -> 15,744 | F41: =onroad_mex!BI38 -> 11,158 | G41: =onroad_mex!BW38 -> 6,638 | H41: =onroad_mex!CD38 -> 159,185
A42: Mexico othpt | B42: =othpt!V51 -> 108,712 | C42: =othpt!AK51 -> 1,093 | D42: =othpt!AP51 -> 190,460 | E42: =othpt!BA51 -> 53,893 | F42: =othpt!BB51 -> 37,389 | G42: =othpt!BP51 -> 354,827 | H42: =othpt!BW51 -> 35,671
A43: Mexico ptfire_othna | B43: =ptfire_othna!S66 -> 438,065 | C43: =ptfire_othna!AI66 -> 8,465 | D43: =ptfire_othna!AN66 -> 17,524 | E43: =ptfire_othna!AY66 -> 57,762 | F43: =ptfire_othna!AZ66 -> 49,343 | G43: =ptfire_othna!BN66 -> 3,612 | H43: =ptfire_othna!BU66 -> 126,265
A44: Mexico subtotal | B44: =SUM(B40:B43) -> 2,483,380 | C44: 124,175 | D44: 715,472 | E44: 232,294 | F44: 132,576 | G44: 366,807 | H44: 682,743
A45: Offshore cmv_c1c2 | B45: =SUM(cmv_c1c2!AB59:AB60) -> 5,998 | C45: =SUM(cmv_c1c2!BE59:BE60) -> 19 | D45: =SUM(cmv_c1c2!BL59:BL60) -> 39,426 | E45: =SUM(cmv_c1c2!CC59:CC60) -> 1,040 | F45: =SUM(cmv_c1c2!CD59:CD60) -> 1,009 | G45: =SUM(cmv_c1c2!CR59:CR60) -> 82 | H45: =SUM(cmv_c1c2!CZ59:CZ60) -> 1,509
A46: Offshore cmv_c3 | B46: =cmv_c3!AB59+cmv_c3!AB60 -> 52,713 | C46: =cmv_c3!BE59+cmv_c3!BE60 -> 570 | D46: =cmv_c3!BL59+cmv_c3!BL60 -> 520,746 | E46: =cmv_c3!CC59+cmv_c3!CC60 -> 32,206 | F46: =cmv_c3!CD59+cmv_c3!CD60 -> 29,630 | G46: =cmv_c3!CR59+cmv_c3!CR60 -> 218,142 | H46: =cmv_c3!CZ59+cmv_c3!CZ60 -> 26,798
A47: Offshore pt_oilgas | B47: =pt_oilgas!CM59 -> 51,866 | C47: =pt_oilgas!DN59 -> 8 | D47: =pt_oilgas!DU59 -> 49,959 | E47: =pt_oilgas!EO59 -> 636 | F47: =pt_oilgas!EP59 -> 635 | G47: =pt_oilgas!FF59 -> 462 | H47: =pt_oilgas!FP59 -> 38,803
A48: Can/Mex/offshore total | B48: =B39+B44+SUM(B45:B47) -> 12,245,131 | C48: 577,209 | D48: 2,908,884 | E48: 1,989,610 | F48: 1,097,106 | G48: 1,638,801 | H48: 3,721,168

Sheet All Sectors HAPs
A1: 2018gc_18j case VOC HAPs and metals by sector from EMF/inventory summaries
A3: Continental US totals (not AK/HI/PR/VI)
A4: Includes Tribal Data for point only. Does not include CMV offshore (that's in the Canada/Mexico/offshore table). Onroad is the sum of onroad+onroad_ca_adj.
A5: VOC HAPs = post-SMOKE, including secondary (speciated) NBAFM, including in non-US areas.
A6: Sector | B6: Acetaldehyde | C6: Benzene | D6: Formaldehyde | E6: Methanol | F6: Naphthalene | G6: Acrolein | H6: 1,3-Butadiene | I6: Diesel PM10 | J6: Diesel PM2.5 | K6: Chromium Hex | L6: Arsenic | M6: Cadmium | N6: Nickel | O6: Manganese | P6: ETOX
A7: afdust_adj | B7: 0 | C7: 0 | D7: 0 | E7: 0 | F7: 0 | G7: 0 | H7: 0
A8: livestock | B8: =livestock!U61 -> 1,534 | C8: =livestock!X61 -> 449 | E8: =livestock!AN61 -> 16,222 | F8: 0
A9: airports | B9: =airports!AJ62 -> 2,104 | C9: =airports!AM62 -> 942 | D9: =airports!BE62 -> 6,088 | E9: =airports!BN62 -> 879 | F9: =airports!BO62 -> 600 | G9: =airports!AH62 -> 1,194 | H9: =airports!AO62 -> 848 | I9: =SUM(airports!AR62:AW62) -> 78 | J9: =SUM(airports!AS62:AW62) -> 76
A10: cmv_c1c2 | B10: =cmv_c1c2!O62 -> 65 | C10: =cmv_c1c2!T62 -> 32 | D10: =cmv_c1c2!AO62 -> 285 | E10: =cmv_c1c2!BC62 -> 0.0 | F10: =cmv_c1c2!BD62 -> 18.2 | G10: =cmv_c1c2!M62 -> 12 | H10: =cmv_c1c2!V62 -> 7 | I10: =SUM(cmv_c1c2!AC62:AH62) -> 4,622 | J10: =SUM(cmv_c1c2!AD62:AH62) -> 4,480 | K10: =SUM(cmv_c1c2!Z62:AA62) -> 0.00003 | L10: =SUM(cmv_c1c2!R62:S62) -> 0.12 | M10: =SUM(cmv_c1c2!W62:X62) -> 1.06 | N10: =SUM(cmv_c1c2!BG62:BH62) -> 3.08 | O10: =SUM(cmv_c1c2!BA62:BB62) -> 0.014
A11: cmv_c3 | B11: =cmv_c3!O62 -> 91 | C11: =cmv_c3!T62 -> 44 | D11: =cmv_c3!AP62 -> 398 | E11: =cmv_c3!BC62 -> 0.0 | F11: =cmv_c3!BD62 -> 25.4 | G11: =cmv_c3!M62 -> 17 | H11: =cmv_c3!V62 -> 9 | I11: =SUM(cmv_c3!AC62:AH62) -> 2,380 | J11: =SUM(cmv_c3!AD62:AH62) -> 2,189 | K11: =SUM(cmv_c3!Z62:AA62) -> 0.00002 | L11: =SUM(cmv_c3!R62:S62) -> 0.06 | M11: =SUM(cmv_c3!W62:X62) -> 0.52 | N11: =SUM(cmv_c3!BG62:BH62) -> 1.50 | O11: =SUM(cmv_c3!BA62:BB62) -> 0.007
A12: nonpt | B12: =nonpt!BN61 -> 5,100 | C12: =nonpt!BT61 -> 9,268 | D12: =nonpt!CY61 -> 5,914 | E12: =nonpt!DO61 -> 5,262 | F12: =nonpt!DQ61 -> 490 | G12: =nonpt!BK61 -> 223 | H12: =nonpt!BY61 -> 781 | K12: =nonpt!T62 -> 0.36 | L12: =nonpt!L62 -> 5.95 | M12: =nonpt!P62 -> 3.77 | N12: =nonpt!AI62 -> 26.27 | O12: =nonpt!AE62 -> 15.54 | P12: =nonpt!CW61 -> 0.95
A13: nonroad | B13: =nonroad!AK61 -> 9,756 | C13: =nonroad!AP61 -> 26,619 | D13: =nonroad!BH61 -> 24,530 | E13: =nonroad!BT61 -> 1,313 | F13: =nonroad!BU61 -> 1,691 | G13: =nonroad!AJ61 -> 1,744 | H13: =nonroad!AR61 -> 4,243 | I13: =nonroad!AD62 -> 55,605 | J13: =nonroad!AE62 -> 53,757 | K13: =nonroad!R62 -> 0.00 | L13: =nonroad!U62 -> 0.88 | N13: =nonroad!T62 -> 1.13 | O13: =nonroad!S62 -> 0.68
A14: np_oilgas | B14: =np_oilgas!AT61 -> 4,914 | C14: =np_oilgas!AZ61 -> 31,747 | D14: =np_oilgas!BV61 -> 28,464 | E14: =np_oilgas!CJ61 -> 1,905 | F14: =np_oilgas!CK61 -> 113 | G14: =np_oilgas!AS61 -> 1,772 | H14: =np_oilgas!BB61 -> 376 | K14: =np_oilgas!R62 -> 0.00 | L14: =np_oilgas!K62 -> 0.01 | M14: =np_oilgas!N62 -> 0.08 | N14: =np_oilgas!AB62 -> 0.03 | O14: =np_oilgas!X62 -> 0.02
A15: onroad | B15: ='onroad all'!H61 -> 11,402 | C15: ='onroad all'!P61 -> 23,944 | D15: ='onroad all'!BC61 -> 14,403 | E15: ='onroad all'!BU61 -> 1,984 | F15: ='onroad all'!BY61 -> 1,912 | G15: ='onroad all'!G61 -> 1,109 | H15: ='onroad all'!Z61 -> 3,192 | I15: =SUM('onroad all'!AK61:AP61) -> 52,354 | J15: =I15-'onroad all'!AK61 -> 48,249 | K15: ='onroad all'!AC61 -> 0.04 | L15: ='onroad all'!M61 -> 8.05 | N15: ='onroad all'!CB61 -> 5.86 | O15: ='onroad all'!BS61+'onroad all'!BT61 -> 33.47
A16: ptegu | B16: =ptegu!BM61 -> 297 | C16: =ptegu!BS61 -> 418 | D16: =ptegu!CX61 -> 2,657 | E16: =ptegu!DM61 -> 123 | F16: =ptegu!DO61 -> 25 | G16: =ptegu!BK61 -> 252 | H16: =ptegu!BX61 -> 4 | K16: =ptegu!T62 -> 7.47 | L16: =ptegu!L62 -> 15.50 | M16: =ptegu!P62 -> 11.89 | N16: =ptegu!AH62 -> 76.10 | O16: =ptegu!AD62 -> 124.83 | P16: =ptegu!BB62 -> 0.002
A17: ptagfire | B17: =ptagfire!AI61 -> 4,675 | C17: =ptagfire!AM61 -> 1,219 | D17: =ptagfire!AX61 -> 4,224 | E17: =ptagfire!BG61 -> 1,062 | F17: =ptagfire!BI61 -> 34 | G17: =ptagfire!AG61 -> 668 | H17: =ptagfire!AO61 -> 371
A18: ptfire-rx | B18: ='ptfire-rx'!AN61 -> 85,739 | C18: ='ptfire-rx'!AR61 -> 25,377 | D18: ='ptfire-rx'!BD61 -> 156,069 | E18: ='ptfire-rx'!BM61 -> 122,618 | F18: ='ptfire-rx'!BO61 -> 20,058 | G18: ='ptfire-rx'!AK61 -> 34,316 | H18: ='ptfire-rx'!AT61 -> 18,752
A19: ptfire-wild | B19: ='ptfire-wild'!AL61 -> 77,960 | C19: ='ptfire-wild'!AO61 -> 22,467 | D19: ='ptfire-wild'!BA61 -> 138,234 | E19: ='ptfire-wild'!BI61 -> 139,547 | F19: ='ptfire-wild'!BK61 -> 22,627 | G19: ='ptfire-wild'!AI61 -> 23,823 | H19: ='ptfire-wild'!AQ61 -> 12,187
A20: ptnonipm | B20: =ptnonipm!BX61 -> 6,324 | C20: =ptnonipm!CD61 -> 3,184 | D20: =ptnonipm!DP61 -> 6,532 | E20: =ptnonipm!EH61 -> 52,101 | F20: =ptnonipm!EJ61 -> 1,041 | G20: =ptnonipm!BU61 -> 978 | H20: =ptnonipm!CI61 -> 680 | I20: =ptnonipm!BI62 -> 2,133 | J20: =ptnonipm!BJ62 -> 1,936 | K20: =ptnonipm!T62 -> 59.65 | L20: =ptnonipm!L62 -> 29.93 | M20: =ptnonipm!P62 -> 12.89 | N20: =ptnonipm!AL62 -> 300.19 | O20: =ptnonipm!AH62 -> 712.89 | P20: =ptnonipm!Z62 -> 95
A21: pt_oilgas | B21: =pt_oilgas!BL61 -> 2,837 | C21: =pt_oilgas!BR61 -> 1,203 | D21: =pt_oilgas!CV61 -> 14,298 | E21: =pt_oilgas!DK61 -> 1,833 | F21: =pt_oilgas!DM61 -> 28 | G21: =pt_oilgas!BJ61 -> 2,091 | H21: =pt_oilgas!BW61 -> 293 | K21: =pt_oilgas!S62 -> 0.02 | L21: =pt_oilgas!K62 -> 0.02 | M21: =pt_oilgas!O62 -> 0.30 | N21: =pt_oilgas!AG62 -> 6.54 | O21: =pt_oilgas!AC62 -> 2.57
A22: rail | B22: =rail!AO61 -> 1,808 | C22: =rail!AU61 -> 520 | D22: =rail!BR61 -> 5,150 | E22: =rail!CF61 -> 0 | F22: =rail!CG61 -> 65 | G22: =rail!AN61 -> 369 | H22: =rail!AY61 -> 43 | I22: =rail!AD62 -> 15,494 | J22: =rail!AE62 -> 15,005 | K22: =rail!P62 -> 0.07 | L22: =rail!K62 -> 14.75 | M22: =rail!O62 -> 0.03 | N22: =rail!V62 -> 55.42 | O22: =rail!T62 -> 31.70
